Workbook

Sheet MENU KERJA

Sheet Data_From Access 1721 A1
E2: Kolom Alamat Harus Sesuai Dengan Garis Panah
A4: No | B4: NIK_KTP | C4: NPWP | D4: Nama | E4: Alamat | F4: Jenis_Kelamin | G4: Status | H4: Jabatan | I4: No_Urut | J4: Gaji_Pokok | K4: Tunjangan Lainnya | L4: Bulan Masuk Kerja | M4: Bulan Akhir Tahun | N4: Masa Kerja | O4: 5% | P4: 15% | Q4: 25% | R4: 30% | S4: 35% | T4: PPH 21 Terutang. Gaji/Bonus/THR | U4: PPH 21 Terutang. Gaji/Bonus/THR | V4: Kredit Pajak YTDD Jan - Nov + THR
A5: =IF(B5<>"",COUNTA($B$5:B5),"") -> 1 | B5: 1171020309011130001 | C5: 48.541.394.2-122.000 | D5: Gilang Fathur Albajiili SE. | E5: Jl Bunga Rampai VI Gg.08 No. 110 Perumnas-Klender | F5: LAKI-LAKI | G5: K/0 | H5: Asisten Ahli | I5: 12230000001 | J5: 8,000,000.00 | K5: 2,000,000.00 | L5: Jan-2022 | M5: Des-2022 | N5: 12 | O5: 3,000,000.00 | P5: 170,700.00 | Q5: 0.00 | R5: 0.00 | S5: 0.00 | T5: 2.656.000 | U5: 514.000 | V5: 2.948.663
A6: =IF(B6<>"",COUNTA($B$5:B6),"") -> 2 | B6: 1181020309011130001 | C6: 48.534.393.2-122.001 | D6: Amril Rulan | E6: Bogor Jawa-Barat | F6: LAKI-LAKI | G6: K/2 | H6: Lektor Kepala | I6: 12230000002 | J6: 11,000,000.00 | K6: 4,000,000.00 | L6: Jan-2022 | M6: Des-2022 | N6: 12 | O6: 3,000,000.00 | P6: 8,137,800.00 | Q6: 0.00 | R6: 0.00 | S6: 0.00 | T6: 9.487.000 | U6: 1.650.000 | V6: 10.346.413
A7: =IF(B7<>"",COUNTA($B$5:B7),"") -> 3 | B7: 1191020309011130001 | C7: 48.521.382.3-122.002 | D7: Sahrul Irwan | E7: Aceh | F7: LAKI-LAKI | G7: K/2 | H7: Lektor Penata | I7: 12230000003 | J7: 10,000,000.00 | K7: 2,000,000.00 | L7: Jan-2022 | M7: Des-2022 | N7: 12 | O7: 3,000,000.00 | P7: 2,632,200.00 | Q7: 0.00 | R7: 0.00 | S7: 0.00 | T7: 4.132.000 | U7: 1.500.000 | V7: 5.287.663
A8: =IF(B8<>"",COUNTA($B$5:B8),"") -> 4 | B8: 1201020309011130001 | C8: 48.568.383.2-123.003 | D8: Muhamad Satrio | E8: DKI Jakarta Timur | F8: LAKI-LAKI | G8: K/2 | H8: Asisten Ahli | I8: 12230000004 | J8: 8,500,000.00 | K8: 1,500,000.00 | L8: Jan-2022 | M8: Des-2022 | N8: 12 | O8: 2,624,500.00 | P8: 0.00 | Q8: 0.00 | R8: 0.00 | S8: 0.00 | T8: 2.199.000 | U8: 425.000 | V8: 2.440.750
A9: =IF(B9<>"",COUNTA($B$5:B9),"") -> 5 | B9: 1201020309011130009 | C9: 48.568.383.2-123.070 | D9: Sobari MS | E9: Sumedang Jawa-Barat | F9: LAKI-LAKI | G9: K/3 | H9: Lektor Penata | I9: 12230000005 | J9: 10,000,000.00 | K9: 2,000,000.00 | L9: Jan-2022 | M9: Des-2022 | N9: 12 | O9: 3,000,000.00 | P9: 1,957,200.00 | Q9: 0.00 | R9: 0.00 | S9: 0.00 | T9: 3.457.000 | U9: 1.500.000 | V9: 4.668.913
A10: =IF(B10<>"",COUNTA($B$5:B10),"") -> 6 | B10: 1201020309045630009 | C10: 48.568.383.2-123.050 | D10: Sukron Abdulah | E10: Solo Jawa Tengah | F10: LAKI-LAKI | G10: K/2 | H10: Guru Besar | I10: 12230000006 | J10: 30,000,000.00 | K10: 5,000,000.00 | L10: Jan-2022 | M10: Des-2022 | N10: 12 | O10: 3,000,000.00 | P10: 28,500,000.00 | Q10: 29,411,000.00 | R10: 0.00 | S10: 0.00 | T10: 53.411.000 | U10: 7.500.000 | V10: 56.460.076
A11: =IF(B11<>"",COUNTA($B$5:B11),"") -> 7 | B11: 1201020309045630011 | C11: 48.568.383.2-123.011 | D11: Rusli Zakir | E11: Bekasi Jawa-Barat | F11: LAKI-LAKI | G11: TK/0 | H11: Asisten Ahli | I11: 12230000007 | J11: 9,500,000.00 | K11: 1,500,000.00 | L11: Jan-2022 | M11: Des-2022 | N11: 12 | O11: 3,000,000.00 | P11: 2,804,250.00 | Q11: 0.00 | R11: 0.00 | S11: 0.00 | T11: 4.379.000 | U11: 1.425.000 | V11: 5.439.076
A12: =IF(B12<>"",COUNTA($B$5:B12),"") -> 8 | B12: 1201020309045630072 | C12: 48.568.383.2-123.323 | D12: Aziz Gauraf | E12: Jl Pondok Kelapa Jakarta-Timur | F12: LAKI-LAKI | G12: K/0 | H12: Asisten Ahli | I12: 12230000008 | J12: 9,500,000.00 | K12: 1,000,000.00 | L12: Jan-2022 | M12: Des-2022 | N12: 12 | O12: 3,000,000.00 | P12: 1,229,250.00 | Q12: 0.00 | R12: 0.00 | S12: 0.00 | T12: 2.934.000 | U12: 1.295.000 | V12: 3.984.500
A13: =IF(B13<>"",COUNTA($B$5:B13),"") -> 9 | B13: 1201020309045630065 | C13: 48.568.383.2-123.030 | D13: Yanuar Ardi | E13: Bekasi - Jawa Barat | F13: LAKI-LAKI | G13: K/0 | H13: Asisten Ahli | I13: 12230000009 | J13: 8,500,000.00 | K13: 1,000,000.00 | L13: Jan-2022 | M13: Des-2022 | N13: 12 | O13: 2,774,500.00 | P13: 0.00 | Q13: 0.00 | R13: 0.00 | S13: 0.00 | T13: 2.363.000 | U13: 411.000 | V13: 2.577.076
A14: =IF(B14<>"",COUNTA($B$5:B14),"") -> 10 | B14: 1201020309045630512 | C14: 48.568.383.2-123.277 | D14: Rini Sutinah | E14: Jl Perintis Kemerdekaan Jakarta-Timur | F14: PREMPUAN | G14: TK/0 | H14: Asisten Ahli | I14: 12230000010 | J14: 8,500,000.00 | K14: 1,500,000.00 | L14: Jan-2022 | M14: Des-2022 | N14: 12 | O14: 3,000,000.00 | P14: 898,500.00 | Q14: 0.00 | R14: 0.00 | S14: 0.00 | T14: 2.874.000 | U14: 1.024.000 | V14: 3.658.500
A15: =IF(B15<>"",COUNTA($B$5:B15),"") -> 11 | B15: 3317556856514798103 | C15: 48.568.383.2-123.277 | D15: Ryan Aji | E15: Jl. Elang Bekasi Jawa Barat | F15: LAKI-LAKI | G15: TK/0 | H15: Lektor Kepala Pembina | I15: 12230000011 | J15: 550,000,000.00 | K15: 4,000,000.00 | L15: Jan-2022 | M15: Des-2022 | N15: 12 | O15: 3,000,000.00 | P15: 28,500,000.00 | Q15: 62,500,000.00 | R15: 1,350,000,000.00 | S15: 691,474,000.00 | T15: 1.942.974.000 | U15: 192.500.000 | V15: 1.973.559.500
A16: =IF(B16<>"",COUNTA($B$5:B16),"") -> 
A17: =IF(B17<>"",COUNTA($B$5:B17),"") -> 
A18: =IF(B18<>"",COUNTA($B$5:B18),"") -> 
A19: =IF(B19<>"",COUNTA($B$5:B19),"") -> 
A20: =IF(B20<>"",COUNTA($B$5:B20),"") -> 
A21: =IF(B21<>"",COUNTA($B$5:B21),"") -> 
A22: =IF(B22<>"",COUNTA($B$5:B22),"") -> 
A23: =IF(B23<>"",COUNTA($B$5:B23),"") -> 
A24: =IF(B24<>"",COUNTA($B$5:B24),"") -> 
A25: =IF(B25<>"",COUNTA($B$5:B25),"") -> 
A26: =IF(B26<>"",COUNTA($B$5:B26),"") -> 
A27: =IF(B27<>"",COUNTA($B$5:B27),"") -> 
A28: =IF(B28<>"",COUNTA($B$5:B28),"") -> 
A29: =IF(B29<>"",COUNTA($B$5:B29),"") -> 
A30: =IF(B30<>"",COUNTA($B$5:B30),"") -> 
A31: =IF(B31<>"",COUNTA($B$5:B31),"") -> 
A32: =IF(B32<>"",COUNTA($B$5:B32),"") -> 
A33: =IF(B33<>"",COUNTA($B$5:B33),"") -> 
A34: =IF(B34<>"",COUNTA($B$5:B34),"") -> 
A35: =IF(B35<>"",COUNTA($B$5:B35),"") -> 
A36: =IF(B36<>"",COUNTA($B$5:B36),"") -> 
A37: =IF(B37<>"",COUNTA($B$5:B37),"") -> 
A38: =IF(B38<>"",COUNTA($B$5:B38),"") -> 
A39: =IF(B39<>"",COUNTA($B$5:B39),"") -> 
A40: =IF(B40<>"",COUNTA($B$5:B40),"") -> 
A41: =IF(B41<>"",COUNTA($B$5:B41),"") -> 
A42: =IF(B42<>"",COUNTA($B$5:B42),"") -> 
A43: =IF(B43<>"",COUNTA($B$5:B43),"") -> 
A44: =IF(B44<>"",COUNTA($B$5:B44),"") -> 
A45: =IF(B45<>"",COUNTA($B$5:B45),"") -> 
A46: =IF(B46<>"",COUNTA($B$5:B46),"") -> 
A47: =IF(B47<>"",COUNTA($B$5:B47),"") -> 
A48: =IF(B48<>"",COUNTA($B$5:B48),"") -> 
A49: =IF(B49<>"",COUNTA($B$5:B49),"") -> 
A50: =IF(B50<>"",COUNTA($B$5:B50),"") -> 
A51: =IF(B51<>"",COUNTA($B$5:B51),"") -> 
A52: =IF(B52<>"",COUNTA($B$5:B52),"") -> 
A53: =IF(B53<>"",COUNTA($B$5:B53),"") -> 
A54: =IF(B54<>"",COUNTA($B$5:B54),"") -> 
A55: =IF(B55<>"",COUNTA($B$5:B55),"") -> 
A56: =IF(B56<>"",COUNTA($B$5:B56),"") -> 
A57: =IF(B57<>"",COUNTA($B$5:B57),"") -> 
A58: =IF(B58<>"",COUNTA($B$5:B58),"") -> 
A59: =IF(B59<>"",COUNTA($B$5:B59),"") -> 
A60: =IF(B60<>"",COUNTA($B$5:B60),"") -> 
A61: =IF(B61<>"",COUNTA($B$5:B61),"") -> 
A62: =IF(B62<>"",COUNTA($B$5:B62),"") -> 
A63: =IF(B63<>"",COUNTA($B$5:B63),"") -> 
A64: =IF(B64<>"",COUNTA($B$5:B64),"") -> 
A65: =IF(B65<>"",COUNTA($B$5:B65),"") -> 
A66: =IF(B66<>"",COUNTA($B$5:B66),"") -> 
A67: =IF(B67<>"",COUNTA($B$5:B67),"") -> 
A68: =IF(B68<>"",COUNTA($B$5:B68),"") -> 
A69: =IF(B69<>"",COUNTA($B$5:B69),"") -> 
A70: =IF(B70<>"",COUNTA($B$5:B70),"") -> 
A71: =IF(B71<>"",COUNTA($B$5:B71),"") -> 
A72: =IF(B72<>"",COUNTA($B$5:B72),"") -> 
A73: =IF(B73<>"",COUNTA($B$5:B73),"") -> 
A74: =IF(B74<>"",COUNTA($B$5:B74),"") -> 
A75: =IF(B75<>"",COUNTA($B$5:B75),"") -> 
A76: =IF(B76<>"",COUNTA($B$5:B76),"") -> 
A77: =IF(B77<>"",COUNTA($B$5:B77),"") -> 
A78: =IF(B78<>"",COUNTA($B$5:B78),"") -> 
A79: =IF(B79<>"",COUNTA($B$5:B79),"") -> 
A80: =IF(B80<>"",COUNTA($B$5:B80),"") -> 
A81: =IF(B81<>"",COUNTA($B$5:B81),"") -> 
A82: =IF(B82<>"",COUNTA($B$5:B82),"") -> 
A83: =IF(B83<>"",COUNTA($B$5:B83),"") -> 
A84: =IF(B84<>"",COUNTA($B$5:B84),"") -> 
A85: =IF(B85<>"",COUNTA($B$5:B85),"") -> 
A86: =IF(B86<>"",COUNTA($B$5:B86),"") -> 
A87: =IF(B87<>"",COUNTA($B$5:B87),"") -> 
A88: =IF(B88<>"",COUNTA($B$5:B88),"") -> 
A89: =IF(B89<>"",COUNTA($B$5:B89),"") -> 
A90: =IF(B90<>"",COUNTA($B$5:B90),"") -> 
A91: =IF(B91<>"",COUNTA($B$5:B91),"") -> 
A92: =IF(B92<>"",COUNTA($B$5:B92),"") -> 
A93: =IF(B93<>"",COUNTA($B$5:B93),"") -> 
A94: =IF(B94<>"",COUNTA($B$5:B94),"") -> 
A95: =IF(B95<>"",COUNTA($B$5:B95),"") -> 
A96: =IF(B96<>"",COUNTA($B$5:B96),"") -> 
A97: =IF(B97<>"",COUNTA($B$5:B97),"") -> 
A98: =IF(B98<>"",COUNTA($B$5:B98),"") -> 
A99: =IF(B99<>"",COUNTA($B$5:B99),"") -> 
A100: =IF(B100<>"",COUNTA($B$5:B100),"") -> 
A101: =IF(B101<>"",COUNTA($B$5:B101),"") -> 
A102: =IF(B102<>"",COUNTA($B$5:B102),"") -> 
A103: =IF(B103<>"",COUNTA($B$5:B103),"") -> 
A104: =IF(B104<>"",COUNTA($B$5:B104),"") -> 
A105: =IF(B105<>"",COUNTA($B$5:B105),"") -> 
A106: =IF(B106<>"",COUNTA($B$5:B106),"") -> 
A107: =IF(B107<>"",COUNTA($B$5:B107),"") -> 
A108: =IF(B108<>"",COUNTA($B$5:B108),"") -> 
A109: =IF(B109<>"",COUNTA($B$5:B109),"") -> 
A110: =IF(B110<>"",COUNTA($B$5:B110),"") -> 
A111: =IF(B111<>"",COUNTA($B$5:B111),"") -> 
A112: =IF(B112<>"",COUNTA($B$5:B112),"") -> 
A113: =IF(B113<>"",COUNTA($B$5:B113),"") -> 
A114: =IF(B114<>"",COUNTA($B$5:B114),"") -> 
A115: =IF(B115<>"",COUNTA($B$5:B115),"") -> 
A116: =IF(B116<>"",COUNTA($B$5:B116),"") -> 
A117: =IF(B117<>"",COUNTA($B$5:B117),"") -> 
A118: =IF(B118<>"",COUNTA($B$5:B118),"") -> 
A119: =IF(B119<>"",COUNTA($B$5:B119),"") -> 
A120: =IF(B120<>"",COUNTA($B$5:B120),"") -> 
A121: =IF(B121<>"",COUNTA($B$5:B121),"") -> 
A122: =IF(B122<>"",COUNTA($B$5:B122),"") -> 
A123: =IF(B123<>"",COUNTA($B$5:B123),"") -> 
A124: =IF(B124<>"",COUNTA($B$5:B124),"") -> 
A125: =IF(B125<>"",COUNTA($B$5:B125),"") -> 
A126: =IF(B126<>"",COUNTA($B$5:B126),"") -> 
A127: =IF(B127<>"",COUNTA($B$5:B127),"") -> 
A128: =IF(B128<>"",COUNTA($B$5:B128),"") -> 
A129: =IF(B129<>"",COUNTA($B$5:B129),"") -> 
A130: =IF(B130<>"",COUNTA($B$5:B130),"") -> 
A131: =IF(B131<>"",COUNTA($B$5:B131),"") -> 
A132: =IF(B132<>"",COUNTA($B$5:B132),"") -> 
A133: =IF(B133<>"",COUNTA($B$5:B133),"") -> 
A134: =IF(B134<>"",COUNTA($B$5:B134),"") -> 

Sheet REKAPAN
J4: PENGHASILAN BRUTO | O4: MASA KERJA | R4: PENGURANGAN | V4: PERHITUNGAN PASAL 21 | AB4: BESARAN TARIF PAJAK PASAL 17 AYAT 1 TAHUN 2022
A5: 1 | B5: 2 | C5: 3 | D5: 4 | E5: 5 | F5: 6 | G5: 7 | H5: 8 | I5: 9 | J5: 10 | K5: 11 | L5: 12 | M5: 13 | N5: 14 | O5: 15 | P5: 16 | Q5: 17 | R5: 18 | S5: 19 | T5: 20 | U5: 21 | V5: 22 | W5: 23 | X5: 24 | Y5: 25 | Z5: 26 | AA5: 27 | AB5: s/d 60jt | AC5: 60jt s/d 250jt | AD5: 250jt s/d 500jt | AE5: 500jt s/d 5 Miliar | AF5: >5 Miliar | AG5: 33 | AH5: 34 | AI5: 35 | AJ5: 36 | AK5: 37
A6: NO | B6: NAMA | C6: STATUS PTKP | D6: No.Urut | E6: NIK KTP | F6: NPWP | G6: ALAMAT | H6: Jabatan | I6: JENIS KELAMIN | J6: GAJI POKOK | K6: TUNJANGAN LAINNYA (JABATAN,KOMUNIKASI,TRANSPORT) | L6: Jaminan kecelakaan kerja/JKK (0,24%) | M6: Jaminan Kematian/JK (0,3%) | N6: PENGHASILAN BRUTO | O6: Bulan Masuk Kerja | P6: Bulan Akhir Tahun | Q6: Masa Kerja | R6: BIAYA JABATAN PERBULAN 5% | S6: Jaminan Hari Tua (JHT) dibayar karyawan (2%) | T6: Jaminan Pensiun (JP) dibayar Karyawan (1%) | U6: Jumlah Pengurangan | V6: Penghasilan Netto(Bersih) sebulan | W6: THR Setahun | X6: Penghasilan NETTO (bersih) setahun | Y6: PTKP (Penghasilan tidak kena pajak) setahun | Z6: PKP (Penghasilan kena pajak) setahun | AA6: PKP Pembulatan ke bawah | AB6: 5 % | AC6: 15 % | AD6: 25 % | AE6: 30 % | AF6: 35 % | AG6: JUMLAH PPH PS.21 SETAHUN | AH6: JUMLAH PPH 21 Terutang Setahun Atas Gaji Non THR | AI6: PPH 21 Terutang, Gaji/Bonus/THR | AJ6: Kredit Pajak YTDD Jan-Nov + THR | AK6: PPH 21 Terutang Sebulan
A7: ='Data_From Access 1721 A1'!A5 -> 1 | B7: ='Data_From Access 1721 A1'!D5 -> Gilang Fathur Albajiili SE. | C7: ='Data_From Access 1721 A1'!G5 -> K/0 | D7: ='Data_From Access 1721 A1'!I5 -> 12230000001 | E7: ='Data_From Access 1721 A1'!B5 -> 1171020309011130001 | F7: ='Data_From Access 1721 A1'!C5 -> 48.541.394.2-122.000 | G7: ='Data_From Access 1721 A1'!E5 -> Jl Bunga Rampai VI Gg.08 No. 110 Perumnas-Klender | H7: ='Data_From Access 1721 A1'!H5 -> Asisten Ahli | I7: ='Data_From Access 1721 A1'!F5 -> LAKI-LAKI | J7: ='Data_From Access 1721 A1'!J5 -> 8,000,000 | K7: ='Data_From Access 1721 A1'!K5 -> 2,000,000 | L7: =IF(ISBLANK(transkasi[[#This Row],[GAJI POKOK]]),"",0.24%*transkasi[[#This Row],[GAJI POKOK]]) -> 19,200 | M7: =0.3%*transkasi[[#This Row],[GAJI POKOK]] -> 24,000 | N7: =SUM(transkasi[[#This Row],[GAJI POKOK]:[Jaminan Kematian/JK (0,3%)]]) -> 10,043,200 | O7: ='Data_From Access 1721 A1'!L5 -> Jan-2022 | P7: ='Data_From Access 1721 A1'!M5 -> Des-2022 | Q7: ='Data_From Access 1721 A1'!N5 -> 12 | R7: =IF(transkasi[[#This Row],[PENGHASILAN BRUTO]]*5%>=500000,500000,transkasi[[#This Row],[PENGHASILAN BRUTO]]*5%) -> 500,000 | S7: =2%*transkasi[[#This Row],[GAJI POKOK]] -> 160,000 | T7: =1%*transkasi[[#This Row],[GAJI POKOK]] -> 80,000 | U7: =SUM(transkasi[[#This Row],[BIAYA JABATAN PERBULAN 5%]:[Jaminan Pensiun (JP) dibayar Karyawan (1%)]]) -> 740,000 | V7: =transkasi[[#This Row],[PENGHASILAN BRUTO]]-transkasi[[#This Row],[Jumlah Pengurangan]] -> 9,303,200 | W7: =transkasi[[#This Row],[GAJI POKOK]] -> 8,000,000 | X7: =IFERROR(transkasi[[#This Row],[Penghasilan Netto(Bersih) sebulan]]*transkasi[[#This Row],[Masa Kerja]]+transkasi[[#This Row],[THR Setahun]],0) -> 119,638,400 | Y7: =IF(ISBLANK(transkasi[[#This Row],[NO]]),"",VLOOKUP(transkasi[[#This Row],[STATUS PTKP]],tarif_ptkp[],2,FALSE)) -> 58,500,000 | Z7: =IFERROR(transkasi[[#This Row],[Penghasilan NETTO (bersih) setahun]]-transkasi[[#This Row],[PTKP (Penghasilan tidak kena pajak) setahun]],0) -> 61,138,400 | AA7: =IF(transkasi[[#This Row],[PKP (Penghasilan kena pajak) setahun]]<=0,0,ROUNDDOWN(transkasi[[#This Row],[PKP (Penghasilan kena pajak) setahun]],-3)) -> 61,138,000 | AB7: ='Data_From Access 1721 A1'!O5 -> 3,000,000 | AC7: ='Data_From Access 1721 A1'!P5 -> 170,700 | AD7: ='Data_From Access 1721 A1'!Q5 -> 0 | AE7: ='Data_From Access 1721 A1'!R5 -> 0 | AF7: ='Data_From Access 1721 A1'!S5 -> 0 | AG7: =INT(transkasi[[#This Row],[5 %]]+transkasi[[#This Row],[15 %]]+transkasi[[#This Row],[25 %]]+transkasi[[#This Row],[30 %]]+transkasi[[#This Row],[30 %]]+transkasi[[#This Row],[35 %]]/1000*1000) -> 3,170,700 | AH7: ='Data_From Access 1721 A1'!T5 -> 2.656.000 | AI7: ='Data_From Access 1721 A1'!U5 -> 514.000 | AJ7: ='Data_From Access 1721 A1'!V5 -> 2.948.663 | AK7: =INT(DC7/1000)*1000 -> 222,000 | DC7: =INT(transkasi[[#This Row],[JUMLAH PPH PS.21 SETAHUN]]-transkasi[[#This Row],[Kredit Pajak YTDD Jan-Nov + THR]])/1000*1000 -> 222,037
A8: ='Data_From Access 1721 A1'!A6 -> 2 | B8: ='Data_From Access 1721 A1'!D6 -> Amril Rulan | C8: ='Data_From Access 1721 A1'!G6 -> K/2 | D8: ='Data_From Access 1721 A1'!I6 -> 12230000002 | E8: ='Data_From Access 1721 A1'!B6 -> 1181020309011130001 | F8: ='Data_From Access 1721 A1'!C6 -> 48.534.393.2-122.001 | G8: ='Data_From Access 1721 A1'!E6 -> Bogor Jawa-Barat | H8: ='Data_From Access 1721 A1'!H6 -> Lektor Kepala | I8: ='Data_From Access 1721 A1'!F6 -> LAKI-LAKI | J8: ='Data_From Access 1721 A1'!J6 -> 11,000,000 | K8: ='Data_From Access 1721 A1'!K6 -> 4,000,000 | L8: =IF(ISBLANK(transkasi[[#This Row],[GAJI POKOK]]),"",0.24%*transkasi[[#This Row],[GAJI POKOK]]) -> 26,400 | M8: =0.3%*transkasi[[#This Row],[GAJI POKOK]] -> 33,000 | N8: =SUM(transkasi[[#This Row],[GAJI POKOK]:[Jaminan Kematian/JK (0,3%)]]) -> 15,059,400 | O8: ='Data_From Access 1721 A1'!L6 -> Jan-2022 | P8: ='Data_From Access 1721 A1'!M6 -> Des-2022 | Q8: ='Data_From Access 1721 A1'!N6 -> 12 | R8: =IF(transkasi[[#This Row],[PENGHASILAN BRUTO]]*5%>=500000,500000,transkasi[[#This Row],[PENGHASILAN BRUTO]]*5%) -> 500,000 | S8: =2%*transkasi[[#This Row],[GAJI POKOK]] -> 220,000 | T8: =1%*transkasi[[#This Row],[GAJI POKOK]] -> 110,000 | U8: =SUM(transkasi[[#This Row],[BIAYA JABATAN PERBULAN 5%]:[Jaminan Pensiun (JP) dibayar Karyawan (1%)]]) -> 830,000 | V8: =transkasi[[#This Row],[PENGHASILAN BRUTO]]-transkasi[[#This Row],[Jumlah Pengurangan]] -> 14,229,400 | W8: =transkasi[[#This Row],[GAJI POKOK]] -> 11,000,000 | X8: =IFERROR(transkasi[[#This Row],[Penghasilan Netto(Bersih) sebulan]]*transkasi[[#This Row],[Masa Kerja]]+transkasi[[#This Row],[THR Setahun]],0) -> 181,752,800 | Y8: =IF(ISBLANK(transkasi[[#This Row],[NO]]),"",VLOOKUP(transkasi[[#This Row],[STATUS PTKP]],tarif_ptkp[],2,FALSE)) -> 67,500,000 | Z8: =IFERROR(transkasi[[#This Row],[Penghasilan NETTO (bersih) setahun]]-transkasi[[#This Row],[PTKP (Penghasilan tidak kena pajak) setahun]],0) -> 114,252,800 | AA8: =IF(transkasi[[#This Row],[PKP (Penghasilan kena pajak) setahun]]<=0,0,ROUNDDOWN(transkasi[[#This Row],[PKP (Penghasilan kena pajak) setahun]],-3)) -> 114,252,000 | AB8: ='Data_From Access 1721 A1'!O6 -> 3,000,000 | AC8: ='Data_From Access 1721 A1'!P6 -> 8,137,800 | AD8: ='Data_From Access 1721 A1'!Q6 -> 0 | AE8: ='Data_From Access 1721 A1'!R6 -> 0 | AF8: ='Data_From Access 1721 A1'!S6 -> 0 | AG8: =INT(transkasi[[#This Row],[5 %]]+transkasi[[#This Row],[15 %]]+transkasi[[#This Row],[25 %]]+transkasi[[#This Row],[30 %]]+transkasi[[#This Row],[30 %]]+transkasi[[#This Row],[35 %]]/1000*1000) -> 11,137,800 | AH8: ='Data_From Access 1721 A1'!T6 -> 9.487.000 | AI8: ='Data_From Access 1721 A1'!U6 -> 1.650.000 | AJ8: ='Data_From Access 1721 A1'!V6 -> 10.346.413 | AK8: 791,000 | DC8: =INT(transkasi[[#This Row],[JUMLAH PPH PS.21 SETAHUN]]-transkasi[[#This Row],[Kredit Pajak YTDD Jan-Nov + THR]])/1000*1000 -> 791,387
A9: ='Data_From Access 1721 A1'!A7 -> 3 | B9: ='Data_From Access 1721 A1'!D7 -> Sahrul Irwan | C9: ='Data_From Access 1721 A1'!G7 -> K/2 | D9: ='Data_From Access 1721 A1'!I7 -> 12230000003 | E9: ='Data_From Access 1721 A1'!B7 -> 1191020309011130001 | F9: ='Data_From Access 1721 A1'!C7 -> 48.521.382.3-122.002 | G9: ='Data_From Access 1721 A1'!E7 -> Aceh | H9: ='Data_From Access 1721 A1'!H7 -> Lektor Penata | I9: ='Data_From Access 1721 A1'!F7 -> LAKI-LAKI | J9: ='Data_From Access 1721 A1'!J7 -> 10,000,000 | K9: ='Data_From Access 1721 A1'!K7 -> 2,000,000 | L9: =IF(ISBLANK(transkasi[[#This Row],[GAJI POKOK]]),"",0.24%*transkasi[[#This Row],[GAJI POKOK]]) -> 24,000 | M9: =0.3%*transkasi[[#This Row],[GAJI POKOK]] -> 30,000 | N9: =SUM(transkasi[[#This Row],[GAJI POKOK]:[Jaminan Kematian/JK (0,3%)]]) -> 12,054,000 | O9: ='Data_From Access 1721 A1'!L7 -> Jan-2022 | P9: ='Data_From Access 1721 A1'!M7 -> Des-2022 | Q9: ='Data_From Access 1721 A1'!N7 -> 12 | R9: =IF(transkasi[[#This Row],[PENGHASILAN BRUTO]]*5%>=500000,500000,transkasi[[#This Row],[PENGHASILAN BRUTO]]*5%) -> 500,000 | S9: =2%*transkasi[[#This Row],[GAJI POKOK]] -> 200,000 | T9: =1%*transkasi[[#This Row],[GAJI POKOK]] -> 100,000 | U9: =SUM(transkasi[[#This Row],[BIAYA JABATAN PERBULAN 5%]:[Jaminan Pensiun (JP) dibayar Karyawan (1%)]]) -> 800,000 | V9: =transkasi[[#This Row],[PENGHASILAN BRUTO]]-transkasi[[#This Row],[Jumlah Pengurangan]] -> 11,254,000 | W9: =transkasi[[#This Row],[GAJI POKOK]] -> 10,000,000 | X9: =IFERROR(transkasi[[#This Row],[Penghasilan Netto(Bersih) sebulan]]*transkasi[[#This Row],[Masa Kerja]]+transkasi[[#This Row],[THR Setahun]],0) -> 145,048,000 | Y9: =IF(ISBLANK(transkasi[[#This Row],[NO]]),"",VLOOKUP(transkasi[[#This Row],[STATUS PTKP]],tarif_ptkp[],2,FALSE)) -> 67,500,000 | Z9: =IFERROR(transkasi[[#This Row],[Penghasilan NETTO (bersih) setahun]]-transkasi[[#This Row],[PTKP (Penghasilan tidak kena pajak) setahun]],0) -> 77,548,000 | AA9: =IF(transkasi[[#This Row],[PKP (Penghasilan kena pajak) setahun]]<=0,0,ROUNDDOWN(transkasi[[#This Row],[PKP (Penghasilan kena pajak) setahun]],-3)) -> 77,548,000 | AB9: ='Data_From Access 1721 A1'!O7 -> 3,000,000 | AC9: ='Data_From Access 1721 A1'!P7 -> 2,632,200 | AD9: ='Data_From Access 1721 A1'!Q7 -> 0 | AE9: ='Data_From Access 1721 A1'!R7 -> 0 | AF9: ='Data_From Access 1721 A1'!S7 -> 0 | AG9: =INT(transkasi[[#This Row],[5 %]]+transkasi[[#This Row],[15 %]]+transkasi[[#This Row],[25 %]]+transkasi[[#This Row],[30 %]]+transkasi[[#This Row],[30 %]]+transkasi[[#This Row],[35 %]]/1000*1000) -> 5,632,200 | AH9: ='Data_From Access 1721 A1'!T7 -> 4.132.000 | AI9: ='Data_From Access 1721 A1'!U7 -> 1.500.000 | AJ9: ='Data_From Access 1721 A1'!V7 -> 5.287.663 | AK9: 344,000 | DC9: =INT(transkasi[[#This Row],[JUMLAH PPH PS.21 SETAHUN]]-transkasi[[#This Row],[Kredit Pajak YTDD Jan-Nov + THR]])/1000*1000 -> 344,537
A10: ='Data_From Access 1721 A1'!A8 -> 4 | B10: ='Data_From Access 1721 A1'!D8 -> Muhamad Satrio | C10: ='Data_From Access 1721 A1'!G8 -> K/2 | D10: ='Data_From Access 1721 A1'!I8 -> 12230000004 | E10: ='Data_From Access 1721 A1'!B8 -> 1201020309011130001 | F10: ='Data_From Access 1721 A1'!C8 -> 48.568.383.2-123.003 | G10: ='Data_From Access 1721 A1'!E8 -> DKI Jakarta Timur | H10: ='Data_From Access 1721 A1'!H8 -> Asisten Ahli | I10: ='Data_From Access 1721 A1'!F8 -> LAKI-LAKI | J10: ='Data_From Access 1721 A1'!J8 -> 8,500,000 | K10: ='Data_From Access 1721 A1'!K8 -> 1,500,000 | L10: =IF(ISBLANK(transkasi[[#This Row],[GAJI POKOK]]),"",0.24%*transkasi[[#This Row],[GAJI POKOK]]) -> 20,400 | M10: =0.3%*transkasi[[#This Row],[GAJI POKOK]] -> 25,500 | N10: =SUM(transkasi[[#This Row],[GAJI POKOK]:[Jaminan Kematian/JK (0,3%)]]) -> 10,045,900 | O10: ='Data_From Access 1721 A1'!L8 -> Jan-2022 | P10: ='Data_From Access 1721 A1'!M8 -> Des-2022 | Q10: ='Data_From Access 1721 A1'!N8 -> 12 | R10: =IF(transkasi[[#This Row],[PENGHASILAN BRUTO]]*5%>=500000,500000,transkasi[[#This Row],[PENGHASILAN BRUTO]]*5%) -> 500,000 | S10: =2%*transkasi[[#This Row],[GAJI POKOK]] -> 170,000 | T10: =1%*transkasi[[#This Row],[GAJI POKOK]] -> 85,000 | U10: =SUM(transkasi[[#This Row],[BIAYA JABATAN PERBULAN 5%]:[Jaminan Pensiun (JP) dibayar Karyawan (1%)]]) -> 755,000 | V10: =transkasi[[#This Row],[PENGHASILAN BRUTO]]-transkasi[[#This Row],[Jumlah Pengurangan]] -> 9,290,900 | W10: =transkasi[[#This Row],[GAJI POKOK]] -> 8,500,000 | X10: =IFERROR(transkasi[[#This Row],[Penghasilan Netto(Bersih) sebulan]]*transkasi[[#This Row],[Masa Kerja]]+transkasi[[#This Row],[THR Setahun]],0) -> 119,990,800 | Y10: =IF(ISBLANK(transkasi[[#This Row],[NO]]),"",VLOOKUP(transkasi[[#This Row],[STATUS PTKP]],tarif_ptkp[],2,FALSE)) -> 67,500,000 | Z10: =IFERROR(transkasi[[#This Row],[Penghasilan NETTO (bersih) setahun]]-transkasi[[#This Row],[PTKP (Penghasilan tidak kena pajak) setahun]],0) -> 52,490,800 | AA10: =IF(transkasi[[#This Row],[PKP (Penghasilan kena pajak) setahun]]<=0,0,ROUNDDOWN(transkasi[[#This Row],[PKP (Penghasilan kena pajak) setahun]],-3)) -> 52,490,000 | AB10: ='Data_From Access 1721 A1'!O8 -> 2,624,500 | AC10: ='Data_From Access 1721 A1'!P8 -> 0 | AD10: ='Data_From Access 1721 A1'!Q8 -> 0 | AE10: ='Data_From Access 1721 A1'!R8 -> 0 | AF10: ='Data_From Access 1721 A1'!S8 -> 0 | AG10: =INT(transkasi[[#This Row],[5 %]]+transkasi[[#This Row],[15 %]]+transkasi[[#This Row],[25 %]]+transkasi[[#This Row],[30 %]]+transkasi[[#This Row],[30 %]]+transkasi[[#This Row],[35 %]]/1000*1000) -> 2,624,500 | AH10: ='Data_From Access 1721 A1'!T8 -> 2.199.000 | AI10: ='Data_From Access 1721 A1'!U8 -> 425.000 | AJ10: ='Data_From Access 1721 A1'!V8 -> 2.440.750 | AK10: 183,000 | DC10: =INT(transkasi[[#This Row],[JUMLAH PPH PS.21 SETAHUN]]-transkasi[[#This Row],[Kredit Pajak YTDD Jan-Nov + THR]])/1000*1000 -> 183,750
A11: ='Data_From Access 1721 A1'!A9 -> 5 | B11: ='Data_From Access 1721 A1'!D9 -> Sobari MS | C11: ='Data_From Access 1721 A1'!G9 -> K/3 | D11: ='Data_From Access 1721 A1'!I9 -> 12230000005 | E11: ='Data_From Access 1721 A1'!B9 -> 1201020309011130009 | F11: ='Data_From Access 1721 A1'!C9 -> 48.568.383.2-123.070 | G11: ='Data_From Access 1721 A1'!E9 -> Sumedang Jawa-Barat | H11: ='Data_From Access 1721 A1'!H9 -> Lektor Penata | I11: ='Data_From Access 1721 A1'!F9 -> LAKI-LAKI | J11: ='Data_From Access 1721 A1'!J9 -> 10,000,000 | K11: ='Data_From Access 1721 A1'!K9 -> 2,000,000 | L11: =IF(ISBLANK(transkasi[[#This Row],[GAJI POKOK]]),"",0.24%*transkasi[[#This Row],[GAJI POKOK]]) -> 24,000 | M11: =0.3%*transkasi[[#This Row],[GAJI POKOK]] -> 30,000 | N11: =SUM(transkasi[[#This Row],[GAJI POKOK]:[Jaminan Kematian/JK (0,3%)]]) -> 12,054,000 | O11: ='Data_From Access 1721 A1'!L9 -> Jan-2022 | P11: ='Data_From Access 1721 A1'!M9 -> Des-2022 | Q11: ='Data_From Access 1721 A1'!N9 -> 12 | R11: =IF(transkasi[[#This Row],[PENGHASILAN BRUTO]]*5%>=500000,500000,transkasi[[#This Row],[PENGHASILAN BRUTO]]*5%) -> 500,000 | S11: =2%*transkasi[[#This Row],[GAJI POKOK]] -> 200,000 | T11: =1%*transkasi[[#This Row],[GAJI POKOK]] -> 100,000 | U11: =SUM(transkasi[[#This Row],[BIAYA JABATAN PERBULAN 5%]:[Jaminan Pensiun (JP) dibayar Karyawan (1%)]]) -> 800,000 | V11: =transkasi[[#This Row],[PENGHASILAN BRUTO]]-transkasi[[#This Row],[Jumlah Pengurangan]] -> 11,254,000 | W11: =transkasi[[#This Row],[GAJI POKOK]] -> 10,000,000 | X11: =IFERROR(transkasi[[#This Row],[Penghasilan Netto(Bersih) sebulan]]*transkasi[[#This Row],[Masa Kerja]]+transkasi[[#This Row],[THR Setahun]],0) -> 145,048,000 | Y11: =IF(ISBLANK(transkasi[[#This Row],[NO]]),"",VLOOKUP(transkasi[[#This Row],[STATUS PTKP]],tarif_ptkp[],2,FALSE)) -> 72,000,000 | Z11: =IFERROR(transkasi[[#This Row],[Penghasilan NETTO (bersih) setahun]]-transkasi[[#This Row],[PTKP (Penghasilan tidak kena pajak) setahun]],0) -> 73,048,000 | AA11: =IF(transkasi[[#This Row],[PKP (Penghasilan kena pajak) setahun]]<=0,0,ROUNDDOWN(transkasi[[#This Row],[PKP (Penghasilan kena pajak) setahun]],-3)) -> 73,048,000 | AB11: ='Data_From Access 1721 A1'!O9 -> 3,000,000 | AC11: ='Data_From Access 1721 A1'!P9 -> 1,957,200 | AD11: ='Data_From Access 1721 A1'!Q9 -> 0 | AE11: ='Data_From Access 1721 A1'!R9 -> 0 | AF11: ='Data_From Access 1721 A1'!S9 -> 0 | AG11: =INT(transkasi[[#This Row],[5 %]]+transkasi[[#This Row],[15 %]]+transkasi[[#This Row],[25 %]]+transkasi[[#This Row],[30 %]]+transkasi[[#This Row],[30 %]]+transkasi[[#This Row],[35 %]]/1000*1000) -> 4,957,200 | AH11: ='Data_From Access 1721 A1'!T9 -> 3.457.000 | AI11: ='Data_From Access 1721 A1'!U9 -> 1.500.000 | AJ11: ='Data_From Access 1721 A1'!V9 -> 4.668.913 | AK11: 288,000 | DC11: =INT(transkasi[[#This Row],[JUMLAH PPH PS.21 SETAHUN]]-transkasi[[#This Row],[Kredit Pajak YTDD Jan-Nov + THR]])/1000*1000 -> 288,287
A12: ='Data_From Access 1721 A1'!A10 -> 6 | B12: ='Data_From Access 1721 A1'!D10 -> Sukron Abdulah | C12: ='Data_From Access 1721 A1'!G10 -> K/2 | D12: ='Data_From Access 1721 A1'!I10 -> 12230000006 | E12: ='Data_From Access 1721 A1'!B10 -> 1201020309045630009 | F12: ='Data_From Access 1721 A1'!C10 -> 48.568.383.2-123.050 | G12: ='Data_From Access 1721 A1'!E10 -> Solo Jawa Tengah | H12: ='Data_From Access 1721 A1'!H10 -> Guru Besar | I12: ='Data_From Access 1721 A1'!F10 -> LAKI-LAKI | J12: ='Data_From Access 1721 A1'!J10 -> 30,000,000 | K12: ='Data_From Access 1721 A1'!K10 -> 5,000,000 | L12: =IF(ISBLANK(transkasi[[#This Row],[GAJI POKOK]]),"",0.24%*transkasi[[#This Row],[GAJI POKOK]]) -> 72,000 | M12: =0.3%*transkasi[[#This Row],[GAJI POKOK]] -> 90,000 | N12: =SUM(transkasi[[#This Row],[GAJI POKOK]:[Jaminan Kematian/JK (0,3%)]]) -> 35,162,000 | O12: ='Data_From Access 1721 A1'!L10 -> Jan-2022 | P12: ='Data_From Access 1721 A1'!M10 -> Des-2022 | Q12: ='Data_From Access 1721 A1'!N10 -> 12 | R12: =IF(transkasi[[#This Row],[PENGHASILAN BRUTO]]*5%>=500000,500000,transkasi[[#This Row],[PENGHASILAN BRUTO]]*5%) -> 500,000 | S12: =2%*transkasi[[#This Row],[GAJI POKOK]] -> 600,000 | T12: =1%*transkasi[[#This Row],[GAJI POKOK]] -> 300,000 | U12: =SUM(transkasi[[#This Row],[BIAYA JABATAN PERBULAN 5%]:[Jaminan Pensiun (JP) dibayar Karyawan (1%)]]) -> 1,400,000 | V12: =transkasi[[#This Row],[PENGHASILAN BRUTO]]-transkasi[[#This Row],[Jumlah Pengurangan]] -> 33,762,000 | W12: =transkasi[[#This Row],[GAJI POKOK]] -> 30,000,000 | X12: =IFERROR(transkasi[[#This Row],[Penghasilan Netto(Bersih) sebulan]]*transkasi[[#This Row],[Masa Kerja]]+transkasi[[#This Row],[THR Setahun]],0) -> 435,144,000 | Y12: =IF(ISBLANK(transkasi[[#This Row],[NO]]),"",VLOOKUP(transkasi[[#This Row],[STATUS PTKP]],tarif_ptkp[],2,FALSE)) -> 67,500,000 | Z12: =IFERROR(transkasi[[#This Row],[Penghasilan NETTO (bersih) setahun]]-transkasi[[#This Row],[PTKP (Penghasilan tidak kena pajak) setahun]],0) -> 367,644,000 | AA12: =IF(transkasi[[#This Row],[PKP (Penghasilan kena pajak) setahun]]<=0,0,ROUNDDOWN(transkasi[[#This Row],[PKP (Penghasilan kena pajak) setahun]],-3)) -> 367,644,000 | AB12: ='Data_From Access 1721 A1'!O10 -> 3,000,000 | AC12: ='Data_From Access 1721 A1'!P10 -> 28,500,000 | AD12: ='Data_From Access 1721 A1'!Q10 -> 29,411,000 | AE12: ='Data_From Access 1721 A1'!R10 -> 0 | AF12: ='Data_From Access 1721 A1'!S10 -> 0 | AG12: =INT(transkasi[[#This Row],[5 %]]+transkasi[[#This Row],[15 %]]+transkasi[[#This Row],[25 %]]+transkasi[[#This Row],[30 %]]+transkasi[[#This Row],[30 %]]+transkasi[[#This Row],[35 %]]/1000*1000) -> 60,911,000 | AH12: ='Data_From Access 1721 A1'!T10 -> 53.411.000 | AI12: ='Data_From Access 1721 A1'!U10 -> 7.500.000 | AJ12: ='Data_From Access 1721 A1'!V10 -> 56.460.076 | AK12: 4,450,000 | DC12: =INT(transkasi[[#This Row],[JUMLAH PPH PS.21 SETAHUN]]-transkasi[[#This Row],[Kredit Pajak YTDD Jan-Nov + THR]])/1000*1000 -> 4,450,924
A13: ='Data_From Access 1721 A1'!A11 -> 7 | B13: ='Data_From Access 1721 A1'!D11 -> Rusli Zakir | C13: ='Data_From Access 1721 A1'!G11 -> TK/0 | D13: ='Data_From Access 1721 A1'!I11 -> 12230000007 | E13: ='Data_From Access 1721 A1'!B11 -> 1201020309045630011 | F13: ='Data_From Access 1721 A1'!C11 -> 48.568.383.2-123.011 | G13: ='Data_From Access 1721 A1'!E11 -> Bekasi Jawa-Barat | H13: ='Data_From Access 1721 A1'!H11 -> Asisten Ahli | I13: ='Data_From Access 1721 A1'!F11 -> LAKI-LAKI | J13: ='Data_From Access 1721 A1'!J11 -> 9,500,000 | K13: ='Data_From Access 1721 A1'!K11 -> 1,500,000 | L13: =IF(ISBLANK(transkasi[[#This Row],[GAJI POKOK]]),"",0.24%*transkasi[[#This Row],[GAJI POKOK]]) -> 22,800 | M13: =0.3%*transkasi[[#This Row],[GAJI POKOK]] -> 28,500 | N13: =SUM(transkasi[[#This Row],[GAJI POKOK]:[Jaminan Kematian/JK (0,3%)]]) -> 11,051,300 | O13: ='Data_From Access 1721 A1'!L11 -> Jan-2022 | P13: ='Data_From Access 1721 A1'!M11 -> Des-2022 | Q13: ='Data_From Access 1721 A1'!N11 -> 12 | R13: =IF(transkasi[[#This Row],[PENGHASILAN BRUTO]]*5%>=500000,500000,transkasi[[#This Row],[PENGHASILAN BRUTO]]*5%) -> 500,000 | S13: =2%*transkasi[[#This Row],[GAJI POKOK]] -> 190,000 | T13: =1%*transkasi[[#This Row],[GAJI POKOK]] -> 95,000 | U13: =SUM(transkasi[[#This Row],[BIAYA JABATAN PERBULAN 5%]:[Jaminan Pensiun (JP) dibayar Karyawan (1%)]]) -> 785,000 | V13: =transkasi[[#This Row],[PENGHASILAN BRUTO]]-transkasi[[#This Row],[Jumlah Pengurangan]] -> 10,266,300 | W13: =transkasi[[#This Row],[GAJI POKOK]] -> 9,500,000 | X13: =IFERROR(transkasi[[#This Row],[Penghasilan Netto(Bersih) sebulan]]*transkasi[[#This Row],[Masa Kerja]]+transkasi[[#This Row],[THR Setahun]],0) -> 132,695,600 | Y13: =IF(ISBLANK(transkasi[[#This Row],[NO]]),"",VLOOKUP(transkasi[[#This Row],[STATUS PTKP]],tarif_ptkp[],2,FALSE)) -> 54,000,000 | Z13: =IFERROR(transkasi[[#This Row],[Penghasilan NETTO (bersih) setahun]]-transkasi[[#This Row],[PTKP (Penghasilan tidak kena pajak) setahun]],0) -> 78,695,600 | AA13: =IF(transkasi[[#This Row],[PKP (Penghasilan kena pajak) setahun]]<=0,0,ROUNDDOWN(transkasi[[#This Row],[PKP (Penghasilan kena pajak) setahun]],-3)) -> 78,695,000 | AB13: ='Data_From Access 1721 A1'!O11 -> 3,000,000 | AC13: ='Data_From Access 1721 A1'!P11 -> 2,804,250 | AD13: ='Data_From Access 1721 A1'!Q11 -> 0 | AE13: ='Data_From Access 1721 A1'!R11 -> 0 | AF13: ='Data_From Access 1721 A1'!S11 -> 0 | AG13: =INT(transkasi[[#This Row],[5 %]]+transkasi[[#This Row],[15 %]]+transkasi[[#This Row],[25 %]]+transkasi[[#This Row],[30 %]]+transkasi[[#This Row],[30 %]]+transkasi[[#This Row],[35 %]]/1000*1000) -> 5,804,250 | AH13: ='Data_From Access 1721 A1'!T11 -> 4.379.000 | AI13: ='Data_From Access 1721 A1'!U11 -> 1.425.000 | AJ13: ='Data_From Access 1721 A1'!V11 -> 5.439.076 | AK13: 365,000 | DC13: =INT(transkasi[[#This Row],[JUMLAH PPH PS.21 SETAHUN]]-transkasi[[#This Row],[Kredit Pajak YTDD Jan-Nov + THR]])/1000*1000 -> 365,174
A14: ='Data_From Access 1721 A1'!A12 -> 8 | B14: ='Data_From Access 1721 A1'!D12 -> Aziz Gauraf | C14: ='Data_From Access 1721 A1'!G12 -> K/0 | D14: ='Data_From Access 1721 A1'!I12 -> 12230000008 | E14: ='Data_From Access 1721 A1'!B12 -> 1201020309045630072 | F14: ='Data_From Access 1721 A1'!C12 -> 48.568.383.2-123.323 | G14: ='Data_From Access 1721 A1'!E12 -> Jl Pondok Kelapa Jakarta-Timur | H14: ='Data_From Access 1721 A1'!H12 -> Asisten Ahli | I14: ='Data_From Access 1721 A1'!F12 -> LAKI-LAKI | J14: ='Data_From Access 1721 A1'!J12 -> 9,500,000 | K14: ='Data_From Access 1721 A1'!K12 -> 1,000,000 | L14: =IF(ISBLANK(transkasi[[#This Row],[GAJI POKOK]]),"",0.24%*transkasi[[#This Row],[GAJI POKOK]]) -> 22,800 | M14: =0.3%*transkasi[[#This Row],[GAJI POKOK]] -> 28,500 | N14: =SUM(transkasi[[#This Row],[GAJI POKOK]:[Jaminan Kematian/JK (0,3%)]]) -> 10,551,300 | O14: ='Data_From Access 1721 A1'!L12 -> Jan-2022 | P14: ='Data_From Access 1721 A1'!M12 -> Des-2022 | Q14: ='Data_From Access 1721 A1'!N12 -> 12 | R14: =IF(transkasi[[#This Row],[PENGHASILAN BRUTO]]*5%>=500000,500000,transkasi[[#This Row],[PENGHASILAN BRUTO]]*5%) -> 500,000 | S14: =2%*transkasi[[#This Row],[GAJI POKOK]] -> 190,000 | T14: =1%*transkasi[[#This Row],[GAJI POKOK]] -> 95,000 | U14: =SUM(transkasi[[#This Row],[BIAYA JABATAN PERBULAN 5%]:[Jaminan Pensiun (JP) dibayar Karyawan (1%)]]) -> 785,000 | V14: =transkasi[[#This Row],[PENGHASILAN BRUTO]]-transkasi[[#This Row],[Jumlah Pengurangan]] -> 9,766,300 | W14: =transkasi[[#This Row],[GAJI POKOK]] -> 9,500,000 | X14: =IFERROR(transkasi[[#This Row],[Penghasilan Netto(Bersih) sebulan]]*transkasi[[#This Row],[Masa Kerja]]+transkasi[[#This Row],[THR Setahun]],0) -> 126,695,600 | Y14: =IF(ISBLANK(transkasi[[#This Row],[NO]]),"",VLOOKUP(transkasi[[#This Row],[STATUS PTKP]],tarif_ptkp[],2,FALSE)) -> 58,500,000 | Z14: =IFERROR(transkasi[[#This Row],[Penghasilan NETTO (bersih) setahun]]-transkasi[[#This Row],[PTKP (Penghasilan tidak kena pajak) setahun]],0) -> 68,195,600 | AA14: =IF(transkasi[[#This Row],[PKP (Penghasilan kena pajak) setahun]]<=0,0,ROUNDDOWN(transkasi[[#This Row],[PKP (Penghasilan kena pajak) setahun]],-3)) -> 68,195,000 | AB14: ='Data_From Access 1721 A1'!O12 -> 3,000,000 | AC14: ='Data_From Access 1721 A1'!P12 -> 1,229,250 | AD14: ='Data_From Access 1721 A1'!Q12 -> 0 | AE14: ='Data_From Access 1721 A1'!R12 -> 0 | AF14: ='Data_From Access 1721 A1'!S12 -> 0 | AG14: =INT(transkasi[[#This Row],[5 %]]+transkasi[[#This Row],[15 %]]+transkasi[[#This Row],[25 %]]+transkasi[[#This Row],[30 %]]+transkasi[[#This Row],[30 %]]+transkasi[[#This Row],[35 %]]/1000*1000) -> 4,229,250 | AH14: ='Data_From Access 1721 A1'!T12 -> 2.934.000 | AI14: ='Data_From Access 1721 A1'!U12 -> 1.295.000 | AJ14: ='Data_From Access 1721 A1'!V12 -> 3.984.500 | AK14: 244,000 | DC14: =INT(transkasi[[#This Row],[JUMLAH PPH PS.21 SETAHUN]]-transkasi[[#This Row],[Kredit Pajak YTDD Jan-Nov + THR]])/1000*1000 -> 244,750
A15: ='Data_From Access 1721 A1'!A13 -> 9 | B15: ='Data_From Access 1721 A1'!D13 -> Yanuar Ardi | C15: ='Data_From Access 1721 A1'!G13 -> K/0 | D15: ='Data_From Access 1721 A1'!I13 -> 12230000009 | E15: ='Data_From Access 1721 A1'!B13 -> 1201020309045630065 | F15: ='Data_From Access 1721 A1'!C13 -> 48.568.383.2-123.030 | G15: ='Data_From Access 1721 A1'!E13 -> Bekasi - Jawa Barat | H15: ='Data_From Access 1721 A1'!H13 -> Asisten Ahli | I15: ='Data_From Access 1721 A1'!F13 -> LAKI-LAKI | J15: ='Data_From Access 1721 A1'!J13 -> 8,500,000 | K15: ='Data_From Access 1721 A1'!K13 -> 1,000,000 | L15: =IF(ISBLANK(transkasi[[#This Row],[GAJI POKOK]]),"",0.24%*transkasi[[#This Row],[GAJI POKOK]]) -> 20,400 | M15: =0.3%*transkasi[[#This Row],[GAJI POKOK]] -> 25,500 | N15: =SUM(transkasi[[#This Row],[GAJI POKOK]:[Jaminan Kematian/JK (0,3%)]]) -> 9,545,900 | O15: ='Data_From Access 1721 A1'!L13 -> Jan-2022 | P15: ='Data_From Access 1721 A1'!M13 -> Des-2022 | Q15: ='Data_From Access 1721 A1'!N13 -> 12 | R15: =IF(transkasi[[#This Row],[PENGHASILAN BRUTO]]*5%>=500000,500000,transkasi[[#This Row],[PENGHASILAN BRUTO]]*5%) -> 477,295 | S15: =2%*transkasi[[#This Row],[GAJI POKOK]] -> 170,000 | T15: =1%*transkasi[[#This Row],[GAJI POKOK]] -> 85,000 | U15: =SUM(transkasi[[#This Row],[BIAYA JABATAN PERBULAN 5%]:[Jaminan Pensiun (JP) dibayar Karyawan (1%)]]) -> 732,295 | V15: =transkasi[[#This Row],[PENGHASILAN BRUTO]]-transkasi[[#This Row],[Jumlah Pengurangan]] -> 8,813,605 | W15: =transkasi[[#This Row],[GAJI POKOK]] -> 8,500,000 | X15: =IFERROR(transkasi[[#This Row],[Penghasilan Netto(Bersih) sebulan]]*transkasi[[#This Row],[Masa Kerja]]+transkasi[[#This Row],[THR Setahun]],0) -> 114,263,260 | Y15: =IF(ISBLANK(transkasi[[#This Row],[NO]]),"",VLOOKUP(transkasi[[#This Row],[STATUS PTKP]],tarif_ptkp[],2,FALSE)) -> 58,500,000 | Z15: =IFERROR(transkasi[[#This Row],[Penghasilan NETTO (bersih) setahun]]-transkasi[[#This Row],[PTKP (Penghasilan tidak kena pajak) setahun]],0) -> 55,763,260 | AA15: =IF(transkasi[[#This Row],[PKP (Penghasilan kena pajak) setahun]]<=0,0,ROUNDDOWN(transkasi[[#This Row],[PKP (Penghasilan kena pajak) setahun]],-3)) -> 55,763,000 | AB15: ='Data_From Access 1721 A1'!O13 -> 2,774,500 | AC15: ='Data_From Access 1721 A1'!P13 -> 0 | AD15: ='Data_From Access 1721 A1'!Q13 -> 0 | AE15: ='Data_From Access 1721 A1'!R13 -> 0 | AF15: ='Data_From Access 1721 A1'!S13 -> 0 | AG15: =INT(transkasi[[#This Row],[5 %]]+transkasi[[#This Row],[15 %]]+transkasi[[#This Row],[25 %]]+transkasi[[#This Row],[30 %]]+transkasi[[#This Row],[30 %]]+transkasi[[#This Row],[35 %]]/1000*1000) -> 2,774,500 | AH15: ='Data_From Access 1721 A1'!T13 -> 2.363.000 | AI15: ='Data_From Access 1721 A1'!U13 -> 411.000 | AJ15: ='Data_From Access 1721 A1'!V13 -> 2.577.076 | AK15: 197,000 | DC15: =INT(transkasi[[#This Row],[JUMLAH PPH PS.21 SETAHUN]]-transkasi[[#This Row],[Kredit Pajak YTDD Jan-Nov + THR]])/1000*1000 -> 197,424
A16: ='Data_From Access 1721 A1'!A14 -> 10 | B16: ='Data_From Access 1721 A1'!D14 -> Rini Sutinah | C16: ='Data_From Access 1721 A1'!G14 -> TK/0 | D16: ='Data_From Access 1721 A1'!I14 -> 12230000010 | E16: ='Data_From Access 1721 A1'!B14 -> 1201020309045630512 | F16: ='Data_From Access 1721 A1'!C14 -> 48.568.383.2-123.277 | G16: ='Data_From Access 1721 A1'!E14 -> Jl Perintis Kemerdekaan Jakarta-Timur | H16: ='Data_From Access 1721 A1'!H14 -> Asisten Ahli | I16: ='Data_From Access 1721 A1'!F14 -> PREMPUAN | J16: ='Data_From Access 1721 A1'!J14 -> 8,500,000 | K16: ='Data_From Access 1721 A1'!K14 -> 1,500,000 | L16: =IF(ISBLANK(transkasi[[#This Row],[GAJI POKOK]]),"",0.24%*transkasi[[#This Row],[GAJI POKOK]]) -> 20,400 | M16: =0.3%*transkasi[[#This Row],[GAJI POKOK]] -> 25,500 | N16: =SUM(transkasi[[#This Row],[GAJI POKOK]:[Jaminan Kematian/JK (0,3%)]]) -> 10,045,900 | O16: ='Data_From Access 1721 A1'!L14 -> Jan-2022 | P16: ='Data_From Access 1721 A1'!M14 -> Des-2022 | Q16: ='Data_From Access 1721 A1'!N14 -> 12 | R16: =IF(transkasi[[#This Row],[PENGHASILAN BRUTO]]*5%>=500000,500000,transkasi[[#This Row],[PENGHASILAN BRUTO]]*5%) -> 500,000 | S16: =2%*transkasi[[#This Row],[GAJI POKOK]] -> 170,000 | T16: =1%*transkasi[[#This Row],[GAJI POKOK]] -> 85,000 | U16: =SUM(transkasi[[#This Row],[BIAYA JABATAN PERBULAN 5%]:[Jaminan Pensiun (JP) dibayar Karyawan (1%)]]) -> 755,000 | V16: =transkasi[[#This Row],[PENGHASILAN BRUTO]]-transkasi[[#This Row],[Jumlah Pengurangan]] -> 9,290,900 | W16: =transkasi[[#This Row],[GAJI POKOK]] -> 8,500,000 | X16: =IFERROR(transkasi[[#This Row],[Penghasilan Netto(Bersih) sebulan]]*transkasi[[#This Row],[Masa Kerja]]+transkasi[[#This Row],[THR Setahun]],0) -> 119,990,800 | Y16: =IF(ISBLANK(transkasi[[#This Row],[NO]]),"",VLOOKUP(transkasi[[#This Row],[STATUS PTKP]],tarif_ptkp[],2,FALSE)) -> 54,000,000 | Z16: =IFERROR(transkasi[[#This Row],[Penghasilan NETTO (bersih) setahun]]-transkasi[[#This Row],[PTKP (Penghasilan tidak kena pajak) setahun]],0) -> 65,990,800 | AA16: =IF(transkasi[[#This Row],[PKP (Penghasilan kena pajak) setahun]]<=0,0,ROUNDDOWN(transkasi[[#This Row],[PKP (Penghasilan kena pajak) setahun]],-3)) -> 65,990,000 | AB16: ='Data_From Access 1721 A1'!O14 -> 3,000,000 | AC16: ='Data_From Access 1721 A1'!P14 -> 898,500 | AD16: ='Data_From Access 1721 A1'!Q14 -> 0 | AE16: ='Data_From Access 1721 A1'!R14 -> 0 | AF16: ='Data_From Access 1721 A1'!S14 -> 0 | AG16: =INT(transkasi[[#This Row],[5 %]]+transkasi[[#This Row],[15 %]]+transkasi[[#This Row],[25 %]]+transkasi[[#This Row],[30 %]]+transkasi[[#This Row],[30 %]]+transkasi[[#This Row],[35 %]]/1000*1000) -> 3,898,500 | AH16: ='Data_From Access 1721 A1'!T14 -> 2.874.000 | AI16: ='Data_From Access 1721 A1'!U14 -> 1.024.000 | AJ16: ='Data_From Access 1721 A1'!V14 -> 3.658.500 | AK16: 240,000 | DC16: =INT(transkasi[[#This Row],[JUMLAH PPH PS.21 SETAHUN]]-transkasi[[#This Row],[Kredit Pajak YTDD Jan-Nov + THR]])/1000*1000 -> 240,000
A17: ='Data_From Access 1721 A1'!A15 -> 11 | B17: ='Data_From Access 1721 A1'!D15 -> Ryan Aji | C17: ='Data_From Access 1721 A1'!G15 -> TK/0 | D17: ='Data_From Access 1721 A1'!I15 -> 12230000011 | E17: ='Data_From Access 1721 A1'!B15 -> 3317556856514798103 | F17: ='Data_From Access 1721 A1'!C15 -> 48.568.383.2-123.277 | G17: ='Data_From Access 1721 A1'!E15 -> Jl. Elang Bekasi Jawa Barat | H17: ='Data_From Access 1721 A1'!H15 -> Lektor Kepala Pembina | I17: ='Data_From Access 1721 A1'!F15 -> LAKI-LAKI | J17: ='Data_From Access 1721 A1'!J15 -> 550,000,000 | K17: ='Data_From Access 1721 A1'!K15 -> 4,000,000 | L17: =IF(ISBLANK(transkasi[[#This Row],[GAJI POKOK]]),"",0.24%*transkasi[[#This Row],[GAJI POKOK]]) -> 1,320,000 | M17: =0.3%*transkasi[[#This Row],[GAJI POKOK]] -> 1,650,000 | N17: =SUM(transkasi[[#This Row],[GAJI POKOK]:[Jaminan Kematian/JK (0,3%)]]) -> 556,970,000 | O17: ='Data_From Access 1721 A1'!L15 -> Jan-2022 | P17: ='Data_From Access 1721 A1'!M15 -> Des-2022 | Q17: ='Data_From Access 1721 A1'!N15 -> 12 | R17: =IF(transkasi[[#This Row],[PENGHASILAN BRUTO]]*5%>=500000,500000,transkasi[[#This Row],[PENGHASILAN BRUTO]]*5%) -> 500,000 | S17: =2%*transkasi[[#This Row],[GAJI POKOK]] -> 11,000,000 | T17: =1%*transkasi[[#This Row],[GAJI POKOK]] -> 5,500,000 | U17: =SUM(transkasi[[#This Row],[BIAYA JABATAN PERBULAN 5%]:[Jaminan Pensiun (JP) dibayar Karyawan (1%)]]) -> 17,000,000 | V17: =transkasi[[#This Row],[PENGHASILAN BRUTO]]-transkasi[[#This Row],[Jumlah Pengurangan]] -> 539,970,000 | W17: =transkasi[[#This Row],[GAJI POKOK]] -> 550,000,000 | X17: =IFERROR(transkasi[[#This Row],[Penghasilan Netto(Bersih) sebulan]]*transkasi[[#This Row],[Masa Kerja]]+transkasi[[#This Row],[THR Setahun]],0) -> 7,029,640,000 | Y17: =IF(ISBLANK(transkasi[[#This Row],[NO]]),"",VLOOKUP(transkasi[[#This Row],[STATUS PTKP]],tarif_ptkp[],2,FALSE)) -> 54,000,000 | Z17: =IFERROR(transkasi[[#This Row],[Penghasilan NETTO (bersih) setahun]]-transkasi[[#This Row],[PTKP (Penghasilan tidak kena pajak) setahun]],0) -> 6,975,640,000 | AA17: =IF(transkasi[[#This Row],[PKP (Penghasilan kena pajak) setahun]]<=0,0,ROUNDDOWN(transkasi[[#This Row],[PKP (Penghasilan kena pajak) setahun]],-3)) -> 6,975,640,000 | AB17: ='Data_From Access 1721 A1'!O15 -> 3,000,000 | AC17: ='Data_From Access 1721 A1'!P15 -> 28,500,000 | AD17: ='Data_From Access 1721 A1'!Q15 -> 62,500,000 | AE17: ='Data_From Access 1721 A1'!R15 -> 1,350,000,000 | AF17: ='Data_From Access 1721 A1'!S15 -> 691,474,000 | AG17: =INT(transkasi[[#This Row],[5 %]]+transkasi[[#This Row],[15 %]]+transkasi[[#This Row],[25 %]]+transkasi[[#This Row],[30 %]]+transkasi[[#This Row],[30 %]]+transkasi[[#This Row],[35 %]]/1000*1000) -> 3,485,474,000 | AH17: ='Data_From Access 1721 A1'!T15 -> 1.942.974.000 | AI17: ='Data_From Access 1721 A1'!U15 -> 192.500.000 | AJ17: ='Data_From Access 1721 A1'!V15 -> 1.973.559.500 | AK17: 1,511,914,000 | DC17: =INT(transkasi[[#This Row],[JUMLAH PPH PS.21 SETAHUN]]-transkasi[[#This Row],[Kredit Pajak YTDD Jan-Nov + THR]])/1000*1000 -> 1,511,914,500
A18: ='Data_From Access 1721 A1'!#REF! ->  | B18: ='Data_From Access 1721 A1'!#REF! ->  | C18: ='Data_From Access 1721 A1'!#REF! ->  | D18: ='Data_From Access 1721 A1'!#REF! ->  | E18: ='Data_From Access 1721 A1'!#REF! ->  | F18: ='Data_From Access 1721 A1'!#REF! ->  | G18: ='Data_From Access 1721 A1'!#REF! ->  | H18: ='Data_From Access 1721 A1'!#REF! ->  | I18: ='Data_From Access 1721 A1'!#REF! ->  | J18: ='Data_From Access 1721 A1'!#REF! ->  | K18: ='Data_From Access 1721 A1'!#REF! ->  | L18: =IF(ISBLANK(transkasi[[#This Row],[GAJI POKOK]]),"",0.24%*transkasi[[#This Row],[GAJI POKOK]]) ->  | M18: =0.3%*transkasi[[#This Row],[GAJI POKOK]] ->  | N18: =SUM(transkasi[[#This Row],[GAJI POKOK]:[Jaminan Kematian/JK (0,3%)]]) ->  | O18: ='Data_From Access 1721 A1'!#REF! ->  | P18: ='Data_From Access 1721 A1'!#REF! ->  | Q18: ='Data_From Access 1721 A1'!#REF! ->  | R18: =IF(transkasi[[#This Row],[PENGHASILAN BRUTO]]*5%>=500000,500000,transkasi[[#This Row],[PENGHASILAN BRUTO]]*5%) ->  | S18: =2%*transkasi[[#This Row],[GAJI POKOK]] ->  | T18: =1%*transkasi[[#This Row],[GAJI POKOK]] ->  | U18: =SUM(transkasi[[#This Row],[BIAYA JABATAN PERBULAN 5%]:[Jaminan Pensiun (JP) dibayar Karyawan (1%)]]) ->  | V18: =transkasi[[#This Row],[PENGHASILAN BRUTO]]-transkasi[[#This Row],[Jumlah Pengurangan]] ->  | W18: =transkasi[[#This Row],[GAJI POKOK]] ->  | X18: =IFERROR(transkasi[[#This Row],[Penghasilan Netto(Bersih) sebulan]]*transkasi[[#This Row],[Masa Kerja]]+transkasi[[#This Row],[THR Setahun]],0) -> 0 | Y18: =IF(ISBLANK(transkasi[[#This Row],[NO]]),"",VLOOKUP(transkasi[[#This Row],[STATUS PTKP]],tarif_ptkp[],2,FALSE)) ->  | Z18: =IFERROR(transkasi[[#This Row],[Penghasilan NETTO (bersih) setahun]]-transkasi[[#This Row],[PTKP (Penghasilan tidak kena pajak) setahun]],0) -> 0 | AA18: =IF(transkasi[[#This Row],[PKP (Penghasilan kena pajak) setahun]]<=0,0,ROUNDDOWN(transkasi[[#This Row],[PKP (Penghasilan kena pajak) setahun]],-3)) -> 0 | AB18: ='Data_From Access 1721 A1'!#REF! ->  | AC18: ='Data_From Access 1721 A1'!#REF! ->  | AD18: ='Data_From Access 1721 A1'!#REF! ->  | AE18: ='Data_From Access 1721 A1'!#REF! ->  | AF18: ='Data_From Access 1721 A1'!#REF! ->  | AG18: =INT(transkasi[[#This Row],[5 %]]+transkasi[[#This Row],[15 %]]+transkasi[[#This Row],[25 %]]+transkasi[[#This Row],[30 %]]+transkasi[[#This Row],[30 %]]+transkasi[[#This Row],[35 %]]/1000*1000) ->  | AH18: ='Data_From Access 1721 A1'!#REF! ->  | AI18: ='Data_From Access 1721 A1'!#REF! ->  | AJ18: ='Data_From Access 1721 A1'!#REF! ->  | DC18: =INT(transkasi[[#This Row],[JUMLAH PPH PS.21 SETAHUN]]-transkasi[[#This Row],[Kredit Pajak YTDD Jan-Nov + THR]])/1000*1000 -> 
A19: ='Data_From Access 1721 A1'!#REF! ->  | B19: ='Data_From Access 1721 A1'!#REF! ->  | C19: ='Data_From Access 1721 A1'!#REF! ->  | D19: ='Data_From Access 1721 A1'!#REF! ->  | E19: ='Data_From Access 1721 A1'!#REF! ->  | F19: ='Data_From Access 1721 A1'!#REF! ->  | G19: ='Data_From Access 1721 A1'!#REF! ->  | H19: ='Data_From Access 1721 A1'!#REF! ->  | I19: ='Data_From Access 1721 A1'!#REF! ->  | J19: ='Data_From Access 1721 A1'!#REF! ->  | K19: ='Data_From Access 1721 A1'!#REF! ->  | L19: =IF(ISBLANK(transkasi[[#This Row],[GAJI POKOK]]),"",0.24%*transkasi[[#This Row],[GAJI POKOK]]) ->  | M19: =0.3%*transkasi[[#This Row],[GAJI POKOK]] ->  | N19: =SUM(transkasi[[#This Row],[GAJI POKOK]:[Jaminan Kematian/JK (0,3%)]]) ->  | O19: ='Data_From Access 1721 A1'!#REF! ->  | P19: ='Data_From Access 1721 A1'!#REF! ->  | Q19: ='Data_From Access 1721 A1'!#REF! ->  | R19: =IF(transkasi[[#This Row],[PENGHASILAN BRUTO]]*5%>=500000,500000,transkasi[[#This Row],[PENGHASILAN BRUTO]]*5%) ->  | S19: =2%*transkasi[[#This Row],[GAJI POKOK]] ->  | T19: =1%*transkasi[[#This Row],[GAJI POKOK]] ->  | U19: =SUM(transkasi[[#This Row],[BIAYA JABATAN PERBULAN 5%]:[Jaminan Pensiun (JP) dibayar Karyawan (1%)]]) ->  | V19: =transkasi[[#This Row],[PENGHASILAN BRUTO]]-transkasi[[#This Row],[Jumlah Pengurangan]] ->  | W19: =transkasi[[#This Row],[GAJI POKOK]] ->  | X19: =IFERROR(transkasi[[#This Row],[Penghasilan Netto(Bersih) sebulan]]*transkasi[[#This Row],[Masa Kerja]]+transkasi[[#This Row],[THR Setahun]],0) -> 0 | Y19: =IF(ISBLANK(transkasi[[#This Row],[NO]]),"",VLOOKUP(transkasi[[#This Row],[STATUS PTKP]],tarif_ptkp[],2,FALSE)) ->  | Z19: =IFERROR(transkasi[[#This Row],[Penghasilan NETTO (bersih) setahun]]-transkasi[[#This Row],[PTKP (Penghasilan tidak kena pajak) setahun]],0) -> 0 | AA19: =IF(transkasi[[#This Row],[PKP (Penghasilan kena pajak) setahun]]<=0,0,ROUNDDOWN(transkasi[[#This Row],[PKP (Penghasilan kena pajak) setahun]],-3)) -> 0 | AB19: ='Data_From Access 1721 A1'!#REF! ->  | AC19: ='Data_From Access 1721 A1'!#REF! ->  | AD19: ='Data_From Access 1721 A1'!#REF! ->  | AE19: ='Data_From Access 1721 A1'!#REF! ->  | AF19: ='Data_From Access 1721 A1'!#REF! ->  | AG19: =INT(transkasi[[#This Row],[5 %]]+transkasi[[#This Row],[15 %]]+transkasi[[#This Row],[25 %]]+transkasi[[#This Row],[30 %]]+transkasi[[#This Row],[30 %]]+transkasi[[#This Row],[35 %]]/1000*1000) ->  | AH19: ='Data_From Access 1721 A1'!#REF! ->  | AI19: ='Data_From Access 1721 A1'!#REF! ->  | AJ19: ='Data_From Access 1721 A1'!#REF! ->  | DC19: =INT(transkasi[[#This Row],[JUMLAH PPH PS.21 SETAHUN]]-transkasi[[#This Row],[Kredit Pajak YTDD Jan-Nov + THR]])/1000*1000 -> 
A20: ='Data_From Access 1721 A1'!#REF! ->  | B20: ='Data_From Access 1721 A1'!#REF! ->  | C20: ='Data_From Access 1721 A1'!#REF! ->  | D20: ='Data_From Access 1721 A1'!#REF! ->  | E20: ='Data_From Access 1721 A1'!#REF! ->  | F20: ='Data_From Access 1721 A1'!#REF! ->  | G20: ='Data_From Access 1721 A1'!#REF! ->  | H20: ='Data_From Access 1721 A1'!#REF! ->  | I20: ='Data_From Access 1721 A1'!#REF! ->  | J20: ='Data_From Access 1721 A1'!#REF! ->  | K20: ='Data_From Access 1721 A1'!#REF! ->  | L20: =IF(ISBLANK(transkasi[[#This Row],[GAJI POKOK]]),"",0.24%*transkasi[[#This Row],[GAJI POKOK]]) ->  | M20: =0.3%*transkasi[[#This Row],[GAJI POKOK]] ->  | N20: =SUM(transkasi[[#This Row],[GAJI POKOK]:[Jaminan Kematian/JK (0,3%)]]) ->  | O20: ='Data_From Access 1721 A1'!#REF! ->  | P20: ='Data_From Access 1721 A1'!#REF! ->  | Q20: ='Data_From Access 1721 A1'!#REF! ->  | R20: =IF(transkasi[[#This Row],[PENGHASILAN BRUTO]]*5%>=500000,500000,transkasi[[#This Row],[PENGHASILAN BRUTO]]*5%) ->  | S20: =2%*transkasi[[#This Row],[GAJI POKOK]] ->  | T20: =1%*transkasi[[#This Row],[GAJI POKOK]] ->  | U20: =SUM(transkasi[[#This Row],[BIAYA JABATAN PERBULAN 5%]:[Jaminan Pensiun (JP) dibayar Karyawan (1%)]]) ->  | V20: =transkasi[[#This Row],[PENGHASILAN BRUTO]]-transkasi[[#This Row],[Jumlah Pengurangan]] ->  | W20: =transkasi[[#This Row],[GAJI POKOK]] ->  | X20: =IFERROR(transkasi[[#This Row],[Penghasilan Netto(Bersih) sebulan]]*transkasi[[#This Row],[Masa Kerja]]+transkasi[[#This Row],[THR Setahun]],0) -> 0 | Y20: =IF(ISBLANK(transkasi[[#This Row],[NO]]),"",VLOOKUP(transkasi[[#This Row],[STATUS PTKP]],tarif_ptkp[],2,FALSE)) ->  | Z20: =IFERROR(transkasi[[#This Row],[Penghasilan NETTO (bersih) setahun]]-transkasi[[#This Row],[PTKP (Penghasilan tidak kena pajak) setahun]],0) -> 0 | AA20: =IF(transkasi[[#This Row],[PKP (Penghasilan kena pajak) setahun]]<=0,0,ROUNDDOWN(transkasi[[#This Row],[PKP (Penghasilan kena pajak) setahun]],-3)) -> 0 | AB20: ='Data_From Access 1721 A1'!#REF! ->  | AC20: ='Data_From Access 1721 A1'!#REF! ->  | AD20: ='Data_From Access 1721 A1'!#REF! ->  | AE20: ='Data_From Access 1721 A1'!#REF! ->  | AF20: ='Data_From Access 1721 A1'!#REF! ->  | AG20: =INT(transkasi[[#This Row],[5 %]]+transkasi[[#This Row],[15 %]]+transkasi[[#This Row],[25 %]]+transkasi[[#This Row],[30 %]]+transkasi[[#This Row],[30 %]]+transkasi[[#This Row],[35 %]]/1000*1000) ->  | AH20: ='Data_From Access 1721 A1'!#REF! ->  | AI20: ='Data_From Access 1721 A1'!#REF! ->  | AJ20: ='Data_From Access 1721 A1'!#REF! ->  | DC20: =INT(transkasi[[#This Row],[JUMLAH PPH PS.21 SETAHUN]]-transkasi[[#This Row],[Kredit Pajak YTDD Jan-Nov + THR]])/1000*1000 -> 
A21: ='Data_From Access 1721 A1'!#REF! ->  | B21: ='Data_From Access 1721 A1'!#REF! ->  | C21: ='Data_From Access 1721 A1'!#REF! ->  | D21: ='Data_From Access 1721 A1'!#REF! ->  | E21: ='Data_From Access 1721 A1'!#REF! ->  | F21: ='Data_From Access 1721 A1'!#REF! ->  | G21: ='Data_From Access 1721 A1'!#REF! ->  | H21: ='Data_From Access 1721 A1'!#REF! ->  | I21: ='Data_From Access 1721 A1'!#REF! ->  | J21: ='Data_From Access 1721 A1'!#REF! ->  | K21: ='Data_From Access 1721 A1'!#REF! ->  | L21: =IF(ISBLANK(transkasi[[#This Row],[GAJI POKOK]]),"",0.24%*transkasi[[#This Row],[GAJI POKOK]]) ->  | M21: =0.3%*transkasi[[#This Row],[GAJI POKOK]] ->  | N21: =SUM(transkasi[[#This Row],[GAJI POKOK]:[Jaminan Kematian/JK (0,3%)]]) ->  | O21: ='Data_From Access 1721 A1'!#REF! ->  | P21: ='Data_From Access 1721 A1'!#REF! ->  | Q21: ='Data_From Access 1721 A1'!#REF! ->  | R21: =IF(transkasi[[#This Row],[PENGHASILAN BRUTO]]*5%>=500000,500000,transkasi[[#This Row],[PENGHASILAN BRUTO]]*5%) ->  | S21: =2%*transkasi[[#This Row],[GAJI POKOK]] ->  | T21: =1%*transkasi[[#This Row],[GAJI POKOK]] ->  | U21: =SUM(transkasi[[#This Row],[BIAYA JABATAN PERBULAN 5%]:[Jaminan Pensiun (JP) dibayar Karyawan (1%)]]) ->  | V21: =transkasi[[#This Row],[PENGHASILAN BRUTO]]-transkasi[[#This Row],[Jumlah Pengurangan]] ->  | W21: =transkasi[[#This Row],[GAJI POKOK]] ->  | X21: =IFERROR(transkasi[[#This Row],[Penghasilan Netto(Bersih) sebulan]]*transkasi[[#This Row],[Masa Kerja]]+transkasi[[#This Row],[THR Setahun]],0) -> 0 | Y21: =IF(ISBLANK(transkasi[[#This Row],[NO]]),"",VLOOKUP(transkasi[[#This Row],[STATUS PTKP]],tarif_ptkp[],2,FALSE)) ->  | Z21: =IFERROR(transkasi[[#This Row],[Penghasilan NETTO (bersih) setahun]]-transkasi[[#This Row],[PTKP (Penghasilan tidak kena pajak) setahun]],0) -> 0 | AA21: =IF(transkasi[[#This Row],[PKP (Penghasilan kena pajak) setahun]]<=0,0,ROUNDDOWN(transkasi[[#This Row],[PKP (Penghasilan kena pajak) setahun]],-3)) -> 0 | AB21: ='Data_From Access 1721 A1'!#REF! ->  | AC21: ='Data_From Access 1721 A1'!#REF! ->  | AD21: ='Data_From Access 1721 A1'!#REF! ->  | AE21: ='Data_From Access 1721 A1'!#REF! ->  | AF21: ='Data_From Access 1721 A1'!#REF! ->  | AG21: =INT(transkasi[[#This Row],[5 %]]+transkasi[[#This Row],[15 %]]+transkasi[[#This Row],[25 %]]+transkasi[[#This Row],[30 %]]+transkasi[[#This Row],[30 %]]+transkasi[[#This Row],[35 %]]/1000*1000) ->  | AH21: ='Data_From Access 1721 A1'!#REF! ->  | AI21: ='Data_From Access 1721 A1'!#REF! ->  | AJ21: ='Data_From Access 1721 A1'!#REF! ->  | DC21: =INT(transkasi[[#This Row],[JUMLAH PPH PS.21 SETAHUN]]-transkasi[[#This Row],[Kredit Pajak YTDD Jan-Nov + THR]])/1000*1000 -> 
A22: ='Data_From Access 1721 A1'!#REF! ->  | B22: ='Data_From Access 1721 A1'!#REF! ->  | C22: ='Data_From Access 1721 A1'!#REF! ->  | D22: ='Data_From Access 1721 A1'!#REF! ->  | E22: ='Data_From Access 1721 A1'!#REF! ->  | F22: ='Data_From Access 1721 A1'!#REF! ->  | G22: ='Data_From Access 1721 A1'!#REF! ->  | H22: ='Data_From Access 1721 A1'!#REF! ->  | I22: ='Data_From Access 1721 A1'!#REF! ->  | J22: ='Data_From Access 1721 A1'!#REF! ->  | K22: ='Data_From Access 1721 A1'!#REF! ->  | L22: =IF(ISBLANK(transkasi[[#This Row],[GAJI POKOK]]),"",0.24%*transkasi[[#This Row],[GAJI POKOK]]) ->  | M22: =0.3%*transkasi[[#This Row],[GAJI POKOK]] ->  | N22: =SUM(transkasi[[#This Row],[GAJI POKOK]:[Jaminan Kematian/JK (0,3%)]]) ->  | O22: ='Data_From Access 1721 A1'!#REF! ->  | P22: ='Data_From Access 1721 A1'!#REF! ->  | Q22: ='Data_From Access 1721 A1'!#REF! ->  | R22: =IF(transkasi[[#This Row],[PENGHASILAN BRUTO]]*5%>=500000,500000,transkasi[[#This Row],[PENGHASILAN BRUTO]]*5%) ->  | S22: =2%*transkasi[[#This Row],[GAJI POKOK]] ->  | T22: =1%*transkasi[[#This Row],[GAJI POKOK]] ->  | U22: =SUM(transkasi[[#This Row],[BIAYA JABATAN PERBULAN 5%]:[Jaminan Pensiun (JP) dibayar Karyawan (1%)]]) ->  | V22: =transkasi[[#This Row],[PENGHASILAN BRUTO]]-transkasi[[#This Row],[Jumlah Pengurangan]] ->  | W22: =transkasi[[#This Row],[GAJI POKOK]] ->  | X22: =IFERROR(transkasi[[#This Row],[Penghasilan Netto(Bersih) sebulan]]*transkasi[[#This Row],[Masa Kerja]]+transkasi[[#This Row],[THR Setahun]],0) -> 0 | Y22: =IF(ISBLANK(transkasi[[#This Row],[NO]]),"",VLOOKUP(transkasi[[#This Row],[STATUS PTKP]],tarif_ptkp[],2,FALSE)) ->  | Z22: =IFERROR(transkasi[[#This Row],[Penghasilan NETTO (bersih) setahun]]-transkasi[[#This Row],[PTKP (Penghasilan tidak kena pajak) setahun]],0) -> 0 | AA22: =IF(transkasi[[#This Row],[PKP (Penghasilan kena pajak) setahun]]<=0,0,ROUNDDOWN(transkasi[[#This Row],[PKP (Penghasilan kena pajak) setahun]],-3)) -> 0 | AB22: ='Data_From Access 1721 A1'!#REF! ->  | AC22: ='Data_From Access 1721 A1'!#REF! ->  | AD22: ='Data_From Access 1721 A1'!#REF! ->  | AE22: ='Data_From Access 1721 A1'!#REF! ->  | AF22: ='Data_From Access 1721 A1'!#REF! ->  | AG22: =INT(transkasi[[#This Row],[5 %]]+transkasi[[#This Row],[15 %]]+transkasi[[#This Row],[25 %]]+transkasi[[#This Row],[30 %]]+transkasi[[#This Row],[30 %]]+transkasi[[#This Row],[35 %]]/1000*1000) ->  | AH22: ='Data_From Access 1721 A1'!#REF! ->  | AI22: ='Data_From Access 1721 A1'!#REF! ->  | AJ22: ='Data_From Access 1721 A1'!#REF! ->  | DC22: =INT(transkasi[[#This Row],[JUMLAH PPH PS.21 SETAHUN]]-transkasi[[#This Row],[Kredit Pajak YTDD Jan-Nov + THR]])/1000*1000 -> 
A23: ='Data_From Access 1721 A1'!#REF! ->  | B23: ='Data_From Access 1721 A1'!#REF! ->  | C23: ='Data_From Access 1721 A1'!#REF! ->  | D23: ='Data_From Access 1721 A1'!#REF! ->  | E23: ='Data_From Access 1721 A1'!#REF! ->  | F23: ='Data_From Access 1721 A1'!#REF! ->  | G23: ='Data_From Access 1721 A1'!#REF! ->  | H23: ='Data_From Access 1721 A1'!#REF! ->  | I23: ='Data_From Access 1721 A1'!#REF! ->  | J23: ='Data_From Access 1721 A1'!#REF! ->  | K23: ='Data_From Access 1721 A1'!#REF! ->  | L23: =IF(ISBLANK(transkasi[[#This Row],[GAJI POKOK]]),"",0.24%*transkasi[[#This Row],[GAJI POKOK]]) ->  | M23: =0.3%*transkasi[[#This Row],[GAJI POKOK]] ->  | N23: =SUM(transkasi[[#This Row],[GAJI POKOK]:[Jaminan Kematian/JK (0,3%)]]) ->  | O23: ='Data_From Access 1721 A1'!#REF! ->  | P23: ='Data_From Access 1721 A1'!#REF! ->  | Q23: ='Data_From Access 1721 A1'!#REF! ->  | R23: =IF(transkasi[[#This Row],[PENGHASILAN BRUTO]]*5%>=500000,500000,transkasi[[#This Row],[PENGHASILAN BRUTO]]*5%) ->  | S23: =2%*transkasi[[#This Row],[GAJI POKOK]] ->  | T23: =1%*transkasi[[#This Row],[GAJI POKOK]] ->  | U23: =SUM(transkasi[[#This Row],[BIAYA JABATAN PERBULAN 5%]:[Jaminan Pensiun (JP) dibayar Karyawan (1%)]]) ->  | V23: =transkasi[[#This Row],[PENGHASILAN BRUTO]]-transkasi[[#This Row],[Jumlah Pengurangan]] ->  | W23: =transkasi[[#This Row],[GAJI POKOK]] ->  | X23: =IFERROR(transkasi[[#This Row],[Penghasilan Netto(Bersih) sebulan]]*transkasi[[#This Row],[Masa Kerja]]+transkasi[[#This Row],[THR Setahun]],0) -> 0 | Y23: =IF(ISBLANK(transkasi[[#This Row],[NO]]),"",VLOOKUP(transkasi[[#This Row],[STATUS PTKP]],tarif_ptkp[],2,FALSE)) ->  | Z23: =IFERROR(transkasi[[#This Row],[Penghasilan NETTO (bersih) setahun]]-transkasi[[#This Row],[PTKP (Penghasilan tidak kena pajak) setahun]],0) -> 0 | AA23: =IF(transkasi[[#This Row],[PKP (Penghasilan kena pajak) setahun]]<=0,0,ROUNDDOWN(transkasi[[#This Row],[PKP (Penghasilan kena pajak) setahun]],-3)) -> 0 | AB23: ='Data_From Access 1721 A1'!#REF! ->  | AC23: ='Data_From Access 1721 A1'!#REF! ->  | AD23: ='Data_From Access 1721 A1'!#REF! ->  | AE23: ='Data_From Access 1721 A1'!#REF! ->  | AF23: ='Data_From Access 1721 A1'!#REF! ->  | AG23: =INT(transkasi[[#This Row],[5 %]]+transkasi[[#This Row],[15 %]]+transkasi[[#This Row],[25 %]]+transkasi[[#This Row],[30 %]]+transkasi[[#This Row],[30 %]]+transkasi[[#This Row],[35 %]]/1000*1000) ->  | AH23: ='Data_From Access 1721 A1'!#REF! ->  | AI23: ='Data_From Access 1721 A1'!#REF! ->  | AJ23: ='Data_From Access 1721 A1'!#REF! ->  | DC23: =INT(transkasi[[#This Row],[JUMLAH PPH PS.21 SETAHUN]]-transkasi[[#This Row],[Kredit Pajak YTDD Jan-Nov + THR]])/1000*1000 -> 
A24: ='Data_From Access 1721 A1'!#REF! ->  | B24: ='Data_From Access 1721 A1'!#REF! ->  | C24: ='Data_From Access 1721 A1'!#REF! ->  | D24: ='Data_From Access 1721 A1'!#REF! ->  | E24: ='Data_From Access 1721 A1'!#REF! ->  | F24: ='Data_From Access 1721 A1'!#REF! ->  | G24: ='Data_From Access 1721 A1'!#REF! ->  | H24: ='Data_From Access 1721 A1'!#REF! ->  | I24: ='Data_From Access 1721 A1'!#REF! ->  | J24: ='Data_From Access 1721 A1'!#REF! ->  | K24: ='Data_From Access 1721 A1'!#REF! ->  | L24: =IF(ISBLANK(transkasi[[#This Row],[GAJI POKOK]]),"",0.24%*transkasi[[#This Row],[GAJI POKOK]]) ->  | M24: =0.3%*transkasi[[#This Row],[GAJI POKOK]] ->  | N24: =SUM(transkasi[[#This Row],[GAJI POKOK]:[Jaminan Kematian/JK (0,3%)]]) ->  | O24: ='Data_From Access 1721 A1'!#REF! ->  | P24: ='Data_From Access 1721 A1'!#REF! ->  | Q24: ='Data_From Access 1721 A1'!#REF! ->  | R24: =IF(transkasi[[#This Row],[PENGHASILAN BRUTO]]*5%>=500000,500000,transkasi[[#This Row],[PENGHASILAN BRUTO]]*5%) ->  | S24: =2%*transkasi[[#This Row],[GAJI POKOK]] ->  | T24: =1%*transkasi[[#This Row],[GAJI POKOK]] ->  | U24: =SUM(transkasi[[#This Row],[BIAYA JABATAN PERBULAN 5%]:[Jaminan Pensiun (JP) dibayar Karyawan (1%)]]) ->  | V24: =transkasi[[#This Row],[PENGHASILAN BRUTO]]-transkasi[[#This Row],[Jumlah Pengurangan]] ->  | W24: =transkasi[[#This Row],[GAJI POKOK]] ->  | X24: =IFERROR(transkasi[[#This Row],[Penghasilan Netto(Bersih) sebulan]]*transkasi[[#This Row],[Masa Kerja]]+transkasi[[#This Row],[THR Setahun]],0) -> 0 | Y24: =IF(ISBLANK(transkasi[[#This Row],[NO]]),"",VLOOKUP(transkasi[[#This Row],[STATUS PTKP]],tarif_ptkp[],2,FALSE)) ->  | Z24: =IFERROR(transkasi[[#This Row],[Penghasilan NETTO (bersih) setahun]]-transkasi[[#This Row],[PTKP (Penghasilan tidak kena pajak) setahun]],0) -> 0 | AA24: =IF(transkasi[[#This Row],[PKP (Penghasilan kena pajak) setahun]]<=0,0,ROUNDDOWN(transkasi[[#This Row],[PKP (Penghasilan kena pajak) setahun]],-3)) -> 0 | AB24: ='Data_From Access 1721 A1'!#REF! ->  | AC24: ='Data_From Access 1721 A1'!#REF! ->  | AD24: ='Data_From Access 1721 A1'!#REF! ->  | AE24: ='Data_From Access 1721 A1'!#REF! ->  | AF24: ='Data_From Access 1721 A1'!#REF! ->  | AG24: =INT(transkasi[[#This Row],[5 %]]+transkasi[[#This Row],[15 %]]+transkasi[[#This Row],[25 %]]+transkasi[[#This Row],[30 %]]+transkasi[[#This Row],[30 %]]+transkasi[[#This Row],[35 %]]/1000*1000) ->  | AH24: ='Data_From Access 1721 A1'!#REF! ->  | AI24: ='Data_From Access 1721 A1'!#REF! ->  | AJ24: ='Data_From Access 1721 A1'!#REF! ->  | DC24: =INT(transkasi[[#This Row],[JUMLAH PPH PS.21 SETAHUN]]-transkasi[[#This Row],[Kredit Pajak YTDD Jan-Nov + THR]])/1000*1000 -> 
A25: ='Data_From Access 1721 A1'!#REF! ->  | B25: ='Data_From Access 1721 A1'!#REF! ->  | C25: ='Data_From Access 1721 A1'!#REF! ->  | D25: ='Data_From Access 1721 A1'!#REF! ->  | E25: ='Data_From Access 1721 A1'!#REF! ->  | F25: ='Data_From Access 1721 A1'!#REF! ->  | G25: ='Data_From Access 1721 A1'!#REF! ->  | H25: ='Data_From Access 1721 A1'!#REF! ->  | I25: ='Data_From Access 1721 A1'!#REF! ->  | J25: ='Data_From Access 1721 A1'!#REF! ->  | K25: ='Data_From Access 1721 A1'!#REF! ->  | L25: =IF(ISBLANK(transkasi[[#This Row],[GAJI POKOK]]),"",0.24%*transkasi[[#This Row],[GAJI POKOK]]) ->  | M25: =0.3%*transkasi[[#This Row],[GAJI POKOK]] ->  | N25: =SUM(transkasi[[#This Row],[GAJI POKOK]:[Jaminan Kematian/JK (0,3%)]]) ->  | O25: ='Data_From Access 1721 A1'!#REF! ->  | P25: ='Data_From Access 1721 A1'!#REF! ->  | Q25: ='Data_From Access 1721 A1'!#REF! ->  | R25: =IF(transkasi[[#This Row],[PENGHASILAN BRUTO]]*5%>=500000,500000,transkasi[[#This Row],[PENGHASILAN BRUTO]]*5%) ->  | S25: =2%*transkasi[[#This Row],[GAJI POKOK]] ->  | T25: =1%*transkasi[[#This Row],[GAJI POKOK]] ->  | U25: =SUM(transkasi[[#This Row],[BIAYA JABATAN PERBULAN 5%]:[Jaminan Pensiun (JP) dibayar Karyawan (1%)]]) ->  | V25: =transkasi[[#This Row],[PENGHASILAN BRUTO]]-transkasi[[#This Row],[Jumlah Pengurangan]] ->  | W25: =transkasi[[#This Row],[GAJI POKOK]] ->  | X25: =IFERROR(transkasi[[#This Row],[Penghasilan Netto(Bersih) sebulan]]*transkasi[[#This Row],[Masa Kerja]]+transkasi[[#This Row],[THR Setahun]],0) -> 0 | Y25: =IF(ISBLANK(transkasi[[#This Row],[NO]]),"",VLOOKUP(transkasi[[#This Row],[STATUS PTKP]],tarif_ptkp[],2,FALSE)) ->  | Z25: =IFERROR(transkasi[[#This Row],[Penghasilan NETTO (bersih) setahun]]-transkasi[[#This Row],[PTKP (Penghasilan tidak kena pajak) setahun]],0) -> 0 | AA25: =IF(transkasi[[#This Row],[PKP (Penghasilan kena pajak) setahun]]<=0,0,ROUNDDOWN(transkasi[[#This Row],[PKP (Penghasilan kena pajak) setahun]],-3)) -> 0 | AB25: ='Data_From Access 1721 A1'!#REF! ->  | AC25: ='Data_From Access 1721 A1'!#REF! ->  | AD25: ='Data_From Access 1721 A1'!#REF! ->  | AE25: ='Data_From Access 1721 A1'!#REF! ->  | AF25: ='Data_From Access 1721 A1'!#REF! ->  | AG25: =INT(transkasi[[#This Row],[5 %]]+transkasi[[#This Row],[15 %]]+transkasi[[#This Row],[25 %]]+transkasi[[#This Row],[30 %]]+transkasi[[#This Row],[30 %]]+transkasi[[#This Row],[35 %]]/1000*1000) ->  | AH25: ='Data_From Access 1721 A1'!#REF! ->  | AI25: ='Data_From Access 1721 A1'!#REF! ->  | AJ25: ='Data_From Access 1721 A1'!#REF! ->  | DC25: =INT(transkasi[[#This Row],[JUMLAH PPH PS.21 SETAHUN]]-transkasi[[#This Row],[Kredit Pajak YTDD Jan-Nov + THR]])/1000*1000 -> 
A26: ='Data_From Access 1721 A1'!#REF! ->  | B26: ='Data_From Access 1721 A1'!#REF! ->  | C26: ='Data_From Access 1721 A1'!#REF! ->  | D26: ='Data_From Access 1721 A1'!#REF! ->  | E26: ='Data_From Access 1721 A1'!#REF! ->  | F26: ='Data_From Access 1721 A1'!#REF! ->  | G26: ='Data_From Access 1721 A1'!#REF! ->  | H26: ='Data_From Access 1721 A1'!#REF! ->  | I26: ='Data_From Access 1721 A1'!#REF! ->  | J26: ='Data_From Access 1721 A1'!#REF! ->  | K26: ='Data_From Access 1721 A1'!#REF! ->  | L26: =IF(ISBLANK(transkasi[[#This Row],[GAJI POKOK]]),"",0.24%*transkasi[[#This Row],[GAJI POKOK]]) ->  | M26: =0.3%*transkasi[[#This Row],[GAJI POKOK]] ->  | N26: =SUM(transkasi[[#This Row],[GAJI POKOK]:[Jaminan Kematian/JK (0,3%)]]) ->  | O26: ='Data_From Access 1721 A1'!#REF! ->  | P26: ='Data_From Access 1721 A1'!#REF! ->  | Q26: ='Data_From Access 1721 A1'!#REF! ->  | R26: =IF(transkasi[[#This Row],[PENGHASILAN BRUTO]]*5%>=500000,500000,transkasi[[#This Row],[PENGHASILAN BRUTO]]*5%) ->  | S26: =2%*transkasi[[#This Row],[GAJI POKOK]] ->  | T26: =1%*transkasi[[#This Row],[GAJI POKOK]] ->  | U26: =SUM(transkasi[[#This Row],[BIAYA JABATAN PERBULAN 5%]:[Jaminan Pensiun (JP) dibayar Karyawan (1%)]]) ->  | V26: =transkasi[[#This Row],[PENGHASILAN BRUTO]]-transkasi[[#This Row],[Jumlah Pengurangan]] ->  | W26: =transkasi[[#This Row],[GAJI POKOK]] ->  | X26: =IFERROR(transkasi[[#This Row],[Penghasilan Netto(Bersih) sebulan]]*transkasi[[#This Row],[Masa Kerja]]+transkasi[[#This Row],[THR Setahun]],0) -> 0 | Y26: =IF(ISBLANK(transkasi[[#This Row],[NO]]),"",VLOOKUP(transkasi[[#This Row],[STATUS PTKP]],tarif_ptkp[],2,FALSE)) ->  | Z26: =IFERROR(transkasi[[#This Row],[Penghasilan NETTO (bersih) setahun]]-transkasi[[#This Row],[PTKP (Penghasilan tidak kena pajak) setahun]],0) -> 0 | AA26: =IF(transkasi[[#This Row],[PKP (Penghasilan kena pajak) setahun]]<=0,0,ROUNDDOWN(transkasi[[#This Row],[PKP (Penghasilan kena pajak) setahun]],-3)) -> 0 | AB26: ='Data_From Access 1721 A1'!#REF! ->  | AC26: ='Data_From Access 1721 A1'!#REF! ->  | AD26: ='Data_From Access 1721 A1'!#REF! ->  | AE26: ='Data_From Access 1721 A1'!#REF! ->  | AF26: ='Data_From Access 1721 A1'!#REF! ->  | AG26: =INT(transkasi[[#This Row],[5 %]]+transkasi[[#This Row],[15 %]]+transkasi[[#This Row],[25 %]]+transkasi[[#This Row],[30 %]]+transkasi[[#This Row],[30 %]]+transkasi[[#This Row],[35 %]]/1000*1000) ->  | AH26: ='Data_From Access 1721 A1'!#REF! ->  | AI26: ='Data_From Access 1721 A1'!#REF! ->  | AJ26: ='Data_From Access 1721 A1'!#REF! ->  | DC26: =INT(transkasi[[#This Row],[JUMLAH PPH PS.21 SETAHUN]]-transkasi[[#This Row],[Kredit Pajak YTDD Jan-Nov + THR]])/1000*1000 -> 
A27: ='Data_From Access 1721 A1'!#REF! ->  | B27: ='Data_From Access 1721 A1'!#REF! ->  | C27: ='Data_From Access 1721 A1'!#REF! ->  | D27: ='Data_From Access 1721 A1'!#REF! ->  | E27: ='Data_From Access 1721 A1'!#REF! ->  | F27: ='Data_From Access 1721 A1'!#REF! ->  | G27: ='Data_From Access 1721 A1'!#REF! ->  | H27: ='Data_From Access 1721 A1'!#REF! ->  | I27: ='Data_From Access 1721 A1'!#REF! ->  | J27: ='Data_From Access 1721 A1'!#REF! ->  | K27: ='Data_From Access 1721 A1'!#REF! ->  | L27: =IF(ISBLANK(transkasi[[#This Row],[GAJI POKOK]]),"",0.24%*transkasi[[#This Row],[GAJI POKOK]]) ->  | M27: =0.3%*transkasi[[#This Row],[GAJI POKOK]] ->  | N27: =SUM(transkasi[[#This Row],[GAJI POKOK]:[Jaminan Kematian/JK (0,3%)]]) ->  | O27: ='Data_From Access 1721 A1'!#REF! ->  | P27: ='Data_From Access 1721 A1'!#REF! ->  | Q27: ='Data_From Access 1721 A1'!#REF! ->  | R27: =IF(transkasi[[#This Row],[PENGHASILAN BRUTO]]*5%>=500000,500000,transkasi[[#This Row],[PENGHASILAN BRUTO]]*5%) ->  | S27: =2%*transkasi[[#This Row],[GAJI POKOK]] ->  | T27: =1%*transkasi[[#This Row],[GAJI POKOK]] ->  | U27: =SUM(transkasi[[#This Row],[BIAYA JABATAN PERBULAN 5%]:[Jaminan Pensiun (JP) dibayar Karyawan (1%)]]) ->  | V27: =transkasi[[#This Row],[PENGHASILAN BRUTO]]-transkasi[[#This Row],[Jumlah Pengurangan]] ->  | W27: =transkasi[[#This Row],[GAJI POKOK]] ->  | X27: =IFERROR(transkasi[[#This Row],[Penghasilan Netto(Bersih) sebulan]]*transkasi[[#This Row],[Masa Kerja]]+transkasi[[#This Row],[THR Setahun]],0) -> 0 | Y27: =IF(ISBLANK(transkasi[[#This Row],[NO]]),"",VLOOKUP(transkasi[[#This Row],[STATUS PTKP]],tarif_ptkp[],2,FALSE)) ->  | Z27: =IFERROR(transkasi[[#This Row],[Penghasilan NETTO (bersih) setahun]]-transkasi[[#This Row],[PTKP (Penghasilan tidak kena pajak) setahun]],0) -> 0 | AA27: =IF(transkasi[[#This Row],[PKP (Penghasilan kena pajak) setahun]]<=0,0,ROUNDDOWN(transkasi[[#This Row],[PKP (Penghasilan kena pajak) setahun]],-3)) -> 0 | AB27: ='Data_From Access 1721 A1'!#REF! ->  | AC27: ='Data_From Access 1721 A1'!#REF! ->  | AD27: ='Data_From Access 1721 A1'!#REF! ->  | AE27: ='Data_From Access 1721 A1'!#REF! ->  | AF27: ='Data_From Access 1721 A1'!#REF! ->  | AG27: =INT(transkasi[[#This Row],[5 %]]+transkasi[[#This Row],[15 %]]+transkasi[[#This Row],[25 %]]+transkasi[[#This Row],[30 %]]+transkasi[[#This Row],[30 %]]+transkasi[[#This Row],[35 %]]/1000*1000) ->  | AH27: ='Data_From Access 1721 A1'!#REF! ->  | AI27: ='Data_From Access 1721 A1'!#REF! ->  | AJ27: ='Data_From Access 1721 A1'!#REF! ->  | DC27: =INT(transkasi[[#This Row],[JUMLAH PPH PS.21 SETAHUN]]-transkasi[[#This Row],[Kredit Pajak YTDD Jan-Nov + THR]])/1000*1000 -> 
A28: ='Data_From Access 1721 A1'!#REF! ->  | B28: ='Data_From Access 1721 A1'!#REF! ->  | C28: ='Data_From Access 1721 A1'!#REF! ->  | D28: ='Data_From Access 1721 A1'!#REF! ->  | E28: ='Data_From Access 1721 A1'!#REF! ->  | F28: ='Data_From Access 1721 A1'!#REF! ->  | G28: ='Data_From Access 1721 A1'!#REF! ->  | H28: ='Data_From Access 1721 A1'!#REF! ->  | I28: ='Data_From Access 1721 A1'!#REF! ->  | J28: ='Data_From Access 1721 A1'!#REF! ->  | K28: ='Data_From Access 1721 A1'!#REF! ->  | L28: =IF(ISBLANK(transkasi[[#This Row],[GAJI POKOK]]),"",0.24%*transkasi[[#This Row],[GAJI POKOK]]) ->  | M28: =0.3%*transkasi[[#This Row],[GAJI POKOK]] ->  | N28: =SUM(transkasi[[#This Row],[GAJI POKOK]:[Jaminan Kematian/JK (0,3%)]]) ->  | O28: ='Data_From Access 1721 A1'!#REF! ->  | P28: ='Data_From Access 1721 A1'!#REF! ->  | Q28: ='Data_From Access 1721 A1'!#REF! ->  | R28: =IF(transkasi[[#This Row],[PENGHASILAN BRUTO]]*5%>=500000,500000,transkasi[[#This Row],[PENGHASILAN BRUTO]]*5%) ->  | S28: =2%*transkasi[[#This Row],[GAJI POKOK]] ->  | T28: =1%*transkasi[[#This Row],[GAJI POKOK]] ->  | U28: =SUM(transkasi[[#This Row],[BIAYA JABATAN PERBULAN 5%]:[Jaminan Pensiun (JP) dibayar Karyawan (1%)]]) ->  | V28: =transkasi[[#This Row],[PENGHASILAN BRUTO]]-transkasi[[#This Row],[Jumlah Pengurangan]] ->  | W28: =transkasi[[#This Row],[GAJI POKOK]] ->  | X28: =IFERROR(transkasi[[#This Row],[Penghasilan Netto(Bersih) sebulan]]*transkasi[[#This Row],[Masa Kerja]]+transkasi[[#This Row],[THR Setahun]],0) -> 0 | Y28: =IF(ISBLANK(transkasi[[#This Row],[NO]]),"",VLOOKUP(transkasi[[#This Row],[STATUS PTKP]],tarif_ptkp[],2,FALSE)) ->  | Z28: =IFERROR(transkasi[[#This Row],[Penghasilan NETTO (bersih) setahun]]-transkasi[[#This Row],[PTKP (Penghasilan tidak kena pajak) setahun]],0) -> 0 | AA28: =IF(transkasi[[#This Row],[PKP (Penghasilan kena pajak) setahun]]<=0,0,ROUNDDOWN(transkasi[[#This Row],[PKP (Penghasilan kena pajak) setahun]],-3)) -> 0 | AB28: ='Data_From Access 1721 A1'!#REF! ->  | AC28: ='Data_From Access 1721 A1'!#REF! ->  | AD28: ='Data_From Access 1721 A1'!#REF! ->  | AE28: ='Data_From Access 1721 A1'!#REF! ->  | AF28: ='Data_From Access 1721 A1'!#REF! ->  | AG28: =INT(transkasi[[#This Row],[5 %]]+transkasi[[#This Row],[15 %]]+transkasi[[#This Row],[25 %]]+transkasi[[#This Row],[30 %]]+transkasi[[#This Row],[30 %]]+transkasi[[#This Row],[35 %]]/1000*1000) ->  | AH28: ='Data_From Access 1721 A1'!#REF! ->  | AI28: ='Data_From Access 1721 A1'!#REF! ->  | AJ28: ='Data_From Access 1721 A1'!#REF! ->  | DC28: =INT(transkasi[[#This Row],[JUMLAH PPH PS.21 SETAHUN]]-transkasi[[#This Row],[Kredit Pajak YTDD Jan-Nov + THR]])/1000*1000 -> 
A29: ='Data_From Access 1721 A1'!#REF! ->  | B29: ='Data_From Access 1721 A1'!#REF! ->  | C29: ='Data_From Access 1721 A1'!#REF! ->  | D29: ='Data_From Access 1721 A1'!#REF! ->  | E29: ='Data_From Access 1721 A1'!#REF! ->  | F29: ='Data_From Access 1721 A1'!#REF! ->  | G29: ='Data_From Access 1721 A1'!#REF! ->  | H29: ='Data_From Access 1721 A1'!#REF! ->  | I29: ='Data_From Access 1721 A1'!#REF! ->  | J29: ='Data_From Access 1721 A1'!#REF! ->  | K29: ='Data_From Access 1721 A1'!#REF! ->  | L29: =IF(ISBLANK(transkasi[[#This Row],[GAJI POKOK]]),"",0.24%*transkasi[[#This Row],[GAJI POKOK]]) ->  | M29: =0.3%*transkasi[[#This Row],[GAJI POKOK]] ->  | N29: =SUM(transkasi[[#This Row],[GAJI POKOK]:[Jaminan Kematian/JK (0,3%)]]) ->  | O29: ='Data_From Access 1721 A1'!#REF! ->  | P29: ='Data_From Access 1721 A1'!#REF! ->  | Q29: ='Data_From Access 1721 A1'!#REF! ->  | R29: =IF(transkasi[[#This Row],[PENGHASILAN BRUTO]]*5%>=500000,500000,transkasi[[#This Row],[PENGHASILAN BRUTO]]*5%) ->  | S29: =2%*transkasi[[#This Row],[GAJI POKOK]] ->  | T29: =1%*transkasi[[#This Row],[GAJI POKOK]] ->  | U29: =SUM(transkasi[[#This Row],[BIAYA JABATAN PERBULAN 5%]:[Jaminan Pensiun (JP) dibayar Karyawan (1%)]]) ->  | V29: =transkasi[[#This Row],[PENGHASILAN BRUTO]]-transkasi[[#This Row],[Jumlah Pengurangan]] ->  | W29: =transkasi[[#This Row],[GAJI POKOK]] ->  | X29: =IFERROR(transkasi[[#This Row],[Penghasilan Netto(Bersih) sebulan]]*transkasi[[#This Row],[Masa Kerja]]+transkasi[[#This Row],[THR Setahun]],0) -> 0 | Y29: =IF(ISBLANK(transkasi[[#This Row],[NO]]),"",VLOOKUP(transkasi[[#This Row],[STATUS PTKP]],tarif_ptkp[],2,FALSE)) ->  | Z29: =IFERROR(transkasi[[#This Row],[Penghasilan NETTO (bersih) setahun]]-transkasi[[#This Row],[PTKP (Penghasilan tidak kena pajak) setahun]],0) -> 0 | AA29: =IF(transkasi[[#This Row],[PKP (Penghasilan kena pajak) setahun]]<=0,0,ROUNDDOWN(transkasi[[#This Row],[PKP (Penghasilan kena pajak) setahun]],-3)) -> 0 | AB29: ='Data_From Access 1721 A1'!#REF! ->  | AC29: ='Data_From Access 1721 A1'!#REF! ->  | AD29: ='Data_From Access 1721 A1'!#REF! ->  | AE29: ='Data_From Access 1721 A1'!#REF! ->  | AF29: ='Data_From Access 1721 A1'!#REF! ->  | AG29: =INT(transkasi[[#This Row],[5 %]]+transkasi[[#This Row],[15 %]]+transkasi[[#This Row],[25 %]]+transkasi[[#This Row],[30 %]]+transkasi[[#This Row],[30 %]]+transkasi[[#This Row],[35 %]]/1000*1000) ->  | AH29: ='Data_From Access 1721 A1'!#REF! ->  | AI29: ='Data_From Access 1721 A1'!#REF! ->  | AJ29: ='Data_From Access 1721 A1'!#REF! ->  | DC29: =INT(transkasi[[#This Row],[JUMLAH PPH PS.21 SETAHUN]]-transkasi[[#This Row],[Kredit Pajak YTDD Jan-Nov + THR]])/1000*1000 -> 
A30: ='Data_From Access 1721 A1'!A16 ->  | B30: ='Data_From Access 1721 A1'!D16 -> 0 | C30: ='Data_From Access 1721 A1'!G16 -> 0 | D30: ='Data_From Access 1721 A1'!I16 -> 0 | E30: ='Data_From Access 1721 A1'!B16 -> 0 | F30: ='Data_From Access 1721 A1'!C16 -> 0 | G30: ='Data_From Access 1721 A1'!E16 -> 0 | H30: ='Data_From Access 1721 A1'!H16 -> 0 | I30: ='Data_From Access 1721 A1'!F16 -> 0 | J30: ='Data_From Access 1721 A1'!J16 -> 0 | K30: ='Data_From Access 1721 A1'!K16 -> 0 | L30: =IF(ISBLANK(transkasi[[#This Row],[GAJI POKOK]]),"",0.24%*transkasi[[#This Row],[GAJI POKOK]]) -> 0 | M30: =0.3%*transkasi[[#This Row],[GAJI POKOK]] -> 0 | N30: =SUM(transkasi[[#This Row],[GAJI POKOK]:[Jaminan Kematian/JK (0,3%)]]) -> 0 | O30: ='Data_From Access 1721 A1'!L16 -> 00:00:00 | P30: ='Data_From Access 1721 A1'!M16 -> 00:00:00 | Q30: ='Data_From Access 1721 A1'!N16 -> 0 | R30: =IF(transkasi[[#This Row],[PENGHASILAN BRUTO]]*5%>=500000,500000,transkasi[[#This Row],[PENGHASILAN BRUTO]]*5%) -> 0 | S30: =2%*transkasi[[#This Row],[GAJI POKOK]] -> 0 | T30: =1%*transkasi[[#This Row],[GAJI POKOK]] -> 0 | U30: =SUM(transkasi[[#This Row],[BIAYA JABATAN PERBULAN 5%]:[Jaminan Pensiun (JP) dibayar Karyawan (1%)]]) -> 0 | V30: =transkasi[[#This Row],[PENGHASILAN BRUTO]]-transkasi[[#This Row],[Jumlah Pengurangan]] -> 0 | W30: =transkasi[[#This Row],[GAJI POKOK]] -> 0 | X30: =IFERROR(transkasi[[#This Row],[Penghasilan Netto(Bersih) sebulan]]*transkasi[[#This Row],[Masa Kerja]]+transkasi[[#This Row],[THR Setahun]],0) -> 0 | Y30: =IF(ISBLANK(transkasi[[#This Row],[NO]]),"",VLOOKUP(transkasi[[#This Row],[STATUS PTKP]],tarif_ptkp[],2,FALSE)) ->  | Z30: =IFERROR(transkasi[[#This Row],[Penghasilan NETTO (bersih) setahun]]-transkasi[[#This Row],[PTKP (Penghasilan tidak kena pajak) setahun]],0) -> 0 | AA30: =IF(transkasi[[#This Row],[PKP (Penghasilan kena pajak) setahun]]<=0,0,ROUNDDOWN(transkasi[[#This Row],[PKP (Penghasilan kena pajak) setahun]],-3)) -> 0 | AB30: ='Data_From Access 1721 A1'!O16 -> 0 | AC30: ='Data_From Access 1721 A1'!P16 -> 0 | AD30: ='Data_From Access 1721 A1'!Q16 -> 0 | AE30: ='Data_From Access 1721 A1'!R16 -> 0 | AF30: ='Data_From Access 1721 A1'!S16 -> 0 | AG30: =INT(transkasi[[#This Row],[5 %]]+transkasi[[#This Row],[15 %]]+transkasi[[#This Row],[25 %]]+transkasi[[#This Row],[30 %]]+transkasi[[#This Row],[30 %]]+transkasi[[#This Row],[35 %]]/1000*1000) -> 0 | AH30: ='Data_From Access 1721 A1'!T16 -> 0 | AI30: ='Data_From Access 1721 A1'!U16 -> 0 | AJ30: ='Data_From Access 1721 A1'!V16 -> 0 | AK30: 0 | DC30: =INT(transkasi[[#This Row],[JUMLAH PPH PS.21 SETAHUN]]-transkasi[[#This Row],[Kredit Pajak YTDD Jan-Nov + THR]])/1000*1000 -> 0
A31: ='Data_From Access 1721 A1'!A17 ->  | B31: ='Data_From Access 1721 A1'!D17 -> 0 | C31: ='Data_From Access 1721 A1'!G17 -> 0 | D31: ='Data_From Access 1721 A1'!I17 -> 0 | E31: ='Data_From Access 1721 A1'!B17 -> 0 | F31: ='Data_From Access 1721 A1'!C17 -> 0 | G31: ='Data_From Access 1721 A1'!E17 -> 0 | H31: ='Data_From Access 1721 A1'!H17 -> 0 | I31: ='Data_From Access 1721 A1'!F17 -> 0 | J31: ='Data_From Access 1721 A1'!J17 -> 0 | K31: ='Data_From Access 1721 A1'!K17 -> 0 | L31: =IF(ISBLANK(transkasi[[#This Row],[GAJI POKOK]]),"",0.24%*transkasi[[#This Row],[GAJI POKOK]]) -> 0 | M31: =0.3%*transkasi[[#This Row],[GAJI POKOK]] -> 0 | N31: =SUM(transkasi[[#This Row],[GAJI POKOK]:[Jaminan Kematian/JK (0,3%)]]) -> 0 | O31: ='Data_From Access 1721 A1'!L17 -> 00:00:00 | P31: ='Data_From Access 1721 A1'!M17 -> 00:00:00 | Q31: ='Data_From Access 1721 A1'!N17 -> 0 | R31: =IF(transkasi[[#This Row],[PENGHASILAN BRUTO]]*5%>=500000,500000,transkasi[[#This Row],[PENGHASILAN BRUTO]]*5%) -> 0 | S31: =2%*transkasi[[#This Row],[GAJI POKOK]] -> 0 | T31: =1%*transkasi[[#This Row],[GAJI POKOK]] -> 0 | U31: =SUM(transkasi[[#This Row],[BIAYA JABATAN PERBULAN 5%]:[Jaminan Pensiun (JP) dibayar Karyawan (1%)]]) -> 0 | V31: =transkasi[[#This Row],[PENGHASILAN BRUTO]]-transkasi[[#This Row],[Jumlah Pengurangan]] -> 0 | W31: =transkasi[[#This Row],[GAJI POKOK]] -> 0 | X31: =IFERROR(transkasi[[#This Row],[Penghasilan Netto(Bersih) sebulan]]*transkasi[[#This Row],[Masa Kerja]]+transkasi[[#This Row],[THR Setahun]],0) -> 0 | Y31: =IF(ISBLANK(transkasi[[#This Row],[NO]]),"",VLOOKUP(transkasi[[#This Row],[STATUS PTKP]],tarif_ptkp[],2,FALSE)) ->  | Z31: =IFERROR(transkasi[[#This Row],[Penghasilan NETTO (bersih) setahun]]-transkasi[[#This Row],[PTKP (Penghasilan tidak kena pajak) setahun]],0) -> 0 | AA31: =IF(transkasi[[#This Row],[PKP (Penghasilan kena pajak) setahun]]<=0,0,ROUNDDOWN(transkasi[[#This Row],[PKP (Penghasilan kena pajak) setahun]],-3)) -> 0 | AB31: ='Data_From Access 1721 A1'!O17 -> 0 | AC31: ='Data_From Access 1721 A1'!P17 -> 0 | AD31: ='Data_From Access 1721 A1'!Q17 -> 0 | AE31: ='Data_From Access 1721 A1'!R17 -> 0 | AF31: ='Data_From Access 1721 A1'!S17 -> 0 | AG31: =INT(transkasi[[#This Row],[5 %]]+transkasi[[#This Row],[15 %]]+transkasi[[#This Row],[25 %]]+transkasi[[#This Row],[30 %]]+transkasi[[#This Row],[30 %]]+transkasi[[#This Row],[35 %]]/1000*1000) -> 0 | AH31: ='Data_From Access 1721 A1'!T17 -> 0 | AI31: ='Data_From Access 1721 A1'!U17 -> 0 | AJ31: ='Data_From Access 1721 A1'!V17 -> 0 | AK31: 0 | DC31: =INT(transkasi[[#This Row],[JUMLAH PPH PS.21 SETAHUN]]-transkasi[[#This Row],[Kredit Pajak YTDD Jan-Nov + THR]])/1000*1000 -> 0
A32: ='Data_From Access 1721 A1'!A18 ->  | B32: ='Data_From Access 1721 A1'!D18 -> 0 | C32: ='Data_From Access 1721 A1'!G18 -> 0 | D32: ='Data_From Access 1721 A1'!I18 -> 0 | E32: ='Data_From Access 1721 A1'!B18 -> 0 | F32: ='Data_From Access 1721 A1'!C18 -> 0 | G32: ='Data_From Access 1721 A1'!E18 -> 0 | H32: ='Data_From Access 1721 A1'!H18 -> 0 | I32: ='Data_From Access 1721 A1'!F18 -> 0 | J32: ='Data_From Access 1721 A1'!J18 -> 0 | K32: ='Data_From Access 1721 A1'!K18 -> 0 | L32: =IF(ISBLANK(transkasi[[#This Row],[GAJI POKOK]]),"",0.24%*transkasi[[#This Row],[GAJI POKOK]]) -> 0 | M32: =0.3%*transkasi[[#This Row],[GAJI POKOK]] -> 0 | N32: =SUM(transkasi[[#This Row],[GAJI POKOK]:[Jaminan Kematian/JK (0,3%)]]) -> 0 | O32: ='Data_From Access 1721 A1'!L18 -> 00:00:00 | P32: ='Data_From Access 1721 A1'!M18 -> 00:00:00 | Q32: ='Data_From Access 1721 A1'!N18 -> 0 | R32: =IF(transkasi[[#This Row],[PENGHASILAN BRUTO]]*5%>=500000,500000,transkasi[[#This Row],[PENGHASILAN BRUTO]]*5%) -> 0 | S32: =2%*transkasi[[#This Row],[GAJI POKOK]] -> 0 | T32: =1%*transkasi[[#This Row],[GAJI POKOK]] -> 0 | U32: =SUM(transkasi[[#This Row],[BIAYA JABATAN PERBULAN 5%]:[Jaminan Pensiun (JP) dibayar Karyawan (1%)]]) -> 0 | V32: =transkasi[[#This Row],[PENGHASILAN BRUTO]]-transkasi[[#This Row],[Jumlah Pengurangan]] -> 0 | W32: =transkasi[[#This Row],[GAJI POKOK]] -> 0 | X32: =IFERROR(transkasi[[#This Row],[Penghasilan Netto(Bersih) sebulan]]*transkasi[[#This Row],[Masa Kerja]]+transkasi[[#This Row],[THR Setahun]],0) -> 0 | Y32: =IF(ISBLANK(transkasi[[#This Row],[NO]]),"",VLOOKUP(transkasi[[#This Row],[STATUS PTKP]],tarif_ptkp[],2,FALSE)) ->  | Z32: =IFERROR(transkasi[[#This Row],[Penghasilan NETTO (bersih) setahun]]-transkasi[[#This Row],[PTKP (Penghasilan tidak kena pajak) setahun]],0) -> 0 | AA32: =IF(transkasi[[#This Row],[PKP (Penghasilan kena pajak) setahun]]<=0,0,ROUNDDOWN(transkasi[[#This Row],[PKP (Penghasilan kena pajak) setahun]],-3)) -> 0 | AB32: ='Data_From Access 1721 A1'!O18 -> 0 | AC32: ='Data_From Access 1721 A1'!P18 -> 0 | AD32: ='Data_From Access 1721 A1'!Q18 -> 0 | AE32: ='Data_From Access 1721 A1'!R18 -> 0 | AF32: ='Data_From Access 1721 A1'!S18 -> 0 | AG32: =INT(transkasi[[#This Row],[5 %]]+transkasi[[#This Row],[15 %]]+transkasi[[#This Row],[25 %]]+transkasi[[#This Row],[30 %]]+transkasi[[#This Row],[30 %]]+transkasi[[#This Row],[35 %]]/1000*1000) -> 0 | AH32: ='Data_From Access 1721 A1'!T18 -> 0 | AI32: ='Data_From Access 1721 A1'!U18 -> 0 | AJ32: ='Data_From Access 1721 A1'!V18 -> 0 | AK32: 0 | DC32: =INT(transkasi[[#This Row],[JUMLAH PPH PS.21 SETAHUN]]-transkasi[[#This Row],[Kredit Pajak YTDD Jan-Nov + THR]])/1000*1000 -> 0
A33: ='Data_From Access 1721 A1'!A19 ->  | B33: ='Data_From Access 1721 A1'!D19 -> 0 | C33: ='Data_From Access 1721 A1'!G19 -> 0 | D33: ='Data_From Access 1721 A1'!I19 -> 0 | E33: ='Data_From Access 1721 A1'!B19 -> 0 | F33: ='Data_From Access 1721 A1'!C19 -> 0 | G33: ='Data_From Access 1721 A1'!E19 -> 0 | H33: ='Data_From Access 1721 A1'!H19 -> 0 | I33: ='Data_From Access 1721 A1'!F19 -> 0 | J33: ='Data_From Access 1721 A1'!J19 -> 0 | K33: ='Data_From Access 1721 A1'!K19 -> 0 | L33: =IF(ISBLANK(transkasi[[#This Row],[GAJI POKOK]]),"",0.24%*transkasi[[#This Row],[GAJI POKOK]]) -> 0 | M33: =0.3%*transkasi[[#This Row],[GAJI POKOK]] -> 0 | N33: =SUM(transkasi[[#This Row],[GAJI POKOK]:[Jaminan Kematian/JK (0,3%)]]) -> 0 | O33: ='Data_From Access 1721 A1'!L19 -> 00:00:00 | P33: ='Data_From Access 1721 A1'!M19 -> 00:00:00 | Q33: ='Data_From Access 1721 A1'!N19 -> 0 | R33: =IF(transkasi[[#This Row],[PENGHASILAN BRUTO]]*5%>=500000,500000,transkasi[[#This Row],[PENGHASILAN BRUTO]]*5%) -> 0 | S33: =2%*transkasi[[#This Row],[GAJI POKOK]] -> 0 | T33: =1%*transkasi[[#This Row],[GAJI POKOK]] -> 0 | U33: =SUM(transkasi[[#This Row],[BIAYA JABATAN PERBULAN 5%]:[Jaminan Pensiun (JP) dibayar Karyawan (1%)]]) -> 0 | V33: =transkasi[[#This Row],[PENGHASILAN BRUTO]]-transkasi[[#This Row],[Jumlah Pengurangan]] -> 0 | W33: =transkasi[[#This Row],[GAJI POKOK]] -> 0 | X33: =IFERROR(transkasi[[#This Row],[Penghasilan Netto(Bersih) sebulan]]*transkasi[[#This Row],[Masa Kerja]]+transkasi[[#This Row],[THR Setahun]],0) -> 0 | Y33: =IF(ISBLANK(transkasi[[#This Row],[NO]]),"",VLOOKUP(transkasi[[#This Row],[STATUS PTKP]],tarif_ptkp[],2,FALSE)) ->  | Z33: =IFERROR(transkasi[[#This Row],[Penghasilan NETTO (bersih) setahun]]-transkasi[[#This Row],[PTKP (Penghasilan tidak kena pajak) setahun]],0) -> 0 | AA33: =IF(transkasi[[#This Row],[PKP (Penghasilan kena pajak) setahun]]<=0,0,ROUNDDOWN(transkasi[[#This Row],[PKP (Penghasilan kena pajak) setahun]],-3)) -> 0 | AB33: ='Data_From Access 1721 A1'!O19 -> 0 | AC33: ='Data_From Access 1721 A1'!P19 -> 0 | AD33: ='Data_From Access 1721 A1'!Q19 -> 0 | AE33: ='Data_From Access 1721 A1'!R19 -> 0 | AF33: ='Data_From Access 1721 A1'!S19 -> 0 | AG33: =INT(transkasi[[#This Row],[5 %]]+transkasi[[#This Row],[15 %]]+transkasi[[#This Row],[25 %]]+transkasi[[#This Row],[30 %]]+transkasi[[#This Row],[30 %]]+transkasi[[#This Row],[35 %]]/1000*1000) -> 0 | AH33: ='Data_From Access 1721 A1'!T19 -> 0 | AI33: ='Data_From Access 1721 A1'!U19 -> 0 | AJ33: ='Data_From Access 1721 A1'!V19 -> 0 | AK33: 0 | DC33: =INT(transkasi[[#This Row],[JUMLAH PPH PS.21 SETAHUN]]-transkasi[[#This Row],[Kredit Pajak YTDD Jan-Nov + THR]])/1000*1000 -> 0
A34: ='Data_From Access 1721 A1'!A20 ->  | B34: ='Data_From Access 1721 A1'!D20 -> 0 | C34: ='Data_From Access 1721 A1'!G20 -> 0 | D34: ='Data_From Access 1721 A1'!I20 -> 0 | E34: ='Data_From Access 1721 A1'!B20 -> 0 | F34: ='Data_From Access 1721 A1'!C20 -> 0 | G34: ='Data_From Access 1721 A1'!E20 -> 0 | H34: ='Data_From Access 1721 A1'!H20 -> 0 | I34: ='Data_From Access 1721 A1'!F20 -> 0 | J34: ='Data_From Access 1721 A1'!J20 -> 0 | K34: ='Data_From Access 1721 A1'!K20 -> 0 | L34: =IF(ISBLANK(transkasi[[#This Row],[GAJI POKOK]]),"",0.24%*transkasi[[#This Row],[GAJI POKOK]]) -> 0 | M34: =0.3%*transkasi[[#This Row],[GAJI POKOK]] -> 0 | N34: =SUM(transkasi[[#This Row],[GAJI POKOK]:[Jaminan Kematian/JK (0,3%)]]) -> 0 | O34: ='Data_From Access 1721 A1'!L20 -> 00:00:00 | P34: ='Data_From Access 1721 A1'!M20 -> 00:00:00 | Q34: ='Data_From Access 1721 A1'!N20 -> 0 | R34: =IF(transkasi[[#This Row],[PENGHASILAN BRUTO]]*5%>=500000,500000,transkasi[[#This Row],[PENGHASILAN BRUTO]]*5%) -> 0 | S34: =2%*transkasi[[#This Row],[GAJI POKOK]] -> 0 | T34: =1%*transkasi[[#This Row],[GAJI POKOK]] -> 0 | U34: =SUM(transkasi[[#This Row],[BIAYA JABATAN PERBULAN 5%]:[Jaminan Pensiun (JP) dibayar Karyawan (1%)]]) -> 0 | V34: =transkasi[[#This Row],[PENGHASILAN BRUTO]]-transkasi[[#This Row],[Jumlah Pengurangan]] -> 0 | W34: =transkasi[[#This Row],[GAJI POKOK]] -> 0 | X34: =IFERROR(transkasi[[#This Row],[Penghasilan Netto(Bersih) sebulan]]*transkasi[[#This Row],[Masa Kerja]]+transkasi[[#This Row],[THR Setahun]],0) -> 0 | Y34: =IF(ISBLANK(transkasi[[#This Row],[NO]]),"",VLOOKUP(transkasi[[#This Row],[STATUS PTKP]],tarif_ptkp[],2,FALSE)) ->  | Z34: =IFERROR(transkasi[[#This Row],[Penghasilan NETTO (bersih) setahun]]-transkasi[[#This Row],[PTKP (Penghasilan tidak kena pajak) setahun]],0) -> 0 | AA34: =IF(transkasi[[#This Row],[PKP (Penghasilan kena pajak) setahun]]<=0,0,ROUNDDOWN(transkasi[[#This Row],[PKP (Penghasilan kena pajak) setahun]],-3)) -> 0 | AB34: ='Data_From Access 1721 A1'!O20 -> 0 | AC34: ='Data_From Access 1721 A1'!P20 -> 0 | AD34: ='Data_From Access 1721 A1'!Q20 -> 0 | AE34: ='Data_From Access 1721 A1'!R20 -> 0 | AF34: ='Data_From Access 1721 A1'!S20 -> 0 | AG34: =INT(transkasi[[#This Row],[5 %]]+transkasi[[#This Row],[15 %]]+transkasi[[#This Row],[25 %]]+transkasi[[#This Row],[30 %]]+transkasi[[#This Row],[30 %]]+transkasi[[#This Row],[35 %]]/1000*1000) -> 0 | AH34: ='Data_From Access 1721 A1'!T20 -> 0 | AI34: ='Data_From Access 1721 A1'!U20 -> 0 | AJ34: ='Data_From Access 1721 A1'!V20 -> 0 | AK34: 0 | DC34: =INT(transkasi[[#This Row],[JUMLAH PPH PS.21 SETAHUN]]-transkasi[[#This Row],[Kredit Pajak YTDD Jan-Nov + THR]])/1000*1000 -> 0
A35: ='Data_From Access 1721 A1'!A21 ->  | B35: ='Data_From Access 1721 A1'!D21 -> 0 | C35: ='Data_From Access 1721 A1'!G21 -> 0 | D35: ='Data_From Access 1721 A1'!I21 -> 0 | E35: ='Data_From Access 1721 A1'!B21 -> 0 | F35: ='Data_From Access 1721 A1'!C21 -> 0 | G35: ='Data_From Access 1721 A1'!E21 -> 0 | H35: ='Data_From Access 1721 A1'!H21 -> 0 | I35: ='Data_From Access 1721 A1'!F21 -> 0 | J35: ='Data_From Access 1721 A1'!J21 -> 0 | K35: ='Data_From Access 1721 A1'!K21 -> 0 | L35: =IF(ISBLANK(transkasi[[#This Row],[GAJI POKOK]]),"",0.24%*transkasi[[#This Row],[GAJI POKOK]]) -> 0 | M35: =0.3%*transkasi[[#This Row],[GAJI POKOK]] -> 0 | N35: =SUM(transkasi[[#This Row],[GAJI POKOK]:[Jaminan Kematian/JK (0,3%)]]) -> 0 | O35: ='Data_From Access 1721 A1'!L21 -> 00:00:00 | P35: ='Data_From Access 1721 A1'!M21 -> 00:00:00 | Q35: ='Data_From Access 1721 A1'!N21 -> 0 | R35: =IF(transkasi[[#This Row],[PENGHASILAN BRUTO]]*5%>=500000,500000,transkasi[[#This Row],[PENGHASILAN BRUTO]]*5%) -> 0 | S35: =2%*transkasi[[#This Row],[GAJI POKOK]] -> 0 | T35: =1%*transkasi[[#This Row],[GAJI POKOK]] -> 0 | U35: =SUM(transkasi[[#This Row],[BIAYA JABATAN PERBULAN 5%]:[Jaminan Pensiun (JP) dibayar Karyawan (1%)]]) -> 0 | V35: =transkasi[[#This Row],[PENGHASILAN BRUTO]]-transkasi[[#This Row],[Jumlah Pengurangan]] -> 0 | W35: =transkasi[[#This Row],[GAJI POKOK]] -> 0 | X35: =IFERROR(transkasi[[#This Row],[Penghasilan Netto(Bersih) sebulan]]*transkasi[[#This Row],[Masa Kerja]]+transkasi[[#This Row],[THR Setahun]],0) -> 0 | Y35: =IF(ISBLANK(transkasi[[#This Row],[NO]]),"",VLOOKUP(transkasi[[#This Row],[STATUS PTKP]],tarif_ptkp[],2,FALSE)) ->  | Z35: =IFERROR(transkasi[[#This Row],[Penghasilan NETTO (bersih) setahun]]-transkasi[[#This Row],[PTKP (Penghasilan tidak kena pajak) setahun]],0) -> 0 | AA35: =IF(transkasi[[#This Row],[PKP (Penghasilan kena pajak) setahun]]<=0,0,ROUNDDOWN(transkasi[[#This Row],[PKP (Penghasilan kena pajak) setahun]],-3)) -> 0 | AB35: ='Data_From Access 1721 A1'!O21 -> 0 | AC35: ='Data_From Access 1721 A1'!P21 -> 0 | AD35: ='Data_From Access 1721 A1'!Q21 -> 0 | AE35: ='Data_From Access 1721 A1'!R21 -> 0 | AF35: ='Data_From Access 1721 A1'!S21 -> 0 | AG35: =INT(transkasi[[#This Row],[5 %]]+transkasi[[#This Row],[15 %]]+transkasi[[#This Row],[25 %]]+transkasi[[#This Row],[30 %]]+transkasi[[#This Row],[30 %]]+transkasi[[#This Row],[35 %]]/1000*1000) -> 0 | AH35: ='Data_From Access 1721 A1'!T21 -> 0 | AI35: ='Data_From Access 1721 A1'!U21 -> 0 | AJ35: ='Data_From Access 1721 A1'!V21 -> 0 | AK35: 0 | DC35: =INT(transkasi[[#This Row],[JUMLAH PPH PS.21 SETAHUN]]-transkasi[[#This Row],[Kredit Pajak YTDD Jan-Nov + THR]])/1000*1000 -> 0
A36: ='Data_From Access 1721 A1'!A22 ->  | B36: ='Data_From Access 1721 A1'!D22 -> 0 | C36: ='Data_From Access 1721 A1'!G22 -> 0 | D36: ='Data_From Access 1721 A1'!I22 -> 0 | E36: ='Data_From Access 1721 A1'!B22 -> 0 | F36: ='Data_From Access 1721 A1'!C22 -> 0 | G36: ='Data_From Access 1721 A1'!E22 -> 0 | H36: ='Data_From Access 1721 A1'!H22 -> 0 | I36: ='Data_From Access 1721 A1'!F22 -> 0 | J36: ='Data_From Access 1721 A1'!J22 -> 0 | K36: ='Data_From Access 1721 A1'!K22 -> 0 | L36: =IF(ISBLANK(transkasi[[#This Row],[GAJI POKOK]]),"",0.24%*transkasi[[#This Row],[GAJI POKOK]]) -> 0 | M36: =0.3%*transkasi[[#This Row],[GAJI POKOK]] -> 0 | N36: =SUM(transkasi[[#This Row],[GAJI POKOK]:[Jaminan Kematian/JK (0,3%)]]) -> 0 | O36: ='Data_From Access 1721 A1'!L22 -> 00:00:00 | P36: ='Data_From Access 1721 A1'!M22 -> 00:00:00 | Q36: ='Data_From Access 1721 A1'!N22 -> 0 | R36: =IF(transkasi[[#This Row],[PENGHASILAN BRUTO]]*5%>=500000,500000,transkasi[[#This Row],[PENGHASILAN BRUTO]]*5%) -> 0 | S36: =2%*transkasi[[#This Row],[GAJI POKOK]] -> 0 | T36: =1%*transkasi[[#This Row],[GAJI POKOK]] -> 0 | U36: =SUM(transkasi[[#This Row],[BIAYA JABATAN PERBULAN 5%]:[Jaminan Pensiun (JP) dibayar Karyawan (1%)]]) -> 0 | V36: =transkasi[[#This Row],[PENGHASILAN BRUTO]]-transkasi[[#This Row],[Jumlah Pengurangan]] -> 0 | W36: =transkasi[[#This Row],[GAJI POKOK]] -> 0 | X36: =IFERROR(transkasi[[#This Row],[Penghasilan Netto(Bersih) sebulan]]*transkasi[[#This Row],[Masa Kerja]]+transkasi[[#This Row],[THR Setahun]],0) -> 0 | Y36: =IF(ISBLANK(transkasi[[#This Row],[NO]]),"",VLOOKUP(transkasi[[#This Row],[STATUS PTKP]],tarif_ptkp[],2,FALSE)) ->  | Z36: =IFERROR(transkasi[[#This Row],[Penghasilan NETTO (bersih) setahun]]-transkasi[[#This Row],[PTKP (Penghasilan tidak kena pajak) setahun]],0) -> 0 | AA36: =IF(transkasi[[#This Row],[PKP (Penghasilan kena pajak) setahun]]<=0,0,ROUNDDOWN(transkasi[[#This Row],[PKP (Penghasilan kena pajak) setahun]],-3)) -> 0 | AB36: ='Data_From Access 1721 A1'!O22 -> 0 | AC36: ='Data_From Access 1721 A1'!P22 -> 0 | AD36: ='Data_From Access 1721 A1'!Q22 -> 0 | AE36: ='Data_From Access 1721 A1'!R22 -> 0 | AF36: ='Data_From Access 1721 A1'!S22 -> 0 | AG36: =INT(transkasi[[#This Row],[5 %]]+transkasi[[#This Row],[15 %]]+transkasi[[#This Row],[25 %]]+transkasi[[#This Row],[30 %]]+transkasi[[#This Row],[30 %]]+transkasi[[#This Row],[35 %]]/1000*1000) -> 0 | AH36: ='Data_From Access 1721 A1'!T22 -> 0 | AI36: ='Data_From Access 1721 A1'!U22 -> 0 | AJ36: ='Data_From Access 1721 A1'!V22 -> 0 | AK36: 0 | DC36: =INT(transkasi[[#This Row],[JUMLAH PPH PS.21 SETAHUN]]-transkasi[[#This Row],[Kredit Pajak YTDD Jan-Nov + THR]])/1000*1000 -> 0
A37: ='Data_From Access 1721 A1'!A23 ->  | B37: ='Data_From Access 1721 A1'!D23 -> 0 | C37: ='Data_From Access 1721 A1'!G23 -> 0 | D37: ='Data_From Access 1721 A1'!I23 -> 0 | E37: ='Data_From Access 1721 A1'!B23 -> 0 | F37: ='Data_From Access 1721 A1'!C23 -> 0 | G37: ='Data_From Access 1721 A1'!E23 -> 0 | H37: ='Data_From Access 1721 A1'!H23 -> 0 | I37: ='Data_From Access 1721 A1'!F23 -> 0 | J37: ='Data_From Access 1721 A1'!J23 -> 0 | K37: ='Data_From Access 1721 A1'!K23 -> 0 | L37: =IF(ISBLANK(transkasi[[#This Row],[GAJI POKOK]]),"",0.24%*transkasi[[#This Row],[GAJI POKOK]]) -> 0 | M37: =0.3%*transkasi[[#This Row],[GAJI POKOK]] -> 0 | N37: =SUM(transkasi[[#This Row],[GAJI POKOK]:[Jaminan Kematian/JK (0,3%)]]) -> 0 | O37: ='Data_From Access 1721 A1'!L23 -> 00:00:00 | P37: ='Data_From Access 1721 A1'!M23 -> 00:00:00 | Q37: ='Data_From Access 1721 A1'!N23 -> 0 | R37: =IF(transkasi[[#This Row],[PENGHASILAN BRUTO]]*5%>=500000,500000,transkasi[[#This Row],[PENGHASILAN BRUTO]]*5%) -> 0 | S37: =2%*transkasi[[#This Row],[GAJI POKOK]] -> 0 | T37: =1%*transkasi[[#This Row],[GAJI POKOK]] -> 0 | U37: =SUM(transkasi[[#This Row],[BIAYA JABATAN PERBULAN 5%]:[Jaminan Pensiun (JP) dibayar Karyawan (1%)]]) -> 0 | V37: =transkasi[[#This Row],[PENGHASILAN BRUTO]]-transkasi[[#This Row],[Jumlah Pengurangan]] -> 0 | W37: =transkasi[[#This Row],[GAJI POKOK]] -> 0 | X37: =IFERROR(transkasi[[#This Row],[Penghasilan Netto(Bersih) sebulan]]*transkasi[[#This Row],[Masa Kerja]]+transkasi[[#This Row],[THR Setahun]],0) -> 0 | Y37: =IF(ISBLANK(transkasi[[#This Row],[NO]]),"",VLOOKUP(transkasi[[#This Row],[STATUS PTKP]],tarif_ptkp[],2,FALSE)) ->  | Z37: =IFERROR(transkasi[[#This Row],[Penghasilan NETTO (bersih) setahun]]-transkasi[[#This Row],[PTKP (Penghasilan tidak kena pajak) setahun]],0) -> 0 | AA37: =IF(transkasi[[#This Row],[PKP (Penghasilan kena pajak) setahun]]<=0,0,ROUNDDOWN(transkasi[[#This Row],[PKP (Penghasilan kena pajak) setahun]],-3)) -> 0 | AB37: ='Data_From Access 1721 A1'!O23 -> 0 | AC37: ='Data_From Access 1721 A1'!P23 -> 0 | AD37: ='Data_From Access 1721 A1'!Q23 -> 0 | AE37: ='Data_From Access 1721 A1'!R23 -> 0 | AF37: ='Data_From Access 1721 A1'!S23 -> 0 | AG37: =INT(transkasi[[#This Row],[5 %]]+transkasi[[#This Row],[15 %]]+transkasi[[#This Row],[25 %]]+transkasi[[#This Row],[30 %]]+transkasi[[#This Row],[30 %]]+transkasi[[#This Row],[35 %]]/1000*1000) -> 0 | AH37: ='Data_From Access 1721 A1'!T23 -> 0 | AI37: ='Data_From Access 1721 A1'!U23 -> 0 | AJ37: ='Data_From Access 1721 A1'!V23 -> 0 | AK37: 0 | DC37: =INT(transkasi[[#This Row],[JUMLAH PPH PS.21 SETAHUN]]-transkasi[[#This Row],[Kredit Pajak YTDD Jan-Nov + THR]])/1000*1000 -> 0
A38: ='Data_From Access 1721 A1'!A24 ->  | B38: ='Data_From Access 1721 A1'!D24 -> 0 | C38: ='Data_From Access 1721 A1'!G24 -> 0 | D38: ='Data_From Access 1721 A1'!I24 -> 0 | E38: ='Data_From Access 1721 A1'!B24 -> 0 | F38: ='Data_From Access 1721 A1'!C24 -> 0 | G38: ='Data_From Access 1721 A1'!E24 -> 0 | H38: ='Data_From Access 1721 A1'!H24 -> 0 | I38: ='Data_From Access 1721 A1'!F24 -> 0 | J38: ='Data_From Access 1721 A1'!J24 -> 0 | K38: ='Data_From Access 1721 A1'!K24 -> 0 | L38: =IF(ISBLANK(transkasi[[#This Row],[GAJI POKOK]]),"",0.24%*transkasi[[#This Row],[GAJI POKOK]]) -> 0 | M38: =0.3%*transkasi[[#This Row],[GAJI POKOK]] -> 0 | N38: =SUM(transkasi[[#This Row],[GAJI POKOK]:[Jaminan Kematian/JK (0,3%)]]) -> 0 | O38: ='Data_From Access 1721 A1'!L24 -> 00:00:00 | P38: ='Data_From Access 1721 A1'!M24 -> 00:00:00 | Q38: ='Data_From Access 1721 A1'!N24 -> 0 | R38: =IF(transkasi[[#This Row],[PENGHASILAN BRUTO]]*5%>=500000,500000,transkasi[[#This Row],[PENGHASILAN BRUTO]]*5%) -> 0 | S38: =2%*transkasi[[#This Row],[GAJI POKOK]] -> 0 | T38: =1%*transkasi[[#This Row],[GAJI POKOK]] -> 0 | U38: =SUM(transkasi[[#This Row],[BIAYA JABATAN PERBULAN 5%]:[Jaminan Pensiun (JP) dibayar Karyawan (1%)]]) -> 0 | V38: =transkasi[[#This Row],[PENGHASILAN BRUTO]]-transkasi[[#This Row],[Jumlah Pengurangan]] -> 0 | W38: =transkasi[[#This Row],[GAJI POKOK]] -> 0 | X38: =IFERROR(transkasi[[#This Row],[Penghasilan Netto(Bersih) sebulan]]*transkasi[[#This Row],[Masa Kerja]]+transkasi[[#This Row],[THR Setahun]],0) -> 0 | Y38: =IF(ISBLANK(transkasi[[#This Row],[NO]]),"",VLOOKUP(transkasi[[#This Row],[STATUS PTKP]],tarif_ptkp[],2,FALSE)) ->  | Z38: =IFERROR(transkasi[[#This Row],[Penghasilan NETTO (bersih) setahun]]-transkasi[[#This Row],[PTKP (Penghasilan tidak kena pajak) setahun]],0) -> 0 | AA38: =IF(transkasi[[#This Row],[PKP (Penghasilan kena pajak) setahun]]<=0,0,ROUNDDOWN(transkasi[[#This Row],[PKP (Penghasilan kena pajak) setahun]],-3)) -> 0 | AB38: ='Data_From Access 1721 A1'!O24 -> 0 | AC38: ='Data_From Access 1721 A1'!P24 -> 0 | AD38: ='Data_From Access 1721 A1'!Q24 -> 0 | AE38: ='Data_From Access 1721 A1'!R24 -> 0 | AF38: ='Data_From Access 1721 A1'!S24 -> 0 | AG38: =INT(transkasi[[#This Row],[5 %]]+transkasi[[#This Row],[15 %]]+transkasi[[#This Row],[25 %]]+transkasi[[#This Row],[30 %]]+transkasi[[#This Row],[30 %]]+transkasi[[#This Row],[35 %]]/1000*1000) -> 0 | AH38: ='Data_From Access 1721 A1'!T24 -> 0 | AI38: ='Data_From Access 1721 A1'!U24 -> 0 | AJ38: ='Data_From Access 1721 A1'!V24 -> 0 | AK38: 0 | DC38: =INT(transkasi[[#This Row],[JUMLAH PPH PS.21 SETAHUN]]-transkasi[[#This Row],[Kredit Pajak YTDD Jan-Nov + THR]])/1000*1000 -> 0
A39: ='Data_From Access 1721 A1'!A25 ->  | B39: ='Data_From Access 1721 A1'!D25 -> 0 | C39: ='Data_From Access 1721 A1'!G25 -> 0 | D39: ='Data_From Access 1721 A1'!I25 -> 0 | E39: ='Data_From Access 1721 A1'!B25 -> 0 | F39: ='Data_From Access 1721 A1'!C25 -> 0 | G39: ='Data_From Access 1721 A1'!E25 -> 0 | H39: ='Data_From Access 1721 A1'!H25 -> 0 | I39: ='Data_From Access 1721 A1'!F25 -> 0 | J39: ='Data_From Access 1721 A1'!J25 -> 0 | K39: ='Data_From Access 1721 A1'!K25 -> 0 | L39: =IF(ISBLANK(transkasi[[#This Row],[GAJI POKOK]]),"",0.24%*transkasi[[#This Row],[GAJI POKOK]]) -> 0 | M39: =0.3%*transkasi[[#This Row],[GAJI POKOK]] -> 0 | N39: =SUM(transkasi[[#This Row],[GAJI POKOK]:[Jaminan Kematian/JK (0,3%)]]) -> 0 | O39: ='Data_From Access 1721 A1'!L25 -> 00:00:00 | P39: ='Data_From Access 1721 A1'!M25 -> 00:00:00 | Q39: ='Data_From Access 1721 A1'!N25 -> 0 | R39: =IF(transkasi[[#This Row],[PENGHASILAN BRUTO]]*5%>=500000,500000,transkasi[[#This Row],[PENGHASILAN BRUTO]]*5%) -> 0 | S39: =2%*transkasi[[#This Row],[GAJI POKOK]] -> 0 | T39: =1%*transkasi[[#This Row],[GAJI POKOK]] -> 0 | U39: =SUM(transkasi[[#This Row],[BIAYA JABATAN PERBULAN 5%]:[Jaminan Pensiun (JP) dibayar Karyawan (1%)]]) -> 0 | V39: =transkasi[[#This Row],[PENGHASILAN BRUTO]]-transkasi[[#This Row],[Jumlah Pengurangan]] -> 0 | W39: =transkasi[[#This Row],[GAJI POKOK]] -> 0 | X39: =IFERROR(transkasi[[#This Row],[Penghasilan Netto(Bersih) sebulan]]*transkasi[[#This Row],[Masa Kerja]]+transkasi[[#This Row],[THR Setahun]],0) -> 0 | Y39: =IF(ISBLANK(transkasi[[#This Row],[NO]]),"",VLOOKUP(transkasi[[#This Row],[STATUS PTKP]],tarif_ptkp[],2,FALSE)) ->  | Z39: =IFERROR(transkasi[[#This Row],[Penghasilan NETTO (bersih) setahun]]-transkasi[[#This Row],[PTKP (Penghasilan tidak kena pajak) setahun]],0) -> 0 | AA39: =IF(transkasi[[#This Row],[PKP (Penghasilan kena pajak) setahun]]<=0,0,ROUNDDOWN(transkasi[[#This Row],[PKP (Penghasilan kena pajak) setahun]],-3)) -> 0 | AB39: ='Data_From Access 1721 A1'!O25 -> 0 | AC39: ='Data_From Access 1721 A1'!P25 -> 0 | AD39: ='Data_From Access 1721 A1'!Q25 -> 0 | AE39: ='Data_From Access 1721 A1'!R25 -> 0 | AF39: ='Data_From Access 1721 A1'!S25 -> 0 | AG39: =INT(transkasi[[#This Row],[5 %]]+transkasi[[#This Row],[15 %]]+transkasi[[#This Row],[25 %]]+transkasi[[#This Row],[30 %]]+transkasi[[#This Row],[30 %]]+transkasi[[#This Row],[35 %]]/1000*1000) -> 0 | AH39: ='Data_From Access 1721 A1'!T25 -> 0 | AI39: ='Data_From Access 1721 A1'!U25 -> 0 | AJ39: ='Data_From Access 1721 A1'!V25 -> 0 | AK39: 0 | DC39: =INT(transkasi[[#This Row],[JUMLAH PPH PS.21 SETAHUN]]-transkasi[[#This Row],[Kredit Pajak YTDD Jan-Nov + THR]])/1000*1000 -> 0
A40: ='Data_From Access 1721 A1'!A26 ->  | B40: ='Data_From Access 1721 A1'!D26 -> 0 | C40: ='Data_From Access 1721 A1'!G26 -> 0 | D40: ='Data_From Access 1721 A1'!I26 -> 0 | E40: ='Data_From Access 1721 A1'!B26 -> 0 | F40: ='Data_From Access 1721 A1'!C26 -> 0 | G40: ='Data_From Access 1721 A1'!E26 -> 0 | H40: ='Data_From Access 1721 A1'!H26 -> 0 | I40: ='Data_From Access 1721 A1'!F26 -> 0 | J40: ='Data_From Access 1721 A1'!J26 -> 0 | K40: ='Data_From Access 1721 A1'!K26 -> 0 | L40: =IF(ISBLANK(transkasi[[#This Row],[GAJI POKOK]]),"",0.24%*transkasi[[#This Row],[GAJI POKOK]]) -> 0 | M40: =0.3%*transkasi[[#This Row],[GAJI POKOK]] -> 0 | N40: =SUM(transkasi[[#This Row],[GAJI POKOK]:[Jaminan Kematian/JK (0,3%)]]) -> 0 | O40: ='Data_From Access 1721 A1'!L26 -> 00:00:00 | P40: ='Data_From Access 1721 A1'!M26 -> 00:00:00 | Q40: ='Data_From Access 1721 A1'!N26 -> 0 | R40: =IF(transkasi[[#This Row],[PENGHASILAN BRUTO]]*5%>=500000,500000,transkasi[[#This Row],[PENGHASILAN BRUTO]]*5%) -> 0 | S40: =2%*transkasi[[#This Row],[GAJI POKOK]] -> 0 | T40: =1%*transkasi[[#This Row],[GAJI POKOK]] -> 0 | U40: =SUM(transkasi[[#This Row],[BIAYA JABATAN PERBULAN 5%]:[Jaminan Pensiun (JP) dibayar Karyawan (1%)]]) -> 0 | V40: =transkasi[[#This Row],[PENGHASILAN BRUTO]]-transkasi[[#This Row],[Jumlah Pengurangan]] -> 0 | W40: =transkasi[[#This Row],[GAJI POKOK]] -> 0 | X40: =IFERROR(transkasi[[#This Row],[Penghasilan Netto(Bersih) sebulan]]*transkasi[[#This Row],[Masa Kerja]]+transkasi[[#This Row],[THR Setahun]],0) -> 0 | Y40: =IF(ISBLANK(transkasi[[#This Row],[NO]]),"",VLOOKUP(transkasi[[#This Row],[STATUS PTKP]],tarif_ptkp[],2,FALSE)) ->  | Z40: =IFERROR(transkasi[[#This Row],[Penghasilan NETTO (bersih) setahun]]-transkasi[[#This Row],[PTKP (Penghasilan tidak kena pajak) setahun]],0) -> 0 | AA40: =IF(transkasi[[#This Row],[PKP (Penghasilan kena pajak) setahun]]<=0,0,ROUNDDOWN(transkasi[[#This Row],[PKP (Penghasilan kena pajak) setahun]],-3)) -> 0 | AB40: ='Data_From Access 1721 A1'!O26 -> 0 | AC40: ='Data_From Access 1721 A1'!P26 -> 0 | AD40: ='Data_From Access 1721 A1'!Q26 -> 0 | AE40: ='Data_From Access 1721 A1'!R26 -> 0 | AF40: ='Data_From Access 1721 A1'!S26 -> 0 | AG40: =INT(transkasi[[#This Row],[5 %]]+transkasi[[#This Row],[15 %]]+transkasi[[#This Row],[25 %]]+transkasi[[#This Row],[30 %]]+transkasi[[#This Row],[30 %]]+transkasi[[#This Row],[35 %]]/1000*1000) -> 0 | AH40: ='Data_From Access 1721 A1'!T26 -> 0 | AI40: ='Data_From Access 1721 A1'!U26 -> 0 | AJ40: ='Data_From Access 1721 A1'!V26 -> 0 | AK40: 0 | DC40: =INT(transkasi[[#This Row],[JUMLAH PPH PS.21 SETAHUN]]-transkasi[[#This Row],[Kredit Pajak YTDD Jan-Nov + THR]])/1000*1000 -> 0
A41: ='Data_From Access 1721 A1'!A27 ->  | B41: ='Data_From Access 1721 A1'!D27 -> 0 | C41: ='Data_From Access 1721 A1'!G27 -> 0 | D41: ='Data_From Access 1721 A1'!I27 -> 0 | E41: ='Data_From Access 1721 A1'!B27 -> 0 | F41: ='Data_From Access 1721 A1'!C27 -> 0 | G41: ='Data_From Access 1721 A1'!E27 -> 0 | H41: ='Data_From Access 1721 A1'!H27 -> 0 | I41: ='Data_From Access 1721 A1'!F27 -> 0 | J41: ='Data_From Access 1721 A1'!J27 -> 0 | K41: ='Data_From Access 1721 A1'!K27 -> 0 | L41: =IF(ISBLANK(transkasi[[#This Row],[GAJI POKOK]]),"",0.24%*transkasi[[#This Row],[GAJI POKOK]]) -> 0 | M41: =0.3%*transkasi[[#This Row],[GAJI POKOK]] -> 0 | N41: =SUM(transkasi[[#This Row],[GAJI POKOK]:[Jaminan Kematian/JK (0,3%)]]) -> 0 | O41: ='Data_From Access 1721 A1'!L27 -> 00:00:00 | P41: ='Data_From Access 1721 A1'!M27 -> 00:00:00 | Q41: ='Data_From Access 1721 A1'!N27 -> 0 | R41: =IF(transkasi[[#This Row],[PENGHASILAN BRUTO]]*5%>=500000,500000,transkasi[[#This Row],[PENGHASILAN BRUTO]]*5%) -> 0 | S41: =2%*transkasi[[#This Row],[GAJI POKOK]] -> 0 | T41: =1%*transkasi[[#This Row],[GAJI POKOK]] -> 0 | U41: =SUM(transkasi[[#This Row],[BIAYA JABATAN PERBULAN 5%]:[Jaminan Pensiun (JP) dibayar Karyawan (1%)]]) -> 0 | V41: =transkasi[[#This Row],[PENGHASILAN BRUTO]]-transkasi[[#This Row],[Jumlah Pengurangan]] -> 0 | W41: =transkasi[[#This Row],[GAJI POKOK]] -> 0 | X41: =IFERROR(transkasi[[#This Row],[Penghasilan Netto(Bersih) sebulan]]*transkasi[[#This Row],[Masa Kerja]]+transkasi[[#This Row],[THR Setahun]],0) -> 0 | Y41: =IF(ISBLANK(transkasi[[#This Row],[NO]]),"",VLOOKUP(transkasi[[#This Row],[STATUS PTKP]],tarif_ptkp[],2,FALSE)) ->  | Z41: =IFERROR(transkasi[[#This Row],[Penghasilan NETTO (bersih) setahun]]-transkasi[[#This Row],[PTKP (Penghasilan tidak kena pajak) setahun]],0) -> 0 | AA41: =IF(transkasi[[#This Row],[PKP (Penghasilan kena pajak) setahun]]<=0,0,ROUNDDOWN(transkasi[[#This Row],[PKP (Penghasilan kena pajak) setahun]],-3)) -> 0 | AB41: ='Data_From Access 1721 A1'!O27 -> 0 | AC41: ='Data_From Access 1721 A1'!P27 -> 0 | AD41: ='Data_From Access 1721 A1'!Q27 -> 0 | AE41: ='Data_From Access 1721 A1'!R27 -> 0 | AF41: ='Data_From Access 1721 A1'!S27 -> 0 | AG41: =INT(transkasi[[#This Row],[5 %]]+transkasi[[#This Row],[15 %]]+transkasi[[#This Row],[25 %]]+transkasi[[#This Row],[30 %]]+transkasi[[#This Row],[30 %]]+transkasi[[#This Row],[35 %]]/1000*1000) -> 0 | AH41: ='Data_From Access 1721 A1'!T27 -> 0 | AI41: ='Data_From Access 1721 A1'!U27 -> 0 | AJ41: ='Data_From Access 1721 A1'!V27 -> 0 | AK41: 0 | DC41: =INT(transkasi[[#This Row],[JUMLAH PPH PS.21 SETAHUN]]-transkasi[[#This Row],[Kredit Pajak YTDD Jan-Nov + THR]])/1000*1000 -> 0
A42: ='Data_From Access 1721 A1'!A28 ->  | B42: ='Data_From Access 1721 A1'!D28 -> 0 | C42: ='Data_From Access 1721 A1'!G28 -> 0 | D42: ='Data_From Access 1721 A1'!I28 -> 0 | E42: ='Data_From Access 1721 A1'!B28 -> 0 | F42: ='Data_From Access 1721 A1'!C28 -> 0 | G42: ='Data_From Access 1721 A1'!E28 -> 0 | H42: ='Data_From Access 1721 A1'!H28 -> 0 | I42: ='Data_From Access 1721 A1'!F28 -> 0 | J42: ='Data_From Access 1721 A1'!J28 -> 0 | K42: ='Data_From Access 1721 A1'!K28 -> 0 | L42: =IF(ISBLANK(transkasi[[#This Row],[GAJI POKOK]]),"",0.24%*transkasi[[#This Row],[GAJI POKOK]]) -> 0 | M42: =0.3%*transkasi[[#This Row],[GAJI POKOK]] -> 0 | N42: =SUM(transkasi[[#This Row],[GAJI POKOK]:[Jaminan Kematian/JK (0,3%)]]) -> 0 | O42: ='Data_From Access 1721 A1'!L28 -> 00:00:00 | P42: ='Data_From Access 1721 A1'!M28 -> 00:00:00 | Q42: ='Data_From Access 1721 A1'!N28 -> 0 | R42: =IF(transkasi[[#This Row],[PENGHASILAN BRUTO]]*5%>=500000,500000,transkasi[[#This Row],[PENGHASILAN BRUTO]]*5%) -> 0 | S42: =2%*transkasi[[#This Row],[GAJI POKOK]] -> 0 | T42: =1%*transkasi[[#This Row],[GAJI POKOK]] -> 0 | U42: =SUM(transkasi[[#This Row],[BIAYA JABATAN PERBULAN 5%]:[Jaminan Pensiun (JP) dibayar Karyawan (1%)]]) -> 0 | V42: =transkasi[[#This Row],[PENGHASILAN BRUTO]]-transkasi[[#This Row],[Jumlah Pengurangan]] -> 0 | W42: =transkasi[[#This Row],[GAJI POKOK]] -> 0 | X42: =IFERROR(transkasi[[#This Row],[Penghasilan Netto(Bersih) sebulan]]*transkasi[[#This Row],[Masa Kerja]]+transkasi[[#This Row],[THR Setahun]],0) -> 0 | Y42: =IF(ISBLANK(transkasi[[#This Row],[NO]]),"",VLOOKUP(transkasi[[#This Row],[STATUS PTKP]],tarif_ptkp[],2,FALSE)) ->  | Z42: =IFERROR(transkasi[[#This Row],[Penghasilan NETTO (bersih) setahun]]-transkasi[[#This Row],[PTKP (Penghasilan tidak kena pajak) setahun]],0) -> 0 | AA42: =IF(transkasi[[#This Row],[PKP (Penghasilan kena pajak) setahun]]<=0,0,ROUNDDOWN(transkasi[[#This Row],[PKP (Penghasilan kena pajak) setahun]],-3)) -> 0 | AB42: ='Data_From Access 1721 A1'!O28 -> 0 | AC42: ='Data_From Access 1721 A1'!P28 -> 0 | AD42: ='Data_From Access 1721 A1'!Q28 -> 0 | AE42: ='Data_From Access 1721 A1'!R28 -> 0 | AF42: ='Data_From Access 1721 A1'!S28 -> 0 | AG42: =INT(transkasi[[#This Row],[5 %]]+transkasi[[#This Row],[15 %]]+transkasi[[#This Row],[25 %]]+transkasi[[#This Row],[30 %]]+transkasi[[#This Row],[30 %]]+transkasi[[#This Row],[35 %]]/1000*1000) -> 0 | AH42: ='Data_From Access 1721 A1'!T28 -> 0 | AI42: ='Data_From Access 1721 A1'!U28 -> 0 | AJ42: ='Data_From Access 1721 A1'!V28 -> 0 | AK42: 0 | DC42: =INT(transkasi[[#This Row],[JUMLAH PPH PS.21 SETAHUN]]-transkasi[[#This Row],[Kredit Pajak YTDD Jan-Nov + THR]])/1000*1000 -> 0
A43: ='Data_From Access 1721 A1'!A29 ->  | B43: ='Data_From Access 1721 A1'!D29 -> 0 | C43: ='Data_From Access 1721 A1'!G29 -> 0 | D43: ='Data_From Access 1721 A1'!I29 -> 0 | E43: ='Data_From Access 1721 A1'!B29 -> 0 | F43: ='Data_From Access 1721 A1'!C29 -> 0 | G43: ='Data_From Access 1721 A1'!E29 -> 0 | H43: ='Data_From Access 1721 A1'!H29 -> 0 | I43: ='Data_From Access 1721 A1'!F29 -> 0 | J43: ='Data_From Access 1721 A1'!J29 -> 0 | K43: ='Data_From Access 1721 A1'!K29 -> 0 | L43: =IF(ISBLANK(transkasi[[#This Row],[GAJI POKOK]]),"",0.24%*transkasi[[#This Row],[GAJI POKOK]]) -> 0 | M43: =0.3%*transkasi[[#This Row],[GAJI POKOK]] -> 0 | N43: =SUM(transkasi[[#This Row],[GAJI POKOK]:[Jaminan Kematian/JK (0,3%)]]) -> 0 | O43: ='Data_From Access 1721 A1'!L29 -> 00:00:00 | P43: ='Data_From Access 1721 A1'!M29 -> 00:00:00 | Q43: ='Data_From Access 1721 A1'!N29 -> 0 | R43: =IF(transkasi[[#This Row],[PENGHASILAN BRUTO]]*5%>=500000,500000,transkasi[[#This Row],[PENGHASILAN BRUTO]]*5%) -> 0 | S43: =2%*transkasi[[#This Row],[GAJI POKOK]] -> 0 | T43: =1%*transkasi[[#This Row],[GAJI POKOK]] -> 0 | U43: =SUM(transkasi[[#This Row],[BIAYA JABATAN PERBULAN 5%]:[Jaminan Pensiun (JP) dibayar Karyawan (1%)]]) -> 0 | V43: =transkasi[[#This Row],[PENGHASILAN BRUTO]]-transkasi[[#This Row],[Jumlah Pengurangan]] -> 0 | W43: =transkasi[[#This Row],[GAJI POKOK]] -> 0 | X43: =IFERROR(transkasi[[#This Row],[Penghasilan Netto(Bersih) sebulan]]*transkasi[[#This Row],[Masa Kerja]]+transkasi[[#This Row],[THR Setahun]],0) -> 0 | Y43: =IF(ISBLANK(transkasi[[#This Row],[NO]]),"",VLOOKUP(transkasi[[#This Row],[STATUS PTKP]],tarif_ptkp[],2,FALSE)) ->  | Z43: =IFERROR(transkasi[[#This Row],[Penghasilan NETTO (bersih) setahun]]-transkasi[[#This Row],[PTKP (Penghasilan tidak kena pajak) setahun]],0) -> 0 | AA43: =IF(transkasi[[#This Row],[PKP (Penghasilan kena pajak) setahun]]<=0,0,ROUNDDOWN(transkasi[[#This Row],[PKP (Penghasilan kena pajak) setahun]],-3)) -> 0 | AB43: ='Data_From Access 1721 A1'!O29 -> 0 | AC43: ='Data_From Access 1721 A1'!P29 -> 0 | AD43: ='Data_From Access 1721 A1'!Q29 -> 0 | AE43: ='Data_From Access 1721 A1'!R29 -> 0 | AF43: ='Data_From Access 1721 A1'!S29 -> 0 | AG43: =INT(transkasi[[#This Row],[5 %]]+transkasi[[#This Row],[15 %]]+transkasi[[#This Row],[25 %]]+transkasi[[#This Row],[30 %]]+transkasi[[#This Row],[30 %]]+transkasi[[#This Row],[35 %]]/1000*1000) -> 0 | AH43: ='Data_From Access 1721 A1'!T29 -> 0 | AI43: ='Data_From Access 1721 A1'!U29 -> 0 | AJ43: ='Data_From Access 1721 A1'!V29 -> 0 | AK43: 0 | DC43: =INT(transkasi[[#This Row],[JUMLAH PPH PS.21 SETAHUN]]-transkasi[[#This Row],[Kredit Pajak YTDD Jan-Nov + THR]])/1000*1000 -> 0
A44: ='Data_From Access 1721 A1'!A30 ->  | B44: ='Data_From Access 1721 A1'!D30 -> 0 | C44: ='Data_From Access 1721 A1'!G30 -> 0 | D44: ='Data_From Access 1721 A1'!I30 -> 0 | E44: ='Data_From Access 1721 A1'!B30 -> 0 | F44: ='Data_From Access 1721 A1'!C30 -> 0 | G44: ='Data_From Access 1721 A1'!E30 -> 0 | H44: ='Data_From Access 1721 A1'!H30 -> 0 | I44: ='Data_From Access 1721 A1'!F30 -> 0 | J44: ='Data_From Access 1721 A1'!J30 -> 0 | K44: ='Data_From Access 1721 A1'!K30 -> 0 | L44: =IF(ISBLANK(transkasi[[#This Row],[GAJI POKOK]]),"",0.24%*transkasi[[#This Row],[GAJI POKOK]]) -> 0 | M44: =0.3%*transkasi[[#This Row],[GAJI POKOK]] -> 0 | N44: =SUM(transkasi[[#This Row],[GAJI POKOK]:[Jaminan Kematian/JK (0,3%)]]) -> 0 | O44: ='Data_From Access 1721 A1'!L30 -> 00:00:00 | P44: ='Data_From Access 1721 A1'!M30 -> 00:00:00 | Q44: ='Data_From Access 1721 A1'!N30 -> 0 | R44: =IF(transkasi[[#This Row],[PENGHASILAN BRUTO]]*5%>=500000,500000,transkasi[[#This Row],[PENGHASILAN BRUTO]]*5%) -> 0 | S44: =2%*transkasi[[#This Row],[GAJI POKOK]] -> 0 | T44: =1%*transkasi[[#This Row],[GAJI POKOK]] -> 0 | U44: =SUM(transkasi[[#This Row],[BIAYA JABATAN PERBULAN 5%]:[Jaminan Pensiun (JP) dibayar Karyawan (1%)]]) -> 0 | V44: =transkasi[[#This Row],[PENGHASILAN BRUTO]]-transkasi[[#This Row],[Jumlah Pengurangan]] -> 0 | W44: =transkasi[[#This Row],[GAJI POKOK]] -> 0 | X44: =IFERROR(transkasi[[#This Row],[Penghasilan Netto(Bersih) sebulan]]*transkasi[[#This Row],[Masa Kerja]]+transkasi[[#This Row],[THR Setahun]],0) -> 0 | Y44: =IF(ISBLANK(transkasi[[#This Row],[NO]]),"",VLOOKUP(transkasi[[#This Row],[STATUS PTKP]],tarif_ptkp[],2,FALSE)) ->  | Z44: =IFERROR(transkasi[[#This Row],[Penghasilan NETTO (bersih) setahun]]-transkasi[[#This Row],[PTKP (Penghasilan tidak kena pajak) setahun]],0) -> 0 | AA44: =IF(transkasi[[#This Row],[PKP (Penghasilan kena pajak) setahun]]<=0,0,ROUNDDOWN(transkasi[[#This Row],[PKP (Penghasilan kena pajak) setahun]],-3)) -> 0 | AB44: ='Data_From Access 1721 A1'!O30 -> 0 | AC44: ='Data_From Access 1721 A1'!P30 -> 0 | AD44: ='Data_From Access 1721 A1'!Q30 -> 0 | AE44: ='Data_From Access 1721 A1'!R30 -> 0 | AF44: ='Data_From Access 1721 A1'!S30 -> 0 | AG44: =INT(transkasi[[#This Row],[5 %]]+transkasi[[#This Row],[15 %]]+transkasi[[#This Row],[25 %]]+transkasi[[#This Row],[30 %]]+transkasi[[#This Row],[30 %]]+transkasi[[#This Row],[35 %]]/1000*1000) -> 0 | AH44: ='Data_From Access 1721 A1'!T30 -> 0 | AI44: ='Data_From Access 1721 A1'!U30 -> 0 | AJ44: ='Data_From Access 1721 A1'!V30 -> 0 | AK44: 0 | DC44: =INT(transkasi[[#This Row],[JUMLAH PPH PS.21 SETAHUN]]-transkasi[[#This Row],[Kredit Pajak YTDD Jan-Nov + THR]])/1000*1000 -> 0
A45: ='Data_From Access 1721 A1'!A31 ->  | B45: ='Data_From Access 1721 A1'!D31 -> 0 | C45: ='Data_From Access 1721 A1'!G31 -> 0 | D45: ='Data_From Access 1721 A1'!I31 -> 0 | E45: ='Data_From Access 1721 A1'!B31 -> 0 | F45: ='Data_From Access 1721 A1'!C31 -> 0 | G45: ='Data_From Access 1721 A1'!E31 -> 0 | H45: ='Data_From Access 1721 A1'!H31 -> 0 | I45: ='Data_From Access 1721 A1'!F31 -> 0 | J45: ='Data_From Access 1721 A1'!J31 -> 0 | K45: ='Data_From Access 1721 A1'!K31 -> 0 | L45: =IF(ISBLANK(transkasi[[#This Row],[GAJI POKOK]]),"",0.24%*transkasi[[#This Row],[GAJI POKOK]]) -> 0 | M45: =0.3%*transkasi[[#This Row],[GAJI POKOK]] -> 0 | N45: =SUM(transkasi[[#This Row],[GAJI POKOK]:[Jaminan Kematian/JK (0,3%)]]) -> 0 | O45: ='Data_From Access 1721 A1'!L31 -> 00:00:00 | P45: ='Data_From Access 1721 A1'!M31 -> 00:00:00 | Q45: ='Data_From Access 1721 A1'!N31 -> 0 | R45: =IF(transkasi[[#This Row],[PENGHASILAN BRUTO]]*5%>=500000,500000,transkasi[[#This Row],[PENGHASILAN BRUTO]]*5%) -> 0 | S45: =2%*transkasi[[#This Row],[GAJI POKOK]] -> 0 | T45: =1%*transkasi[[#This Row],[GAJI POKOK]] -> 0 | U45: =SUM(transkasi[[#This Row],[BIAYA JABATAN PERBULAN 5%]:[Jaminan Pensiun (JP) dibayar Karyawan (1%)]]) -> 0 | V45: =transkasi[[#This Row],[PENGHASILAN BRUTO]]-transkasi[[#This Row],[Jumlah Pengurangan]] -> 0 | W45: =transkasi[[#This Row],[GAJI POKOK]] -> 0 | X45: =IFERROR(transkasi[[#This Row],[Penghasilan Netto(Bersih) sebulan]]*transkasi[[#This Row],[Masa Kerja]]+transkasi[[#This Row],[THR Setahun]],0) -> 0 | Y45: =IF(ISBLANK(transkasi[[#This Row],[NO]]),"",VLOOKUP(transkasi[[#This Row],[STATUS PTKP]],tarif_ptkp[],2,FALSE)) ->  | Z45: =IFERROR(transkasi[[#This Row],[Penghasilan NETTO (bersih) setahun]]-transkasi[[#This Row],[PTKP (Penghasilan tidak kena pajak) setahun]],0) -> 0 | AA45: =IF(transkasi[[#This Row],[PKP (Penghasilan kena pajak) setahun]]<=0,0,ROUNDDOWN(transkasi[[#This Row],[PKP (Penghasilan kena pajak) setahun]],-3)) -> 0 | AB45: ='Data_From Access 1721 A1'!O31 -> 0 | AC45: ='Data_From Access 1721 A1'!P31 -> 0 | AD45: ='Data_From Access 1721 A1'!Q31 -> 0 | AE45: ='Data_From Access 1721 A1'!R31 -> 0 | AF45: ='Data_From Access 1721 A1'!S31 -> 0 | AG45: =INT(transkasi[[#This Row],[5 %]]+transkasi[[#This Row],[15 %]]+transkasi[[#This Row],[25 %]]+transkasi[[#This Row],[30 %]]+transkasi[[#This Row],[30 %]]+transkasi[[#This Row],[35 %]]/1000*1000) -> 0 | AH45: ='Data_From Access 1721 A1'!T31 -> 0 | AI45: ='Data_From Access 1721 A1'!U31 -> 0 | AJ45: ='Data_From Access 1721 A1'!V31 -> 0 | AK45: 0 | DC45: =INT(transkasi[[#This Row],[JUMLAH PPH PS.21 SETAHUN]]-transkasi[[#This Row],[Kredit Pajak YTDD Jan-Nov + THR]])/1000*1000 -> 0
A46: ='Data_From Access 1721 A1'!A32 ->  | B46: ='Data_From Access 1721 A1'!D32 -> 0 | C46: ='Data_From Access 1721 A1'!G32 -> 0 | D46: ='Data_From Access 1721 A1'!I32 -> 0 | E46: ='Data_From Access 1721 A1'!B32 -> 0 | F46: ='Data_From Access 1721 A1'!C32 -> 0 | G46: ='Data_From Access 1721 A1'!E32 -> 0 | H46: ='Data_From Access 1721 A1'!H32 -> 0 | I46: ='Data_From Access 1721 A1'!F32 -> 0 | J46: ='Data_From Access 1721 A1'!J32 -> 0 | K46: ='Data_From Access 1721 A1'!K32 -> 0 | L46: =IF(ISBLANK(transkasi[[#This Row],[GAJI POKOK]]),"",0.24%*transkasi[[#This Row],[GAJI POKOK]]) -> 0 | M46: =0.3%*transkasi[[#This Row],[GAJI POKOK]] -> 0 | N46: =SUM(transkasi[[#This Row],[GAJI POKOK]:[Jaminan Kematian/JK (0,3%)]]) -> 0 | O46: ='Data_From Access 1721 A1'!L32 -> 00:00:00 | P46: ='Data_From Access 1721 A1'!M32 -> 00:00:00 | Q46: ='Data_From Access 1721 A1'!N32 -> 0 | R46: =IF(transkasi[[#This Row],[PENGHASILAN BRUTO]]*5%>=500000,500000,transkasi[[#This Row],[PENGHASILAN BRUTO]]*5%) -> 0 | S46: =2%*transkasi[[#This Row],[GAJI POKOK]] -> 0 | T46: =1%*transkasi[[#This Row],[GAJI POKOK]] -> 0 | U46: =SUM(transkasi[[#This Row],[BIAYA JABATAN PERBULAN 5%]:[Jaminan Pensiun (JP) dibayar Karyawan (1%)]]) -> 0 | V46: =transkasi[[#This Row],[PENGHASILAN BRUTO]]-transkasi[[#This Row],[Jumlah Pengurangan]] -> 0 | W46: =transkasi[[#This Row],[GAJI POKOK]] -> 0 | X46: =IFERROR(transkasi[[#This Row],[Penghasilan Netto(Bersih) sebulan]]*transkasi[[#This Row],[Masa Kerja]]+transkasi[[#This Row],[THR Setahun]],0) -> 0 | Y46: =IF(ISBLANK(transkasi[[#This Row],[NO]]),"",VLOOKUP(transkasi[[#This Row],[STATUS PTKP]],tarif_ptkp[],2,FALSE)) ->  | Z46: =IFERROR(transkasi[[#This Row],[Penghasilan NETTO (bersih) setahun]]-transkasi[[#This Row],[PTKP (Penghasilan tidak kena pajak) setahun]],0) -> 0 | AA46: =IF(transkasi[[#This Row],[PKP (Penghasilan kena pajak) setahun]]<=0,0,ROUNDDOWN(transkasi[[#This Row],[PKP (Penghasilan kena pajak) setahun]],-3)) -> 0 | AB46: ='Data_From Access 1721 A1'!O32 -> 0 | AC46: ='Data_From Access 1721 A1'!P32 -> 0 | AD46: ='Data_From Access 1721 A1'!Q32 -> 0 | AE46: ='Data_From Access 1721 A1'!R32 -> 0 | AF46: ='Data_From Access 1721 A1'!S32 -> 0 | AG46: =INT(transkasi[[#This Row],[5 %]]+transkasi[[#This Row],[15 %]]+transkasi[[#This Row],[25 %]]+transkasi[[#This Row],[30 %]]+transkasi[[#This Row],[30 %]]+transkasi[[#This Row],[35 %]]/1000*1000) -> 0 | AH46: ='Data_From Access 1721 A1'!T32 -> 0 | AI46: ='Data_From Access 1721 A1'!U32 -> 0 | AJ46: ='Data_From Access 1721 A1'!V32 -> 0 | AK46: 0 | DC46: =INT(transkasi[[#This Row],[JUMLAH PPH PS.21 SETAHUN]]-transkasi[[#This Row],[Kredit Pajak YTDD Jan-Nov + THR]])/1000*1000 -> 0
A47: ='Data_From Access 1721 A1'!A33 ->  | B47: ='Data_From Access 1721 A1'!D33 -> 0 | C47: ='Data_From Access 1721 A1'!G33 -> 0 | D47: ='Data_From Access 1721 A1'!I33 -> 0 | E47: ='Data_From Access 1721 A1'!B33 -> 0 | F47: ='Data_From Access 1721 A1'!C33 -> 0 | G47: ='Data_From Access 1721 A1'!E33 -> 0 | H47: ='Data_From Access 1721 A1'!H33 -> 0 | I47: ='Data_From Access 1721 A1'!F33 -> 0 | J47: ='Data_From Access 1721 A1'!J33 -> 0 | K47: ='Data_From Access 1721 A1'!K33 -> 0 | L47: =IF(ISBLANK(transkasi[[#This Row],[GAJI POKOK]]),"",0.24%*transkasi[[#This Row],[GAJI POKOK]]) -> 0 | M47: =0.3%*transkasi[[#This Row],[GAJI POKOK]] -> 0 | N47: =SUM(transkasi[[#This Row],[GAJI POKOK]:[Jaminan Kematian/JK (0,3%)]]) -> 0 | O47: ='Data_From Access 1721 A1'!L33 -> 00:00:00 | P47: ='Data_From Access 1721 A1'!M33 -> 00:00:00 | Q47: ='Data_From Access 1721 A1'!N33 -> 0 | R47: =IF(transkasi[[#This Row],[PENGHASILAN BRUTO]]*5%>=500000,500000,transkasi[[#This Row],[PENGHASILAN BRUTO]]*5%) -> 0 | S47: =2%*transkasi[[#This Row],[GAJI POKOK]] -> 0 | T47: =1%*transkasi[[#This Row],[GAJI POKOK]] -> 0 | U47: =SUM(transkasi[[#This Row],[BIAYA JABATAN PERBULAN 5%]:[Jaminan Pensiun (JP) dibayar Karyawan (1%)]]) -> 0 | V47: =transkasi[[#This Row],[PENGHASILAN BRUTO]]-transkasi[[#This Row],[Jumlah Pengurangan]] -> 0 | W47: =transkasi[[#This Row],[GAJI POKOK]] -> 0 | X47: =IFERROR(transkasi[[#This Row],[Penghasilan Netto(Bersih) sebulan]]*transkasi[[#This Row],[Masa Kerja]]+transkasi[[#This Row],[THR Setahun]],0) -> 0 | Y47: =IF(ISBLANK(transkasi[[#This Row],[NO]]),"",VLOOKUP(transkasi[[#This Row],[STATUS PTKP]],tarif_ptkp[],2,FALSE)) ->  | Z47: =IFERROR(transkasi[[#This Row],[Penghasilan NETTO (bersih) setahun]]-transkasi[[#This Row],[PTKP (Penghasilan tidak kena pajak) setahun]],0) -> 0 | AA47: =IF(transkasi[[#This Row],[PKP (Penghasilan kena pajak) setahun]]<=0,0,ROUNDDOWN(transkasi[[#This Row],[PKP (Penghasilan kena pajak) setahun]],-3)) -> 0 | AB47: ='Data_From Access 1721 A1'!O33 -> 0 | AC47: ='Data_From Access 1721 A1'!P33 -> 0 | AD47: ='Data_From Access 1721 A1'!Q33 -> 0 | AE47: ='Data_From Access 1721 A1'!R33 -> 0 | AF47: ='Data_From Access 1721 A1'!S33 -> 0 | AG47: =INT(transkasi[[#This Row],[5 %]]+transkasi[[#This Row],[15 %]]+transkasi[[#This Row],[25 %]]+transkasi[[#This Row],[30 %]]+transkasi[[#This Row],[30 %]]+transkasi[[#This Row],[35 %]]/1000*1000) -> 0 | AH47: ='Data_From Access 1721 A1'!T33 -> 0 | AI47: ='Data_From Access 1721 A1'!U33 -> 0 | AJ47: ='Data_From Access 1721 A1'!V33 -> 0 | AK47: 0 | DC47: =INT(transkasi[[#This Row],[JUMLAH PPH PS.21 SETAHUN]]-transkasi[[#This Row],[Kredit Pajak YTDD Jan-Nov + THR]])/1000*1000 -> 0
A48: ='Data_From Access 1721 A1'!A34 ->  | B48: ='Data_From Access 1721 A1'!D34 -> 0 | C48: ='Data_From Access 1721 A1'!G34 -> 0 | D48: ='Data_From Access 1721 A1'!I34 -> 0 | E48: ='Data_From Access 1721 A1'!B34 -> 0 | F48: ='Data_From Access 1721 A1'!C34 -> 0 | G48: ='Data_From Access 1721 A1'!E34 -> 0 | H48: ='Data_From Access 1721 A1'!H34 -> 0 | I48: ='Data_From Access 1721 A1'!F34 -> 0 | J48: ='Data_From Access 1721 A1'!J34 -> 0 | K48: ='Data_From Access 1721 A1'!K34 -> 0 | L48: =IF(ISBLANK(transkasi[[#This Row],[GAJI POKOK]]),"",0.24%*transkasi[[#This Row],[GAJI POKOK]]) -> 0 | M48: =0.3%*transkasi[[#This Row],[GAJI POKOK]] -> 0 | N48: =SUM(transkasi[[#This Row],[GAJI POKOK]:[Jaminan Kematian/JK (0,3%)]]) -> 0 | O48: ='Data_From Access 1721 A1'!L34 -> 00:00:00 | P48: ='Data_From Access 1721 A1'!M34 -> 00:00:00 | Q48: ='Data_From Access 1721 A1'!N34 -> 0 | R48: =IF(transkasi[[#This Row],[PENGHASILAN BRUTO]]*5%>=500000,500000,transkasi[[#This Row],[PENGHASILAN BRUTO]]*5%) -> 0 | S48: =2%*transkasi[[#This Row],[GAJI POKOK]] -> 0 | T48: =1%*transkasi[[#This Row],[GAJI POKOK]] -> 0 | U48: =SUM(transkasi[[#This Row],[BIAYA JABATAN PERBULAN 5%]:[Jaminan Pensiun (JP) dibayar Karyawan (1%)]]) -> 0 | V48: =transkasi[[#This Row],[PENGHASILAN BRUTO]]-transkasi[[#This Row],[Jumlah Pengurangan]] -> 0 | W48: =transkasi[[#This Row],[GAJI POKOK]] -> 0 | X48: =IFERROR(transkasi[[#This Row],[Penghasilan Netto(Bersih) sebulan]]*transkasi[[#This Row],[Masa Kerja]]+transkasi[[#This Row],[THR Setahun]],0) -> 0 | Y48: =IF(ISBLANK(transkasi[[#This Row],[NO]]),"",VLOOKUP(transkasi[[#This Row],[STATUS PTKP]],tarif_ptkp[],2,FALSE)) ->  | Z48: =IFERROR(transkasi[[#This Row],[Penghasilan NETTO (bersih) setahun]]-transkasi[[#This Row],[PTKP (Penghasilan tidak kena pajak) setahun]],0) -> 0 | AA48: =IF(transkasi[[#This Row],[PKP (Penghasilan kena pajak) setahun]]<=0,0,ROUNDDOWN(transkasi[[#This Row],[PKP (Penghasilan kena pajak) setahun]],-3)) -> 0 | AB48: ='Data_From Access 1721 A1'!O34 -> 0 | AC48: ='Data_From Access 1721 A1'!P34 -> 0 | AD48: ='Data_From Access 1721 A1'!Q34 -> 0 | AE48: ='Data_From Access 1721 A1'!R34 -> 0 | AF48: ='Data_From Access 1721 A1'!S34 -> 0 | AG48: =INT(transkasi[[#This Row],[5 %]]+transkasi[[#This Row],[15 %]]+transkasi[[#This Row],[25 %]]+transkasi[[#This Row],[30 %]]+transkasi[[#This Row],[30 %]]+transkasi[[#This Row],[35 %]]/1000*1000) -> 0 | AH48: ='Data_From Access 1721 A1'!T34 -> 0 | AI48: ='Data_From Access 1721 A1'!U34 -> 0 | AJ48: ='Data_From Access 1721 A1'!V34 -> 0 | AK48: 0 | DC48: =INT(transkasi[[#This Row],[JUMLAH PPH PS.21 SETAHUN]]-transkasi[[#This Row],[Kredit Pajak YTDD Jan-Nov + THR]])/1000*1000 -> 0
A49: ='Data_From Access 1721 A1'!A35 ->  | B49: ='Data_From Access 1721 A1'!D35 -> 0 | C49: ='Data_From Access 1721 A1'!G35 -> 0 | D49: ='Data_From Access 1721 A1'!I35 -> 0 | E49: ='Data_From Access 1721 A1'!B35 -> 0 | F49: ='Data_From Access 1721 A1'!C35 -> 0 | G49: ='Data_From Access 1721 A1'!E35 -> 0 | H49: ='Data_From Access 1721 A1'!H35 -> 0 | I49: ='Data_From Access 1721 A1'!F35 -> 0 | J49: ='Data_From Access 1721 A1'!J35 -> 0 | K49: ='Data_From Access 1721 A1'!K35 -> 0 | L49: =IF(ISBLANK(transkasi[[#This Row],[GAJI POKOK]]),"",0.24%*transkasi[[#This Row],[GAJI POKOK]]) -> 0 | M49: =0.3%*transkasi[[#This Row],[GAJI POKOK]] -> 0 | N49: =SUM(transkasi[[#This Row],[GAJI POKOK]:[Jaminan Kematian/JK (0,3%)]]) -> 0 | O49: ='Data_From Access 1721 A1'!L35 -> 00:00:00 | P49: ='Data_From Access 1721 A1'!M35 -> 00:00:00 | Q49: ='Data_From Access 1721 A1'!N35 -> 0 | R49: =IF(transkasi[[#This Row],[PENGHASILAN BRUTO]]*5%>=500000,500000,transkasi[[#This Row],[PENGHASILAN BRUTO]]*5%) -> 0 | S49: =2%*transkasi[[#This Row],[GAJI POKOK]] -> 0 | T49: =1%*transkasi[[#This Row],[GAJI POKOK]] -> 0 | U49: =SUM(transkasi[[#This Row],[BIAYA JABATAN PERBULAN 5%]:[Jaminan Pensiun (JP) dibayar Karyawan (1%)]]) -> 0 | V49: =transkasi[[#This Row],[PENGHASILAN BRUTO]]-transkasi[[#This Row],[Jumlah Pengurangan]] -> 0 | W49: =transkasi[[#This Row],[GAJI POKOK]] -> 0 | X49: =IFERROR(transkasi[[#This Row],[Penghasilan Netto(Bersih) sebulan]]*transkasi[[#This Row],[Masa Kerja]]+transkasi[[#This Row],[THR Setahun]],0) -> 0 | Y49: =IF(ISBLANK(transkasi[[#This Row],[NO]]),"",VLOOKUP(transkasi[[#This Row],[STATUS PTKP]],tarif_ptkp[],2,FALSE)) ->  | Z49: =IFERROR(transkasi[[#This Row],[Penghasilan NETTO (bersih) setahun]]-transkasi[[#This Row],[PTKP (Penghasilan tidak kena pajak) setahun]],0) -> 0 | AA49: =IF(transkasi[[#This Row],[PKP (Penghasilan kena pajak) setahun]]<=0,0,ROUNDDOWN(transkasi[[#This Row],[PKP (Penghasilan kena pajak) setahun]],-3)) -> 0 | AB49: ='Data_From Access 1721 A1'!O35 -> 0 | AC49: ='Data_From Access 1721 A1'!P35 -> 0 | AD49: ='Data_From Access 1721 A1'!Q35 -> 0 | AE49: ='Data_From Access 1721 A1'!R35 -> 0 | AF49: ='Data_From Access 1721 A1'!S35 -> 0 | AG49: =INT(transkasi[[#This Row],[5 %]]+transkasi[[#This Row],[15 %]]+transkasi[[#This Row],[25 %]]+transkasi[[#This Row],[30 %]]+transkasi[[#This Row],[30 %]]+transkasi[[#This Row],[35 %]]/1000*1000) -> 0 | AH49: ='Data_From Access 1721 A1'!T35 -> 0 | AI49: ='Data_From Access 1721 A1'!U35 -> 0 | AJ49: ='Data_From Access 1721 A1'!V35 -> 0 | AK49: 0 | DC49: =INT(transkasi[[#This Row],[JUMLAH PPH PS.21 SETAHUN]]-transkasi[[#This Row],[Kredit Pajak YTDD Jan-Nov + THR]])/1000*1000 -> 0
A50: ='Data_From Access 1721 A1'!A36 ->  | B50: ='Data_From Access 1721 A1'!D36 -> 0 | C50: ='Data_From Access 1721 A1'!G36 -> 0 | D50: ='Data_From Access 1721 A1'!I36 -> 0 | E50: ='Data_From Access 1721 A1'!B36 -> 0 | F50: ='Data_From Access 1721 A1'!C36 -> 0 | G50: ='Data_From Access 1721 A1'!E36 -> 0 | H50: ='Data_From Access 1721 A1'!H36 -> 0 | I50: ='Data_From Access 1721 A1'!F36 -> 0 | J50: ='Data_From Access 1721 A1'!J36 -> 0 | K50: ='Data_From Access 1721 A1'!K36 -> 0 | L50: =IF(ISBLANK(transkasi[[#This Row],[GAJI POKOK]]),"",0.24%*transkasi[[#This Row],[GAJI POKOK]]) -> 0 | M50: =0.3%*transkasi[[#This Row],[GAJI POKOK]] -> 0 | N50: =SUM(transkasi[[#This Row],[GAJI POKOK]:[Jaminan Kematian/JK (0,3%)]]) -> 0 | O50: ='Data_From Access 1721 A1'!L36 -> 00:00:00 | P50: ='Data_From Access 1721 A1'!M36 -> 00:00:00 | Q50: ='Data_From Access 1721 A1'!N36 -> 0 | R50: =IF(transkasi[[#This Row],[PENGHASILAN BRUTO]]*5%>=500000,500000,transkasi[[#This Row],[PENGHASILAN BRUTO]]*5%) -> 0 | S50: =2%*transkasi[[#This Row],[GAJI POKOK]] -> 0 | T50: =1%*transkasi[[#This Row],[GAJI POKOK]] -> 0 | U50: =SUM(transkasi[[#This Row],[BIAYA JABATAN PERBULAN 5%]:[Jaminan Pensiun (JP) dibayar Karyawan (1%)]]) -> 0 | V50: =transkasi[[#This Row],[PENGHASILAN BRUTO]]-transkasi[[#This Row],[Jumlah Pengurangan]] -> 0 | W50: =transkasi[[#This Row],[GAJI POKOK]] -> 0 | X50: =IFERROR(transkasi[[#This Row],[Penghasilan Netto(Bersih) sebulan]]*transkasi[[#This Row],[Masa Kerja]]+transkasi[[#This Row],[THR Setahun]],0) -> 0 | Y50: =IF(ISBLANK(transkasi[[#This Row],[NO]]),"",VLOOKUP(transkasi[[#This Row],[STATUS PTKP]],tarif_ptkp[],2,FALSE)) ->  | Z50: =IFERROR(transkasi[[#This Row],[Penghasilan NETTO (bersih) setahun]]-transkasi[[#This Row],[PTKP (Penghasilan tidak kena pajak) setahun]],0) -> 0 | AA50: =IF(transkasi[[#This Row],[PKP (Penghasilan kena pajak) setahun]]<=0,0,ROUNDDOWN(transkasi[[#This Row],[PKP (Penghasilan kena pajak) setahun]],-3)) -> 0 | AB50: ='Data_From Access 1721 A1'!O36 -> 0 | AC50: ='Data_From Access 1721 A1'!P36 -> 0 | AD50: ='Data_From Access 1721 A1'!Q36 -> 0 | AE50: ='Data_From Access 1721 A1'!R36 -> 0 | AF50: ='Data_From Access 1721 A1'!S36 -> 0 | AG50: =INT(transkasi[[#This Row],[5 %]]+transkasi[[#This Row],[15 %]]+transkasi[[#This Row],[25 %]]+transkasi[[#This Row],[30 %]]+transkasi[[#This Row],[30 %]]+transkasi[[#This Row],[35 %]]/1000*1000) -> 0 | AH50: ='Data_From Access 1721 A1'!T36 -> 0 | AI50: ='Data_From Access 1721 A1'!U36 -> 0 | AJ50: ='Data_From Access 1721 A1'!V36 -> 0 | AK50: 0 | DC50: =INT(transkasi[[#This Row],[JUMLAH PPH PS.21 SETAHUN]]-transkasi[[#This Row],[Kredit Pajak YTDD Jan-Nov + THR]])/1000*1000 -> 0
A51: ='Data_From Access 1721 A1'!A37 ->  | B51: ='Data_From Access 1721 A1'!D37 -> 0 | C51: ='Data_From Access 1721 A1'!G37 -> 0 | D51: ='Data_From Access 1721 A1'!I37 -> 0 | E51: ='Data_From Access 1721 A1'!B37 -> 0 | F51: ='Data_From Access 1721 A1'!C37 -> 0 | G51: ='Data_From Access 1721 A1'!E37 -> 0 | H51: ='Data_From Access 1721 A1'!H37 -> 0 | I51: ='Data_From Access 1721 A1'!F37 -> 0 | J51: ='Data_From Access 1721 A1'!J37 -> 0 | K51: ='Data_From Access 1721 A1'!K37 -> 0 | L51: =IF(ISBLANK(transkasi[[#This Row],[GAJI POKOK]]),"",0.24%*transkasi[[#This Row],[GAJI POKOK]]) -> 0 | M51: =0.3%*transkasi[[#This Row],[GAJI POKOK]] -> 0 | N51: =SUM(transkasi[[#This Row],[GAJI POKOK]:[Jaminan Kematian/JK (0,3%)]]) -> 0 | O51: ='Data_From Access 1721 A1'!L37 -> 00:00:00 | P51: ='Data_From Access 1721 A1'!M37 -> 00:00:00 | Q51: ='Data_From Access 1721 A1'!N37 -> 0 | R51: =IF(transkasi[[#This Row],[PENGHASILAN BRUTO]]*5%>=500000,500000,transkasi[[#This Row],[PENGHASILAN BRUTO]]*5%) -> 0 | S51: =2%*transkasi[[#This Row],[GAJI POKOK]] -> 0 | T51: =1%*transkasi[[#This Row],[GAJI POKOK]] -> 0 | U51: =SUM(transkasi[[#This Row],[BIAYA JABATAN PERBULAN 5%]:[Jaminan Pensiun (JP) dibayar Karyawan (1%)]]) -> 0 | V51: =transkasi[[#This Row],[PENGHASILAN BRUTO]]-transkasi[[#This Row],[Jumlah Pengurangan]] -> 0 | W51: =transkasi[[#This Row],[GAJI POKOK]] -> 0 | X51: =IFERROR(transkasi[[#This Row],[Penghasilan Netto(Bersih) sebulan]]*transkasi[[#This Row],[Masa Kerja]]+transkasi[[#This Row],[THR Setahun]],0) -> 0 | Y51: =IF(ISBLANK(transkasi[[#This Row],[NO]]),"",VLOOKUP(transkasi[[#This Row],[STATUS PTKP]],tarif_ptkp[],2,FALSE)) ->  | Z51: =IFERROR(transkasi[[#This Row],[Penghasilan NETTO (bersih) setahun]]-transkasi[[#This Row],[PTKP (Penghasilan tidak kena pajak) setahun]],0) -> 0 | AA51: =IF(transkasi[[#This Row],[PKP (Penghasilan kena pajak) setahun]]<=0,0,ROUNDDOWN(transkasi[[#This Row],[PKP (Penghasilan kena pajak) setahun]],-3)) -> 0 | AB51: ='Data_From Access 1721 A1'!O37 -> 0 | AC51: ='Data_From Access 1721 A1'!P37 -> 0 | AD51: ='Data_From Access 1721 A1'!Q37 -> 0 | AE51: ='Data_From Access 1721 A1'!R37 -> 0 | AF51: ='Data_From Access 1721 A1'!S37 -> 0 | AG51: =INT(transkasi[[#This Row],[5 %]]+transkasi[[#This Row],[15 %]]+transkasi[[#This Row],[25 %]]+transkasi[[#This Row],[30 %]]+transkasi[[#This Row],[30 %]]+transkasi[[#This Row],[35 %]]/1000*1000) -> 0 | AH51: ='Data_From Access 1721 A1'!T37 -> 0 | AI51: ='Data_From Access 1721 A1'!U37 -> 0 | AJ51: ='Data_From Access 1721 A1'!V37 -> 0 | AK51: 0 | DC51: =INT(transkasi[[#This Row],[JUMLAH PPH PS.21 SETAHUN]]-transkasi[[#This Row],[Kredit Pajak YTDD Jan-Nov + THR]])/1000*1000 -> 0
A52: ='Data_From Access 1721 A1'!A38 ->  | B52: ='Data_From Access 1721 A1'!D38 -> 0 | C52: ='Data_From Access 1721 A1'!G38 -> 0 | D52: ='Data_From Access 1721 A1'!I38 -> 0 | E52: ='Data_From Access 1721 A1'!B38 -> 0 | F52: ='Data_From Access 1721 A1'!C38 -> 0 | G52: ='Data_From Access 1721 A1'!E38 -> 0 | H52: ='Data_From Access 1721 A1'!H38 -> 0 | I52: ='Data_From Access 1721 A1'!F38 -> 0 | J52: ='Data_From Access 1721 A1'!J38 -> 0 | K52: ='Data_From Access 1721 A1'!K38 -> 0 | L52: =IF(ISBLANK(transkasi[[#This Row],[GAJI POKOK]]),"",0.24%*transkasi[[#This Row],[GAJI POKOK]]) -> 0 | M52: =0.3%*transkasi[[#This Row],[GAJI POKOK]] -> 0 | N52: =SUM(transkasi[[#This Row],[GAJI POKOK]:[Jaminan Kematian/JK (0,3%)]]) -> 0 | O52: ='Data_From Access 1721 A1'!L38 -> 00:00:00 | P52: ='Data_From Access 1721 A1'!M38 -> 00:00:00 | Q52: ='Data_From Access 1721 A1'!N38 -> 0 | R52: =IF(transkasi[[#This Row],[PENGHASILAN BRUTO]]*5%>=500000,500000,transkasi[[#This Row],[PENGHASILAN BRUTO]]*5%) -> 0 | S52: =2%*transkasi[[#This Row],[GAJI POKOK]] -> 0 | T52: =1%*transkasi[[#This Row],[GAJI POKOK]] -> 0 | U52: =SUM(transkasi[[#This Row],[BIAYA JABATAN PERBULAN 5%]:[Jaminan Pensiun (JP) dibayar Karyawan (1%)]]) -> 0 | V52: =transkasi[[#This Row],[PENGHASILAN BRUTO]]-transkasi[[#This Row],[Jumlah Pengurangan]] -> 0 | W52: =transkasi[[#This Row],[GAJI POKOK]] -> 0 | X52: =IFERROR(transkasi[[#This Row],[Penghasilan Netto(Bersih) sebulan]]*transkasi[[#This Row],[Masa Kerja]]+transkasi[[#This Row],[THR Setahun]],0) -> 0 | Y52: =IF(ISBLANK(transkasi[[#This Row],[NO]]),"",VLOOKUP(transkasi[[#This Row],[STATUS PTKP]],tarif_ptkp[],2,FALSE)) ->  | Z52: =IFERROR(transkasi[[#This Row],[Penghasilan NETTO (bersih) setahun]]-transkasi[[#This Row],[PTKP (Penghasilan tidak kena pajak) setahun]],0) -> 0 | AA52: =IF(transkasi[[#This Row],[PKP (Penghasilan kena pajak) setahun]]<=0,0,ROUNDDOWN(transkasi[[#This Row],[PKP (Penghasilan kena pajak) setahun]],-3)) -> 0 | AB52: ='Data_From Access 1721 A1'!O38 -> 0 | AC52: ='Data_From Access 1721 A1'!P38 -> 0 | AD52: ='Data_From Access 1721 A1'!Q38 -> 0 | AE52: ='Data_From Access 1721 A1'!R38 -> 0 | AF52: ='Data_From Access 1721 A1'!S38 -> 0 | AG52: =INT(transkasi[[#This Row],[5 %]]+transkasi[[#This Row],[15 %]]+transkasi[[#This Row],[25 %]]+transkasi[[#This Row],[30 %]]+transkasi[[#This Row],[30 %]]+transkasi[[#This Row],[35 %]]/1000*1000) -> 0 | AH52: ='Data_From Access 1721 A1'!T38 -> 0 | AI52: ='Data_From Access 1721 A1'!U38 -> 0 | AJ52: ='Data_From Access 1721 A1'!V38 -> 0 | AK52: 0 | DC52: =INT(transkasi[[#This Row],[JUMLAH PPH PS.21 SETAHUN]]-transkasi[[#This Row],[Kredit Pajak YTDD Jan-Nov + THR]])/1000*1000 -> 0
A53: ='Data_From Access 1721 A1'!A39 ->  | B53: ='Data_From Access 1721 A1'!D39 -> 0 | C53: ='Data_From Access 1721 A1'!G39 -> 0 | D53: ='Data_From Access 1721 A1'!I39 -> 0 | E53: ='Data_From Access 1721 A1'!B39 -> 0 | F53: ='Data_From Access 1721 A1'!C39 -> 0 | G53: ='Data_From Access 1721 A1'!E39 -> 0 | H53: ='Data_From Access 1721 A1'!H39 -> 0 | I53: ='Data_From Access 1721 A1'!F39 -> 0 | J53: ='Data_From Access 1721 A1'!J39 -> 0 | K53: ='Data_From Access 1721 A1'!K39 -> 0 | L53: =IF(ISBLANK(transkasi[[#This Row],[GAJI POKOK]]),"",0.24%*transkasi[[#This Row],[GAJI POKOK]]) -> 0 | M53: =0.3%*transkasi[[#This Row],[GAJI POKOK]] -> 0 | N53: =SUM(transkasi[[#This Row],[GAJI POKOK]:[Jaminan Kematian/JK (0,3%)]]) -> 0 | O53: ='Data_From Access 1721 A1'!L39 -> 00:00:00 | P53: ='Data_From Access 1721 A1'!M39 -> 00:00:00 | Q53: ='Data_From Access 1721 A1'!N39 -> 0 | R53: =IF(transkasi[[#This Row],[PENGHASILAN BRUTO]]*5%>=500000,500000,transkasi[[#This Row],[PENGHASILAN BRUTO]]*5%) -> 0 | S53: =2%*transkasi[[#This Row],[GAJI POKOK]] -> 0 | T53: =1%*transkasi[[#This Row],[GAJI POKOK]] -> 0 | U53: =SUM(transkasi[[#This Row],[BIAYA JABATAN PERBULAN 5%]:[Jaminan Pensiun (JP) dibayar Karyawan (1%)]]) -> 0 | V53: =transkasi[[#This Row],[PENGHASILAN BRUTO]]-transkasi[[#This Row],[Jumlah Pengurangan]] -> 0 | W53: =transkasi[[#This Row],[GAJI POKOK]] -> 0 | X53: =IFERROR(transkasi[[#This Row],[Penghasilan Netto(Bersih) sebulan]]*transkasi[[#This Row],[Masa Kerja]]+transkasi[[#This Row],[THR Setahun]],0) -> 0 | Y53: =IF(ISBLANK(transkasi[[#This Row],[NO]]),"",VLOOKUP(transkasi[[#This Row],[STATUS PTKP]],tarif_ptkp[],2,FALSE)) ->  | Z53: =IFERROR(transkasi[[#This Row],[Penghasilan NETTO (bersih) setahun]]-transkasi[[#This Row],[PTKP (Penghasilan tidak kena pajak) setahun]],0) -> 0 | AA53: =IF(transkasi[[#This Row],[PKP (Penghasilan kena pajak) setahun]]<=0,0,ROUNDDOWN(transkasi[[#This Row],[PKP (Penghasilan kena pajak) setahun]],-3)) -> 0 | AB53: ='Data_From Access 1721 A1'!O39 -> 0 | AC53: ='Data_From Access 1721 A1'!P39 -> 0 | AD53: ='Data_From Access 1721 A1'!Q39 -> 0 | AE53: ='Data_From Access 1721 A1'!R39 -> 0 | AF53: ='Data_From Access 1721 A1'!S39 -> 0 | AG53: =INT(transkasi[[#This Row],[5 %]]+transkasi[[#This Row],[15 %]]+transkasi[[#This Row],[25 %]]+transkasi[[#This Row],[30 %]]+transkasi[[#This Row],[30 %]]+transkasi[[#This Row],[35 %]]/1000*1000) -> 0 | AH53: ='Data_From Access 1721 A1'!T39 -> 0 | AI53: ='Data_From Access 1721 A1'!U39 -> 0 | AJ53: ='Data_From Access 1721 A1'!V39 -> 0 | AK53: 0 | DC53: =INT(transkasi[[#This Row],[JUMLAH PPH PS.21 SETAHUN]]-transkasi[[#This Row],[Kredit Pajak YTDD Jan-Nov + THR]])/1000*1000 -> 0
A54: ='Data_From Access 1721 A1'!A40 ->  | B54: ='Data_From Access 1721 A1'!D40 -> 0 | C54: ='Data_From Access 1721 A1'!G40 -> 0 | D54: ='Data_From Access 1721 A1'!I40 -> 0 | E54: ='Data_From Access 1721 A1'!B40 -> 0 | F54: ='Data_From Access 1721 A1'!C40 -> 0 | G54: ='Data_From Access 1721 A1'!E40 -> 0 | H54: ='Data_From Access 1721 A1'!H40 -> 0 | I54: ='Data_From Access 1721 A1'!F40 -> 0 | J54: ='Data_From Access 1721 A1'!J40 -> 0 | K54: ='Data_From Access 1721 A1'!K40 -> 0 | L54: =IF(ISBLANK(transkasi[[#This Row],[GAJI POKOK]]),"",0.24%*transkasi[[#This Row],[GAJI POKOK]]) -> 0 | M54: =0.3%*transkasi[[#This Row],[GAJI POKOK]] -> 0 | N54: =SUM(transkasi[[#This Row],[GAJI POKOK]:[Jaminan Kematian/JK (0,3%)]]) -> 0 | O54: ='Data_From Access 1721 A1'!L40 -> 00:00:00 | P54: ='Data_From Access 1721 A1'!M40 -> 00:00:00 | Q54: ='Data_From Access 1721 A1'!N40 -> 0 | R54: =IF(transkasi[[#This Row],[PENGHASILAN BRUTO]]*5%>=500000,500000,transkasi[[#This Row],[PENGHASILAN BRUTO]]*5%) -> 0 | S54: =2%*transkasi[[#This Row],[GAJI POKOK]] -> 0 | T54: =1%*transkasi[[#This Row],[GAJI POKOK]] -> 0 | U54: =SUM(transkasi[[#This Row],[BIAYA JABATAN PERBULAN 5%]:[Jaminan Pensiun (JP) dibayar Karyawan (1%)]]) -> 0 | V54: =transkasi[[#This Row],[PENGHASILAN BRUTO]]-transkasi[[#This Row],[Jumlah Pengurangan]] -> 0 | W54: =transkasi[[#This Row],[GAJI POKOK]] -> 0 | X54: =IFERROR(transkasi[[#This Row],[Penghasilan Netto(Bersih) sebulan]]*transkasi[[#This Row],[Masa Kerja]]+transkasi[[#This Row],[THR Setahun]],0) -> 0 | Y54: =IF(ISBLANK(transkasi[[#This Row],[NO]]),"",VLOOKUP(transkasi[[#This Row],[STATUS PTKP]],tarif_ptkp[],2,FALSE)) ->  | Z54: =IFERROR(transkasi[[#This Row],[Penghasilan NETTO (bersih) setahun]]-transkasi[[#This Row],[PTKP (Penghasilan tidak kena pajak) setahun]],0) -> 0 | AA54: =IF(transkasi[[#This Row],[PKP (Penghasilan kena pajak) setahun]]<=0,0,ROUNDDOWN(transkasi[[#This Row],[PKP (Penghasilan kena pajak) setahun]],-3)) -> 0 | AB54: ='Data_From Access 1721 A1'!O40 -> 0 | AC54: ='Data_From Access 1721 A1'!P40 -> 0 | AD54: ='Data_From Access 1721 A1'!Q40 -> 0 | AE54: ='Data_From Access 1721 A1'!R40 -> 0 | AF54: ='Data_From Access 1721 A1'!S40 -> 0 | AG54: =INT(transkasi[[#This Row],[5 %]]+transkasi[[#This Row],[15 %]]+transkasi[[#This Row],[25 %]]+transkasi[[#This Row],[30 %]]+transkasi[[#This Row],[30 %]]+transkasi[[#This Row],[35 %]]/1000*1000) -> 0 | AH54: ='Data_From Access 1721 A1'!T40 -> 0 | AI54: ='Data_From Access 1721 A1'!U40 -> 0 | AJ54: ='Data_From Access 1721 A1'!V40 -> 0 | AK54: 0 | DC54: =INT(transkasi[[#This Row],[JUMLAH PPH PS.21 SETAHUN]]-transkasi[[#This Row],[Kredit Pajak YTDD Jan-Nov + THR]])/1000*1000 -> 0
A55: ='Data_From Access 1721 A1'!A41 ->  | B55: ='Data_From Access 1721 A1'!D41 -> 0 | C55: ='Data_From Access 1721 A1'!G41 -> 0 | D55: ='Data_From Access 1721 A1'!I41 -> 0 | E55: ='Data_From Access 1721 A1'!B41 -> 0 | F55: ='Data_From Access 1721 A1'!C41 -> 0 | G55: ='Data_From Access 1721 A1'!E41 -> 0 | H55: ='Data_From Access 1721 A1'!H41 -> 0 | I55: ='Data_From Access 1721 A1'!F41 -> 0 | J55: ='Data_From Access 1721 A1'!J41 -> 0 | K55: ='Data_From Access 1721 A1'!K41 -> 0 | L55: =IF(ISBLANK(transkasi[[#This Row],[GAJI POKOK]]),"",0.24%*transkasi[[#This Row],[GAJI POKOK]]) -> 0 | M55: =0.3%*transkasi[[#This Row],[GAJI POKOK]] -> 0 | N55: =SUM(transkasi[[#This Row],[GAJI POKOK]:[Jaminan Kematian/JK (0,3%)]]) -> 0 | O55: ='Data_From Access 1721 A1'!L41 -> 00:00:00 | P55: ='Data_From Access 1721 A1'!M41 -> 00:00:00 | Q55: ='Data_From Access 1721 A1'!N41 -> 0 | R55: =IF(transkasi[[#This Row],[PENGHASILAN BRUTO]]*5%>=500000,500000,transkasi[[#This Row],[PENGHASILAN BRUTO]]*5%) -> 0 | S55: =2%*transkasi[[#This Row],[GAJI POKOK]] -> 0 | T55: =1%*transkasi[[#This Row],[GAJI POKOK]] -> 0 | U55: =SUM(transkasi[[#This Row],[BIAYA JABATAN PERBULAN 5%]:[Jaminan Pensiun (JP) dibayar Karyawan (1%)]]) -> 0 | V55: =transkasi[[#This Row],[PENGHASILAN BRUTO]]-transkasi[[#This Row],[Jumlah Pengurangan]] -> 0 | W55: =transkasi[[#This Row],[GAJI POKOK]] -> 0 | X55: =IFERROR(transkasi[[#This Row],[Penghasilan Netto(Bersih) sebulan]]*transkasi[[#This Row],[Masa Kerja]]+transkasi[[#This Row],[THR Setahun]],0) -> 0 | Y55: =IF(ISBLANK(transkasi[[#This Row],[NO]]),"",VLOOKUP(transkasi[[#This Row],[STATUS PTKP]],tarif_ptkp[],2,FALSE)) ->  | Z55: =IFERROR(transkasi[[#This Row],[Penghasilan NETTO (bersih) setahun]]-transkasi[[#This Row],[PTKP (Penghasilan tidak kena pajak) setahun]],0) -> 0 | AA55: =IF(transkasi[[#This Row],[PKP (Penghasilan kena pajak) setahun]]<=0,0,ROUNDDOWN(transkasi[[#This Row],[PKP (Penghasilan kena pajak) setahun]],-3)) -> 0 | AB55: ='Data_From Access 1721 A1'!O41 -> 0 | AC55: ='Data_From Access 1721 A1'!P41 -> 0 | AD55: ='Data_From Access 1721 A1'!Q41 -> 0 | AE55: ='Data_From Access 1721 A1'!R41 -> 0 | AF55: ='Data_From Access 1721 A1'!S41 -> 0 | AG55: =INT(transkasi[[#This Row],[5 %]]+transkasi[[#This Row],[15 %]]+transkasi[[#This Row],[25 %]]+transkasi[[#This Row],[30 %]]+transkasi[[#This Row],[30 %]]+transkasi[[#This Row],[35 %]]/1000*1000) -> 0 | AH55: ='Data_From Access 1721 A1'!T41 -> 0 | AI55: ='Data_From Access 1721 A1'!U41 -> 0 | AJ55: ='Data_From Access 1721 A1'!V41 -> 0 | AK55: 0 | DC55: =INT(transkasi[[#This Row],[JUMLAH PPH PS.21 SETAHUN]]-transkasi[[#This Row],[Kredit Pajak YTDD Jan-Nov + THR]])/1000*1000 -> 0
A56: ='Data_From Access 1721 A1'!A42 ->  | B56: ='Data_From Access 1721 A1'!D42 -> 0 | C56: ='Data_From Access 1721 A1'!G42 -> 0 | D56: ='Data_From Access 1721 A1'!I42 -> 0 | E56: ='Data_From Access 1721 A1'!B42 -> 0 | F56: ='Data_From Access 1721 A1'!C42 -> 0 | G56: ='Data_From Access 1721 A1'!E42 -> 0 | H56: ='Data_From Access 1721 A1'!H42 -> 0 | I56: ='Data_From Access 1721 A1'!F42 -> 0 | J56: ='Data_From Access 1721 A1'!J42 -> 0 | K56: ='Data_From Access 1721 A1'!K42 -> 0 | L56: =IF(ISBLANK(transkasi[[#This Row],[GAJI POKOK]]),"",0.24%*transkasi[[#This Row],[GAJI POKOK]]) -> 0 | M56: =0.3%*transkasi[[#This Row],[GAJI POKOK]] -> 0 | N56: =SUM(transkasi[[#This Row],[GAJI POKOK]:[Jaminan Kematian/JK (0,3%)]]) -> 0 | O56: ='Data_From Access 1721 A1'!L42 -> 00:00:00 | P56: ='Data_From Access 1721 A1'!M42 -> 00:00:00 | Q56: ='Data_From Access 1721 A1'!N42 -> 0 | R56: =IF(transkasi[[#This Row],[PENGHASILAN BRUTO]]*5%>=500000,500000,transkasi[[#This Row],[PENGHASILAN BRUTO]]*5%) -> 0 | S56: =2%*transkasi[[#This Row],[GAJI POKOK]] -> 0 | T56: =1%*transkasi[[#This Row],[GAJI POKOK]] -> 0 | U56: =SUM(transkasi[[#This Row],[BIAYA JABATAN PERBULAN 5%]:[Jaminan Pensiun (JP) dibayar Karyawan (1%)]]) -> 0 | V56: =transkasi[[#This Row],[PENGHASILAN BRUTO]]-transkasi[[#This Row],[Jumlah Pengurangan]] -> 0 | W56: =transkasi[[#This Row],[GAJI POKOK]] -> 0 | X56: =IFERROR(transkasi[[#This Row],[Penghasilan Netto(Bersih) sebulan]]*transkasi[[#This Row],[Masa Kerja]]+transkasi[[#This Row],[THR Setahun]],0) -> 0 | Y56: =IF(ISBLANK(transkasi[[#This Row],[NO]]),"",VLOOKUP(transkasi[[#This Row],[STATUS PTKP]],tarif_ptkp[],2,FALSE)) ->  | Z56: =IFERROR(transkasi[[#This Row],[Penghasilan NETTO (bersih) setahun]]-transkasi[[#This Row],[PTKP (Penghasilan tidak kena pajak) setahun]],0) -> 0 | AA56: =IF(transkasi[[#This Row],[PKP (Penghasilan kena pajak) setahun]]<=0,0,ROUNDDOWN(transkasi[[#This Row],[PKP (Penghasilan kena pajak) setahun]],-3)) -> 0 | AB56: ='Data_From Access 1721 A1'!O42 -> 0 | AC56: ='Data_From Access 1721 A1'!P42 -> 0 | AD56: ='Data_From Access 1721 A1'!Q42 -> 0 | AE56: ='Data_From Access 1721 A1'!R42 -> 0 | AF56: ='Data_From Access 1721 A1'!S42 -> 0 | AG56: =INT(transkasi[[#This Row],[5 %]]+transkasi[[#This Row],[15 %]]+transkasi[[#This Row],[25 %]]+transkasi[[#This Row],[30 %]]+transkasi[[#This Row],[30 %]]+transkasi[[#This Row],[35 %]]/1000*1000) -> 0 | AH56: ='Data_From Access 1721 A1'!T42 -> 0 | AI56: ='Data_From Access 1721 A1'!U42 -> 0 | AJ56: ='Data_From Access 1721 A1'!V42 -> 0 | AK56: 0 | DC56: =INT(transkasi[[#This Row],[JUMLAH PPH PS.21 SETAHUN]]-transkasi[[#This Row],[Kredit Pajak YTDD Jan-Nov + THR]])/1000*1000 -> 0
A57: ='Data_From Access 1721 A1'!A43 ->  | B57: ='Data_From Access 1721 A1'!D43 -> 0 | C57: ='Data_From Access 1721 A1'!G43 -> 0 | D57: ='Data_From Access 1721 A1'!I43 -> 0 | E57: ='Data_From Access 1721 A1'!B43 -> 0 | F57: ='Data_From Access 1721 A1'!C43 -> 0 | G57: ='Data_From Access 1721 A1'!E43 -> 0 | H57: ='Data_From Access 1721 A1'!H43 -> 0 | I57: ='Data_From Access 1721 A1'!F43 -> 0 | J57: ='Data_From Access 1721 A1'!J43 -> 0 | K57: ='Data_From Access 1721 A1'!K43 -> 0 | L57: =IF(ISBLANK(transkasi[[#This Row],[GAJI POKOK]]),"",0.24%*transkasi[[#This Row],[GAJI POKOK]]) -> 0 | M57: =0.3%*transkasi[[#This Row],[GAJI POKOK]] -> 0 | N57: =SUM(transkasi[[#This Row],[GAJI POKOK]:[Jaminan Kematian/JK (0,3%)]]) -> 0 | O57: ='Data_From Access 1721 A1'!L43 -> 00:00:00 | P57: ='Data_From Access 1721 A1'!M43 -> 00:00:00 | Q57: ='Data_From Access 1721 A1'!N43 -> 0 | R57: =IF(transkasi[[#This Row],[PENGHASILAN BRUTO]]*5%>=500000,500000,transkasi[[#This Row],[PENGHASILAN BRUTO]]*5%) -> 0 | S57: =2%*transkasi[[#This Row],[GAJI POKOK]] -> 0 | T57: =1%*transkasi[[#This Row],[GAJI POKOK]] -> 0 | U57: =SUM(transkasi[[#This Row],[BIAYA JABATAN PERBULAN 5%]:[Jaminan Pensiun (JP) dibayar Karyawan (1%)]]) -> 0 | V57: =transkasi[[#This Row],[PENGHASILAN BRUTO]]-transkasi[[#This Row],[Jumlah Pengurangan]] -> 0 | W57: =transkasi[[#This Row],[GAJI POKOK]] -> 0 | X57: =IFERROR(transkasi[[#This Row],[Penghasilan Netto(Bersih) sebulan]]*transkasi[[#This Row],[Masa Kerja]]+transkasi[[#This Row],[THR Setahun]],0) -> 0 | Y57: =IF(ISBLANK(transkasi[[#This Row],[NO]]),"",VLOOKUP(transkasi[[#This Row],[STATUS PTKP]],tarif_ptkp[],2,FALSE)) ->  | Z57: =IFERROR(transkasi[[#This Row],[Penghasilan NETTO (bersih) setahun]]-transkasi[[#This Row],[PTKP (Penghasilan tidak kena pajak) setahun]],0) -> 0 | AA57: =IF(transkasi[[#This Row],[PKP (Penghasilan kena pajak) setahun]]<=0,0,ROUNDDOWN(transkasi[[#This Row],[PKP (Penghasilan kena pajak) setahun]],-3)) -> 0 | AB57: ='Data_From Access 1721 A1'!O43 -> 0 | AC57: ='Data_From Access 1721 A1'!P43 -> 0 | AD57: ='Data_From Access 1721 A1'!Q43 -> 0 | AE57: ='Data_From Access 1721 A1'!R43 -> 0 | AF57: ='Data_From Access 1721 A1'!S43 -> 0 | AG57: =INT(transkasi[[#This Row],[5 %]]+transkasi[[#This Row],[15 %]]+transkasi[[#This Row],[25 %]]+transkasi[[#This Row],[30 %]]+transkasi[[#This Row],[30 %]]+transkasi[[#This Row],[35 %]]/1000*1000) -> 0 | AH57: ='Data_From Access 1721 A1'!T43 -> 0 | AI57: ='Data_From Access 1721 A1'!U43 -> 0 | AJ57: ='Data_From Access 1721 A1'!V43 -> 0 | AK57: 0 | DC57: =INT(transkasi[[#This Row],[JUMLAH PPH PS.21 SETAHUN]]-transkasi[[#This Row],[Kredit Pajak YTDD Jan-Nov + THR]])/1000*1000 -> 0
A58: ='Data_From Access 1721 A1'!A44 ->  | B58: ='Data_From Access 1721 A1'!D44 -> 0 | C58: ='Data_From Access 1721 A1'!G44 -> 0 | D58: ='Data_From Access 1721 A1'!I44 -> 0 | E58: ='Data_From Access 1721 A1'!B44 -> 0 | F58: ='Data_From Access 1721 A1'!C44 -> 0 | G58: ='Data_From Access 1721 A1'!E44 -> 0 | H58: ='Data_From Access 1721 A1'!H44 -> 0 | I58: ='Data_From Access 1721 A1'!F44 -> 0 | J58: ='Data_From Access 1721 A1'!J44 -> 0 | K58: ='Data_From Access 1721 A1'!K44 -> 0 | L58: =IF(ISBLANK(transkasi[[#This Row],[GAJI POKOK]]),"",0.24%*transkasi[[#This Row],[GAJI POKOK]]) -> 0 | M58: =0.3%*transkasi[[#This Row],[GAJI POKOK]] -> 0 | N58: =SUM(transkasi[[#This Row],[GAJI POKOK]:[Jaminan Kematian/JK (0,3%)]]) -> 0 | O58: ='Data_From Access 1721 A1'!L44 -> 00:00:00 | P58: ='Data_From Access 1721 A1'!M44 -> 00:00:00 | Q58: ='Data_From Access 1721 A1'!N44 -> 0 | R58: =IF(transkasi[[#This Row],[PENGHASILAN BRUTO]]*5%>=500000,500000,transkasi[[#This Row],[PENGHASILAN BRUTO]]*5%) -> 0 | S58: =2%*transkasi[[#This Row],[GAJI POKOK]] -> 0 | T58: =1%*transkasi[[#This Row],[GAJI POKOK]] -> 0 | U58: =SUM(transkasi[[#This Row],[BIAYA JABATAN PERBULAN 5%]:[Jaminan Pensiun (JP) dibayar Karyawan (1%)]]) -> 0 | V58: =transkasi[[#This Row],[PENGHASILAN BRUTO]]-transkasi[[#This Row],[Jumlah Pengurangan]] -> 0 | W58: =transkasi[[#This Row],[GAJI POKOK]] -> 0 | X58: =IFERROR(transkasi[[#This Row],[Penghasilan Netto(Bersih) sebulan]]*transkasi[[#This Row],[Masa Kerja]]+transkasi[[#This Row],[THR Setahun]],0) -> 0 | Y58: =IF(ISBLANK(transkasi[[#This Row],[NO]]),"",VLOOKUP(transkasi[[#This Row],[STATUS PTKP]],tarif_ptkp[],2,FALSE)) ->  | Z58: =IFERROR(transkasi[[#This Row],[Penghasilan NETTO (bersih) setahun]]-transkasi[[#This Row],[PTKP (Penghasilan tidak kena pajak) setahun]],0) -> 0 | AA58: =IF(transkasi[[#This Row],[PKP (Penghasilan kena pajak) setahun]]<=0,0,ROUNDDOWN(transkasi[[#This Row],[PKP (Penghasilan kena pajak) setahun]],-3)) -> 0 | AB58: ='Data_From Access 1721 A1'!O44 -> 0 | AC58: ='Data_From Access 1721 A1'!P44 -> 0 | AD58: ='Data_From Access 1721 A1'!Q44 -> 0 | AE58: ='Data_From Access 1721 A1'!R44 -> 0 | AF58: ='Data_From Access 1721 A1'!S44 -> 0 | AG58: =INT(transkasi[[#This Row],[5 %]]+transkasi[[#This Row],[15 %]]+transkasi[[#This Row],[25 %]]+transkasi[[#This Row],[30 %]]+transkasi[[#This Row],[30 %]]+transkasi[[#This Row],[35 %]]/1000*1000) -> 0 | AH58: ='Data_From Access 1721 A1'!T44 -> 0 | AI58: ='Data_From Access 1721 A1'!U44 -> 0 | AJ58: ='Data_From Access 1721 A1'!V44 -> 0 | AK58: 0 | DC58: =INT(transkasi[[#This Row],[JUMLAH PPH PS.21 SETAHUN]]-transkasi[[#This Row],[Kredit Pajak YTDD Jan-Nov + THR]])/1000*1000 -> 0
A59: ='Data_From Access 1721 A1'!A45 ->  | B59: ='Data_From Access 1721 A1'!D45 -> 0 | C59: ='Data_From Access 1721 A1'!G45 -> 0 | D59: ='Data_From Access 1721 A1'!I45 -> 0 | E59: ='Data_From Access 1721 A1'!B45 -> 0 | F59: ='Data_From Access 1721 A1'!C45 -> 0 | G59: ='Data_From Access 1721 A1'!E45 -> 0 | H59: ='Data_From Access 1721 A1'!H45 -> 0 | I59: ='Data_From Access 1721 A1'!F45 -> 0 | J59: ='Data_From Access 1721 A1'!J45 -> 0 | K59: ='Data_From Access 1721 A1'!K45 -> 0 | L59: =IF(ISBLANK(transkasi[[#This Row],[GAJI POKOK]]),"",0.24%*transkasi[[#This Row],[GAJI POKOK]]) -> 0 | M59: =0.3%*transkasi[[#This Row],[GAJI POKOK]] -> 0 | N59: =SUM(transkasi[[#This Row],[GAJI POKOK]:[Jaminan Kematian/JK (0,3%)]]) -> 0 | O59: ='Data_From Access 1721 A1'!L45 -> 00:00:00 | P59: ='Data_From Access 1721 A1'!M45 -> 00:00:00 | Q59: ='Data_From Access 1721 A1'!N45 -> 0 | R59: =IF(transkasi[[#This Row],[PENGHASILAN BRUTO]]*5%>=500000,500000,transkasi[[#This Row],[PENGHASILAN BRUTO]]*5%) -> 0 | S59: =2%*transkasi[[#This Row],[GAJI POKOK]] -> 0 | T59: =1%*transkasi[[#This Row],[GAJI POKOK]] -> 0 | U59: =SUM(transkasi[[#This Row],[BIAYA JABATAN PERBULAN 5%]:[Jaminan Pensiun (JP) dibayar Karyawan (1%)]]) -> 0 | V59: =transkasi[[#This Row],[PENGHASILAN BRUTO]]-transkasi[[#This Row],[Jumlah Pengurangan]] -> 0 | W59: =transkasi[[#This Row],[GAJI POKOK]] -> 0 | X59: =IFERROR(transkasi[[#This Row],[Penghasilan Netto(Bersih) sebulan]]*transkasi[[#This Row],[Masa Kerja]]+transkasi[[#This Row],[THR Setahun]],0) -> 0 | Y59: =IF(ISBLANK(transkasi[[#This Row],[NO]]),"",VLOOKUP(transkasi[[#This Row],[STATUS PTKP]],tarif_ptkp[],2,FALSE)) ->  | Z59: =IFERROR(transkasi[[#This Row],[Penghasilan NETTO (bersih) setahun]]-transkasi[[#This Row],[PTKP (Penghasilan tidak kena pajak) setahun]],0) -> 0 | AA59: =IF(transkasi[[#This Row],[PKP (Penghasilan kena pajak) setahun]]<=0,0,ROUNDDOWN(transkasi[[#This Row],[PKP (Penghasilan kena pajak) setahun]],-3)) -> 0 | AB59: ='Data_From Access 1721 A1'!O45 -> 0 | AC59: ='Data_From Access 1721 A1'!P45 -> 0 | AD59: ='Data_From Access 1721 A1'!Q45 -> 0 | AE59: ='Data_From Access 1721 A1'!R45 -> 0 | AF59: ='Data_From Access 1721 A1'!S45 -> 0 | AG59: =INT(transkasi[[#This Row],[5 %]]+transkasi[[#This Row],[15 %]]+transkasi[[#This Row],[25 %]]+transkasi[[#This Row],[30 %]]+transkasi[[#This Row],[30 %]]+transkasi[[#This Row],[35 %]]/1000*1000) -> 0 | AH59: ='Data_From Access 1721 A1'!T45 -> 0 | AI59: ='Data_From Access 1721 A1'!U45 -> 0 | AJ59: ='Data_From Access 1721 A1'!V45 -> 0 | AK59: 0 | DC59: =INT(transkasi[[#This Row],[JUMLAH PPH PS.21 SETAHUN]]-transkasi[[#This Row],[Kredit Pajak YTDD Jan-Nov + THR]])/1000*1000 -> 0
A60: ='Data_From Access 1721 A1'!A46 ->  | B60: ='Data_From Access 1721 A1'!D46 -> 0 | C60: ='Data_From Access 1721 A1'!G46 -> 0 | D60: ='Data_From Access 1721 A1'!I46 -> 0 | E60: ='Data_From Access 1721 A1'!B46 -> 0 | F60: ='Data_From Access 1721 A1'!C46 -> 0 | G60: ='Data_From Access 1721 A1'!E46 -> 0 | H60: ='Data_From Access 1721 A1'!H46 -> 0 | I60: ='Data_From Access 1721 A1'!F46 -> 0 | J60: ='Data_From Access 1721 A1'!J46 -> 0 | K60: ='Data_From Access 1721 A1'!K46 -> 0 | L60: =IF(ISBLANK(transkasi[[#This Row],[GAJI POKOK]]),"",0.24%*transkasi[[#This Row],[GAJI POKOK]]) -> 0 | M60: =0.3%*transkasi[[#This Row],[GAJI POKOK]] -> 0 | N60: =SUM(transkasi[[#This Row],[GAJI POKOK]:[Jaminan Kematian/JK (0,3%)]]) -> 0 | O60: ='Data_From Access 1721 A1'!L46 -> 00:00:00 | P60: ='Data_From Access 1721 A1'!M46 -> 00:00:00 | Q60: ='Data_From Access 1721 A1'!N46 -> 0 | R60: =IF(transkasi[[#This Row],[PENGHASILAN BRUTO]]*5%>=500000,500000,transkasi[[#This Row],[PENGHASILAN BRUTO]]*5%) -> 0 | S60: =2%*transkasi[[#This Row],[GAJI POKOK]] -> 0 | T60: =1%*transkasi[[#This Row],[GAJI POKOK]] -> 0 | U60: =SUM(transkasi[[#This Row],[BIAYA JABATAN PERBULAN 5%]:[Jaminan Pensiun (JP) dibayar Karyawan (1%)]]) -> 0 | V60: =transkasi[[#This Row],[PENGHASILAN BRUTO]]-transkasi[[#This Row],[Jumlah Pengurangan]] -> 0 | W60: =transkasi[[#This Row],[GAJI POKOK]] -> 0 | X60: =IFERROR(transkasi[[#This Row],[Penghasilan Netto(Bersih) sebulan]]*transkasi[[#This Row],[Masa Kerja]]+transkasi[[#This Row],[THR Setahun]],0) -> 0 | Y60: =IF(ISBLANK(transkasi[[#This Row],[NO]]),"",VLOOKUP(transkasi[[#This Row],[STATUS PTKP]],tarif_ptkp[],2,FALSE)) ->  | Z60: =IFERROR(transkasi[[#This Row],[Penghasilan NETTO (bersih) setahun]]-transkasi[[#This Row],[PTKP (Penghasilan tidak kena pajak) setahun]],0) -> 0 | AA60: =IF(transkasi[[#This Row],[PKP (Penghasilan kena pajak) setahun]]<=0,0,ROUNDDOWN(transkasi[[#This Row],[PKP (Penghasilan kena pajak) setahun]],-3)) -> 0 | AB60: ='Data_From Access 1721 A1'!O46 -> 0 | AC60: ='Data_From Access 1721 A1'!P46 -> 0 | AD60: ='Data_From Access 1721 A1'!Q46 -> 0 | AE60: ='Data_From Access 1721 A1'!R46 -> 0 | AF60: ='Data_From Access 1721 A1'!S46 -> 0 | AG60: =INT(transkasi[[#This Row],[5 %]]+transkasi[[#This Row],[15 %]]+transkasi[[#This Row],[25 %]]+transkasi[[#This Row],[30 %]]+transkasi[[#This Row],[30 %]]+transkasi[[#This Row],[35 %]]/1000*1000) -> 0 | AH60: ='Data_From Access 1721 A1'!T46 -> 0 | AI60: ='Data_From Access 1721 A1'!U46 -> 0 | AJ60: ='Data_From Access 1721 A1'!V46 -> 0 | AK60: 0 | DC60: =INT(transkasi[[#This Row],[JUMLAH PPH PS.21 SETAHUN]]-transkasi[[#This Row],[Kredit Pajak YTDD Jan-Nov + THR]])/1000*1000 -> 0
A61: ='Data_From Access 1721 A1'!A47 ->  | B61: ='Data_From Access 1721 A1'!D47 -> 0 | C61: ='Data_From Access 1721 A1'!G47 -> 0 | D61: ='Data_From Access 1721 A1'!I47 -> 0 | E61: ='Data_From Access 1721 A1'!B47 -> 0 | F61: ='Data_From Access 1721 A1'!C47 -> 0 | G61: ='Data_From Access 1721 A1'!E47 -> 0 | H61: ='Data_From Access 1721 A1'!H47 -> 0 | I61: ='Data_From Access 1721 A1'!F47 -> 0 | J61: ='Data_From Access 1721 A1'!J47 -> 0 | K61: ='Data_From Access 1721 A1'!K47 -> 0 | L61: =IF(ISBLANK(transkasi[[#This Row],[GAJI POKOK]]),"",0.24%*transkasi[[#This Row],[GAJI POKOK]]) -> 0 | M61: =0.3%*transkasi[[#This Row],[GAJI POKOK]] -> 0 | N61: =SUM(transkasi[[#This Row],[GAJI POKOK]:[Jaminan Kematian/JK (0,3%)]]) -> 0 | O61: ='Data_From Access 1721 A1'!L47 -> 00:00:00 | P61: ='Data_From Access 1721 A1'!M47 -> 00:00:00 | Q61: ='Data_From Access 1721 A1'!N47 -> 0 | R61: =IF(transkasi[[#This Row],[PENGHASILAN BRUTO]]*5%>=500000,500000,transkasi[[#This Row],[PENGHASILAN BRUTO]]*5%) -> 0 | S61: =2%*transkasi[[#This Row],[GAJI POKOK]] -> 0 | T61: =1%*transkasi[[#This Row],[GAJI POKOK]] -> 0 | U61: =SUM(transkasi[[#This Row],[BIAYA JABATAN PERBULAN 5%]:[Jaminan Pensiun (JP) dibayar Karyawan (1%)]]) -> 0 | V61: =transkasi[[#This Row],[PENGHASILAN BRUTO]]-transkasi[[#This Row],[Jumlah Pengurangan]] -> 0 | W61: =transkasi[[#This Row],[GAJI POKOK]] -> 0 | X61: =IFERROR(transkasi[[#This Row],[Penghasilan Netto(Bersih) sebulan]]*transkasi[[#This Row],[Masa Kerja]]+transkasi[[#This Row],[THR Setahun]],0) -> 0 | Y61: =IF(ISBLANK(transkasi[[#This Row],[NO]]),"",VLOOKUP(transkasi[[#This Row],[STATUS PTKP]],tarif_ptkp[],2,FALSE)) ->  | Z61: =IFERROR(transkasi[[#This Row],[Penghasilan NETTO (bersih) setahun]]-transkasi[[#This Row],[PTKP (Penghasilan tidak kena pajak) setahun]],0) -> 0 | AA61: =IF(transkasi[[#This Row],[PKP (Penghasilan kena pajak) setahun]]<=0,0,ROUNDDOWN(transkasi[[#This Row],[PKP (Penghasilan kena pajak) setahun]],-3)) -> 0 | AB61: ='Data_From Access 1721 A1'!O47 -> 0 | AC61: ='Data_From Access 1721 A1'!P47 -> 0 | AD61: ='Data_From Access 1721 A1'!Q47 -> 0 | AE61: ='Data_From Access 1721 A1'!R47 -> 0 | AF61: ='Data_From Access 1721 A1'!S47 -> 0 | AG61: =INT(transkasi[[#This Row],[5 %]]+transkasi[[#This Row],[15 %]]+transkasi[[#This Row],[25 %]]+transkasi[[#This Row],[30 %]]+transkasi[[#This Row],[30 %]]+transkasi[[#This Row],[35 %]]/1000*1000) -> 0 | AH61: ='Data_From Access 1721 A1'!T47 -> 0 | AI61: ='Data_From Access 1721 A1'!U47 -> 0 | AJ61: ='Data_From Access 1721 A1'!V47 -> 0 | AK61: 0 | DC61: =INT(transkasi[[#This Row],[JUMLAH PPH PS.21 SETAHUN]]-transkasi[[#This Row],[Kredit Pajak YTDD Jan-Nov + THR]])/1000*1000 -> 0
A62: ='Data_From Access 1721 A1'!A48 ->  | B62: ='Data_From Access 1721 A1'!D48 -> 0 | C62: ='Data_From Access 1721 A1'!G48 -> 0 | D62: ='Data_From Access 1721 A1'!I48 -> 0 | E62: ='Data_From Access 1721 A1'!B48 -> 0 | F62: ='Data_From Access 1721 A1'!C48 -> 0 | G62: ='Data_From Access 1721 A1'!E48 -> 0 | H62: ='Data_From Access 1721 A1'!H48 -> 0 | I62: ='Data_From Access 1721 A1'!F48 -> 0 | J62: ='Data_From Access 1721 A1'!J48 -> 0 | K62: ='Data_From Access 1721 A1'!K48 -> 0 | L62: =IF(ISBLANK(transkasi[[#This Row],[GAJI POKOK]]),"",0.24%*transkasi[[#This Row],[GAJI POKOK]]) -> 0 | M62: =0.3%*transkasi[[#This Row],[GAJI POKOK]] -> 0 | N62: =SUM(transkasi[[#This Row],[GAJI POKOK]:[Jaminan Kematian/JK (0,3%)]]) -> 0 | O62: ='Data_From Access 1721 A1'!L48 -> 00:00:00 | P62: ='Data_From Access 1721 A1'!M48 -> 00:00:00 | Q62: ='Data_From Access 1721 A1'!N48 -> 0 | R62: =IF(transkasi[[#This Row],[PENGHASILAN BRUTO]]*5%>=500000,500000,transkasi[[#This Row],[PENGHASILAN BRUTO]]*5%) -> 0 | S62: =2%*transkasi[[#This Row],[GAJI POKOK]] -> 0 | T62: =1%*transkasi[[#This Row],[GAJI POKOK]] -> 0 | U62: =SUM(transkasi[[#This Row],[BIAYA JABATAN PERBULAN 5%]:[Jaminan Pensiun (JP) dibayar Karyawan (1%)]]) -> 0 | V62: =transkasi[[#This Row],[PENGHASILAN BRUTO]]-transkasi[[#This Row],[Jumlah Pengurangan]] -> 0 | W62: =transkasi[[#This Row],[GAJI POKOK]] -> 0 | X62: =IFERROR(transkasi[[#This Row],[Penghasilan Netto(Bersih) sebulan]]*transkasi[[#This Row],[Masa Kerja]]+transkasi[[#This Row],[THR Setahun]],0) -> 0 | Y62: =IF(ISBLANK(transkasi[[#This Row],[NO]]),"",VLOOKUP(transkasi[[#This Row],[STATUS PTKP]],tarif_ptkp[],2,FALSE)) ->  | Z62: =IFERROR(transkasi[[#This Row],[Penghasilan NETTO (bersih) setahun]]-transkasi[[#This Row],[PTKP (Penghasilan tidak kena pajak) setahun]],0) -> 0 | AA62: =IF(transkasi[[#This Row],[PKP (Penghasilan kena pajak) setahun]]<=0,0,ROUNDDOWN(transkasi[[#This Row],[PKP (Penghasilan kena pajak) setahun]],-3)) -> 0 | AB62: ='Data_From Access 1721 A1'!O48 -> 0 | AC62: ='Data_From Access 1721 A1'!P48 -> 0 | AD62: ='Data_From Access 1721 A1'!Q48 -> 0 | AE62: ='Data_From Access 1721 A1'!R48 -> 0 | AF62: ='Data_From Access 1721 A1'!S48 -> 0 | AG62: =INT(transkasi[[#This Row],[5 %]]+transkasi[[#This Row],[15 %]]+transkasi[[#This Row],[25 %]]+transkasi[[#This Row],[30 %]]+transkasi[[#This Row],[30 %]]+transkasi[[#This Row],[35 %]]/1000*1000) -> 0 | AH62: ='Data_From Access 1721 A1'!T48 -> 0 | AI62: ='Data_From Access 1721 A1'!U48 -> 0 | AJ62: ='Data_From Access 1721 A1'!V48 -> 0 | AK62: 0 | DC62: =INT(transkasi[[#This Row],[JUMLAH PPH PS.21 SETAHUN]]-transkasi[[#This Row],[Kredit Pajak YTDD Jan-Nov + THR]])/1000*1000 -> 0
A63: ='Data_From Access 1721 A1'!A49 ->  | B63: ='Data_From Access 1721 A1'!D49 -> 0 | C63: ='Data_From Access 1721 A1'!G49 -> 0 | D63: ='Data_From Access 1721 A1'!I49 -> 0 | E63: ='Data_From Access 1721 A1'!B49 -> 0 | F63: ='Data_From Access 1721 A1'!C49 -> 0 | G63: ='Data_From Access 1721 A1'!E49 -> 0 | H63: ='Data_From Access 1721 A1'!H49 -> 0 | I63: ='Data_From Access 1721 A1'!F49 -> 0 | J63: ='Data_From Access 1721 A1'!J49 -> 0 | K63: ='Data_From Access 1721 A1'!K49 -> 0 | L63: =IF(ISBLANK(transkasi[[#This Row],[GAJI POKOK]]),"",0.24%*transkasi[[#This Row],[GAJI POKOK]]) -> 0 | M63: =0.3%*transkasi[[#This Row],[GAJI POKOK]] -> 0 | N63: =SUM(transkasi[[#This Row],[GAJI POKOK]:[Jaminan Kematian/JK (0,3%)]]) -> 0 | O63: ='Data_From Access 1721 A1'!L49 -> 00:00:00 | P63: ='Data_From Access 1721 A1'!M49 -> 00:00:00 | Q63: ='Data_From Access 1721 A1'!N49 -> 0 | R63: =IF(transkasi[[#This Row],[PENGHASILAN BRUTO]]*5%>=500000,500000,transkasi[[#This Row],[PENGHASILAN BRUTO]]*5%) -> 0 | S63: =2%*transkasi[[#This Row],[GAJI POKOK]] -> 0 | T63: =1%*transkasi[[#This Row],[GAJI POKOK]] -> 0 | U63: =SUM(transkasi[[#This Row],[BIAYA JABATAN PERBULAN 5%]:[Jaminan Pensiun (JP) dibayar Karyawan (1%)]]) -> 0 | V63: =transkasi[[#This Row],[PENGHASILAN BRUTO]]-transkasi[[#This Row],[Jumlah Pengurangan]] -> 0 | W63: =transkasi[[#This Row],[GAJI POKOK]] -> 0 | X63: =IFERROR(transkasi[[#This Row],[Penghasilan Netto(Bersih) sebulan]]*transkasi[[#This Row],[Masa Kerja]]+transkasi[[#This Row],[THR Setahun]],0) -> 0 | Y63: =IF(ISBLANK(transkasi[[#This Row],[NO]]),"",VLOOKUP(transkasi[[#This Row],[STATUS PTKP]],tarif_ptkp[],2,FALSE)) ->  | Z63: =IFERROR(transkasi[[#This Row],[Penghasilan NETTO (bersih) setahun]]-transkasi[[#This Row],[PTKP (Penghasilan tidak kena pajak) setahun]],0) -> 0 | AA63: =IF(transkasi[[#This Row],[PKP (Penghasilan kena pajak) setahun]]<=0,0,ROUNDDOWN(transkasi[[#This Row],[PKP (Penghasilan kena pajak) setahun]],-3)) -> 0 | AB63: ='Data_From Access 1721 A1'!O49 -> 0 | AC63: ='Data_From Access 1721 A1'!P49 -> 0 | AD63: ='Data_From Access 1721 A1'!Q49 -> 0 | AE63: ='Data_From Access 1721 A1'!R49 -> 0 | AF63: ='Data_From Access 1721 A1'!S49 -> 0 | AG63: =INT(transkasi[[#This Row],[5 %]]+transkasi[[#This Row],[15 %]]+transkasi[[#This Row],[25 %]]+transkasi[[#This Row],[30 %]]+transkasi[[#This Row],[30 %]]+transkasi[[#This Row],[35 %]]/1000*1000) -> 0 | AH63: ='Data_From Access 1721 A1'!T49 -> 0 | AI63: ='Data_From Access 1721 A1'!U49 -> 0 | AJ63: ='Data_From Access 1721 A1'!V49 -> 0 | AK63: 0 | DC63: =INT(transkasi[[#This Row],[JUMLAH PPH PS.21 SETAHUN]]-transkasi[[#This Row],[Kredit Pajak YTDD Jan-Nov + THR]])/1000*1000 -> 0
A64: ='Data_From Access 1721 A1'!A50 ->  | B64: ='Data_From Access 1721 A1'!D50 -> 0 | C64: ='Data_From Access 1721 A1'!G50 -> 0 | D64: ='Data_From Access 1721 A1'!I50 -> 0 | E64: ='Data_From Access 1721 A1'!B50 -> 0 | F64: ='Data_From Access 1721 A1'!C50 -> 0 | G64: ='Data_From Access 1721 A1'!E50 -> 0 | H64: ='Data_From Access 1721 A1'!H50 -> 0 | I64: ='Data_From Access 1721 A1'!F50 -> 0 | J64: ='Data_From Access 1721 A1'!J50 -> 0 | K64: ='Data_From Access 1721 A1'!K50 -> 0 | L64: =IF(ISBLANK(transkasi[[#This Row],[GAJI POKOK]]),"",0.24%*transkasi[[#This Row],[GAJI POKOK]]) -> 0 | M64: =0.3%*transkasi[[#This Row],[GAJI POKOK]] -> 0 | N64: =SUM(transkasi[[#This Row],[GAJI POKOK]:[Jaminan Kematian/JK (0,3%)]]) -> 0 | O64: ='Data_From Access 1721 A1'!L50 -> 00:00:00 | P64: ='Data_From Access 1721 A1'!M50 -> 00:00:00 | Q64: ='Data_From Access 1721 A1'!N50 -> 0 | R64: =IF(transkasi[[#This Row],[PENGHASILAN BRUTO]]*5%>=500000,500000,transkasi[[#This Row],[PENGHASILAN BRUTO]]*5%) -> 0 | S64: =2%*transkasi[[#This Row],[GAJI POKOK]] -> 0 | T64: =1%*transkasi[[#This Row],[GAJI POKOK]] -> 0 | U64: =SUM(transkasi[[#This Row],[BIAYA JABATAN PERBULAN 5%]:[Jaminan Pensiun (JP) dibayar Karyawan (1%)]]) -> 0 | V64: =transkasi[[#This Row],[PENGHASILAN BRUTO]]-transkasi[[#This Row],[Jumlah Pengurangan]] -> 0 | W64: =transkasi[[#This Row],[GAJI POKOK]] -> 0 | X64: =IFERROR(transkasi[[#This Row],[Penghasilan Netto(Bersih) sebulan]]*transkasi[[#This Row],[Masa Kerja]]+transkasi[[#This Row],[THR Setahun]],0) -> 0 | Y64: =IF(ISBLANK(transkasi[[#This Row],[NO]]),"",VLOOKUP(transkasi[[#This Row],[STATUS PTKP]],tarif_ptkp[],2,FALSE)) ->  | Z64: =IFERROR(transkasi[[#This Row],[Penghasilan NETTO (bersih) setahun]]-transkasi[[#This Row],[PTKP (Penghasilan tidak kena pajak) setahun]],0) -> 0 | AA64: =IF(transkasi[[#This Row],[PKP (Penghasilan kena pajak) setahun]]<=0,0,ROUNDDOWN(transkasi[[#This Row],[PKP (Penghasilan kena pajak) setahun]],-3)) -> 0 | AB64: ='Data_From Access 1721 A1'!O50 -> 0 | AC64: ='Data_From Access 1721 A1'!P50 -> 0 | AD64: ='Data_From Access 1721 A1'!Q50 -> 0 | AE64: ='Data_From Access 1721 A1'!R50 -> 0 | AF64: ='Data_From Access 1721 A1'!S50 -> 0 | AG64: =INT(transkasi[[#This Row],[5 %]]+transkasi[[#This Row],[15 %]]+transkasi[[#This Row],[25 %]]+transkasi[[#This Row],[30 %]]+transkasi[[#This Row],[30 %]]+transkasi[[#This Row],[35 %]]/1000*1000) -> 0 | AH64: ='Data_From Access 1721 A1'!T50 -> 0 | AI64: ='Data_From Access 1721 A1'!U50 -> 0 | AJ64: ='Data_From Access 1721 A1'!V50 -> 0 | AK64: 0 | DC64: =INT(transkasi[[#This Row],[JUMLAH PPH PS.21 SETAHUN]]-transkasi[[#This Row],[Kredit Pajak YTDD Jan-Nov + THR]])/1000*1000 -> 0
A65: ='Data_From Access 1721 A1'!A51 ->  | B65: ='Data_From Access 1721 A1'!D51 -> 0 | C65: ='Data_From Access 1721 A1'!G51 -> 0 | D65: ='Data_From Access 1721 A1'!I51 -> 0 | E65: ='Data_From Access 1721 A1'!B51 -> 0 | F65: ='Data_From Access 1721 A1'!C51 -> 0 | G65: ='Data_From Access 1721 A1'!E51 -> 0 | H65: ='Data_From Access 1721 A1'!H51 -> 0 | I65: ='Data_From Access 1721 A1'!F51 -> 0 | J65: ='Data_From Access 1721 A1'!J51 -> 0 | K65: ='Data_From Access 1721 A1'!K51 -> 0 | L65: =IF(ISBLANK(transkasi[[#This Row],[GAJI POKOK]]),"",0.24%*transkasi[[#This Row],[GAJI POKOK]]) -> 0 | M65: =0.3%*transkasi[[#This Row],[GAJI POKOK]] -> 0 | N65: =SUM(transkasi[[#This Row],[GAJI POKOK]:[Jaminan Kematian/JK (0,3%)]]) -> 0 | O65: ='Data_From Access 1721 A1'!L51 -> 00:00:00 | P65: ='Data_From Access 1721 A1'!M51 -> 00:00:00 | Q65: ='Data_From Access 1721 A1'!N51 -> 0 | R65: =IF(transkasi[[#This Row],[PENGHASILAN BRUTO]]*5%>=500000,500000,transkasi[[#This Row],[PENGHASILAN BRUTO]]*5%) -> 0 | S65: =2%*transkasi[[#This Row],[GAJI POKOK]] -> 0 | T65: =1%*transkasi[[#This Row],[GAJI POKOK]] -> 0 | U65: =SUM(transkasi[[#This Row],[BIAYA JABATAN PERBULAN 5%]:[Jaminan Pensiun (JP) dibayar Karyawan (1%)]]) -> 0 | V65: =transkasi[[#This Row],[PENGHASILAN BRUTO]]-transkasi[[#This Row],[Jumlah Pengurangan]] -> 0 | W65: =transkasi[[#This Row],[GAJI POKOK]] -> 0 | X65: =IFERROR(transkasi[[#This Row],[Penghasilan Netto(Bersih) sebulan]]*transkasi[[#This Row],[Masa Kerja]]+transkasi[[#This Row],[THR Setahun]],0) -> 0 | Y65: =IF(ISBLANK(transkasi[[#This Row],[NO]]),"",VLOOKUP(transkasi[[#This Row],[STATUS PTKP]],tarif_ptkp[],2,FALSE)) ->  | Z65: =IFERROR(transkasi[[#This Row],[Penghasilan NETTO (bersih) setahun]]-transkasi[[#This Row],[PTKP (Penghasilan tidak kena pajak) setahun]],0) -> 0 | AA65: =IF(transkasi[[#This Row],[PKP (Penghasilan kena pajak) setahun]]<=0,0,ROUNDDOWN(transkasi[[#This Row],[PKP (Penghasilan kena pajak) setahun]],-3)) -> 0 | AB65: ='Data_From Access 1721 A1'!O51 -> 0 | AC65: ='Data_From Access 1721 A1'!P51 -> 0 | AD65: ='Data_From Access 1721 A1'!Q51 -> 0 | AE65: ='Data_From Access 1721 A1'!R51 -> 0 | AF65: ='Data_From Access 1721 A1'!S51 -> 0 | AG65: =INT(transkasi[[#This Row],[5 %]]+transkasi[[#This Row],[15 %]]+transkasi[[#This Row],[25 %]]+transkasi[[#This Row],[30 %]]+transkasi[[#This Row],[30 %]]+transkasi[[#This Row],[35 %]]/1000*1000) -> 0 | AH65: ='Data_From Access 1721 A1'!T51 -> 0 | AI65: ='Data_From Access 1721 A1'!U51 -> 0 | AJ65: ='Data_From Access 1721 A1'!V51 -> 0 | AK65: 0 | DC65: =INT(transkasi[[#This Row],[JUMLAH PPH PS.21 SETAHUN]]-transkasi[[#This Row],[Kredit Pajak YTDD Jan-Nov + THR]])/1000*1000 -> 0
A66: ='Data_From Access 1721 A1'!A52 ->  | B66: ='Data_From Access 1721 A1'!D52 -> 0 | C66: ='Data_From Access 1721 A1'!G52 -> 0 | D66: ='Data_From Access 1721 A1'!I52 -> 0 | E66: ='Data_From Access 1721 A1'!B52 -> 0 | F66: ='Data_From Access 1721 A1'!C52 -> 0 | G66: ='Data_From Access 1721 A1'!E52 -> 0 | H66: ='Data_From Access 1721 A1'!H52 -> 0 | I66: ='Data_From Access 1721 A1'!F52 -> 0 | J66: ='Data_From Access 1721 A1'!J52 -> 0 | K66: ='Data_From Access 1721 A1'!K52 -> 0 | L66: =IF(ISBLANK(transkasi[[#This Row],[GAJI POKOK]]),"",0.24%*transkasi[[#This Row],[GAJI POKOK]]) -> 0 | M66: =0.3%*transkasi[[#This Row],[GAJI POKOK]] -> 0 | N66: =SUM(transkasi[[#This Row],[GAJI POKOK]:[Jaminan Kematian/JK (0,3%)]]) -> 0 | O66: ='Data_From Access 1721 A1'!L52 -> 00:00:00 | P66: ='Data_From Access 1721 A1'!M52 -> 00:00:00 | Q66: ='Data_From Access 1721 A1'!N52 -> 0 | R66: =IF(transkasi[[#This Row],[PENGHASILAN BRUTO]]*5%>=500000,500000,transkasi[[#This Row],[PENGHASILAN BRUTO]]*5%) -> 0 | S66: =2%*transkasi[[#This Row],[GAJI POKOK]] -> 0 | T66: =1%*transkasi[[#This Row],[GAJI POKOK]] -> 0 | U66: =SUM(transkasi[[#This Row],[BIAYA JABATAN PERBULAN 5%]:[Jaminan Pensiun (JP) dibayar Karyawan (1%)]]) -> 0 | V66: =transkasi[[#This Row],[PENGHASILAN BRUTO]]-transkasi[[#This Row],[Jumlah Pengurangan]] -> 0 | W66: =transkasi[[#This Row],[GAJI POKOK]] -> 0 | X66: =IFERROR(transkasi[[#This Row],[Penghasilan Netto(Bersih) sebulan]]*transkasi[[#This Row],[Masa Kerja]]+transkasi[[#This Row],[THR Setahun]],0) -> 0 | Y66: =IF(ISBLANK(transkasi[[#This Row],[NO]]),"",VLOOKUP(transkasi[[#This Row],[STATUS PTKP]],tarif_ptkp[],2,FALSE)) ->  | Z66: =IFERROR(transkasi[[#This Row],[Penghasilan NETTO (bersih) setahun]]-transkasi[[#This Row],[PTKP (Penghasilan tidak kena pajak) setahun]],0) -> 0 | AA66: =IF(transkasi[[#This Row],[PKP (Penghasilan kena pajak) setahun]]<=0,0,ROUNDDOWN(transkasi[[#This Row],[PKP (Penghasilan kena pajak) setahun]],-3)) -> 0 | AB66: ='Data_From Access 1721 A1'!O52 -> 0 | AC66: ='Data_From Access 1721 A1'!P52 -> 0 | AD66: ='Data_From Access 1721 A1'!Q52 -> 0 | AE66: ='Data_From Access 1721 A1'!R52 -> 0 | AF66: ='Data_From Access 1721 A1'!S52 -> 0 | AG66: =INT(transkasi[[#This Row],[5 %]]+transkasi[[#This Row],[15 %]]+transkasi[[#This Row],[25 %]]+transkasi[[#This Row],[30 %]]+transkasi[[#This Row],[30 %]]+transkasi[[#This Row],[35 %]]/1000*1000) -> 0 | AH66: ='Data_From Access 1721 A1'!T52 -> 0 | AI66: ='Data_From Access 1721 A1'!U52 -> 0 | AJ66: ='Data_From Access 1721 A1'!V52 -> 0 | AK66: 0 | DC66: =INT(transkasi[[#This Row],[JUMLAH PPH PS.21 SETAHUN]]-transkasi[[#This Row],[Kredit Pajak YTDD Jan-Nov + THR]])/1000*1000 -> 0
A67: ='Data_From Access 1721 A1'!A53 ->  | B67: ='Data_From Access 1721 A1'!D53 -> 0 | C67: ='Data_From Access 1721 A1'!G53 -> 0 | D67: ='Data_From Access 1721 A1'!I53 -> 0 | E67: ='Data_From Access 1721 A1'!B53 -> 0 | F67: ='Data_From Access 1721 A1'!C53 -> 0 | G67: ='Data_From Access 1721 A1'!E53 -> 0 | H67: ='Data_From Access 1721 A1'!H53 -> 0 | I67: ='Data_From Access 1721 A1'!F53 -> 0 | J67: ='Data_From Access 1721 A1'!J53 -> 0 | K67: ='Data_From Access 1721 A1'!K53 -> 0 | L67: =IF(ISBLANK(transkasi[[#This Row],[GAJI POKOK]]),"",0.24%*transkasi[[#This Row],[GAJI POKOK]]) -> 0 | M67: =0.3%*transkasi[[#This Row],[GAJI POKOK]] -> 0 | N67: =SUM(transkasi[[#This Row],[GAJI POKOK]:[Jaminan Kematian/JK (0,3%)]]) -> 0 | O67: ='Data_From Access 1721 A1'!L53 -> 00:00:00 | P67: ='Data_From Access 1721 A1'!M53 -> 00:00:00 | Q67: ='Data_From Access 1721 A1'!N53 -> 0 | R67: =IF(transkasi[[#This Row],[PENGHASILAN BRUTO]]*5%>=500000,500000,transkasi[[#This Row],[PENGHASILAN BRUTO]]*5%) -> 0 | S67: =2%*transkasi[[#This Row],[GAJI POKOK]] -> 0 | T67: =1%*transkasi[[#This Row],[GAJI POKOK]] -> 0 | U67: =SUM(transkasi[[#This Row],[BIAYA JABATAN PERBULAN 5%]:[Jaminan Pensiun (JP) dibayar Karyawan (1%)]]) -> 0 | V67: =transkasi[[#This Row],[PENGHASILAN BRUTO]]-transkasi[[#This Row],[Jumlah Pengurangan]] -> 0 | W67: =transkasi[[#This Row],[GAJI POKOK]] -> 0 | X67: =IFERROR(transkasi[[#This Row],[Penghasilan Netto(Bersih) sebulan]]*transkasi[[#This Row],[Masa Kerja]]+transkasi[[#This Row],[THR Setahun]],0) -> 0 | Y67: =IF(ISBLANK(transkasi[[#This Row],[NO]]),"",VLOOKUP(transkasi[[#This Row],[STATUS PTKP]],tarif_ptkp[],2,FALSE)) ->  | Z67: =IFERROR(transkasi[[#This Row],[Penghasilan NETTO (bersih) setahun]]-transkasi[[#This Row],[PTKP (Penghasilan tidak kena pajak) setahun]],0) -> 0 | AA67: =IF(transkasi[[#This Row],[PKP (Penghasilan kena pajak) setahun]]<=0,0,ROUNDDOWN(transkasi[[#This Row],[PKP (Penghasilan kena pajak) setahun]],-3)) -> 0 | AB67: ='Data_From Access 1721 A1'!O53 -> 0 | AC67: ='Data_From Access 1721 A1'!P53 -> 0 | AD67: ='Data_From Access 1721 A1'!Q53 -> 0 | AE67: ='Data_From Access 1721 A1'!R53 -> 0 | AF67: ='Data_From Access 1721 A1'!S53 -> 0 | AG67: =INT(transkasi[[#This Row],[5 %]]+transkasi[[#This Row],[15 %]]+transkasi[[#This Row],[25 %]]+transkasi[[#This Row],[30 %]]+transkasi[[#This Row],[30 %]]+transkasi[[#This Row],[35 %]]/1000*1000) -> 0 | AH67: ='Data_From Access 1721 A1'!T53 -> 0 | AI67: ='Data_From Access 1721 A1'!U53 -> 0 | AJ67: ='Data_From Access 1721 A1'!V53 -> 0 | AK67: 0 | DC67: =INT(transkasi[[#This Row],[JUMLAH PPH PS.21 SETAHUN]]-transkasi[[#This Row],[Kredit Pajak YTDD Jan-Nov + THR]])/1000*1000 -> 0
A68: ='Data_From Access 1721 A1'!A54 ->  | B68: ='Data_From Access 1721 A1'!D54 -> 0 | C68: ='Data_From Access 1721 A1'!G54 -> 0 | D68: ='Data_From Access 1721 A1'!I54 -> 0 | E68: ='Data_From Access 1721 A1'!B54 -> 0 | F68: ='Data_From Access 1721 A1'!C54 -> 0 | G68: ='Data_From Access 1721 A1'!E54 -> 0 | H68: ='Data_From Access 1721 A1'!H54 -> 0 | I68: ='Data_From Access 1721 A1'!F54 -> 0 | J68: ='Data_From Access 1721 A1'!J54 -> 0 | K68: ='Data_From Access 1721 A1'!K54 -> 0 | L68: =IF(ISBLANK(transkasi[[#This Row],[GAJI POKOK]]),"",0.24%*transkasi[[#This Row],[GAJI POKOK]]) -> 0 | M68: =0.3%*transkasi[[#This Row],[GAJI POKOK]] -> 0 | N68: =SUM(transkasi[[#This Row],[GAJI POKOK]:[Jaminan Kematian/JK (0,3%)]]) -> 0 | O68: ='Data_From Access 1721 A1'!L54 -> 00:00:00 | P68: ='Data_From Access 1721 A1'!M54 -> 00:00:00 | Q68: ='Data_From Access 1721 A1'!N54 -> 0 | R68: =IF(transkasi[[#This Row],[PENGHASILAN BRUTO]]*5%>=500000,500000,transkasi[[#This Row],[PENGHASILAN BRUTO]]*5%) -> 0 | S68: =2%*transkasi[[#This Row],[GAJI POKOK]] -> 0 | T68: =1%*transkasi[[#This Row],[GAJI POKOK]] -> 0 | U68: =SUM(transkasi[[#This Row],[BIAYA JABATAN PERBULAN 5%]:[Jaminan Pensiun (JP) dibayar Karyawan (1%)]]) -> 0 | V68: =transkasi[[#This Row],[PENGHASILAN BRUTO]]-transkasi[[#This Row],[Jumlah Pengurangan]] -> 0 | W68: =transkasi[[#This Row],[GAJI POKOK]] -> 0 | X68: =IFERROR(transkasi[[#This Row],[Penghasilan Netto(Bersih) sebulan]]*transkasi[[#This Row],[Masa Kerja]]+transkasi[[#This Row],[THR Setahun]],0) -> 0 | Y68: =IF(ISBLANK(transkasi[[#This Row],[NO]]),"",VLOOKUP(transkasi[[#This Row],[STATUS PTKP]],tarif_ptkp[],2,FALSE)) ->  | Z68: =IFERROR(transkasi[[#This Row],[Penghasilan NETTO (bersih) setahun]]-transkasi[[#This Row],[PTKP (Penghasilan tidak kena pajak) setahun]],0) -> 0 | AA68: =IF(transkasi[[#This Row],[PKP (Penghasilan kena pajak) setahun]]<=0,0,ROUNDDOWN(transkasi[[#This Row],[PKP (Penghasilan kena pajak) setahun]],-3)) -> 0 | AB68: ='Data_From Access 1721 A1'!O54 -> 0 | AC68: ='Data_From Access 1721 A1'!P54 -> 0 | AD68: ='Data_From Access 1721 A1'!Q54 -> 0 | AE68: ='Data_From Access 1721 A1'!R54 -> 0 | AF68: ='Data_From Access 1721 A1'!S54 -> 0 | AG68: =INT(transkasi[[#This Row],[5 %]]+transkasi[[#This Row],[15 %]]+transkasi[[#This Row],[25 %]]+transkasi[[#This Row],[30 %]]+transkasi[[#This Row],[30 %]]+transkasi[[#This Row],[35 %]]/1000*1000) -> 0 | AH68: ='Data_From Access 1721 A1'!T54 -> 0 | AI68: ='Data_From Access 1721 A1'!U54 -> 0 | AJ68: ='Data_From Access 1721 A1'!V54 -> 0 | AK68: 0 | DC68: =INT(transkasi[[#This Row],[JUMLAH PPH PS.21 SETAHUN]]-transkasi[[#This Row],[Kredit Pajak YTDD Jan-Nov + THR]])/1000*1000 -> 0
A69: ='Data_From Access 1721 A1'!A55 ->  | B69: ='Data_From Access 1721 A1'!D55 -> 0 | C69: ='Data_From Access 1721 A1'!G55 -> 0 | D69: ='Data_From Access 1721 A1'!I55 -> 0 | E69: ='Data_From Access 1721 A1'!B55 -> 0 | F69: ='Data_From Access 1721 A1'!C55 -> 0 | G69: ='Data_From Access 1721 A1'!E55 -> 0 | H69: ='Data_From Access 1721 A1'!H55 -> 0 | I69: ='Data_From Access 1721 A1'!F55 -> 0 | J69: ='Data_From Access 1721 A1'!J55 -> 0 | K69: ='Data_From Access 1721 A1'!K55 -> 0 | L69: =IF(ISBLANK(transkasi[[#This Row],[GAJI POKOK]]),"",0.24%*transkasi[[#This Row],[GAJI POKOK]]) -> 0 | M69: =0.3%*transkasi[[#This Row],[GAJI POKOK]] -> 0 | N69: =SUM(transkasi[[#This Row],[GAJI POKOK]:[Jaminan Kematian/JK (0,3%)]]) -> 0 | O69: ='Data_From Access 1721 A1'!L55 -> 00:00:00 | P69: ='Data_From Access 1721 A1'!M55 -> 00:00:00 | Q69: ='Data_From Access 1721 A1'!N55 -> 0 | R69: =IF(transkasi[[#This Row],[PENGHASILAN BRUTO]]*5%>=500000,500000,transkasi[[#This Row],[PENGHASILAN BRUTO]]*5%) -> 0 | S69: =2%*transkasi[[#This Row],[GAJI POKOK]] -> 0 | T69: =1%*transkasi[[#This Row],[GAJI POKOK]] -> 0 | U69: =SUM(transkasi[[#This Row],[BIAYA JABATAN PERBULAN 5%]:[Jaminan Pensiun (JP) dibayar Karyawan (1%)]]) -> 0 | V69: =transkasi[[#This Row],[PENGHASILAN BRUTO]]-transkasi[[#This Row],[Jumlah Pengurangan]] -> 0 | W69: =transkasi[[#This Row],[GAJI POKOK]] -> 0 | X69: =IFERROR(transkasi[[#This Row],[Penghasilan Netto(Bersih) sebulan]]*transkasi[[#This Row],[Masa Kerja]]+transkasi[[#This Row],[THR Setahun]],0) -> 0 | Y69: =IF(ISBLANK(transkasi[[#This Row],[NO]]),"",VLOOKUP(transkasi[[#This Row],[STATUS PTKP]],tarif_ptkp[],2,FALSE)) ->  | Z69: =IFERROR(transkasi[[#This Row],[Penghasilan NETTO (bersih) setahun]]-transkasi[[#This Row],[PTKP (Penghasilan tidak kena pajak) setahun]],0) -> 0 | AA69: =IF(transkasi[[#This Row],[PKP (Penghasilan kena pajak) setahun]]<=0,0,ROUNDDOWN(transkasi[[#This Row],[PKP (Penghasilan kena pajak) setahun]],-3)) -> 0 | AB69: ='Data_From Access 1721 A1'!O55 -> 0 | AC69: ='Data_From Access 1721 A1'!P55 -> 0 | AD69: ='Data_From Access 1721 A1'!Q55 -> 0 | AE69: ='Data_From Access 1721 A1'!R55 -> 0 | AF69: ='Data_From Access 1721 A1'!S55 -> 0 | AG69: =INT(transkasi[[#This Row],[5 %]]+transkasi[[#This Row],[15 %]]+transkasi[[#This Row],[25 %]]+transkasi[[#This Row],[30 %]]+transkasi[[#This Row],[30 %]]+transkasi[[#This Row],[35 %]]/1000*1000) -> 0 | AH69: ='Data_From Access 1721 A1'!T55 -> 0 | AI69: ='Data_From Access 1721 A1'!U55 -> 0 | AJ69: ='Data_From Access 1721 A1'!V55 -> 0 | AK69: 0 | DC69: =INT(transkasi[[#This Row],[JUMLAH PPH PS.21 SETAHUN]]-transkasi[[#This Row],[Kredit Pajak YTDD Jan-Nov + THR]])/1000*1000 -> 0
A70: ='Data_From Access 1721 A1'!A56 ->  | B70: ='Data_From Access 1721 A1'!D56 -> 0 | C70: ='Data_From Access 1721 A1'!G56 -> 0 | D70: ='Data_From Access 1721 A1'!I56 -> 0 | E70: ='Data_From Access 1721 A1'!B56 -> 0 | F70: ='Data_From Access 1721 A1'!C56 -> 0 | G70: ='Data_From Access 1721 A1'!E56 -> 0 | H70: ='Data_From Access 1721 A1'!H56 -> 0 | I70: ='Data_From Access 1721 A1'!F56 -> 0 | J70: ='Data_From Access 1721 A1'!J56 -> 0 | K70: ='Data_From Access 1721 A1'!K56 -> 0 | L70: =IF(ISBLANK(transkasi[[#This Row],[GAJI POKOK]]),"",0.24%*transkasi[[#This Row],[GAJI POKOK]]) -> 0 | M70: =0.3%*transkasi[[#This Row],[GAJI POKOK]] -> 0 | N70: =SUM(transkasi[[#This Row],[GAJI POKOK]:[Jaminan Kematian/JK (0,3%)]]) -> 0 | O70: ='Data_From Access 1721 A1'!L56 -> 00:00:00 | P70: ='Data_From Access 1721 A1'!M56 -> 00:00:00 | Q70: ='Data_From Access 1721 A1'!N56 -> 0 | R70: =IF(transkasi[[#This Row],[PENGHASILAN BRUTO]]*5%>=500000,500000,transkasi[[#This Row],[PENGHASILAN BRUTO]]*5%) -> 0 | S70: =2%*transkasi[[#This Row],[GAJI POKOK]] -> 0 | T70: =1%*transkasi[[#This Row],[GAJI POKOK]] -> 0 | U70: =SUM(transkasi[[#This Row],[BIAYA JABATAN PERBULAN 5%]:[Jaminan Pensiun (JP) dibayar Karyawan (1%)]]) -> 0 | V70: =transkasi[[#This Row],[PENGHASILAN BRUTO]]-transkasi[[#This Row],[Jumlah Pengurangan]] -> 0 | W70: =transkasi[[#This Row],[GAJI POKOK]] -> 0 | X70: =IFERROR(transkasi[[#This Row],[Penghasilan Netto(Bersih) sebulan]]*transkasi[[#This Row],[Masa Kerja]]+transkasi[[#This Row],[THR Setahun]],0) -> 0 | Y70: =IF(ISBLANK(transkasi[[#This Row],[NO]]),"",VLOOKUP(transkasi[[#This Row],[STATUS PTKP]],tarif_ptkp[],2,FALSE)) ->  | Z70: =IFERROR(transkasi[[#This Row],[Penghasilan NETTO (bersih) setahun]]-transkasi[[#This Row],[PTKP (Penghasilan tidak kena pajak) setahun]],0) -> 0 | AA70: =IF(transkasi[[#This Row],[PKP (Penghasilan kena pajak) setahun]]<=0,0,ROUNDDOWN(transkasi[[#This Row],[PKP (Penghasilan kena pajak) setahun]],-3)) -> 0 | AB70: ='Data_From Access 1721 A1'!O56 -> 0 | AC70: ='Data_From Access 1721 A1'!P56 -> 0 | AD70: ='Data_From Access 1721 A1'!Q56 -> 0 | AE70: ='Data_From Access 1721 A1'!R56 -> 0 | AF70: ='Data_From Access 1721 A1'!S56 -> 0 | AG70: =INT(transkasi[[#This Row],[5 %]]+transkasi[[#This Row],[15 %]]+transkasi[[#This Row],[25 %]]+transkasi[[#This Row],[30 %]]+transkasi[[#This Row],[30 %]]+transkasi[[#This Row],[35 %]]/1000*1000) -> 0 | AH70: ='Data_From Access 1721 A1'!T56 -> 0 | AI70: ='Data_From Access 1721 A1'!U56 -> 0 | AJ70: ='Data_From Access 1721 A1'!V56 -> 0 | AK70: 0 | DC70: =INT(transkasi[[#This Row],[JUMLAH PPH PS.21 SETAHUN]]-transkasi[[#This Row],[Kredit Pajak YTDD Jan-Nov + THR]])/1000*1000 -> 0
A71: ='Data_From Access 1721 A1'!A57 ->  | B71: ='Data_From Access 1721 A1'!D57 -> 0 | C71: ='Data_From Access 1721 A1'!G57 -> 0 | D71: ='Data_From Access 1721 A1'!I57 -> 0 | E71: ='Data_From Access 1721 A1'!B57 -> 0 | F71: ='Data_From Access 1721 A1'!C57 -> 0 | G71: ='Data_From Access 1721 A1'!E57 -> 0 | H71: ='Data_From Access 1721 A1'!H57 -> 0 | I71: ='Data_From Access 1721 A1'!F57 -> 0 | J71: ='Data_From Access 1721 A1'!J57 -> 0 | K71: ='Data_From Access 1721 A1'!K57 -> 0 | L71: =IF(ISBLANK(transkasi[[#This Row],[GAJI POKOK]]),"",0.24%*transkasi[[#This Row],[GAJI POKOK]]) -> 0 | M71: =0.3%*transkasi[[#This Row],[GAJI POKOK]] -> 0 | N71: =SUM(transkasi[[#This Row],[GAJI POKOK]:[Jaminan Kematian/JK (0,3%)]]) -> 0 | O71: ='Data_From Access 1721 A1'!L57 -> 00:00:00 | P71: ='Data_From Access 1721 A1'!M57 -> 00:00:00 | Q71: ='Data_From Access 1721 A1'!N57 -> 0 | R71: =IF(transkasi[[#This Row],[PENGHASILAN BRUTO]]*5%>=500000,500000,transkasi[[#This Row],[PENGHASILAN BRUTO]]*5%) -> 0 | S71: =2%*transkasi[[#This Row],[GAJI POKOK]] -> 0 | T71: =1%*transkasi[[#This Row],[GAJI POKOK]] -> 0 | U71: =SUM(transkasi[[#This Row],[BIAYA JABATAN PERBULAN 5%]:[Jaminan Pensiun (JP) dibayar Karyawan (1%)]]) -> 0 | V71: =transkasi[[#This Row],[PENGHASILAN BRUTO]]-transkasi[[#This Row],[Jumlah Pengurangan]] -> 0 | W71: =transkasi[[#This Row],[GAJI POKOK]] -> 0 | X71: =IFERROR(transkasi[[#This Row],[Penghasilan Netto(Bersih) sebulan]]*transkasi[[#This Row],[Masa Kerja]]+transkasi[[#This Row],[THR Setahun]],0) -> 0 | Y71: =IF(ISBLANK(transkasi[[#This Row],[NO]]),"",VLOOKUP(transkasi[[#This Row],[STATUS PTKP]],tarif_ptkp[],2,FALSE)) ->  | Z71: =IFERROR(transkasi[[#This Row],[Penghasilan NETTO (bersih) setahun]]-transkasi[[#This Row],[PTKP (Penghasilan tidak kena pajak) setahun]],0) -> 0 | AA71: =IF(transkasi[[#This Row],[PKP (Penghasilan kena pajak) setahun]]<=0,0,ROUNDDOWN(transkasi[[#This Row],[PKP (Penghasilan kena pajak) setahun]],-3)) -> 0 | AB71: ='Data_From Access 1721 A1'!O57 -> 0 | AC71: ='Data_From Access 1721 A1'!P57 -> 0 | AD71: ='Data_From Access 1721 A1'!Q57 -> 0 | AE71: ='Data_From Access 1721 A1'!R57 -> 0 | AF71: ='Data_From Access 1721 A1'!S57 -> 0 | AG71: =INT(transkasi[[#This Row],[5 %]]+transkasi[[#This Row],[15 %]]+transkasi[[#This Row],[25 %]]+transkasi[[#This Row],[30 %]]+transkasi[[#This Row],[30 %]]+transkasi[[#This Row],[35 %]]/1000*1000) -> 0 | AH71: ='Data_From Access 1721 A1'!T57 -> 0 | AI71: ='Data_From Access 1721 A1'!U57 -> 0 | AJ71: ='Data_From Access 1721 A1'!V57 -> 0 | AK71: =INT(DC71/1000)*1000 -> 0 | DC71: =INT(transkasi[[#This Row],[JUMLAH PPH PS.21 SETAHUN]]-transkasi[[#This Row],[Kredit Pajak YTDD Jan-Nov + THR]])/1000*1000 -> 0
A72: ='Data_From Access 1721 A1'!A58 ->  | B72: ='Data_From Access 1721 A1'!D58 -> 0 | C72: ='Data_From Access 1721 A1'!G58 -> 0 | D72: ='Data_From Access 1721 A1'!I58 -> 0 | E72: ='Data_From Access 1721 A1'!B58 -> 0 | F72: ='Data_From Access 1721 A1'!C58 -> 0 | G72: ='Data_From Access 1721 A1'!E58 -> 0 | H72: ='Data_From Access 1721 A1'!H58 -> 0 | I72: ='Data_From Access 1721 A1'!F58 -> 0 | J72: ='Data_From Access 1721 A1'!J58 -> 0 | K72: ='Data_From Access 1721 A1'!K58 -> 0 | L72: =IF(ISBLANK(transkasi[[#This Row],[GAJI POKOK]]),"",0.24%*transkasi[[#This Row],[GAJI POKOK]]) -> 0 | M72: =0.3%*transkasi[[#This Row],[GAJI POKOK]] -> 0 | N72: =SUM(transkasi[[#This Row],[GAJI POKOK]:[Jaminan Kematian/JK (0,3%)]]) -> 0 | O72: ='Data_From Access 1721 A1'!L58 -> 00:00:00 | P72: ='Data_From Access 1721 A1'!M58 -> 00:00:00 | Q72: ='Data_From Access 1721 A1'!N58 -> 0 | R72: =IF(transkasi[[#This Row],[PENGHASILAN BRUTO]]*5%>=500000,500000,transkasi[[#This Row],[PENGHASILAN BRUTO]]*5%) -> 0 | S72: =2%*transkasi[[#This Row],[GAJI POKOK]] -> 0 | T72: =1%*transkasi[[#This Row],[GAJI POKOK]] -> 0 | U72: =SUM(transkasi[[#This Row],[BIAYA JABATAN PERBULAN 5%]:[Jaminan Pensiun (JP) dibayar Karyawan (1%)]]) -> 0 | V72: =transkasi[[#This Row],[PENGHASILAN BRUTO]]-transkasi[[#This Row],[Jumlah Pengurangan]] -> 0 | W72: =transkasi[[#This Row],[GAJI POKOK]] -> 0 | X72: =IFERROR(transkasi[[#This Row],[Penghasilan Netto(Bersih) sebulan]]*transkasi[[#This Row],[Masa Kerja]]+transkasi[[#This Row],[THR Setahun]],0) -> 0 | Y72: =IF(ISBLANK(transkasi[[#This Row],[NO]]),"",VLOOKUP(transkasi[[#This Row],[STATUS PTKP]],tarif_ptkp[],2,FALSE)) ->  | Z72: =IFERROR(transkasi[[#This Row],[Penghasilan NETTO (bersih) setahun]]-transkasi[[#This Row],[PTKP (Penghasilan tidak kena pajak) setahun]],0) -> 0 | AA72: =IF(transkasi[[#This Row],[PKP (Penghasilan kena pajak) setahun]]<=0,0,ROUNDDOWN(transkasi[[#This Row],[PKP (Penghasilan kena pajak) setahun]],-3)) -> 0 | AB72: ='Data_From Access 1721 A1'!O58 -> 0 | AC72: ='Data_From Access 1721 A1'!P58 -> 0 | AD72: ='Data_From Access 1721 A1'!Q58 -> 0 | AE72: ='Data_From Access 1721 A1'!R58 -> 0 | AF72: ='Data_From Access 1721 A1'!S58 -> 0 | AG72: =INT(transkasi[[#This Row],[5 %]]+transkasi[[#This Row],[15 %]]+transkasi[[#This Row],[25 %]]+transkasi[[#This Row],[30 %]]+transkasi[[#This Row],[30 %]]+transkasi[[#This Row],[35 %]]/1000*1000) -> 0 | AH72: ='Data_From Access 1721 A1'!T58 -> 0 | AI72: ='Data_From Access 1721 A1'!U58 -> 0 | AJ72: ='Data_From Access 1721 A1'!V58 -> 0 | AK72: 0 | DC72: =INT(transkasi[[#This Row],[JUMLAH PPH PS.21 SETAHUN]]-transkasi[[#This Row],[Kredit Pajak YTDD Jan-Nov + THR]])/1000*1000 -> 0
A73: ='Data_From Access 1721 A1'!A59 ->  | B73: ='Data_From Access 1721 A1'!D59 -> 0 | C73: ='Data_From Access 1721 A1'!G59 -> 0 | D73: ='Data_From Access 1721 A1'!I59 -> 0 | E73: ='Data_From Access 1721 A1'!B59 -> 0 | F73: ='Data_From Access 1721 A1'!C59 -> 0 | G73: ='Data_From Access 1721 A1'!E59 -> 0 | H73: ='Data_From Access 1721 A1'!H59 -> 0 | I73: ='Data_From Access 1721 A1'!F59 -> 0 | J73: ='Data_From Access 1721 A1'!J59 -> 0 | K73: ='Data_From Access 1721 A1'!K59 -> 0 | L73: =IF(ISBLANK(transkasi[[#This Row],[GAJI POKOK]]),"",0.24%*transkasi[[#This Row],[GAJI POKOK]]) -> 0 | M73: =0.3%*transkasi[[#This Row],[GAJI POKOK]] -> 0 | N73: =SUM(transkasi[[#This Row],[GAJI POKOK]:[Jaminan Kematian/JK (0,3%)]]) -> 0 | O73: ='Data_From Access 1721 A1'!L59 -> 00:00:00 | P73: ='Data_From Access 1721 A1'!M59 -> 00:00:00 | Q73: ='Data_From Access 1721 A1'!N59 -> 0 | R73: =IF(transkasi[[#This Row],[PENGHASILAN BRUTO]]*5%>=500000,500000,transkasi[[#This Row],[PENGHASILAN BRUTO]]*5%) -> 0 | S73: =2%*transkasi[[#This Row],[GAJI POKOK]] -> 0 | T73: =1%*transkasi[[#This Row],[GAJI POKOK]] -> 0 | U73: =SUM(transkasi[[#This Row],[BIAYA JABATAN PERBULAN 5%]:[Jaminan Pensiun (JP) dibayar Karyawan (1%)]]) -> 0 | V73: =transkasi[[#This Row],[PENGHASILAN BRUTO]]-transkasi[[#This Row],[Jumlah Pengurangan]] -> 0 | W73: =transkasi[[#This Row],[GAJI POKOK]] -> 0 | X73: =IFERROR(transkasi[[#This Row],[Penghasilan Netto(Bersih) sebulan]]*transkasi[[#This Row],[Masa Kerja]]+transkasi[[#This Row],[THR Setahun]],0) -> 0 | Y73: =IF(ISBLANK(transkasi[[#This Row],[NO]]),"",VLOOKUP(transkasi[[#This Row],[STATUS PTKP]],tarif_ptkp[],2,FALSE)) ->  | Z73: =IFERROR(transkasi[[#This Row],[Penghasilan NETTO (bersih) setahun]]-transkasi[[#This Row],[PTKP (Penghasilan tidak kena pajak) setahun]],0) -> 0 | AA73: =IF(transkasi[[#This Row],[PKP (Penghasilan kena pajak) setahun]]<=0,0,ROUNDDOWN(transkasi[[#This Row],[PKP (Penghasilan kena pajak) setahun]],-3)) -> 0 | AB73: ='Data_From Access 1721 A1'!O59 -> 0 | AC73: ='Data_From Access 1721 A1'!P59 -> 0 | AD73: ='Data_From Access 1721 A1'!Q59 -> 0 | AE73: ='Data_From Access 1721 A1'!R59 -> 0 | AF73: ='Data_From Access 1721 A1'!S59 -> 0 | AG73: =INT(transkasi[[#This Row],[5 %]]+transkasi[[#This Row],[15 %]]+transkasi[[#This Row],[25 %]]+transkasi[[#This Row],[30 %]]+transkasi[[#This Row],[30 %]]+transkasi[[#This Row],[35 %]]/1000*1000) -> 0 | AH73: ='Data_From Access 1721 A1'!T59 -> 0 | AI73: ='Data_From Access 1721 A1'!U59 -> 0 | AJ73: ='Data_From Access 1721 A1'!V59 -> 0 | AK73: 0 | DC73: =INT(transkasi[[#This Row],[JUMLAH PPH PS.21 SETAHUN]]-transkasi[[#This Row],[Kredit Pajak YTDD Jan-Nov + THR]])/1000*1000 -> 0
A74: ='Data_From Access 1721 A1'!A60 ->  | B74: ='Data_From Access 1721 A1'!D60 -> 0 | C74: ='Data_From Access 1721 A1'!G60 -> 0 | D74: ='Data_From Access 1721 A1'!I60 -> 0 | E74: ='Data_From Access 1721 A1'!B60 -> 0 | F74: ='Data_From Access 1721 A1'!C60 -> 0 | G74: ='Data_From Access 1721 A1'!E60 -> 0 | H74: ='Data_From Access 1721 A1'!H60 -> 0 | I74: ='Data_From Access 1721 A1'!F60 -> 0 | J74: ='Data_From Access 1721 A1'!J60 -> 0 | K74: ='Data_From Access 1721 A1'!K60 -> 0 | L74: =IF(ISBLANK(transkasi[[#This Row],[GAJI POKOK]]),"",0.24%*transkasi[[#This Row],[GAJI POKOK]]) -> 0 | M74: =0.3%*transkasi[[#This Row],[GAJI POKOK]] -> 0 | N74: =SUM(transkasi[[#This Row],[GAJI POKOK]:[Jaminan Kematian/JK (0,3%)]]) -> 0 | O74: ='Data_From Access 1721 A1'!L60 -> 00:00:00 | P74: ='Data_From Access 1721 A1'!M60 -> 00:00:00 | Q74: ='Data_From Access 1721 A1'!N60 -> 0 | R74: =IF(transkasi[[#This Row],[PENGHASILAN BRUTO]]*5%>=500000,500000,transkasi[[#This Row],[PENGHASILAN BRUTO]]*5%) -> 0 | S74: =2%*transkasi[[#This Row],[GAJI POKOK]] -> 0 | T74: =1%*transkasi[[#This Row],[GAJI POKOK]] -> 0 | U74: =SUM(transkasi[[#This Row],[BIAYA JABATAN PERBULAN 5%]:[Jaminan Pensiun (JP) dibayar Karyawan (1%)]]) -> 0 | V74: =transkasi[[#This Row],[PENGHASILAN BRUTO]]-transkasi[[#This Row],[Jumlah Pengurangan]] -> 0 | W74: =transkasi[[#This Row],[GAJI POKOK]] -> 0 | X74: =IFERROR(transkasi[[#This Row],[Penghasilan Netto(Bersih) sebulan]]*transkasi[[#This Row],[Masa Kerja]]+transkasi[[#This Row],[THR Setahun]],0) -> 0 | Y74: =IF(ISBLANK(transkasi[[#This Row],[NO]]),"",VLOOKUP(transkasi[[#This Row],[STATUS PTKP]],tarif_ptkp[],2,FALSE)) ->  | Z74: =IFERROR(transkasi[[#This Row],[Penghasilan NETTO (bersih) setahun]]-transkasi[[#This Row],[PTKP (Penghasilan tidak kena pajak) setahun]],0) -> 0 | AA74: =IF(transkasi[[#This Row],[PKP (Penghasilan kena pajak) setahun]]<=0,0,ROUNDDOWN(transkasi[[#This Row],[PKP (Penghasilan kena pajak) setahun]],-3)) -> 0 | AB74: ='Data_From Access 1721 A1'!O60 -> 0 | AC74: ='Data_From Access 1721 A1'!P60 -> 0 | AD74: ='Data_From Access 1721 A1'!Q60 -> 0 | AE74: ='Data_From Access 1721 A1'!R60 -> 0 | AF74: ='Data_From Access 1721 A1'!S60 -> 0 | AG74: =INT(transkasi[[#This Row],[5 %]]+transkasi[[#This Row],[15 %]]+transkasi[[#This Row],[25 %]]+transkasi[[#This Row],[30 %]]+transkasi[[#This Row],[30 %]]+transkasi[[#This Row],[35 %]]/1000*1000) -> 0 | AH74: ='Data_From Access 1721 A1'!T60 -> 0 | AI74: ='Data_From Access 1721 A1'!U60 -> 0 | AJ74: ='Data_From Access 1721 A1'!V60 -> 0 | AK74: 0 | DC74: =INT(transkasi[[#This Row],[JUMLAH PPH PS.21 SETAHUN]]-transkasi[[#This Row],[Kredit Pajak YTDD Jan-Nov + THR]])/1000*1000 -> 0
A75: ='Data_From Access 1721 A1'!A61 ->  | B75: ='Data_From Access 1721 A1'!D61 -> 0 | C75: ='Data_From Access 1721 A1'!G61 -> 0 | D75: ='Data_From Access 1721 A1'!I61 -> 0 | E75: ='Data_From Access 1721 A1'!B61 -> 0 | F75: ='Data_From Access 1721 A1'!C61 -> 0 | G75: ='Data_From Access 1721 A1'!E61 -> 0 | H75: ='Data_From Access 1721 A1'!H61 -> 0 | I75: ='Data_From Access 1721 A1'!F61 -> 0 | J75: ='Data_From Access 1721 A1'!J61 -> 0 | K75: ='Data_From Access 1721 A1'!K61 -> 0 | L75: =IF(ISBLANK(transkasi[[#This Row],[GAJI POKOK]]),"",0.24%*transkasi[[#This Row],[GAJI POKOK]]) -> 0 | M75: =0.3%*transkasi[[#This Row],[GAJI POKOK]] -> 0 | N75: =SUM(transkasi[[#This Row],[GAJI POKOK]:[Jaminan Kematian/JK (0,3%)]]) -> 0 | O75: ='Data_From Access 1721 A1'!L61 -> 00:00:00 | P75: ='Data_From Access 1721 A1'!M61 -> 00:00:00 | Q75: ='Data_From Access 1721 A1'!N61 -> 0 | R75: =IF(transkasi[[#This Row],[PENGHASILAN BRUTO]]*5%>=500000,500000,transkasi[[#This Row],[PENGHASILAN BRUTO]]*5%) -> 0 | S75: =2%*transkasi[[#This Row],[GAJI POKOK]] -> 0 | T75: =1%*transkasi[[#This Row],[GAJI POKOK]] -> 0 | U75: =SUM(transkasi[[#This Row],[BIAYA JABATAN PERBULAN 5%]:[Jaminan Pensiun (JP) dibayar Karyawan (1%)]]) -> 0 | V75: =transkasi[[#This Row],[PENGHASILAN BRUTO]]-transkasi[[#This Row],[Jumlah Pengurangan]] -> 0 | W75: =transkasi[[#This Row],[GAJI POKOK]] -> 0 | X75: =IFERROR(transkasi[[#This Row],[Penghasilan Netto(Bersih) sebulan]]*transkasi[[#This Row],[Masa Kerja]]+transkasi[[#This Row],[THR Setahun]],0) -> 0 | Y75: =IF(ISBLANK(transkasi[[#This Row],[NO]]),"",VLOOKUP(transkasi[[#This Row],[STATUS PTKP]],tarif_ptkp[],2,FALSE)) ->  | Z75: =IFERROR(transkasi[[#This Row],[Penghasilan NETTO (bersih) setahun]]-transkasi[[#This Row],[PTKP (Penghasilan tidak kena pajak) setahun]],0) -> 0 | AA75: =IF(transkasi[[#This Row],[PKP (Penghasilan kena pajak) setahun]]<=0,0,ROUNDDOWN(transkasi[[#This Row],[PKP (Penghasilan kena pajak) setahun]],-3)) -> 0 | AB75: ='Data_From Access 1721 A1'!O61 -> 0 | AC75: ='Data_From Access 1721 A1'!P61 -> 0 | AD75: ='Data_From Access 1721 A1'!Q61 -> 0 | AE75: ='Data_From Access 1721 A1'!R61 -> 0 | AF75: ='Data_From Access 1721 A1'!S61 -> 0 | AG75: =INT(transkasi[[#This Row],[5 %]]+transkasi[[#This Row],[15 %]]+transkasi[[#This Row],[25 %]]+transkasi[[#This Row],[30 %]]+transkasi[[#This Row],[30 %]]+transkasi[[#This Row],[35 %]]/1000*1000) -> 0 | AH75: ='Data_From Access 1721 A1'!T61 -> 0 | AI75: ='Data_From Access 1721 A1'!U61 -> 0 | AJ75: ='Data_From Access 1721 A1'!V61 -> 0 | AK75: 0 | DC75: =INT(transkasi[[#This Row],[JUMLAH PPH PS.21 SETAHUN]]-transkasi[[#This Row],[Kredit Pajak YTDD Jan-Nov + THR]])/1000*1000 -> 0
A76: ='Data_From Access 1721 A1'!A62 ->  | B76: ='Data_From Access 1721 A1'!D62 -> 0 | C76: ='Data_From Access 1721 A1'!G62 -> 0 | D76: ='Data_From Access 1721 A1'!I62 -> 0 | E76: ='Data_From Access 1721 A1'!B62 -> 0 | F76: ='Data_From Access 1721 A1'!C62 -> 0 | G76: ='Data_From Access 1721 A1'!E62 -> 0 | H76: ='Data_From Access 1721 A1'!H62 -> 0 | I76: ='Data_From Access 1721 A1'!F62 -> 0 | J76: ='Data_From Access 1721 A1'!J62 -> 0 | K76: ='Data_From Access 1721 A1'!K62 -> 0 | L76: =IF(ISBLANK(transkasi[[#This Row],[GAJI POKOK]]),"",0.24%*transkasi[[#This Row],[GAJI POKOK]]) -> 0 | M76: =0.3%*transkasi[[#This Row],[GAJI POKOK]] -> 0 | N76: =SUM(transkasi[[#This Row],[GAJI POKOK]:[Jaminan Kematian/JK (0,3%)]]) -> 0 | O76: ='Data_From Access 1721 A1'!L62 -> 00:00:00 | P76: ='Data_From Access 1721 A1'!M62 -> 00:00:00 | Q76: ='Data_From Access 1721 A1'!N62 -> 0 | R76: =IF(transkasi[[#This Row],[PENGHASILAN BRUTO]]*5%>=500000,500000,transkasi[[#This Row],[PENGHASILAN BRUTO]]*5%) -> 0 | S76: =2%*transkasi[[#This Row],[GAJI POKOK]] -> 0 | T76: =1%*transkasi[[#This Row],[GAJI POKOK]] -> 0 | U76: =SUM(transkasi[[#This Row],[BIAYA JABATAN PERBULAN 5%]:[Jaminan Pensiun (JP) dibayar Karyawan (1%)]]) -> 0 | V76: =transkasi[[#This Row],[PENGHASILAN BRUTO]]-transkasi[[#This Row],[Jumlah Pengurangan]] -> 0 | W76: =transkasi[[#This Row],[GAJI POKOK]] -> 0 | X76: =IFERROR(transkasi[[#This Row],[Penghasilan Netto(Bersih) sebulan]]*transkasi[[#This Row],[Masa Kerja]]+transkasi[[#This Row],[THR Setahun]],0) -> 0 | Y76: =IF(ISBLANK(transkasi[[#This Row],[NO]]),"",VLOOKUP(transkasi[[#This Row],[STATUS PTKP]],tarif_ptkp[],2,FALSE)) ->  | Z76: =IFERROR(transkasi[[#This Row],[Penghasilan NETTO (bersih) setahun]]-transkasi[[#This Row],[PTKP (Penghasilan tidak kena pajak) setahun]],0) -> 0 | AA76: =IF(transkasi[[#This Row],[PKP (Penghasilan kena pajak) setahun]]<=0,0,ROUNDDOWN(transkasi[[#This Row],[PKP (Penghasilan kena pajak) setahun]],-3)) -> 0 | AB76: ='Data_From Access 1721 A1'!O62 -> 0 | AC76: ='Data_From Access 1721 A1'!P62 -> 0 | AD76: ='Data_From Access 1721 A1'!Q62 -> 0 | AE76: ='Data_From Access 1721 A1'!R62 -> 0 | AF76: ='Data_From Access 1721 A1'!S62 -> 0 | AG76: =INT(transkasi[[#This Row],[5 %]]+transkasi[[#This Row],[15 %]]+transkasi[[#This Row],[25 %]]+transkasi[[#This Row],[30 %]]+transkasi[[#This Row],[30 %]]+transkasi[[#This Row],[35 %]]/1000*1000) -> 0 | AH76: ='Data_From Access 1721 A1'!T62 -> 0 | AI76: ='Data_From Access 1721 A1'!U62 -> 0 | AJ76: ='Data_From Access 1721 A1'!V62 -> 0 | AK76: 0 | DC76: =INT(transkasi[[#This Row],[JUMLAH PPH PS.21 SETAHUN]]-transkasi[[#This Row],[Kredit Pajak YTDD Jan-Nov + THR]])/1000*1000 -> 0
A77: ='Data_From Access 1721 A1'!A63 ->  | B77: ='Data_From Access 1721 A1'!D63 -> 0 | C77: ='Data_From Access 1721 A1'!G63 -> 0 | D77: ='Data_From Access 1721 A1'!I63 -> 0 | E77: ='Data_From Access 1721 A1'!B63 -> 0 | F77: ='Data_From Access 1721 A1'!C63 -> 0 | G77: ='Data_From Access 1721 A1'!E63 -> 0 | H77: ='Data_From Access 1721 A1'!H63 -> 0 | I77: ='Data_From Access 1721 A1'!F63 -> 0 | J77: ='Data_From Access 1721 A1'!J63 -> 0 | K77: ='Data_From Access 1721 A1'!K63 -> 0 | L77: =IF(ISBLANK(transkasi[[#This Row],[GAJI POKOK]]),"",0.24%*transkasi[[#This Row],[GAJI POKOK]]) -> 0 | M77: =0.3%*transkasi[[#This Row],[GAJI POKOK]] -> 0 | N77: =SUM(transkasi[[#This Row],[GAJI POKOK]:[Jaminan Kematian/JK (0,3%)]]) -> 0 | O77: ='Data_From Access 1721 A1'!L63 -> 00:00:00 | P77: ='Data_From Access 1721 A1'!M63 -> 00:00:00 | Q77: ='Data_From Access 1721 A1'!N63 -> 0 | R77: =IF(transkasi[[#This Row],[PENGHASILAN BRUTO]]*5%>=500000,500000,transkasi[[#This Row],[PENGHASILAN BRUTO]]*5%) -> 0 | S77: =2%*transkasi[[#This Row],[GAJI POKOK]] -> 0 | T77: =1%*transkasi[[#This Row],[GAJI POKOK]] -> 0 | U77: =SUM(transkasi[[#This Row],[BIAYA JABATAN PERBULAN 5%]:[Jaminan Pensiun (JP) dibayar Karyawan (1%)]]) -> 0 | V77: =transkasi[[#This Row],[PENGHASILAN BRUTO]]-transkasi[[#This Row],[Jumlah Pengurangan]] -> 0 | W77: =transkasi[[#This Row],[GAJI POKOK]] -> 0 | X77: =IFERROR(transkasi[[#This Row],[Penghasilan Netto(Bersih) sebulan]]*transkasi[[#This Row],[Masa Kerja]]+transkasi[[#This Row],[THR Setahun]],0) -> 0 | Y77: =IF(ISBLANK(transkasi[[#This Row],[NO]]),"",VLOOKUP(transkasi[[#This Row],[STATUS PTKP]],tarif_ptkp[],2,FALSE)) ->  | Z77: =IFERROR(transkasi[[#This Row],[Penghasilan NETTO (bersih) setahun]]-transkasi[[#This Row],[PTKP (Penghasilan tidak kena pajak) setahun]],0) -> 0 | AA77: =IF(transkasi[[#This Row],[PKP (Penghasilan kena pajak) setahun]]<=0,0,ROUNDDOWN(transkasi[[#This Row],[PKP (Penghasilan kena pajak) setahun]],-3)) -> 0 | AB77: ='Data_From Access 1721 A1'!O63 -> 0 | AC77: ='Data_From Access 1721 A1'!P63 -> 0 | AD77: ='Data_From Access 1721 A1'!Q63 -> 0 | AE77: ='Data_From Access 1721 A1'!R63 -> 0 | AF77: ='Data_From Access 1721 A1'!S63 -> 0 | AG77: =INT(transkasi[[#This Row],[5 %]]+transkasi[[#This Row],[15 %]]+transkasi[[#This Row],[25 %]]+transkasi[[#This Row],[30 %]]+transkasi[[#This Row],[30 %]]+transkasi[[#This Row],[35 %]]/1000*1000) -> 0 | AH77: ='Data_From Access 1721 A1'!T63 -> 0 | AI77: ='Data_From Access 1721 A1'!U63 -> 0 | AJ77: ='Data_From Access 1721 A1'!V63 -> 0 | AK77: 0 | DC77: =INT(transkasi[[#This Row],[JUMLAH PPH PS.21 SETAHUN]]-transkasi[[#This Row],[Kredit Pajak YTDD Jan-Nov + THR]])/1000*1000 -> 0
A78: ='Data_From Access 1721 A1'!A64 ->  | B78: ='Data_From Access 1721 A1'!D64 -> 0 | C78: ='Data_From Access 1721 A1'!G64 -> 0 | D78: ='Data_From Access 1721 A1'!I64 -> 0 | E78: ='Data_From Access 1721 A1'!B64 -> 0 | F78: ='Data_From Access 1721 A1'!C64 -> 0 | G78: ='Data_From Access 1721 A1'!E64 -> 0 | H78: ='Data_From Access 1721 A1'!H64 -> 0 | I78: ='Data_From Access 1721 A1'!F64 -> 0 | J78: ='Data_From Access 1721 A1'!J64 -> 0 | K78: ='Data_From Access 1721 A1'!K64 -> 0 | L78: =IF(ISBLANK(transkasi[[#This Row],[GAJI POKOK]]),"",0.24%*transkasi[[#This Row],[GAJI POKOK]]) -> 0 | M78: =0.3%*transkasi[[#This Row],[GAJI POKOK]] -> 0 | N78: =SUM(transkasi[[#This Row],[GAJI POKOK]:[Jaminan Kematian/JK (0,3%)]]) -> 0 | O78: ='Data_From Access 1721 A1'!L64 -> 00:00:00 | P78: ='Data_From Access 1721 A1'!M64 -> 00:00:00 | Q78: ='Data_From Access 1721 A1'!N64 -> 0 | R78: =IF(transkasi[[#This Row],[PENGHASILAN BRUTO]]*5%>=500000,500000,transkasi[[#This Row],[PENGHASILAN BRUTO]]*5%) -> 0 | S78: =2%*transkasi[[#This Row],[GAJI POKOK]] -> 0 | T78: =1%*transkasi[[#This Row],[GAJI POKOK]] -> 0 | U78: =SUM(transkasi[[#This Row],[BIAYA JABATAN PERBULAN 5%]:[Jaminan Pensiun (JP) dibayar Karyawan (1%)]]) -> 0 | V78: =transkasi[[#This Row],[PENGHASILAN BRUTO]]-transkasi[[#This Row],[Jumlah Pengurangan]] -> 0 | W78: =transkasi[[#This Row],[GAJI POKOK]] -> 0 | X78: =IFERROR(transkasi[[#This Row],[Penghasilan Netto(Bersih) sebulan]]*transkasi[[#This Row],[Masa Kerja]]+transkasi[[#This Row],[THR Setahun]],0) -> 0 | Y78: =IF(ISBLANK(transkasi[[#This Row],[NO]]),"",VLOOKUP(transkasi[[#This Row],[STATUS PTKP]],tarif_ptkp[],2,FALSE)) ->  | Z78: =IFERROR(transkasi[[#This Row],[Penghasilan NETTO (bersih) setahun]]-transkasi[[#This Row],[PTKP (Penghasilan tidak kena pajak) setahun]],0) -> 0 | AA78: =IF(transkasi[[#This Row],[PKP (Penghasilan kena pajak) setahun]]<=0,0,ROUNDDOWN(transkasi[[#This Row],[PKP (Penghasilan kena pajak) setahun]],-3)) -> 0 | AB78: ='Data_From Access 1721 A1'!O64 -> 0 | AC78: ='Data_From Access 1721 A1'!P64 -> 0 | AD78: ='Data_From Access 1721 A1'!Q64 -> 0 | AE78: ='Data_From Access 1721 A1'!R64 -> 0 | AF78: ='Data_From Access 1721 A1'!S64 -> 0 | AG78: =INT(transkasi[[#This Row],[5 %]]+transkasi[[#This Row],[15 %]]+transkasi[[#This Row],[25 %]]+transkasi[[#This Row],[30 %]]+transkasi[[#This Row],[30 %]]+transkasi[[#This Row],[35 %]]/1000*1000) -> 0 | AH78: ='Data_From Access 1721 A1'!T64 -> 0 | AI78: ='Data_From Access 1721 A1'!U64 -> 0 | AJ78: ='Data_From Access 1721 A1'!V64 -> 0 | AK78: 0 | DC78: =INT(transkasi[[#This Row],[JUMLAH PPH PS.21 SETAHUN]]-transkasi[[#This Row],[Kredit Pajak YTDD Jan-Nov + THR]])/1000*1000 -> 0
A79: ='Data_From Access 1721 A1'!A65 ->  | B79: ='Data_From Access 1721 A1'!D65 -> 0 | C79: ='Data_From Access 1721 A1'!G65 -> 0 | D79: ='Data_From Access 1721 A1'!I65 -> 0 | E79: ='Data_From Access 1721 A1'!B65 -> 0 | F79: ='Data_From Access 1721 A1'!C65 -> 0 | G79: ='Data_From Access 1721 A1'!E65 -> 0 | H79: ='Data_From Access 1721 A1'!H65 -> 0 | I79: ='Data_From Access 1721 A1'!F65 -> 0 | J79: ='Data_From Access 1721 A1'!J65 -> 0 | K79: ='Data_From Access 1721 A1'!K65 -> 0 | L79: =IF(ISBLANK(transkasi[[#This Row],[GAJI POKOK]]),"",0.24%*transkasi[[#This Row],[GAJI POKOK]]) -> 0 | M79: =0.3%*transkasi[[#This Row],[GAJI POKOK]] -> 0 | N79: =SUM(transkasi[[#This Row],[GAJI POKOK]:[Jaminan Kematian/JK (0,3%)]]) -> 0 | O79: ='Data_From Access 1721 A1'!L65 -> 00:00:00 | P79: ='Data_From Access 1721 A1'!M65 -> 00:00:00 | Q79: ='Data_From Access 1721 A1'!N65 -> 0 | R79: =IF(transkasi[[#This Row],[PENGHASILAN BRUTO]]*5%>=500000,500000,transkasi[[#This Row],[PENGHASILAN BRUTO]]*5%) -> 0 | S79: =2%*transkasi[[#This Row],[GAJI POKOK]] -> 0 | T79: =1%*transkasi[[#This Row],[GAJI POKOK]] -> 0 | U79: =SUM(transkasi[[#This Row],[BIAYA JABATAN PERBULAN 5%]:[Jaminan Pensiun (JP) dibayar Karyawan (1%)]]) -> 0 | V79: =transkasi[[#This Row],[PENGHASILAN BRUTO]]-transkasi[[#This Row],[Jumlah Pengurangan]] -> 0 | W79: =transkasi[[#This Row],[GAJI POKOK]] -> 0 | X79: =IFERROR(transkasi[[#This Row],[Penghasilan Netto(Bersih) sebulan]]*transkasi[[#This Row],[Masa Kerja]]+transkasi[[#This Row],[THR Setahun]],0) -> 0 | Y79: =IF(ISBLANK(transkasi[[#This Row],[NO]]),"",VLOOKUP(transkasi[[#This Row],[STATUS PTKP]],tarif_ptkp[],2,FALSE)) ->  | Z79: =IFERROR(transkasi[[#This Row],[Penghasilan NETTO (bersih) setahun]]-transkasi[[#This Row],[PTKP (Penghasilan tidak kena pajak) setahun]],0) -> 0 | AA79: =IF(transkasi[[#This Row],[PKP (Penghasilan kena pajak) setahun]]<=0,0,ROUNDDOWN(transkasi[[#This Row],[PKP (Penghasilan kena pajak) setahun]],-3)) -> 0 | AB79: ='Data_From Access 1721 A1'!O65 -> 0 | AC79: ='Data_From Access 1721 A1'!P65 -> 0 | AD79: ='Data_From Access 1721 A1'!Q65 -> 0 | AE79: ='Data_From Access 1721 A1'!R65 -> 0 | AF79: ='Data_From Access 1721 A1'!S65 -> 0 | AG79: =INT(transkasi[[#This Row],[5 %]]+transkasi[[#This Row],[15 %]]+transkasi[[#This Row],[25 %]]+transkasi[[#This Row],[30 %]]+transkasi[[#This Row],[30 %]]+transkasi[[#This Row],[35 %]]/1000*1000) -> 0 | AH79: ='Data_From Access 1721 A1'!T65 -> 0 | AI79: ='Data_From Access 1721 A1'!U65 -> 0 | AJ79: ='Data_From Access 1721 A1'!V65 -> 0 | AK79: 0 | DC79: =INT(transkasi[[#This Row],[JUMLAH PPH PS.21 SETAHUN]]-transkasi[[#This Row],[Kredit Pajak YTDD Jan-Nov + THR]])/1000*1000 -> 0
A80: ='Data_From Access 1721 A1'!A66 ->  | B80: ='Data_From Access 1721 A1'!D66 -> 0 | C80: ='Data_From Access 1721 A1'!G66 -> 0 | D80: ='Data_From Access 1721 A1'!I66 -> 0 | E80: ='Data_From Access 1721 A1'!B66 -> 0 | F80: ='Data_From Access 1721 A1'!C66 -> 0 | G80: ='Data_From Access 1721 A1'!E66 -> 0 | H80: ='Data_From Access 1721 A1'!H66 -> 0 | I80: ='Data_From Access 1721 A1'!F66 -> 0 | J80: ='Data_From Access 1721 A1'!J66 -> 0 | K80: ='Data_From Access 1721 A1'!K66 -> 0 | L80: =IF(ISBLANK(transkasi[[#This Row],[GAJI POKOK]]),"",0.24%*transkasi[[#This Row],[GAJI POKOK]]) -> 0 | M80: =0.3%*transkasi[[#This Row],[GAJI POKOK]] -> 0 | N80: =SUM(transkasi[[#This Row],[GAJI POKOK]:[Jaminan Kematian/JK (0,3%)]]) -> 0 | O80: ='Data_From Access 1721 A1'!L66 -> 00:00:00 | P80: ='Data_From Access 1721 A1'!M66 -> 00:00:00 | Q80: ='Data_From Access 1721 A1'!N66 -> 0 | R80: =IF(transkasi[[#This Row],[PENGHASILAN BRUTO]]*5%>=500000,500000,transkasi[[#This Row],[PENGHASILAN BRUTO]]*5%) -> 0 | S80: =2%*transkasi[[#This Row],[GAJI POKOK]] -> 0 | T80: =1%*transkasi[[#This Row],[GAJI POKOK]] -> 0 | U80: =SUM(transkasi[[#This Row],[BIAYA JABATAN PERBULAN 5%]:[Jaminan Pensiun (JP) dibayar Karyawan (1%)]]) -> 0 | V80: =transkasi[[#This Row],[PENGHASILAN BRUTO]]-transkasi[[#This Row],[Jumlah Pengurangan]] -> 0 | W80: =transkasi[[#This Row],[GAJI POKOK]] -> 0 | X80: =IFERROR(transkasi[[#This Row],[Penghasilan Netto(Bersih) sebulan]]*transkasi[[#This Row],[Masa Kerja]]+transkasi[[#This Row],[THR Setahun]],0) -> 0 | Y80: =IF(ISBLANK(transkasi[[#This Row],[NO]]),"",VLOOKUP(transkasi[[#This Row],[STATUS PTKP]],tarif_ptkp[],2,FALSE)) ->  | Z80: =IFERROR(transkasi[[#This Row],[Penghasilan NETTO (bersih) setahun]]-transkasi[[#This Row],[PTKP (Penghasilan tidak kena pajak) setahun]],0) -> 0 | AA80: =IF(transkasi[[#This Row],[PKP (Penghasilan kena pajak) setahun]]<=0,0,ROUNDDOWN(transkasi[[#This Row],[PKP (Penghasilan kena pajak) setahun]],-3)) -> 0 | AB80: ='Data_From Access 1721 A1'!O66 -> 0 | AC80: ='Data_From Access 1721 A1'!P66 -> 0 | AD80: ='Data_From Access 1721 A1'!Q66 -> 0 | AE80: ='Data_From Access 1721 A1'!R66 -> 0 | AF80: ='Data_From Access 1721 A1'!S66 -> 0 | AG80: =INT(transkasi[[#This Row],[5 %]]+transkasi[[#This Row],[15 %]]+transkasi[[#This Row],[25 %]]+transkasi[[#This Row],[30 %]]+transkasi[[#This Row],[30 %]]+transkasi[[#This Row],[35 %]]/1000*1000) -> 0 | AH80: ='Data_From Access 1721 A1'!T66 -> 0 | AI80: ='Data_From Access 1721 A1'!U66 -> 0 | AJ80: ='Data_From Access 1721 A1'!V66 -> 0 | AK80: 0 | DC80: =INT(transkasi[[#This Row],[JUMLAH PPH PS.21 SETAHUN]]-transkasi[[#This Row],[Kredit Pajak YTDD Jan-Nov + THR]])/1000*1000 -> 0
A81: ='Data_From Access 1721 A1'!A67 ->  | B81: ='Data_From Access 1721 A1'!D67 -> 0 | C81: ='Data_From Access 1721 A1'!G67 -> 0 | D81: ='Data_From Access 1721 A1'!I67 -> 0 | E81: ='Data_From Access 1721 A1'!B67 -> 0 | F81: ='Data_From Access 1721 A1'!C67 -> 0 | G81: ='Data_From Access 1721 A1'!E67 -> 0 | H81: ='Data_From Access 1721 A1'!H67 -> 0 | I81: ='Data_From Access 1721 A1'!F67 -> 0 | J81: ='Data_From Access 1721 A1'!J67 -> 0 | K81: ='Data_From Access 1721 A1'!K67 -> 0 | L81: =IF(ISBLANK(transkasi[[#This Row],[GAJI POKOK]]),"",0.24%*transkasi[[#This Row],[GAJI POKOK]]) -> 0 | M81: =0.3%*transkasi[[#This Row],[GAJI POKOK]] -> 0 | N81: =SUM(transkasi[[#This Row],[GAJI POKOK]:[Jaminan Kematian/JK (0,3%)]]) -> 0 | O81: ='Data_From Access 1721 A1'!L67 -> 00:00:00 | P81: ='Data_From Access 1721 A1'!M67 -> 00:00:00 | Q81: ='Data_From Access 1721 A1'!N67 -> 0 | R81: =IF(transkasi[[#This Row],[PENGHASILAN BRUTO]]*5%>=500000,500000,transkasi[[#This Row],[PENGHASILAN BRUTO]]*5%) -> 0 | S81: =2%*transkasi[[#This Row],[GAJI POKOK]] -> 0 | T81: =1%*transkasi[[#This Row],[GAJI POKOK]] -> 0 | U81: =SUM(transkasi[[#This Row],[BIAYA JABATAN PERBULAN 5%]:[Jaminan Pensiun (JP) dibayar Karyawan (1%)]]) -> 0 | V81: =transkasi[[#This Row],[PENGHASILAN BRUTO]]-transkasi[[#This Row],[Jumlah Pengurangan]] -> 0 | W81: =transkasi[[#This Row],[GAJI POKOK]] -> 0 | X81: =IFERROR(transkasi[[#This Row],[Penghasilan Netto(Bersih) sebulan]]*transkasi[[#This Row],[Masa Kerja]]+transkasi[[#This Row],[THR Setahun]],0) -> 0 | Y81: =IF(ISBLANK(transkasi[[#This Row],[NO]]),"",VLOOKUP(transkasi[[#This Row],[STATUS PTKP]],tarif_ptkp[],2,FALSE)) ->  | Z81: =IFERROR(transkasi[[#This Row],[Penghasilan NETTO (bersih) setahun]]-transkasi[[#This Row],[PTKP (Penghasilan tidak kena pajak) setahun]],0) -> 0 | AA81: =IF(transkasi[[#This Row],[PKP (Penghasilan kena pajak) setahun]]<=0,0,ROUNDDOWN(transkasi[[#This Row],[PKP (Penghasilan kena pajak) setahun]],-3)) -> 0 | AB81: ='Data_From Access 1721 A1'!O67 -> 0 | AC81: ='Data_From Access 1721 A1'!P67 -> 0 | AD81: ='Data_From Access 1721 A1'!Q67 -> 0 | AE81: ='Data_From Access 1721 A1'!R67 -> 0 | AF81: ='Data_From Access 1721 A1'!S67 -> 0 | AG81: =INT(transkasi[[#This Row],[5 %]]+transkasi[[#This Row],[15 %]]+transkasi[[#This Row],[25 %]]+transkasi[[#This Row],[30 %]]+transkasi[[#This Row],[30 %]]+transkasi[[#This Row],[35 %]]/1000*1000) -> 0 | AH81: ='Data_From Access 1721 A1'!T67 -> 0 | AI81: ='Data_From Access 1721 A1'!U67 -> 0 | AJ81: ='Data_From Access 1721 A1'!V67 -> 0 | AK81: 0 | DC81: =INT(transkasi[[#This Row],[JUMLAH PPH PS.21 SETAHUN]]-transkasi[[#This Row],[Kredit Pajak YTDD Jan-Nov + THR]])/1000*1000 -> 0
A82: ='Data_From Access 1721 A1'!A68 ->  | B82: ='Data_From Access 1721 A1'!D68 -> 0 | C82: ='Data_From Access 1721 A1'!G68 -> 0 | D82: ='Data_From Access 1721 A1'!I68 -> 0 | E82: ='Data_From Access 1721 A1'!B68 -> 0 | F82: ='Data_From Access 1721 A1'!C68 -> 0 | G82: ='Data_From Access 1721 A1'!E68 -> 0 | H82: ='Data_From Access 1721 A1'!H68 -> 0 | I82: ='Data_From Access 1721 A1'!F68 -> 0 | J82: ='Data_From Access 1721 A1'!J68 -> 0 | K82: ='Data_From Access 1721 A1'!K68 -> 0 | L82: =IF(ISBLANK(transkasi[[#This Row],[GAJI POKOK]]),"",0.24%*transkasi[[#This Row],[GAJI POKOK]]) -> 0 | M82: =0.3%*transkasi[[#This Row],[GAJI POKOK]] -> 0 | N82: =SUM(transkasi[[#This Row],[GAJI POKOK]:[Jaminan Kematian/JK (0,3%)]]) -> 0 | O82: ='Data_From Access 1721 A1'!L68 -> 00:00:00 | P82: ='Data_From Access 1721 A1'!M68 -> 00:00:00 | Q82: ='Data_From Access 1721 A1'!N68 -> 0 | R82: =IF(transkasi[[#This Row],[PENGHASILAN BRUTO]]*5%>=500000,500000,transkasi[[#This Row],[PENGHASILAN BRUTO]]*5%) -> 0 | S82: =2%*transkasi[[#This Row],[GAJI POKOK]] -> 0 | T82: =1%*transkasi[[#This Row],[GAJI POKOK]] -> 0 | U82: =SUM(transkasi[[#This Row],[BIAYA JABATAN PERBULAN 5%]:[Jaminan Pensiun (JP) dibayar Karyawan (1%)]]) -> 0 | V82: =transkasi[[#This Row],[PENGHASILAN BRUTO]]-transkasi[[#This Row],[Jumlah Pengurangan]] -> 0 | W82: =transkasi[[#This Row],[GAJI POKOK]] -> 0 | X82: =IFERROR(transkasi[[#This Row],[Penghasilan Netto(Bersih) sebulan]]*transkasi[[#This Row],[Masa Kerja]]+transkasi[[#This Row],[THR Setahun]],0) -> 0 | Y82: =IF(ISBLANK(transkasi[[#This Row],[NO]]),"",VLOOKUP(transkasi[[#This Row],[STATUS PTKP]],tarif_ptkp[],2,FALSE)) ->  | Z82: =IFERROR(transkasi[[#This Row],[Penghasilan NETTO (bersih) setahun]]-transkasi[[#This Row],[PTKP (Penghasilan tidak kena pajak) setahun]],0) -> 0 | AA82: =IF(transkasi[[#This Row],[PKP (Penghasilan kena pajak) setahun]]<=0,0,ROUNDDOWN(transkasi[[#This Row],[PKP (Penghasilan kena pajak) setahun]],-3)) -> 0 | AB82: ='Data_From Access 1721 A1'!O68 -> 0 | AC82: ='Data_From Access 1721 A1'!P68 -> 0 | AD82: ='Data_From Access 1721 A1'!Q68 -> 0 | AE82: ='Data_From Access 1721 A1'!R68 -> 0 | AF82: ='Data_From Access 1721 A1'!S68 -> 0 | AG82: =INT(transkasi[[#This Row],[5 %]]+transkasi[[#This Row],[15 %]]+transkasi[[#This Row],[25 %]]+transkasi[[#This Row],[30 %]]+transkasi[[#This Row],[30 %]]+transkasi[[#This Row],[35 %]]/1000*1000) -> 0 | AH82: ='Data_From Access 1721 A1'!T68 -> 0 | AI82: ='Data_From Access 1721 A1'!U68 -> 0 | AJ82: ='Data_From Access 1721 A1'!V68 -> 0 | AK82: 0 | DC82: =INT(transkasi[[#This Row],[JUMLAH PPH PS.21 SETAHUN]]-transkasi[[#This Row],[Kredit Pajak YTDD Jan-Nov + THR]])/1000*1000 -> 0
A83: ='Data_From Access 1721 A1'!A69 ->  | B83: ='Data_From Access 1721 A1'!D69 -> 0 | C83: ='Data_From Access 1721 A1'!G69 -> 0 | D83: ='Data_From Access 1721 A1'!I69 -> 0 | E83: ='Data_From Access 1721 A1'!B69 -> 0 | F83: ='Data_From Access 1721 A1'!C69 -> 0 | G83: ='Data_From Access 1721 A1'!E69 -> 0 | H83: ='Data_From Access 1721 A1'!H69 -> 0 | I83: ='Data_From Access 1721 A1'!F69 -> 0 | J83: ='Data_From Access 1721 A1'!J69 -> 0 | K83: ='Data_From Access 1721 A1'!K69 -> 0 | L83: =IF(ISBLANK(transkasi[[#This Row],[GAJI POKOK]]),"",0.24%*transkasi[[#This Row],[GAJI POKOK]]) -> 0 | M83: =0.3%*transkasi[[#This Row],[GAJI POKOK]] -> 0 | N83: =SUM(transkasi[[#This Row],[GAJI POKOK]:[Jaminan Kematian/JK (0,3%)]]) -> 0 | O83: ='Data_From Access 1721 A1'!L69 -> 00:00:00 | P83: ='Data_From Access 1721 A1'!M69 -> 00:00:00 | Q83: ='Data_From Access 1721 A1'!N69 -> 0 | R83: =IF(transkasi[[#This Row],[PENGHASILAN BRUTO]]*5%>=500000,500000,transkasi[[#This Row],[PENGHASILAN BRUTO]]*5%) -> 0 | S83: =2%*transkasi[[#This Row],[GAJI POKOK]] -> 0 | T83: =1%*transkasi[[#This Row],[GAJI POKOK]] -> 0 | U83: =SUM(transkasi[[#This Row],[BIAYA JABATAN PERBULAN 5%]:[Jaminan Pensiun (JP) dibayar Karyawan (1%)]]) -> 0 | V83: =transkasi[[#This Row],[PENGHASILAN BRUTO]]-transkasi[[#This Row],[Jumlah Pengurangan]] -> 0 | W83: =transkasi[[#This Row],[GAJI POKOK]] -> 0 | X83: =IFERROR(transkasi[[#This Row],[Penghasilan Netto(Bersih) sebulan]]*transkasi[[#This Row],[Masa Kerja]]+transkasi[[#This Row],[THR Setahun]],0) -> 0 | Y83: =IF(ISBLANK(transkasi[[#This Row],[NO]]),"",VLOOKUP(transkasi[[#This Row],[STATUS PTKP]],tarif_ptkp[],2,FALSE)) ->  | Z83: =IFERROR(transkasi[[#This Row],[Penghasilan NETTO (bersih) setahun]]-transkasi[[#This Row],[PTKP (Penghasilan tidak kena pajak) setahun]],0) -> 0 | AA83: =IF(transkasi[[#This Row],[PKP (Penghasilan kena pajak) setahun]]<=0,0,ROUNDDOWN(transkasi[[#This Row],[PKP (Penghasilan kena pajak) setahun]],-3)) -> 0 | AB83: ='Data_From Access 1721 A1'!O69 -> 0 | AC83: ='Data_From Access 1721 A1'!P69 -> 0 | AD83: ='Data_From Access 1721 A1'!Q69 -> 0 | AE83: ='Data_From Access 1721 A1'!R69 -> 0 | AF83: ='Data_From Access 1721 A1'!S69 -> 0 | AG83: =INT(transkasi[[#This Row],[5 %]]+transkasi[[#This Row],[15 %]]+transkasi[[#This Row],[25 %]]+transkasi[[#This Row],[30 %]]+transkasi[[#This Row],[30 %]]+transkasi[[#This Row],[35 %]]/1000*1000) -> 0 | AH83: ='Data_From Access 1721 A1'!T69 -> 0 | AI83: ='Data_From Access 1721 A1'!U69 -> 0 | AJ83: ='Data_From Access 1721 A1'!V69 -> 0 | AK83: 0 | DC83: =INT(transkasi[[#This Row],[JUMLAH PPH PS.21 SETAHUN]]-transkasi[[#This Row],[Kredit Pajak YTDD Jan-Nov + THR]])/1000*1000 -> 0
A84: ='Data_From Access 1721 A1'!A70 ->  | B84: ='Data_From Access 1721 A1'!D70 -> 0 | C84: ='Data_From Access 1721 A1'!G70 -> 0 | D84: ='Data_From Access 1721 A1'!I70 -> 0 | E84: ='Data_From Access 1721 A1'!B70 -> 0 | F84: ='Data_From Access 1721 A1'!C70 -> 0 | G84: ='Data_From Access 1721 A1'!E70 -> 0 | H84: ='Data_From Access 1721 A1'!H70 -> 0 | I84: ='Data_From Access 1721 A1'!F70 -> 0 | J84: ='Data_From Access 1721 A1'!J70 -> 0 | K84: ='Data_From Access 1721 A1'!K70 -> 0 | L84: =IF(ISBLANK(transkasi[[#This Row],[GAJI POKOK]]),"",0.24%*transkasi[[#This Row],[GAJI POKOK]]) -> 0 | M84: =0.3%*transkasi[[#This Row],[GAJI POKOK]] -> 0 | N84: =SUM(transkasi[[#This Row],[GAJI POKOK]:[Jaminan Kematian/JK (0,3%)]]) -> 0 | O84: ='Data_From Access 1721 A1'!L70 -> 00:00:00 | P84: ='Data_From Access 1721 A1'!M70 -> 00:00:00 | Q84: ='Data_From Access 1721 A1'!N70 -> 0 | R84: =IF(transkasi[[#This Row],[PENGHASILAN BRUTO]]*5%>=500000,500000,transkasi[[#This Row],[PENGHASILAN BRUTO]]*5%) -> 0 | S84: =2%*transkasi[[#This Row],[GAJI POKOK]] -> 0 | T84: =1%*transkasi[[#This Row],[GAJI POKOK]] -> 0 | U84: =SUM(transkasi[[#This Row],[BIAYA JABATAN PERBULAN 5%]:[Jaminan Pensiun (JP) dibayar Karyawan (1%)]]) -> 0 | V84: =transkasi[[#This Row],[PENGHASILAN BRUTO]]-transkasi[[#This Row],[Jumlah Pengurangan]] -> 0 | W84: =transkasi[[#This Row],[GAJI POKOK]] -> 0 | X84: =IFERROR(transkasi[[#This Row],[Penghasilan Netto(Bersih) sebulan]]*transkasi[[#This Row],[Masa Kerja]]+transkasi[[#This Row],[THR Setahun]],0) -> 0 | Y84: =IF(ISBLANK(transkasi[[#This Row],[NO]]),"",VLOOKUP(transkasi[[#This Row],[STATUS PTKP]],tarif_ptkp[],2,FALSE)) ->  | Z84: =IFERROR(transkasi[[#This Row],[Penghasilan NETTO (bersih) setahun]]-transkasi[[#This Row],[PTKP (Penghasilan tidak kena pajak) setahun]],0) -> 0 | AA84: =IF(transkasi[[#This Row],[PKP (Penghasilan kena pajak) setahun]]<=0,0,ROUNDDOWN(transkasi[[#This Row],[PKP (Penghasilan kena pajak) setahun]],-3)) -> 0 | AB84: ='Data_From Access 1721 A1'!O70 -> 0 | AC84: ='Data_From Access 1721 A1'!P70 -> 0 | AD84: ='Data_From Access 1721 A1'!Q70 -> 0 | AE84: ='Data_From Access 1721 A1'!R70 -> 0 | AF84: ='Data_From Access 1721 A1'!S70 -> 0 | AG84: =INT(transkasi[[#This Row],[5 %]]+transkasi[[#This Row],[15 %]]+transkasi[[#This Row],[25 %]]+transkasi[[#This Row],[30 %]]+transkasi[[#This Row],[30 %]]+transkasi[[#This Row],[35 %]]/1000*1000) -> 0 | AH84: ='Data_From Access 1721 A1'!T70 -> 0 | AI84: ='Data_From Access 1721 A1'!U70 -> 0 | AJ84: ='Data_From Access 1721 A1'!V70 -> 0 | AK84: 0 | DC84: =INT(transkasi[[#This Row],[JUMLAH PPH PS.21 SETAHUN]]-transkasi[[#This Row],[Kredit Pajak YTDD Jan-Nov + THR]])/1000*1000 -> 0
A85: ='Data_From Access 1721 A1'!A71 ->  | B85: ='Data_From Access 1721 A1'!D71 -> 0 | C85: ='Data_From Access 1721 A1'!G71 -> 0 | D85: ='Data_From Access 1721 A1'!I71 -> 0 | E85: ='Data_From Access 1721 A1'!B71 -> 0 | F85: ='Data_From Access 1721 A1'!C71 -> 0 | G85: ='Data_From Access 1721 A1'!E71 -> 0 | H85: ='Data_From Access 1721 A1'!H71 -> 0 | I85: ='Data_From Access 1721 A1'!F71 -> 0 | J85: ='Data_From Access 1721 A1'!J71 -> 0 | K85: ='Data_From Access 1721 A1'!K71 -> 0 | L85: =IF(ISBLANK(transkasi[[#This Row],[GAJI POKOK]]),"",0.24%*transkasi[[#This Row],[GAJI POKOK]]) -> 0 | M85: =0.3%*transkasi[[#This Row],[GAJI POKOK]] -> 0 | N85: =SUM(transkasi[[#This Row],[GAJI POKOK]:[Jaminan Kematian/JK (0,3%)]]) -> 0 | O85: ='Data_From Access 1721 A1'!L71 -> 00:00:00 | P85: ='Data_From Access 1721 A1'!M71 -> 00:00:00 | Q85: ='Data_From Access 1721 A1'!N71 -> 0 | R85: =IF(transkasi[[#This Row],[PENGHASILAN BRUTO]]*5%>=500000,500000,transkasi[[#This Row],[PENGHASILAN BRUTO]]*5%) -> 0 | S85: =2%*transkasi[[#This Row],[GAJI POKOK]] -> 0 | T85: =1%*transkasi[[#This Row],[GAJI POKOK]] -> 0 | U85: =SUM(transkasi[[#This Row],[BIAYA JABATAN PERBULAN 5%]:[Jaminan Pensiun (JP) dibayar Karyawan (1%)]]) -> 0 | V85: =transkasi[[#This Row],[PENGHASILAN BRUTO]]-transkasi[[#This Row],[Jumlah Pengurangan]] -> 0 | W85: =transkasi[[#This Row],[GAJI POKOK]] -> 0 | X85: =IFERROR(transkasi[[#This Row],[Penghasilan Netto(Bersih) sebulan]]*transkasi[[#This Row],[Masa Kerja]]+transkasi[[#This Row],[THR Setahun]],0) -> 0 | Y85: =IF(ISBLANK(transkasi[[#This Row],[NO]]),"",VLOOKUP(transkasi[[#This Row],[STATUS PTKP]],tarif_ptkp[],2,FALSE)) ->  | Z85: =IFERROR(transkasi[[#This Row],[Penghasilan NETTO (bersih) setahun]]-transkasi[[#This Row],[PTKP (Penghasilan tidak kena pajak) setahun]],0) -> 0 | AA85: =IF(transkasi[[#This Row],[PKP (Penghasilan kena pajak) setahun]]<=0,0,ROUNDDOWN(transkasi[[#This Row],[PKP (Penghasilan kena pajak) setahun]],-3)) -> 0 | AB85: ='Data_From Access 1721 A1'!O71 -> 0 | AC85: ='Data_From Access 1721 A1'!P71 -> 0 | AD85: ='Data_From Access 1721 A1'!Q71 -> 0 | AE85: ='Data_From Access 1721 A1'!R71 -> 0 | AF85: ='Data_From Access 1721 A1'!S71 -> 0 | AG85: =INT(transkasi[[#This Row],[5 %]]+transkasi[[#This Row],[15 %]]+transkasi[[#This Row],[25 %]]+transkasi[[#This Row],[30 %]]+transkasi[[#This Row],[30 %]]+transkasi[[#This Row],[35 %]]/1000*1000) -> 0 | AH85: ='Data_From Access 1721 A1'!T71 -> 0 | AI85: ='Data_From Access 1721 A1'!U71 -> 0 | AJ85: ='Data_From Access 1721 A1'!V71 -> 0 | AK85: 0 | DC85: =INT(transkasi[[#This Row],[JUMLAH PPH PS.21 SETAHUN]]-transkasi[[#This Row],[Kredit Pajak YTDD Jan-Nov + THR]])/1000*1000 -> 0
A86: ='Data_From Access 1721 A1'!A72 ->  | B86: ='Data_From Access 1721 A1'!D72 -> 0 | C86: ='Data_From Access 1721 A1'!G72 -> 0 | D86: ='Data_From Access 1721 A1'!I72 -> 0 | E86: ='Data_From Access 1721 A1'!B72 -> 0 | F86: ='Data_From Access 1721 A1'!C72 -> 0 | G86: ='Data_From Access 1721 A1'!E72 -> 0 | H86: ='Data_From Access 1721 A1'!H72 -> 0 | I86: ='Data_From Access 1721 A1'!F72 -> 0 | J86: ='Data_From Access 1721 A1'!J72 -> 0 | K86: ='Data_From Access 1721 A1'!K72 -> 0 | L86: =IF(ISBLANK(transkasi[[#This Row],[GAJI POKOK]]),"",0.24%*transkasi[[#This Row],[GAJI POKOK]]) -> 0 | M86: =0.3%*transkasi[[#This Row],[GAJI POKOK]] -> 0 | N86: =SUM(transkasi[[#This Row],[GAJI POKOK]:[Jaminan Kematian/JK (0,3%)]]) -> 0 | O86: ='Data_From Access 1721 A1'!L72 -> 00:00:00 | P86: ='Data_From Access 1721 A1'!M72 -> 00:00:00 | Q86: ='Data_From Access 1721 A1'!N72 -> 0 | R86: =IF(transkasi[[#This Row],[PENGHASILAN BRUTO]]*5%>=500000,500000,transkasi[[#This Row],[PENGHASILAN BRUTO]]*5%) -> 0 | S86: =2%*transkasi[[#This Row],[GAJI POKOK]] -> 0 | T86: =1%*transkasi[[#This Row],[GAJI POKOK]] -> 0 | U86: =SUM(transkasi[[#This Row],[BIAYA JABATAN PERBULAN 5%]:[Jaminan Pensiun (JP) dibayar Karyawan (1%)]]) -> 0 | V86: =transkasi[[#This Row],[PENGHASILAN BRUTO]]-transkasi[[#This Row],[Jumlah Pengurangan]] -> 0 | W86: =transkasi[[#This Row],[GAJI POKOK]] -> 0 | X86: =IFERROR(transkasi[[#This Row],[Penghasilan Netto(Bersih) sebulan]]*transkasi[[#This Row],[Masa Kerja]]+transkasi[[#This Row],[THR Setahun]],0) -> 0 | Y86: =IF(ISBLANK(transkasi[[#This Row],[NO]]),"",VLOOKUP(transkasi[[#This Row],[STATUS PTKP]],tarif_ptkp[],2,FALSE)) ->  | Z86: =IFERROR(transkasi[[#This Row],[Penghasilan NETTO (bersih) setahun]]-transkasi[[#This Row],[PTKP (Penghasilan tidak kena pajak) setahun]],0) -> 0 | AA86: =IF(transkasi[[#This Row],[PKP (Penghasilan kena pajak) setahun]]<=0,0,ROUNDDOWN(transkasi[[#This Row],[PKP (Penghasilan kena pajak) setahun]],-3)) -> 0 | AB86: ='Data_From Access 1721 A1'!O72 -> 0 | AC86: ='Data_From Access 1721 A1'!P72 -> 0 | AD86: ='Data_From Access 1721 A1'!Q72 -> 0 | AE86: ='Data_From Access 1721 A1'!R72 -> 0 | AF86: ='Data_From Access 1721 A1'!S72 -> 0 | AG86: =INT(transkasi[[#This Row],[5 %]]+transkasi[[#This Row],[15 %]]+transkasi[[#This Row],[25 %]]+transkasi[[#This Row],[30 %]]+transkasi[[#This Row],[30 %]]+transkasi[[#This Row],[35 %]]/1000*1000) -> 0 | AH86: ='Data_From Access 1721 A1'!T72 -> 0 | AI86: ='Data_From Access 1721 A1'!U72 -> 0 | AJ86: ='Data_From Access 1721 A1'!V72 -> 0 | AK86: 0 | DC86: =INT(transkasi[[#This Row],[JUMLAH PPH PS.21 SETAHUN]]-transkasi[[#This Row],[Kredit Pajak YTDD Jan-Nov + THR]])/1000*1000 -> 0
A87: ='Data_From Access 1721 A1'!A73 ->  | B87: ='Data_From Access 1721 A1'!D73 -> 0 | C87: ='Data_From Access 1721 A1'!G73 -> 0 | D87: ='Data_From Access 1721 A1'!I73 -> 0 | E87: ='Data_From Access 1721 A1'!B73 -> 0 | F87: ='Data_From Access 1721 A1'!C73 -> 0 | G87: ='Data_From Access 1721 A1'!E73 -> 0 | H87: ='Data_From Access 1721 A1'!H73 -> 0 | I87: ='Data_From Access 1721 A1'!F73 -> 0 | J87: ='Data_From Access 1721 A1'!J73 -> 0 | K87: ='Data_From Access 1721 A1'!K73 -> 0 | L87: =IF(ISBLANK(transkasi[[#This Row],[GAJI POKOK]]),"",0.24%*transkasi[[#This Row],[GAJI POKOK]]) -> 0 | M87: =0.3%*transkasi[[#This Row],[GAJI POKOK]] -> 0 | N87: =SUM(transkasi[[#This Row],[GAJI POKOK]:[Jaminan Kematian/JK (0,3%)]]) -> 0 | O87: ='Data_From Access 1721 A1'!L73 -> 00:00:00 | P87: ='Data_From Access 1721 A1'!M73 -> 00:00:00 | Q87: ='Data_From Access 1721 A1'!N73 -> 0 | R87: =IF(transkasi[[#This Row],[PENGHASILAN BRUTO]]*5%>=500000,500000,transkasi[[#This Row],[PENGHASILAN BRUTO]]*5%) -> 0 | S87: =2%*transkasi[[#This Row],[GAJI POKOK]] -> 0 | T87: =1%*transkasi[[#This Row],[GAJI POKOK]] -> 0 | U87: =SUM(transkasi[[#This Row],[BIAYA JABATAN PERBULAN 5%]:[Jaminan Pensiun (JP) dibayar Karyawan (1%)]]) -> 0 | V87: =transkasi[[#This Row],[PENGHASILAN BRUTO]]-transkasi[[#This Row],[Jumlah Pengurangan]] -> 0 | W87: =transkasi[[#This Row],[GAJI POKOK]] -> 0 | X87: =IFERROR(transkasi[[#This Row],[Penghasilan Netto(Bersih) sebulan]]*transkasi[[#This Row],[Masa Kerja]]+transkasi[[#This Row],[THR Setahun]],0) -> 0 | Y87: =IF(ISBLANK(transkasi[[#This Row],[NO]]),"",VLOOKUP(transkasi[[#This Row],[STATUS PTKP]],tarif_ptkp[],2,FALSE)) ->  | Z87: =IFERROR(transkasi[[#This Row],[Penghasilan NETTO (bersih) setahun]]-transkasi[[#This Row],[PTKP (Penghasilan tidak kena pajak) setahun]],0) -> 0 | AA87: =IF(transkasi[[#This Row],[PKP (Penghasilan kena pajak) setahun]]<=0,0,ROUNDDOWN(transkasi[[#This Row],[PKP (Penghasilan kena pajak) setahun]],-3)) -> 0 | AB87: ='Data_From Access 1721 A1'!O73 -> 0 | AC87: ='Data_From Access 1721 A1'!P73 -> 0 | AD87: ='Data_From Access 1721 A1'!Q73 -> 0 | AE87: ='Data_From Access 1721 A1'!R73 -> 0 | AF87: ='Data_From Access 1721 A1'!S73 -> 0 | AG87: =INT(transkasi[[#This Row],[5 %]]+transkasi[[#This Row],[15 %]]+transkasi[[#This Row],[25 %]]+transkasi[[#This Row],[30 %]]+transkasi[[#This Row],[30 %]]+transkasi[[#This Row],[35 %]]/1000*1000) -> 0 | AH87: ='Data_From Access 1721 A1'!T73 -> 0 | AI87: ='Data_From Access 1721 A1'!U73 -> 0 | AJ87: ='Data_From Access 1721 A1'!V73 -> 0 | AK87: 0 | DC87: =INT(transkasi[[#This Row],[JUMLAH PPH PS.21 SETAHUN]]-transkasi[[#This Row],[Kredit Pajak YTDD Jan-Nov + THR]])/1000*1000 -> 0
A88: ='Data_From Access 1721 A1'!A74 ->  | B88: ='Data_From Access 1721 A1'!D74 -> 0 | C88: ='Data_From Access 1721 A1'!G74 -> 0 | D88: ='Data_From Access 1721 A1'!I74 -> 0 | E88: ='Data_From Access 1721 A1'!B74 -> 0 | F88: ='Data_From Access 1721 A1'!C74 -> 0 | G88: ='Data_From Access 1721 A1'!E74 -> 0 | H88: ='Data_From Access 1721 A1'!H74 -> 0 | I88: ='Data_From Access 1721 A1'!F74 -> 0 | J88: ='Data_From Access 1721 A1'!J74 -> 0 | K88: ='Data_From Access 1721 A1'!K74 -> 0 | L88: =IF(ISBLANK(transkasi[[#This Row],[GAJI POKOK]]),"",0.24%*transkasi[[#This Row],[GAJI POKOK]]) -> 0 | M88: =0.3%*transkasi[[#This Row],[GAJI POKOK]] -> 0 | N88: =SUM(transkasi[[#This Row],[GAJI POKOK]:[Jaminan Kematian/JK (0,3%)]]) -> 0 | O88: ='Data_From Access 1721 A1'!L74 -> 00:00:00 | P88: ='Data_From Access 1721 A1'!M74 -> 00:00:00 | Q88: ='Data_From Access 1721 A1'!N74 -> 0 | R88: =IF(transkasi[[#This Row],[PENGHASILAN BRUTO]]*5%>=500000,500000,transkasi[[#This Row],[PENGHASILAN BRUTO]]*5%) -> 0 | S88: =2%*transkasi[[#This Row],[GAJI POKOK]] -> 0 | T88: =1%*transkasi[[#This Row],[GAJI POKOK]] -> 0 | U88: =SUM(transkasi[[#This Row],[BIAYA JABATAN PERBULAN 5%]:[Jaminan Pensiun (JP) dibayar Karyawan (1%)]]) -> 0 | V88: =transkasi[[#This Row],[PENGHASILAN BRUTO]]-transkasi[[#This Row],[Jumlah Pengurangan]] -> 0 | W88: =transkasi[[#This Row],[GAJI POKOK]] -> 0 | X88: =IFERROR(transkasi[[#This Row],[Penghasilan Netto(Bersih) sebulan]]*transkasi[[#This Row],[Masa Kerja]]+transkasi[[#This Row],[THR Setahun]],0) -> 0 | Y88: =IF(ISBLANK(transkasi[[#This Row],[NO]]),"",VLOOKUP(transkasi[[#This Row],[STATUS PTKP]],tarif_ptkp[],2,FALSE)) ->  | Z88: =IFERROR(transkasi[[#This Row],[Penghasilan NETTO (bersih) setahun]]-transkasi[[#This Row],[PTKP (Penghasilan tidak kena pajak) setahun]],0) -> 0 | AA88: =IF(transkasi[[#This Row],[PKP (Penghasilan kena pajak) setahun]]<=0,0,ROUNDDOWN(transkasi[[#This Row],[PKP (Penghasilan kena pajak) setahun]],-3)) -> 0 | AB88: ='Data_From Access 1721 A1'!O74 -> 0 | AC88: ='Data_From Access 1721 A1'!P74 -> 0 | AD88: ='Data_From Access 1721 A1'!Q74 -> 0 | AE88: ='Data_From Access 1721 A1'!R74 -> 0 | AF88: ='Data_From Access 1721 A1'!S74 -> 0 | AG88: =INT(transkasi[[#This Row],[5 %]]+transkasi[[#This Row],[15 %]]+transkasi[[#This Row],[25 %]]+transkasi[[#This Row],[30 %]]+transkasi[[#This Row],[30 %]]+transkasi[[#This Row],[35 %]]/1000*1000) -> 0 | AH88: ='Data_From Access 1721 A1'!T74 -> 0 | AI88: ='Data_From Access 1721 A1'!U74 -> 0 | AJ88: ='Data_From Access 1721 A1'!V74 -> 0 | AK88: 0 | DC88: =INT(transkasi[[#This Row],[JUMLAH PPH PS.21 SETAHUN]]-transkasi[[#This Row],[Kredit Pajak YTDD Jan-Nov + THR]])/1000*1000 -> 0
A89: ='Data_From Access 1721 A1'!A75 ->  | B89: ='Data_From Access 1721 A1'!D75 -> 0 | C89: ='Data_From Access 1721 A1'!G75 -> 0 | D89: ='Data_From Access 1721 A1'!I75 -> 0 | E89: ='Data_From Access 1721 A1'!B75 -> 0 | F89: ='Data_From Access 1721 A1'!C75 -> 0 | G89: ='Data_From Access 1721 A1'!E75 -> 0 | H89: ='Data_From Access 1721 A1'!H75 -> 0 | I89: ='Data_From Access 1721 A1'!F75 -> 0 | J89: ='Data_From Access 1721 A1'!J75 -> 0 | K89: ='Data_From Access 1721 A1'!K75 -> 0 | L89: =IF(ISBLANK(transkasi[[#This Row],[GAJI POKOK]]),"",0.24%*transkasi[[#This Row],[GAJI POKOK]]) -> 0 | M89: =0.3%*transkasi[[#This Row],[GAJI POKOK]] -> 0 | N89: =SUM(transkasi[[#This Row],[GAJI POKOK]:[Jaminan Kematian/JK (0,3%)]]) -> 0 | O89: ='Data_From Access 1721 A1'!L75 -> 00:00:00 | P89: ='Data_From Access 1721 A1'!M75 -> 00:00:00 | Q89: ='Data_From Access 1721 A1'!N75 -> 0 | R89: =IF(transkasi[[#This Row],[PENGHASILAN BRUTO]]*5%>=500000,500000,transkasi[[#This Row],[PENGHASILAN BRUTO]]*5%) -> 0 | S89: =2%*transkasi[[#This Row],[GAJI POKOK]] -> 0 | T89: =1%*transkasi[[#This Row],[GAJI POKOK]] -> 0 | U89: =SUM(transkasi[[#This Row],[BIAYA JABATAN PERBULAN 5%]:[Jaminan Pensiun (JP) dibayar Karyawan (1%)]]) -> 0 | V89: =transkasi[[#This Row],[PENGHASILAN BRUTO]]-transkasi[[#This Row],[Jumlah Pengurangan]] -> 0 | W89: =transkasi[[#This Row],[GAJI POKOK]] -> 0 | X89: =IFERROR(transkasi[[#This Row],[Penghasilan Netto(Bersih) sebulan]]*transkasi[[#This Row],[Masa Kerja]]+transkasi[[#This Row],[THR Setahun]],0) -> 0 | Y89: =IF(ISBLANK(transkasi[[#This Row],[NO]]),"",VLOOKUP(transkasi[[#This Row],[STATUS PTKP]],tarif_ptkp[],2,FALSE)) ->  | Z89: =IFERROR(transkasi[[#This Row],[Penghasilan NETTO (bersih) setahun]]-transkasi[[#This Row],[PTKP (Penghasilan tidak kena pajak) setahun]],0) -> 0 | AA89: =IF(transkasi[[#This Row],[PKP (Penghasilan kena pajak) setahun]]<=0,0,ROUNDDOWN(transkasi[[#This Row],[PKP (Penghasilan kena pajak) setahun]],-3)) -> 0 | AB89: ='Data_From Access 1721 A1'!O75 -> 0 | AC89: ='Data_From Access 1721 A1'!P75 -> 0 | AD89: ='Data_From Access 1721 A1'!Q75 -> 0 | AE89: ='Data_From Access 1721 A1'!R75 -> 0 | AF89: ='Data_From Access 1721 A1'!S75 -> 0 | AG89: =INT(transkasi[[#This Row],[5 %]]+transkasi[[#This Row],[15 %]]+transkasi[[#This Row],[25 %]]+transkasi[[#This Row],[30 %]]+transkasi[[#This Row],[30 %]]+transkasi[[#This Row],[35 %]]/1000*1000) -> 0 | AH89: ='Data_From Access 1721 A1'!T75 -> 0 | AI89: ='Data_From Access 1721 A1'!U75 -> 0 | AJ89: ='Data_From Access 1721 A1'!V75 -> 0 | AK89: 0 | DC89: =INT(transkasi[[#This Row],[JUMLAH PPH PS.21 SETAHUN]]-transkasi[[#This Row],[Kredit Pajak YTDD Jan-Nov + THR]])/1000*1000 -> 0
A90: ='Data_From Access 1721 A1'!A76 ->  | B90: ='Data_From Access 1721 A1'!D76 -> 0 | C90: ='Data_From Access 1721 A1'!G76 -> 0 | D90: ='Data_From Access 1721 A1'!I76 -> 0 | E90: ='Data_From Access 1721 A1'!B76 -> 0 | F90: ='Data_From Access 1721 A1'!C76 -> 0 | G90: ='Data_From Access 1721 A1'!E76 -> 0 | H90: ='Data_From Access 1721 A1'!H76 -> 0 | I90: ='Data_From Access 1721 A1'!F76 -> 0 | J90: ='Data_From Access 1721 A1'!J76 -> 0 | K90: ='Data_From Access 1721 A1'!K76 -> 0 | L90: =IF(ISBLANK(transkasi[[#This Row],[GAJI POKOK]]),"",0.24%*transkasi[[#This Row],[GAJI POKOK]]) -> 0 | M90: =0.3%*transkasi[[#This Row],[GAJI POKOK]] -> 0 | N90: =SUM(transkasi[[#This Row],[GAJI POKOK]:[Jaminan Kematian/JK (0,3%)]]) -> 0 | O90: ='Data_From Access 1721 A1'!L76 -> 00:00:00 | P90: ='Data_From Access 1721 A1'!M76 -> 00:00:00 | Q90: ='Data_From Access 1721 A1'!N76 -> 0 | R90: =IF(transkasi[[#This Row],[PENGHASILAN BRUTO]]*5%>=500000,500000,transkasi[[#This Row],[PENGHASILAN BRUTO]]*5%) -> 0 | S90: =2%*transkasi[[#This Row],[GAJI POKOK]] -> 0 | T90: =1%*transkasi[[#This Row],[GAJI POKOK]] -> 0 | U90: =SUM(transkasi[[#This Row],[BIAYA JABATAN PERBULAN 5%]:[Jaminan Pensiun (JP) dibayar Karyawan (1%)]]) -> 0 | V90: =transkasi[[#This Row],[PENGHASILAN BRUTO]]-transkasi[[#This Row],[Jumlah Pengurangan]] -> 0 | W90: =transkasi[[#This Row],[GAJI POKOK]] -> 0 | X90: =IFERROR(transkasi[[#This Row],[Penghasilan Netto(Bersih) sebulan]]*transkasi[[#This Row],[Masa Kerja]]+transkasi[[#This Row],[THR Setahun]],0) -> 0 | Y90: =IF(ISBLANK(transkasi[[#This Row],[NO]]),"",VLOOKUP(transkasi[[#This Row],[STATUS PTKP]],tarif_ptkp[],2,FALSE)) ->  | Z90: =IFERROR(transkasi[[#This Row],[Penghasilan NETTO (bersih) setahun]]-transkasi[[#This Row],[PTKP (Penghasilan tidak kena pajak) setahun]],0) -> 0 | AA90: =IF(transkasi[[#This Row],[PKP (Penghasilan kena pajak) setahun]]<=0,0,ROUNDDOWN(transkasi[[#This Row],[PKP (Penghasilan kena pajak) setahun]],-3)) -> 0 | AB90: ='Data_From Access 1721 A1'!O76 -> 0 | AC90: ='Data_From Access 1721 A1'!P76 -> 0 | AD90: ='Data_From Access 1721 A1'!Q76 -> 0 | AE90: ='Data_From Access 1721 A1'!R76 -> 0 | AF90: ='Data_From Access 1721 A1'!S76 -> 0 | AG90: =INT(transkasi[[#This Row],[5 %]]+transkasi[[#This Row],[15 %]]+transkasi[[#This Row],[25 %]]+transkasi[[#This Row],[30 %]]+transkasi[[#This Row],[30 %]]+transkasi[[#This Row],[35 %]]/1000*1000) -> 0 | AH90: ='Data_From Access 1721 A1'!T76 -> 0 | AI90: ='Data_From Access 1721 A1'!U76 -> 0 | AJ90: ='Data_From Access 1721 A1'!V76 -> 0 | AK90: 0 | DC90: =INT(transkasi[[#This Row],[JUMLAH PPH PS.21 SETAHUN]]-transkasi[[#This Row],[Kredit Pajak YTDD Jan-Nov + THR]])/1000*1000 -> 0
A91: ='Data_From Access 1721 A1'!A77 ->  | B91: ='Data_From Access 1721 A1'!D77 -> 0 | C91: ='Data_From Access 1721 A1'!G77 -> 0 | D91: ='Data_From Access 1721 A1'!I77 -> 0 | E91: ='Data_From Access 1721 A1'!B77 -> 0 | F91: ='Data_From Access 1721 A1'!C77 -> 0 | G91: ='Data_From Access 1721 A1'!E77 -> 0 | H91: ='Data_From Access 1721 A1'!H77 -> 0 | I91: ='Data_From Access 1721 A1'!F77 -> 0 | J91: ='Data_From Access 1721 A1'!J77 -> 0 | K91: ='Data_From Access 1721 A1'!K77 -> 0 | L91: =IF(ISBLANK(transkasi[[#This Row],[GAJI POKOK]]),"",0.24%*transkasi[[#This Row],[GAJI POKOK]]) -> 0 | M91: =0.3%*transkasi[[#This Row],[GAJI POKOK]] -> 0 | N91: =SUM(transkasi[[#This Row],[GAJI POKOK]:[Jaminan Kematian/JK (0,3%)]]) -> 0 | O91: ='Data_From Access 1721 A1'!L77 -> 00:00:00 | P91: ='Data_From Access 1721 A1'!M77 -> 00:00:00 | Q91: ='Data_From Access 1721 A1'!N77 -> 0 | R91: =IF(transkasi[[#This Row],[PENGHASILAN BRUTO]]*5%>=500000,500000,transkasi[[#This Row],[PENGHASILAN BRUTO]]*5%) -> 0 | S91: =2%*transkasi[[#This Row],[GAJI POKOK]] -> 0 | T91: =1%*transkasi[[#This Row],[GAJI POKOK]] -> 0 | U91: =SUM(transkasi[[#This Row],[BIAYA JABATAN PERBULAN 5%]:[Jaminan Pensiun (JP) dibayar Karyawan (1%)]]) -> 0 | V91: =transkasi[[#This Row],[PENGHASILAN BRUTO]]-transkasi[[#This Row],[Jumlah Pengurangan]] -> 0 | W91: =transkasi[[#This Row],[GAJI POKOK]] -> 0 | X91: =IFERROR(transkasi[[#This Row],[Penghasilan Netto(Bersih) sebulan]]*transkasi[[#This Row],[Masa Kerja]]+transkasi[[#This Row],[THR Setahun]],0) -> 0 | Y91: =IF(ISBLANK(transkasi[[#This Row],[NO]]),"",VLOOKUP(transkasi[[#This Row],[STATUS PTKP]],tarif_ptkp[],2,FALSE)) ->  | Z91: =IFERROR(transkasi[[#This Row],[Penghasilan NETTO (bersih) setahun]]-transkasi[[#This Row],[PTKP (Penghasilan tidak kena pajak) setahun]],0) -> 0 | AA91: =IF(transkasi[[#This Row],[PKP (Penghasilan kena pajak) setahun]]<=0,0,ROUNDDOWN(transkasi[[#This Row],[PKP (Penghasilan kena pajak) setahun]],-3)) -> 0 | AB91: ='Data_From Access 1721 A1'!O77 -> 0 | AC91: ='Data_From Access 1721 A1'!P77 -> 0 | AD91: ='Data_From Access 1721 A1'!Q77 -> 0 | AE91: ='Data_From Access 1721 A1'!R77 -> 0 | AF91: ='Data_From Access 1721 A1'!S77 -> 0 | AG91: =INT(transkasi[[#This Row],[5 %]]+transkasi[[#This Row],[15 %]]+transkasi[[#This Row],[25 %]]+transkasi[[#This Row],[30 %]]+transkasi[[#This Row],[30 %]]+transkasi[[#This Row],[35 %]]/1000*1000) -> 0 | AH91: ='Data_From Access 1721 A1'!T77 -> 0 | AI91: ='Data_From Access 1721 A1'!U77 -> 0 | AJ91: ='Data_From Access 1721 A1'!V77 -> 0 | AK91: 0 | DC91: =INT(transkasi[[#This Row],[JUMLAH PPH PS.21 SETAHUN]]-transkasi[[#This Row],[Kredit Pajak YTDD Jan-Nov + THR]])/1000*1000 -> 0
A92: ='Data_From Access 1721 A1'!A78 ->  | B92: ='Data_From Access 1721 A1'!D78 -> 0 | C92: ='Data_From Access 1721 A1'!G78 -> 0 | D92: ='Data_From Access 1721 A1'!I78 -> 0 | E92: ='Data_From Access 1721 A1'!B78 -> 0 | F92: ='Data_From Access 1721 A1'!C78 -> 0 | G92: ='Data_From Access 1721 A1'!E78 -> 0 | H92: ='Data_From Access 1721 A1'!H78 -> 0 | I92: ='Data_From Access 1721 A1'!F78 -> 0 | J92: ='Data_From Access 1721 A1'!J78 -> 0 | K92: ='Data_From Access 1721 A1'!K78 -> 0 | L92: =IF(ISBLANK(transkasi[[#This Row],[GAJI POKOK]]),"",0.24%*transkasi[[#This Row],[GAJI POKOK]]) -> 0 | M92: =0.3%*transkasi[[#This Row],[GAJI POKOK]] -> 0 | N92: =SUM(transkasi[[#This Row],[GAJI POKOK]:[Jaminan Kematian/JK (0,3%)]]) -> 0 | O92: ='Data_From Access 1721 A1'!L78 -> 00:00:00 | P92: ='Data_From Access 1721 A1'!M78 -> 00:00:00 | Q92: ='Data_From Access 1721 A1'!N78 -> 0 | R92: =IF(transkasi[[#This Row],[PENGHASILAN BRUTO]]*5%>=500000,500000,transkasi[[#This Row],[PENGHASILAN BRUTO]]*5%) -> 0 | S92: =2%*transkasi[[#This Row],[GAJI POKOK]] -> 0 | T92: =1%*transkasi[[#This Row],[GAJI POKOK]] -> 0 | U92: =SUM(transkasi[[#This Row],[BIAYA JABATAN PERBULAN 5%]:[Jaminan Pensiun (JP) dibayar Karyawan (1%)]]) -> 0 | V92: =transkasi[[#This Row],[PENGHASILAN BRUTO]]-transkasi[[#This Row],[Jumlah Pengurangan]] -> 0 | W92: =transkasi[[#This Row],[GAJI POKOK]] -> 0 | X92: =IFERROR(transkasi[[#This Row],[Penghasilan Netto(Bersih) sebulan]]*transkasi[[#This Row],[Masa Kerja]]+transkasi[[#This Row],[THR Setahun]],0) -> 0 | Y92: =IF(ISBLANK(transkasi[[#This Row],[NO]]),"",VLOOKUP(transkasi[[#This Row],[STATUS PTKP]],tarif_ptkp[],2,FALSE)) ->  | Z92: =IFERROR(transkasi[[#This Row],[Penghasilan NETTO (bersih) setahun]]-transkasi[[#This Row],[PTKP (Penghasilan tidak kena pajak) setahun]],0) -> 0 | AA92: =IF(transkasi[[#This Row],[PKP (Penghasilan kena pajak) setahun]]<=0,0,ROUNDDOWN(transkasi[[#This Row],[PKP (Penghasilan kena pajak) setahun]],-3)) -> 0 | AB92: ='Data_From Access 1721 A1'!O78 -> 0 | AC92: ='Data_From Access 1721 A1'!P78 -> 0 | AD92: ='Data_From Access 1721 A1'!Q78 -> 0 | AE92: ='Data_From Access 1721 A1'!R78 -> 0 | AF92: ='Data_From Access 1721 A1'!S78 -> 0 | AG92: =INT(transkasi[[#This Row],[5 %]]+transkasi[[#This Row],[15 %]]+transkasi[[#This Row],[25 %]]+transkasi[[#This Row],[30 %]]+transkasi[[#This Row],[30 %]]+transkasi[[#This Row],[35 %]]/1000*1000) -> 0 | AH92: ='Data_From Access 1721 A1'!T78 -> 0 | AI92: ='Data_From Access 1721 A1'!U78 -> 0 | AJ92: ='Data_From Access 1721 A1'!V78 -> 0 | AK92: 0 | DC92: =INT(transkasi[[#This Row],[JUMLAH PPH PS.21 SETAHUN]]-transkasi[[#This Row],[Kredit Pajak YTDD Jan-Nov + THR]])/1000*1000 -> 0
A93: ='Data_From Access 1721 A1'!A79 ->  | B93: ='Data_From Access 1721 A1'!D79 -> 0 | C93: ='Data_From Access 1721 A1'!G79 -> 0 | D93: ='Data_From Access 1721 A1'!I79 -> 0 | E93: ='Data_From Access 1721 A1'!B79 -> 0 | F93: ='Data_From Access 1721 A1'!C79 -> 0 | G93: ='Data_From Access 1721 A1'!E79 -> 0 | H93: ='Data_From Access 1721 A1'!H79 -> 0 | I93: ='Data_From Access 1721 A1'!F79 -> 0 | J93: ='Data_From Access 1721 A1'!J79 -> 0 | K93: ='Data_From Access 1721 A1'!K79 -> 0 | L93: =IF(ISBLANK(transkasi[[#This Row],[GAJI POKOK]]),"",0.24%*transkasi[[#This Row],[GAJI POKOK]]) -> 0 | M93: =0.3%*transkasi[[#This Row],[GAJI POKOK]] -> 0 | N93: =SUM(transkasi[[#This Row],[GAJI POKOK]:[Jaminan Kematian/JK (0,3%)]]) -> 0 | O93: ='Data_From Access 1721 A1'!L79 -> 00:00:00 | P93: ='Data_From Access 1721 A1'!M79 -> 00:00:00 | Q93: ='Data_From Access 1721 A1'!N79 -> 0 | R93: =IF(transkasi[[#This Row],[PENGHASILAN BRUTO]]*5%>=500000,500000,transkasi[[#This Row],[PENGHASILAN BRUTO]]*5%) -> 0 | S93: =2%*transkasi[[#This Row],[GAJI POKOK]] -> 0 | T93: =1%*transkasi[[#This Row],[GAJI POKOK]] -> 0 | U93: =SUM(transkasi[[#This Row],[BIAYA JABATAN PERBULAN 5%]:[Jaminan Pensiun (JP) dibayar Karyawan (1%)]]) -> 0 | V93: =transkasi[[#This Row],[PENGHASILAN BRUTO]]-transkasi[[#This Row],[Jumlah Pengurangan]] -> 0 | W93: =transkasi[[#This Row],[GAJI POKOK]] -> 0 | X93: =IFERROR(transkasi[[#This Row],[Penghasilan Netto(Bersih) sebulan]]*transkasi[[#This Row],[Masa Kerja]]+transkasi[[#This Row],[THR Setahun]],0) -> 0 | Y93: =IF(ISBLANK(transkasi[[#This Row],[NO]]),"",VLOOKUP(transkasi[[#This Row],[STATUS PTKP]],tarif_ptkp[],2,FALSE)) ->  | Z93: =IFERROR(transkasi[[#This Row],[Penghasilan NETTO (bersih) setahun]]-transkasi[[#This Row],[PTKP (Penghasilan tidak kena pajak) setahun]],0) -> 0 | AA93: =IF(transkasi[[#This Row],[PKP (Penghasilan kena pajak) setahun]]<=0,0,ROUNDDOWN(transkasi[[#This Row],[PKP (Penghasilan kena pajak) setahun]],-3)) -> 0 | AB93: ='Data_From Access 1721 A1'!O79 -> 0 | AC93: ='Data_From Access 1721 A1'!P79 -> 0 | AD93: ='Data_From Access 1721 A1'!Q79 -> 0 | AE93: ='Data_From Access 1721 A1'!R79 -> 0 | AF93: ='Data_From Access 1721 A1'!S79 -> 0 | AG93: =INT(transkasi[[#This Row],[5 %]]+transkasi[[#This Row],[15 %]]+transkasi[[#This Row],[25 %]]+transkasi[[#This Row],[30 %]]+transkasi[[#This Row],[30 %]]+transkasi[[#This Row],[35 %]]/1000*1000) -> 0 | AH93: ='Data_From Access 1721 A1'!T79 -> 0 | AI93: ='Data_From Access 1721 A1'!U79 -> 0 | AJ93: ='Data_From Access 1721 A1'!V79 -> 0 | AK93: 0 | DC93: =INT(transkasi[[#This Row],[JUMLAH PPH PS.21 SETAHUN]]-transkasi[[#This Row],[Kredit Pajak YTDD Jan-Nov + THR]])/1000*1000 -> 0
A94: ='Data_From Access 1721 A1'!A80 ->  | B94: ='Data_From Access 1721 A1'!D80 -> 0 | C94: ='Data_From Access 1721 A1'!G80 -> 0 | D94: ='Data_From Access 1721 A1'!I80 -> 0 | E94: ='Data_From Access 1721 A1'!B80 -> 0 | F94: ='Data_From Access 1721 A1'!C80 -> 0 | G94: ='Data_From Access 1721 A1'!E80 -> 0 | H94: ='Data_From Access 1721 A1'!H80 -> 0 | I94: ='Data_From Access 1721 A1'!F80 -> 0 | J94: ='Data_From Access 1721 A1'!J80 -> 0 | K94: ='Data_From Access 1721 A1'!K80 -> 0 | L94: =IF(ISBLANK(transkasi[[#This Row],[GAJI POKOK]]),"",0.24%*transkasi[[#This Row],[GAJI POKOK]]) -> 0 | M94: =0.3%*transkasi[[#This Row],[GAJI POKOK]] -> 0 | N94: =SUM(transkasi[[#This Row],[GAJI POKOK]:[Jaminan Kematian/JK (0,3%)]]) -> 0 | O94: ='Data_From Access 1721 A1'!L80 -> 00:00:00 | P94: ='Data_From Access 1721 A1'!M80 -> 00:00:00 | Q94: ='Data_From Access 1721 A1'!N80 -> 0 | R94: =IF(transkasi[[#This Row],[PENGHASILAN BRUTO]]*5%>=500000,500000,transkasi[[#This Row],[PENGHASILAN BRUTO]]*5%) -> 0 | S94: =2%*transkasi[[#This Row],[GAJI POKOK]] -> 0 | T94: =1%*transkasi[[#This Row],[GAJI POKOK]] -> 0 | U94: =SUM(transkasi[[#This Row],[BIAYA JABATAN PERBULAN 5%]:[Jaminan Pensiun (JP) dibayar Karyawan (1%)]]) -> 0 | V94: =transkasi[[#This Row],[PENGHASILAN BRUTO]]-transkasi[[#This Row],[Jumlah Pengurangan]] -> 0 | W94: =transkasi[[#This Row],[GAJI POKOK]] -> 0 | X94: =IFERROR(transkasi[[#This Row],[Penghasilan Netto(Bersih) sebulan]]*transkasi[[#This Row],[Masa Kerja]]+transkasi[[#This Row],[THR Setahun]],0) -> 0 | Y94: =IF(ISBLANK(transkasi[[#This Row],[NO]]),"",VLOOKUP(transkasi[[#This Row],[STATUS PTKP]],tarif_ptkp[],2,FALSE)) ->  | Z94: =IFERROR(transkasi[[#This Row],[Penghasilan NETTO (bersih) setahun]]-transkasi[[#This Row],[PTKP (Penghasilan tidak kena pajak) setahun]],0) -> 0 | AA94: =IF(transkasi[[#This Row],[PKP (Penghasilan kena pajak) setahun]]<=0,0,ROUNDDOWN(transkasi[[#This Row],[PKP (Penghasilan kena pajak) setahun]],-3)) -> 0 | AB94: ='Data_From Access 1721 A1'!O80 -> 0 | AC94: ='Data_From Access 1721 A1'!P80 -> 0 | AD94: ='Data_From Access 1721 A1'!Q80 -> 0 | AE94: ='Data_From Access 1721 A1'!R80 -> 0 | AF94: ='Data_From Access 1721 A1'!S80 -> 0 | AG94: =INT(transkasi[[#This Row],[5 %]]+transkasi[[#This Row],[15 %]]+transkasi[[#This Row],[25 %]]+transkasi[[#This Row],[30 %]]+transkasi[[#This Row],[30 %]]+transkasi[[#This Row],[35 %]]/1000*1000) -> 0 | AH94: ='Data_From Access 1721 A1'!T80 -> 0 | AI94: ='Data_From Access 1721 A1'!U80 -> 0 | AJ94: ='Data_From Access 1721 A1'!V80 -> 0 | AK94: 0 | DC94: =INT(transkasi[[#This Row],[JUMLAH PPH PS.21 SETAHUN]]-transkasi[[#This Row],[Kredit Pajak YTDD Jan-Nov + THR]])/1000*1000 -> 0
A95: ='Data_From Access 1721 A1'!A81 ->  | B95: ='Data_From Access 1721 A1'!D81 -> 0 | C95: ='Data_From Access 1721 A1'!G81 -> 0 | D95: ='Data_From Access 1721 A1'!I81 -> 0 | E95: ='Data_From Access 1721 A1'!B81 -> 0 | F95: ='Data_From Access 1721 A1'!C81 -> 0 | G95: ='Data_From Access 1721 A1'!E81 -> 0 | H95: ='Data_From Access 1721 A1'!H81 -> 0 | I95: ='Data_From Access 1721 A1'!F81 -> 0 | J95: ='Data_From Access 1721 A1'!J81 -> 0 | K95: ='Data_From Access 1721 A1'!K81 -> 0 | L95: =IF(ISBLANK(transkasi[[#This Row],[GAJI POKOK]]),"",0.24%*transkasi[[#This Row],[GAJI POKOK]]) -> 0 | M95: =0.3%*transkasi[[#This Row],[GAJI POKOK]] -> 0 | N95: =SUM(transkasi[[#This Row],[GAJI POKOK]:[Jaminan Kematian/JK (0,3%)]]) -> 0 | O95: ='Data_From Access 1721 A1'!L81 -> 00:00:00 | P95: ='Data_From Access 1721 A1'!M81 -> 00:00:00 | Q95: ='Data_From Access 1721 A1'!N81 -> 0 | R95: =IF(transkasi[[#This Row],[PENGHASILAN BRUTO]]*5%>=500000,500000,transkasi[[#This Row],[PENGHASILAN BRUTO]]*5%) -> 0 | S95: =2%*transkasi[[#This Row],[GAJI POKOK]] -> 0 | T95: =1%*transkasi[[#This Row],[GAJI POKOK]] -> 0 | U95: =SUM(transkasi[[#This Row],[BIAYA JABATAN PERBULAN 5%]:[Jaminan Pensiun (JP) dibayar Karyawan (1%)]]) -> 0 | V95: =transkasi[[#This Row],[PENGHASILAN BRUTO]]-transkasi[[#This Row],[Jumlah Pengurangan]] -> 0 | W95: =transkasi[[#This Row],[GAJI POKOK]] -> 0 | X95: =IFERROR(transkasi[[#This Row],[Penghasilan Netto(Bersih) sebulan]]*transkasi[[#This Row],[Masa Kerja]]+transkasi[[#This Row],[THR Setahun]],0) -> 0 | Y95: =IF(ISBLANK(transkasi[[#This Row],[NO]]),"",VLOOKUP(transkasi[[#This Row],[STATUS PTKP]],tarif_ptkp[],2,FALSE)) ->  | Z95: =IFERROR(transkasi[[#This Row],[Penghasilan NETTO (bersih) setahun]]-transkasi[[#This Row],[PTKP (Penghasilan tidak kena pajak) setahun]],0) -> 0 | AA95: =IF(transkasi[[#This Row],[PKP (Penghasilan kena pajak) setahun]]<=0,0,ROUNDDOWN(transkasi[[#This Row],[PKP (Penghasilan kena pajak) setahun]],-3)) -> 0 | AB95: ='Data_From Access 1721 A1'!O81 -> 0 | AC95: ='Data_From Access 1721 A1'!P81 -> 0 | AD95: ='Data_From Access 1721 A1'!Q81 -> 0 | AE95: ='Data_From Access 1721 A1'!R81 -> 0 | AF95: ='Data_From Access 1721 A1'!S81 -> 0 | AG95: =INT(transkasi[[#This Row],[5 %]]+transkasi[[#This Row],[15 %]]+transkasi[[#This Row],[25 %]]+transkasi[[#This Row],[30 %]]+transkasi[[#This Row],[30 %]]+transkasi[[#This Row],[35 %]]/1000*1000) -> 0 | AH95: ='Data_From Access 1721 A1'!T81 -> 0 | AI95: ='Data_From Access 1721 A1'!U81 -> 0 | AJ95: ='Data_From Access 1721 A1'!V81 -> 0 | AK95: 0 | DC95: =INT(transkasi[[#This Row],[JUMLAH PPH PS.21 SETAHUN]]-transkasi[[#This Row],[Kredit Pajak YTDD Jan-Nov + THR]])/1000*1000 -> 0
A96: ='Data_From Access 1721 A1'!A82 ->  | B96: ='Data_From Access 1721 A1'!D82 -> 0 | C96: ='Data_From Access 1721 A1'!G82 -> 0 | D96: ='Data_From Access 1721 A1'!I82 -> 0 | E96: ='Data_From Access 1721 A1'!B82 -> 0 | F96: ='Data_From Access 1721 A1'!C82 -> 0 | G96: ='Data_From Access 1721 A1'!E82 -> 0 | H96: ='Data_From Access 1721 A1'!H82 -> 0 | I96: ='Data_From Access 1721 A1'!F82 -> 0 | J96: ='Data_From Access 1721 A1'!J82 -> 0 | K96: ='Data_From Access 1721 A1'!K82 -> 0 | L96: =IF(ISBLANK(transkasi[[#This Row],[GAJI POKOK]]),"",0.24%*transkasi[[#This Row],[GAJI POKOK]]) -> 0 | M96: =0.3%*transkasi[[#This Row],[GAJI POKOK]] -> 0 | N96: =SUM(transkasi[[#This Row],[GAJI POKOK]:[Jaminan Kematian/JK (0,3%)]]) -> 0 | O96: ='Data_From Access 1721 A1'!L82 -> 00:00:00 | P96: ='Data_From Access 1721 A1'!M82 -> 00:00:00 | Q96: ='Data_From Access 1721 A1'!N82 -> 0 | R96: =IF(transkasi[[#This Row],[PENGHASILAN BRUTO]]*5%>=500000,500000,transkasi[[#This Row],[PENGHASILAN BRUTO]]*5%) -> 0 | S96: =2%*transkasi[[#This Row],[GAJI POKOK]] -> 0 | T96: =1%*transkasi[[#This Row],[GAJI POKOK]] -> 0 | U96: =SUM(transkasi[[#This Row],[BIAYA JABATAN PERBULAN 5%]:[Jaminan Pensiun (JP) dibayar Karyawan (1%)]]) -> 0 | V96: =transkasi[[#This Row],[PENGHASILAN BRUTO]]-transkasi[[#This Row],[Jumlah Pengurangan]] -> 0 | W96: =transkasi[[#This Row],[GAJI POKOK]] -> 0 | X96: =IFERROR(transkasi[[#This Row],[Penghasilan Netto(Bersih) sebulan]]*transkasi[[#This Row],[Masa Kerja]]+transkasi[[#This Row],[THR Setahun]],0) -> 0 | Y96: =IF(ISBLANK(transkasi[[#This Row],[NO]]),"",VLOOKUP(transkasi[[#This Row],[STATUS PTKP]],tarif_ptkp[],2,FALSE)) ->  | Z96: =IFERROR(transkasi[[#This Row],[Penghasilan NETTO (bersih) setahun]]-transkasi[[#This Row],[PTKP (Penghasilan tidak kena pajak) setahun]],0) -> 0 | AA96: =IF(transkasi[[#This Row],[PKP (Penghasilan kena pajak) setahun]]<=0,0,ROUNDDOWN(transkasi[[#This Row],[PKP (Penghasilan kena pajak) setahun]],-3)) -> 0 | AB96: ='Data_From Access 1721 A1'!O82 -> 0 | AC96: ='Data_From Access 1721 A1'!P82 -> 0 | AD96: ='Data_From Access 1721 A1'!Q82 -> 0 | AE96: ='Data_From Access 1721 A1'!R82 -> 0 | AF96: ='Data_From Access 1721 A1'!S82 -> 0 | AG96: =INT(transkasi[[#This Row],[5 %]]+transkasi[[#This Row],[15 %]]+transkasi[[#This Row],[25 %]]+transkasi[[#This Row],[30 %]]+transkasi[[#This Row],[30 %]]+transkasi[[#This Row],[35 %]]/1000*1000) -> 0 | AH96: ='Data_From Access 1721 A1'!T82 -> 0 | AI96: ='Data_From Access 1721 A1'!U82 -> 0 | AJ96: ='Data_From Access 1721 A1'!V82 -> 0 | AK96: 0 | DC96: =INT(transkasi[[#This Row],[JUMLAH PPH PS.21 SETAHUN]]-transkasi[[#This Row],[Kredit Pajak YTDD Jan-Nov + THR]])/1000*1000 -> 0
A97: ='Data_From Access 1721 A1'!A83 ->  | B97: ='Data_From Access 1721 A1'!D83 -> 0 | C97: ='Data_From Access 1721 A1'!G83 -> 0 | D97: ='Data_From Access 1721 A1'!I83 -> 0 | E97: ='Data_From Access 1721 A1'!B83 -> 0 | F97: ='Data_From Access 1721 A1'!C83 -> 0 | G97: ='Data_From Access 1721 A1'!E83 -> 0 | H97: ='Data_From Access 1721 A1'!H83 -> 0 | I97: ='Data_From Access 1721 A1'!F83 -> 0 | J97: ='Data_From Access 1721 A1'!J83 -> 0 | K97: ='Data_From Access 1721 A1'!K83 -> 0 | L97: =IF(ISBLANK(transkasi[[#This Row],[GAJI POKOK]]),"",0.24%*transkasi[[#This Row],[GAJI POKOK]]) -> 0 | M97: =0.3%*transkasi[[#This Row],[GAJI POKOK]] -> 0 | N97: =SUM(transkasi[[#This Row],[GAJI POKOK]:[Jaminan Kematian/JK (0,3%)]]) -> 0 | O97: ='Data_From Access 1721 A1'!L83 -> 00:00:00 | P97: ='Data_From Access 1721 A1'!M83 -> 00:00:00 | Q97: ='Data_From Access 1721 A1'!N83 -> 0 | R97: =IF(transkasi[[#This Row],[PENGHASILAN BRUTO]]*5%>=500000,500000,transkasi[[#This Row],[PENGHASILAN BRUTO]]*5%) -> 0 | S97: =2%*transkasi[[#This Row],[GAJI POKOK]] -> 0 | T97: =1%*transkasi[[#This Row],[GAJI POKOK]] -> 0 | U97: =SUM(transkasi[[#This Row],[BIAYA JABATAN PERBULAN 5%]:[Jaminan Pensiun (JP) dibayar Karyawan (1%)]]) -> 0 | V97: =transkasi[[#This Row],[PENGHASILAN BRUTO]]-transkasi[[#This Row],[Jumlah Pengurangan]] -> 0 | W97: =transkasi[[#This Row],[GAJI POKOK]] -> 0 | X97: =IFERROR(transkasi[[#This Row],[Penghasilan Netto(Bersih) sebulan]]*transkasi[[#This Row],[Masa Kerja]]+transkasi[[#This Row],[THR Setahun]],0) -> 0 | Y97: =IF(ISBLANK(transkasi[[#This Row],[NO]]),"",VLOOKUP(transkasi[[#This Row],[STATUS PTKP]],tarif_ptkp[],2,FALSE)) ->  | Z97: =IFERROR(transkasi[[#This Row],[Penghasilan NETTO (bersih) setahun]]-transkasi[[#This Row],[PTKP (Penghasilan tidak kena pajak) setahun]],0) -> 0 | AA97: =IF(transkasi[[#This Row],[PKP (Penghasilan kena pajak) setahun]]<=0,0,ROUNDDOWN(transkasi[[#This Row],[PKP (Penghasilan kena pajak) setahun]],-3)) -> 0 | AB97: ='Data_From Access 1721 A1'!O83 -> 0 | AC97: ='Data_From Access 1721 A1'!P83 -> 0 | AD97: ='Data_From Access 1721 A1'!Q83 -> 0 | AE97: ='Data_From Access 1721 A1'!R83 -> 0 | AF97: ='Data_From Access 1721 A1'!S83 -> 0 | AG97: =INT(transkasi[[#This Row],[5 %]]+transkasi[[#This Row],[15 %]]+transkasi[[#This Row],[25 %]]+transkasi[[#This Row],[30 %]]+transkasi[[#This Row],[30 %]]+transkasi[[#This Row],[35 %]]/1000*1000) -> 0 | AH97: ='Data_From Access 1721 A1'!T83 -> 0 | AI97: ='Data_From Access 1721 A1'!U83 -> 0 | AJ97: ='Data_From Access 1721 A1'!V83 -> 0 | AK97: 0 | DC97: =INT(transkasi[[#This Row],[JUMLAH PPH PS.21 SETAHUN]]-transkasi[[#This Row],[Kredit Pajak YTDD Jan-Nov + THR]])/1000*1000 -> 0
A98: ='Data_From Access 1721 A1'!A84 ->  | B98: ='Data_From Access 1721 A1'!D84 -> 0 | C98: ='Data_From Access 1721 A1'!G84 -> 0 | D98: ='Data_From Access 1721 A1'!I84 -> 0 | E98: ='Data_From Access 1721 A1'!B84 -> 0 | F98: ='Data_From Access 1721 A1'!C84 -> 0 | G98: ='Data_From Access 1721 A1'!E84 -> 0 | H98: ='Data_From Access 1721 A1'!H84 -> 0 | I98: ='Data_From Access 1721 A1'!F84 -> 0 | J98: ='Data_From Access 1721 A1'!J84 -> 0 | K98: ='Data_From Access 1721 A1'!K84 -> 0 | L98: =IF(ISBLANK(transkasi[[#This Row],[GAJI POKOK]]),"",0.24%*transkasi[[#This Row],[GAJI POKOK]]) -> 0 | M98: =0.3%*transkasi[[#This Row],[GAJI POKOK]] -> 0 | N98: =SUM(transkasi[[#This Row],[GAJI POKOK]:[Jaminan Kematian/JK (0,3%)]]) -> 0 | O98: ='Data_From Access 1721 A1'!L84 -> 00:00:00 | P98: ='Data_From Access 1721 A1'!M84 -> 00:00:00 | Q98: ='Data_From Access 1721 A1'!N84 -> 0 | R98: =IF(transkasi[[#This Row],[PENGHASILAN BRUTO]]*5%>=500000,500000,transkasi[[#This Row],[PENGHASILAN BRUTO]]*5%) -> 0 | S98: =2%*transkasi[[#This Row],[GAJI POKOK]] -> 0 | T98: =1%*transkasi[[#This Row],[GAJI POKOK]] -> 0 | U98: =SUM(transkasi[[#This Row],[BIAYA JABATAN PERBULAN 5%]:[Jaminan Pensiun (JP) dibayar Karyawan (1%)]]) -> 0 | V98: =transkasi[[#This Row],[PENGHASILAN BRUTO]]-transkasi[[#This Row],[Jumlah Pengurangan]] -> 0 | W98: =transkasi[[#This Row],[GAJI POKOK]] -> 0 | X98: =IFERROR(transkasi[[#This Row],[Penghasilan Netto(Bersih) sebulan]]*transkasi[[#This Row],[Masa Kerja]]+transkasi[[#This Row],[THR Setahun]],0) -> 0 | Y98: =IF(ISBLANK(transkasi[[#This Row],[NO]]),"",VLOOKUP(transkasi[[#This Row],[STATUS PTKP]],tarif_ptkp[],2,FALSE)) ->  | Z98: =IFERROR(transkasi[[#This Row],[Penghasilan NETTO (bersih) setahun]]-transkasi[[#This Row],[PTKP (Penghasilan tidak kena pajak) setahun]],0) -> 0 | AA98: =IF(transkasi[[#This Row],[PKP (Penghasilan kena pajak) setahun]]<=0,0,ROUNDDOWN(transkasi[[#This Row],[PKP (Penghasilan kena pajak) setahun]],-3)) -> 0 | AB98: ='Data_From Access 1721 A1'!O84 -> 0 | AC98: ='Data_From Access 1721 A1'!P84 -> 0 | AD98: ='Data_From Access 1721 A1'!Q84 -> 0 | AE98: ='Data_From Access 1721 A1'!R84 -> 0 | AF98: ='Data_From Access 1721 A1'!S84 -> 0 | AG98: =INT(transkasi[[#This Row],[5 %]]+transkasi[[#This Row],[15 %]]+transkasi[[#This Row],[25 %]]+transkasi[[#This Row],[30 %]]+transkasi[[#This Row],[30 %]]+transkasi[[#This Row],[35 %]]/1000*1000) -> 0 | AH98: ='Data_From Access 1721 A1'!T84 -> 0 | AI98: ='Data_From Access 1721 A1'!U84 -> 0 | AJ98: ='Data_From Access 1721 A1'!V84 -> 0 | AK98: 0 | DC98: =INT(transkasi[[#This Row],[JUMLAH PPH PS.21 SETAHUN]]-transkasi[[#This Row],[Kredit Pajak YTDD Jan-Nov + THR]])/1000*1000 -> 0
A99: ='Data_From Access 1721 A1'!A85 ->  | B99: ='Data_From Access 1721 A1'!D85 -> 0 | C99: ='Data_From Access 1721 A1'!G85 -> 0 | D99: ='Data_From Access 1721 A1'!I85 -> 0 | E99: ='Data_From Access 1721 A1'!B85 -> 0 | F99: ='Data_From Access 1721 A1'!C85 -> 0 | G99: ='Data_From Access 1721 A1'!E85 -> 0 | H99: ='Data_From Access 1721 A1'!H85 -> 0 | I99: ='Data_From Access 1721 A1'!F85 -> 0 | J99: ='Data_From Access 1721 A1'!J85 -> 0 | K99: ='Data_From Access 1721 A1'!K85 -> 0 | L99: =IF(ISBLANK(transkasi[[#This Row],[GAJI POKOK]]),"",0.24%*transkasi[[#This Row],[GAJI POKOK]]) -> 0 | M99: =0.3%*transkasi[[#This Row],[GAJI POKOK]] -> 0 | N99: =SUM(transkasi[[#This Row],[GAJI POKOK]:[Jaminan Kematian/JK (0,3%)]]) -> 0 | O99: ='Data_From Access 1721 A1'!L85 -> 00:00:00 | P99: ='Data_From Access 1721 A1'!M85 -> 00:00:00 | Q99: ='Data_From Access 1721 A1'!N85 -> 0 | R99: =IF(transkasi[[#This Row],[PENGHASILAN BRUTO]]*5%>=500000,500000,transkasi[[#This Row],[PENGHASILAN BRUTO]]*5%) -> 0 | S99: =2%*transkasi[[#This Row],[GAJI POKOK]] -> 0 | T99: =1%*transkasi[[#This Row],[GAJI POKOK]] -> 0 | U99: =SUM(transkasi[[#This Row],[BIAYA JABATAN PERBULAN 5%]:[Jaminan Pensiun (JP) dibayar Karyawan (1%)]]) -> 0 | V99: =transkasi[[#This Row],[PENGHASILAN BRUTO]]-transkasi[[#This Row],[Jumlah Pengurangan]] -> 0 | W99: =transkasi[[#This Row],[GAJI POKOK]] -> 0 | X99: =IFERROR(transkasi[[#This Row],[Penghasilan Netto(Bersih) sebulan]]*transkasi[[#This Row],[Masa Kerja]]+transkasi[[#This Row],[THR Setahun]],0) -> 0 | Y99: =IF(ISBLANK(transkasi[[#This Row],[NO]]),"",VLOOKUP(transkasi[[#This Row],[STATUS PTKP]],tarif_ptkp[],2,FALSE)) ->  | Z99: =IFERROR(transkasi[[#This Row],[Penghasilan NETTO (bersih) setahun]]-transkasi[[#This Row],[PTKP (Penghasilan tidak kena pajak) setahun]],0) -> 0 | AA99: =IF(transkasi[[#This Row],[PKP (Penghasilan kena pajak) setahun]]<=0,0,ROUNDDOWN(transkasi[[#This Row],[PKP (Penghasilan kena pajak) setahun]],-3)) -> 0 | AB99: ='Data_From Access 1721 A1'!O85 -> 0 | AC99: ='Data_From Access 1721 A1'!P85 -> 0 | AD99: ='Data_From Access 1721 A1'!Q85 -> 0 | AE99: ='Data_From Access 1721 A1'!R85 -> 0 | AF99: ='Data_From Access 1721 A1'!S85 -> 0 | AG99: =INT(transkasi[[#This Row],[5 %]]+transkasi[[#This Row],[15 %]]+transkasi[[#This Row],[25 %]]+transkasi[[#This Row],[30 %]]+transkasi[[#This Row],[30 %]]+transkasi[[#This Row],[35 %]]/1000*1000) -> 0 | AH99: ='Data_From Access 1721 A1'!T85 -> 0 | AI99: ='Data_From Access 1721 A1'!U85 -> 0 | AJ99: ='Data_From Access 1721 A1'!V85 -> 0 | AK99: 0 | DC99: =INT(transkasi[[#This Row],[JUMLAH PPH PS.21 SETAHUN]]-transkasi[[#This Row],[Kredit Pajak YTDD Jan-Nov + THR]])/1000*1000 -> 0
A100: ='Data_From Access 1721 A1'!A86 ->  | B100: ='Data_From Access 1721 A1'!D86 -> 0 | C100: ='Data_From Access 1721 A1'!G86 -> 0 | D100: ='Data_From Access 1721 A1'!I86 -> 0 | E100: ='Data_From Access 1721 A1'!B86 -> 0 | F100: ='Data_From Access 1721 A1'!C86 -> 0 | G100: ='Data_From Access 1721 A1'!E86 -> 0 | H100: ='Data_From Access 1721 A1'!H86 -> 0 | I100: ='Data_From Access 1721 A1'!F86 -> 0 | J100: ='Data_From Access 1721 A1'!J86 -> 0 | K100: ='Data_From Access 1721 A1'!K86 -> 0 | L100: =IF(ISBLANK(transkasi[[#This Row],[GAJI POKOK]]),"",0.24%*transkasi[[#This Row],[GAJI POKOK]]) -> 0 | M100: =0.3%*transkasi[[#This Row],[GAJI POKOK]] -> 0 | N100: =SUM(transkasi[[#This Row],[GAJI POKOK]:[Jaminan Kematian/JK (0,3%)]]) -> 0 | O100: ='Data_From Access 1721 A1'!L86 -> 00:00:00 | P100: ='Data_From Access 1721 A1'!M86 -> 00:00:00 | Q100: ='Data_From Access 1721 A1'!N86 -> 0 | R100: =IF(transkasi[[#This Row],[PENGHASILAN BRUTO]]*5%>=500000,500000,transkasi[[#This Row],[PENGHASILAN BRUTO]]*5%) -> 0 | S100: =2%*transkasi[[#This Row],[GAJI POKOK]] -> 0 | T100: =1%*transkasi[[#This Row],[GAJI POKOK]] -> 0 | U100: =SUM(transkasi[[#This Row],[BIAYA JABATAN PERBULAN 5%]:[Jaminan Pensiun (JP) dibayar Karyawan (1%)]]) -> 0 | V100: =transkasi[[#This Row],[PENGHASILAN BRUTO]]-transkasi[[#This Row],[Jumlah Pengurangan]] -> 0 | W100: =transkasi[[#This Row],[GAJI POKOK]] -> 0 | X100: =IFERROR(transkasi[[#This Row],[Penghasilan Netto(Bersih) sebulan]]*transkasi[[#This Row],[Masa Kerja]]+transkasi[[#This Row],[THR Setahun]],0) -> 0 | Y100: =IF(ISBLANK(transkasi[[#This Row],[NO]]),"",VLOOKUP(transkasi[[#This Row],[STATUS PTKP]],tarif_ptkp[],2,FALSE)) ->  | Z100: =IFERROR(transkasi[[#This Row],[Penghasilan NETTO (bersih) setahun]]-transkasi[[#This Row],[PTKP (Penghasilan tidak kena pajak) setahun]],0) -> 0 | AA100: =IF(transkasi[[#This Row],[PKP (Penghasilan kena pajak) setahun]]<=0,0,ROUNDDOWN(transkasi[[#This Row],[PKP (Penghasilan kena pajak) setahun]],-3)) -> 0 | AB100: ='Data_From Access 1721 A1'!O86 -> 0 | AC100: ='Data_From Access 1721 A1'!P86 -> 0 | AD100: ='Data_From Access 1721 A1'!Q86 -> 0 | AE100: ='Data_From Access 1721 A1'!R86 -> 0 | AF100: ='Data_From Access 1721 A1'!S86 -> 0 | AG100: =INT(transkasi[[#This Row],[5 %]]+transkasi[[#This Row],[15 %]]+transkasi[[#This Row],[25 %]]+transkasi[[#This Row],[30 %]]+transkasi[[#This Row],[30 %]]+transkasi[[#This Row],[35 %]]/1000*1000) -> 0 | AH100: ='Data_From Access 1721 A1'!T86 -> 0 | AI100: ='Data_From Access 1721 A1'!U86 -> 0 | AJ100: ='Data_From Access 1721 A1'!V86 -> 0 | AK100: 0 | DC100: =INT(transkasi[[#This Row],[JUMLAH PPH PS.21 SETAHUN]]-transkasi[[#This Row],[Kredit Pajak YTDD Jan-Nov + THR]])/1000*1000 -> 0
A101: ='Data_From Access 1721 A1'!A87 ->  | B101: ='Data_From Access 1721 A1'!D87 -> 0 | C101: ='Data_From Access 1721 A1'!G87 -> 0 | D101: ='Data_From Access 1721 A1'!I87 -> 0 | E101: ='Data_From Access 1721 A1'!B87 -> 0 | F101: ='Data_From Access 1721 A1'!C87 -> 0 | G101: ='Data_From Access 1721 A1'!E87 -> 0 | H101: ='Data_From Access 1721 A1'!H87 -> 0 | I101: ='Data_From Access 1721 A1'!F87 -> 0 | J101: ='Data_From Access 1721 A1'!J87 -> 0 | K101: ='Data_From Access 1721 A1'!K87 -> 0 | L101: =IF(ISBLANK(transkasi[[#This Row],[GAJI POKOK]]),"",0.24%*transkasi[[#This Row],[GAJI POKOK]]) -> 0 | M101: =0.3%*transkasi[[#This Row],[GAJI POKOK]] -> 0 | N101: =SUM(transkasi[[#This Row],[GAJI POKOK]:[Jaminan Kematian/JK (0,3%)]]) -> 0 | O101: ='Data_From Access 1721 A1'!L87 -> 00:00:00 | P101: ='Data_From Access 1721 A1'!M87 -> 00:00:00 | Q101: ='Data_From Access 1721 A1'!N87 -> 0 | R101: =IF(transkasi[[#This Row],[PENGHASILAN BRUTO]]*5%>=500000,500000,transkasi[[#This Row],[PENGHASILAN BRUTO]]*5%) -> 0 | S101: =2%*transkasi[[#This Row],[GAJI POKOK]] -> 0 | T101: =1%*transkasi[[#This Row],[GAJI POKOK]] -> 0 | U101: =SUM(transkasi[[#This Row],[BIAYA JABATAN PERBULAN 5%]:[Jaminan Pensiun (JP) dibayar Karyawan (1%)]]) -> 0 | V101: =transkasi[[#This Row],[PENGHASILAN BRUTO]]-transkasi[[#This Row],[Jumlah Pengurangan]] -> 0 | W101: =transkasi[[#This Row],[GAJI POKOK]] -> 0 | X101: =IFERROR(transkasi[[#This Row],[Penghasilan Netto(Bersih) sebulan]]*transkasi[[#This Row],[Masa Kerja]]+transkasi[[#This Row],[THR Setahun]],0) -> 0 | Y101: =IF(ISBLANK(transkasi[[#This Row],[NO]]),"",VLOOKUP(transkasi[[#This Row],[STATUS PTKP]],tarif_ptkp[],2,FALSE)) ->  | Z101: =IFERROR(transkasi[[#This Row],[Penghasilan NETTO (bersih) setahun]]-transkasi[[#This Row],[PTKP (Penghasilan tidak kena pajak) setahun]],0) -> 0 | AA101: =IF(transkasi[[#This Row],[PKP (Penghasilan kena pajak) setahun]]<=0,0,ROUNDDOWN(transkasi[[#This Row],[PKP (Penghasilan kena pajak) setahun]],-3)) -> 0 | AB101: ='Data_From Access 1721 A1'!O87 -> 0 | AC101: ='Data_From Access 1721 A1'!P87 -> 0 | AD101: ='Data_From Access 1721 A1'!Q87 -> 0 | AE101: ='Data_From Access 1721 A1'!R87 -> 0 | AF101: ='Data_From Access 1721 A1'!S87 -> 0 | AG101: =INT(transkasi[[#This Row],[5 %]]+transkasi[[#This Row],[15 %]]+transkasi[[#This Row],[25 %]]+transkasi[[#This Row],[30 %]]+transkasi[[#This Row],[30 %]]+transkasi[[#This Row],[35 %]]/1000*1000) -> 0 | AH101: ='Data_From Access 1721 A1'!T87 -> 0 | AI101: ='Data_From Access 1721 A1'!U87 -> 0 | AJ101: ='Data_From Access 1721 A1'!V87 -> 0 | AK101: 0 | DC101: =INT(transkasi[[#This Row],[JUMLAH PPH PS.21 SETAHUN]]-transkasi[[#This Row],[Kredit Pajak YTDD Jan-Nov + THR]])/1000*1000 -> 0
A102: ='Data_From Access 1721 A1'!A88 ->  | B102: ='Data_From Access 1721 A1'!D88 -> 0 | C102: ='Data_From Access 1721 A1'!G88 -> 0 | D102: ='Data_From Access 1721 A1'!I88 -> 0 | E102: ='Data_From Access 1721 A1'!B88 -> 0 | F102: ='Data_From Access 1721 A1'!C88 -> 0 | G102: ='Data_From Access 1721 A1'!E88 -> 0 | H102: ='Data_From Access 1721 A1'!H88 -> 0 | I102: ='Data_From Access 1721 A1'!F88 -> 0 | J102: ='Data_From Access 1721 A1'!J88 -> 0 | K102: ='Data_From Access 1721 A1'!K88 -> 0 | L102: =IF(ISBLANK(transkasi[[#This Row],[GAJI POKOK]]),"",0.24%*transkasi[[#This Row],[GAJI POKOK]]) -> 0 | M102: =0.3%*transkasi[[#This Row],[GAJI POKOK]] -> 0 | N102: =SUM(transkasi[[#This Row],[GAJI POKOK]:[Jaminan Kematian/JK (0,3%)]]) -> 0 | O102: ='Data_From Access 1721 A1'!L88 -> 00:00:00 | P102: ='Data_From Access 1721 A1'!M88 -> 00:00:00 | Q102: ='Data_From Access 1721 A1'!N88 -> 0 | R102: =IF(transkasi[[#This Row],[PENGHASILAN BRUTO]]*5%>=500000,500000,transkasi[[#This Row],[PENGHASILAN BRUTO]]*5%) -> 0 | S102: =2%*transkasi[[#This Row],[GAJI POKOK]] -> 0 | T102: =1%*transkasi[[#This Row],[GAJI POKOK]] -> 0 | U102: =SUM(transkasi[[#This Row],[BIAYA JABATAN PERBULAN 5%]:[Jaminan Pensiun (JP) dibayar Karyawan (1%)]]) -> 0 | V102: =transkasi[[#This Row],[PENGHASILAN BRUTO]]-transkasi[[#This Row],[Jumlah Pengurangan]] -> 0 | W102: =transkasi[[#This Row],[GAJI POKOK]] -> 0 | X102: =IFERROR(transkasi[[#This Row],[Penghasilan Netto(Bersih) sebulan]]*transkasi[[#This Row],[Masa Kerja]]+transkasi[[#This Row],[THR Setahun]],0) -> 0 | Y102: =IF(ISBLANK(transkasi[[#This Row],[NO]]),"",VLOOKUP(transkasi[[#This Row],[STATUS PTKP]],tarif_ptkp[],2,FALSE)) ->  | Z102: =IFERROR(transkasi[[#This Row],[Penghasilan NETTO (bersih) setahun]]-transkasi[[#This Row],[PTKP (Penghasilan tidak kena pajak) setahun]],0) -> 0 | AA102: =IF(transkasi[[#This Row],[PKP (Penghasilan kena pajak) setahun]]<=0,0,ROUNDDOWN(transkasi[[#This Row],[PKP (Penghasilan kena pajak) setahun]],-3)) -> 0 | AB102: ='Data_From Access 1721 A1'!O88 -> 0 | AC102: ='Data_From Access 1721 A1'!P88 -> 0 | AD102: ='Data_From Access 1721 A1'!Q88 -> 0 | AE102: ='Data_From Access 1721 A1'!R88 -> 0 | AF102: ='Data_From Access 1721 A1'!S88 -> 0 | AG102: =INT(transkasi[[#This Row],[5 %]]+transkasi[[#This Row],[15 %]]+transkasi[[#This Row],[25 %]]+transkasi[[#This Row],[30 %]]+transkasi[[#This Row],[30 %]]+transkasi[[#This Row],[35 %]]/1000*1000) -> 0 | AH102: ='Data_From Access 1721 A1'!T88 -> 0 | AI102: ='Data_From Access 1721 A1'!U88 -> 0 | AJ102: ='Data_From Access 1721 A1'!V88 -> 0 | AK102: 0 | DC102: =INT(transkasi[[#This Row],[JUMLAH PPH PS.21 SETAHUN]]-transkasi[[#This Row],[Kredit Pajak YTDD Jan-Nov + THR]])/1000*1000 -> 0
A103: ='Data_From Access 1721 A1'!A89 ->  | B103: ='Data_From Access 1721 A1'!D89 -> 0 | C103: ='Data_From Access 1721 A1'!G89 -> 0 | D103: ='Data_From Access 1721 A1'!I89 -> 0 | E103: ='Data_From Access 1721 A1'!B89 -> 0 | F103: ='Data_From Access 1721 A1'!C89 -> 0 | G103: ='Data_From Access 1721 A1'!E89 -> 0 | H103: ='Data_From Access 1721 A1'!H89 -> 0 | I103: ='Data_From Access 1721 A1'!F89 -> 0 | J103: ='Data_From Access 1721 A1'!J89 -> 0 | K103: ='Data_From Access 1721 A1'!K89 -> 0 | L103: =IF(ISBLANK(transkasi[[#This Row],[GAJI POKOK]]),"",0.24%*transkasi[[#This Row],[GAJI POKOK]]) -> 0 | M103: =0.3%*transkasi[[#This Row],[GAJI POKOK]] -> 0 | N103: =SUM(transkasi[[#This Row],[GAJI POKOK]:[Jaminan Kematian/JK (0,3%)]]) -> 0 | O103: ='Data_From Access 1721 A1'!L89 -> 00:00:00 | P103: ='Data_From Access 1721 A1'!M89 -> 00:00:00 | Q103: ='Data_From Access 1721 A1'!N89 -> 0 | R103: =IF(transkasi[[#This Row],[PENGHASILAN BRUTO]]*5%>=500000,500000,transkasi[[#This Row],[PENGHASILAN BRUTO]]*5%) -> 0 | S103: =2%*transkasi[[#This Row],[GAJI POKOK]] -> 0 | T103: =1%*transkasi[[#This Row],[GAJI POKOK]] -> 0 | U103: =SUM(transkasi[[#This Row],[BIAYA JABATAN PERBULAN 5%]:[Jaminan Pensiun (JP) dibayar Karyawan (1%)]]) -> 0 | V103: =transkasi[[#This Row],[PENGHASILAN BRUTO]]-transkasi[[#This Row],[Jumlah Pengurangan]] -> 0 | W103: =transkasi[[#This Row],[GAJI POKOK]] -> 0 | X103: =IFERROR(transkasi[[#This Row],[Penghasilan Netto(Bersih) sebulan]]*transkasi[[#This Row],[Masa Kerja]]+transkasi[[#This Row],[THR Setahun]],0) -> 0 | Y103: =IF(ISBLANK(transkasi[[#This Row],[NO]]),"",VLOOKUP(transkasi[[#This Row],[STATUS PTKP]],tarif_ptkp[],2,FALSE)) ->  | Z103: =IFERROR(transkasi[[#This Row],[Penghasilan NETTO (bersih) setahun]]-transkasi[[#This Row],[PTKP (Penghasilan tidak kena pajak) setahun]],0) -> 0 | AA103: =IF(transkasi[[#This Row],[PKP (Penghasilan kena pajak) setahun]]<=0,0,ROUNDDOWN(transkasi[[#This Row],[PKP (Penghasilan kena pajak) setahun]],-3)) -> 0 | AB103: ='Data_From Access 1721 A1'!O89 -> 0 | AC103: ='Data_From Access 1721 A1'!P89 -> 0 | AD103: ='Data_From Access 1721 A1'!Q89 -> 0 | AE103: ='Data_From Access 1721 A1'!R89 -> 0 | AF103: ='Data_From Access 1721 A1'!S89 -> 0 | AG103: =INT(transkasi[[#This Row],[5 %]]+transkasi[[#This Row],[15 %]]+transkasi[[#This Row],[25 %]]+transkasi[[#This Row],[30 %]]+transkasi[[#This Row],[30 %]]+transkasi[[#This Row],[35 %]]/1000*1000) -> 0 | AH103: ='Data_From Access 1721 A1'!T89 -> 0 | AI103: ='Data_From Access 1721 A1'!U89 -> 0 | AJ103: ='Data_From Access 1721 A1'!V89 -> 0 | AK103: 0 | DC103: =INT(transkasi[[#This Row],[JUMLAH PPH PS.21 SETAHUN]]-transkasi[[#This Row],[Kredit Pajak YTDD Jan-Nov + THR]])/1000*1000 -> 0
A104: ='Data_From Access 1721 A1'!A90 ->  | B104: ='Data_From Access 1721 A1'!D90 -> 0 | C104: ='Data_From Access 1721 A1'!G90 -> 0 | D104: ='Data_From Access 1721 A1'!I90 -> 0 | E104: ='Data_From Access 1721 A1'!B90 -> 0 | F104: ='Data_From Access 1721 A1'!C90 -> 0 | G104: ='Data_From Access 1721 A1'!E90 -> 0 | H104: ='Data_From Access 1721 A1'!H90 -> 0 | I104: ='Data_From Access 1721 A1'!F90 -> 0 | J104: ='Data_From Access 1721 A1'!J90 -> 0 | K104: ='Data_From Access 1721 A1'!K90 -> 0 | L104: =IF(ISBLANK(transkasi[[#This Row],[GAJI POKOK]]),"",0.24%*transkasi[[#This Row],[GAJI POKOK]]) -> 0 | M104: =0.3%*transkasi[[#This Row],[GAJI POKOK]] -> 0 | N104: =SUM(transkasi[[#This Row],[GAJI POKOK]:[Jaminan Kematian/JK (0,3%)]]) -> 0 | O104: ='Data_From Access 1721 A1'!L90 -> 00:00:00 | P104: ='Data_From Access 1721 A1'!M90 -> 00:00:00 | Q104: ='Data_From Access 1721 A1'!N90 -> 0 | R104: =IF(transkasi[[#This Row],[PENGHASILAN BRUTO]]*5%>=500000,500000,transkasi[[#This Row],[PENGHASILAN BRUTO]]*5%) -> 0 | S104: =2%*transkasi[[#This Row],[GAJI POKOK]] -> 0 | T104: =1%*transkasi[[#This Row],[GAJI POKOK]] -> 0 | U104: =SUM(transkasi[[#This Row],[BIAYA JABATAN PERBULAN 5%]:[Jaminan Pensiun (JP) dibayar Karyawan (1%)]]) -> 0 | V104: =transkasi[[#This Row],[PENGHASILAN BRUTO]]-transkasi[[#This Row],[Jumlah Pengurangan]] -> 0 | W104: =transkasi[[#This Row],[GAJI POKOK]] -> 0 | X104: =IFERROR(transkasi[[#This Row],[Penghasilan Netto(Bersih) sebulan]]*transkasi[[#This Row],[Masa Kerja]]+transkasi[[#This Row],[THR Setahun]],0) -> 0 | Y104: =IF(ISBLANK(transkasi[[#This Row],[NO]]),"",VLOOKUP(transkasi[[#This Row],[STATUS PTKP]],tarif_ptkp[],2,FALSE)) ->  | Z104: =IFERROR(transkasi[[#This Row],[Penghasilan NETTO (bersih) setahun]]-transkasi[[#This Row],[PTKP (Penghasilan tidak kena pajak) setahun]],0) -> 0 | AA104: =IF(transkasi[[#This Row],[PKP (Penghasilan kena pajak) setahun]]<=0,0,ROUNDDOWN(transkasi[[#This Row],[PKP (Penghasilan kena pajak) setahun]],-3)) -> 0 | AB104: ='Data_From Access 1721 A1'!O90 -> 0 | AC104: ='Data_From Access 1721 A1'!P90 -> 0 | AD104: ='Data_From Access 1721 A1'!Q90 -> 0 | AE104: ='Data_From Access 1721 A1'!R90 -> 0 | AF104: ='Data_From Access 1721 A1'!S90 -> 0 | AG104: =INT(transkasi[[#This Row],[5 %]]+transkasi[[#This Row],[15 %]]+transkasi[[#This Row],[25 %]]+transkasi[[#This Row],[30 %]]+transkasi[[#This Row],[30 %]]+transkasi[[#This Row],[35 %]]/1000*1000) -> 0 | AH104: ='Data_From Access 1721 A1'!T90 -> 0 | AI104: ='Data_From Access 1721 A1'!U90 -> 0 | AJ104: ='Data_From Access 1721 A1'!V90 -> 0 | AK104: 0 | DC104: =INT(transkasi[[#This Row],[JUMLAH PPH PS.21 SETAHUN]]-transkasi[[#This Row],[Kredit Pajak YTDD Jan-Nov + THR]])/1000*1000 -> 0
A105: ='Data_From Access 1721 A1'!A91 ->  | B105: ='Data_From Access 1721 A1'!D91 -> 0 | C105: ='Data_From Access 1721 A1'!G91 -> 0 | D105: ='Data_From Access 1721 A1'!I91 -> 0 | E105: ='Data_From Access 1721 A1'!B91 -> 0 | F105: ='Data_From Access 1721 A1'!C91 -> 0 | G105: ='Data_From Access 1721 A1'!E91 -> 0 | H105: ='Data_From Access 1721 A1'!H91 -> 0 | I105: ='Data_From Access 1721 A1'!F91 -> 0 | J105: ='Data_From Access 1721 A1'!J91 -> 0 | K105: ='Data_From Access 1721 A1'!K91 -> 0 | L105: =IF(ISBLANK(transkasi[[#This Row],[GAJI POKOK]]),"",0.24%*transkasi[[#This Row],[GAJI POKOK]]) -> 0 | M105: =0.3%*transkasi[[#This Row],[GAJI POKOK]] -> 0 | N105: =SUM(transkasi[[#This Row],[GAJI POKOK]:[Jaminan Kematian/JK (0,3%)]]) -> 0 | O105: ='Data_From Access 1721 A1'!L91 -> 00:00:00 | P105: ='Data_From Access 1721 A1'!M91 -> 00:00:00 | Q105: ='Data_From Access 1721 A1'!N91 -> 0 | R105: =IF(transkasi[[#This Row],[PENGHASILAN BRUTO]]*5%>=500000,500000,transkasi[[#This Row],[PENGHASILAN BRUTO]]*5%) -> 0 | S105: =2%*transkasi[[#This Row],[GAJI POKOK]] -> 0 | T105: =1%*transkasi[[#This Row],[GAJI POKOK]] -> 0 | U105: =SUM(transkasi[[#This Row],[BIAYA JABATAN PERBULAN 5%]:[Jaminan Pensiun (JP) dibayar Karyawan (1%)]]) -> 0 | V105: =transkasi[[#This Row],[PENGHASILAN BRUTO]]-transkasi[[#This Row],[Jumlah Pengurangan]] -> 0 | W105: =transkasi[[#This Row],[GAJI POKOK]] -> 0 | X105: =IFERROR(transkasi[[#This Row],[Penghasilan Netto(Bersih) sebulan]]*transkasi[[#This Row],[Masa Kerja]]+transkasi[[#This Row],[THR Setahun]],0) -> 0 | Y105: =IF(ISBLANK(transkasi[[#This Row],[NO]]),"",VLOOKUP(transkasi[[#This Row],[STATUS PTKP]],tarif_ptkp[],2,FALSE)) ->  | Z105: =IFERROR(transkasi[[#This Row],[Penghasilan NETTO (bersih) setahun]]-transkasi[[#This Row],[PTKP (Penghasilan tidak kena pajak) setahun]],0) -> 0 | AA105: =IF(transkasi[[#This Row],[PKP (Penghasilan kena pajak) setahun]]<=0,0,ROUNDDOWN(transkasi[[#This Row],[PKP (Penghasilan kena pajak) setahun]],-3)) -> 0 | AB105: ='Data_From Access 1721 A1'!O91 -> 0 | AC105: ='Data_From Access 1721 A1'!P91 -> 0 | AD105: ='Data_From Access 1721 A1'!Q91 -> 0 | AE105: ='Data_From Access 1721 A1'!R91 -> 0 | AF105: ='Data_From Access 1721 A1'!S91 -> 0 | AG105: =INT(transkasi[[#This Row],[5 %]]+transkasi[[#This Row],[15 %]]+transkasi[[#This Row],[25 %]]+transkasi[[#This Row],[30 %]]+transkasi[[#This Row],[30 %]]+transkasi[[#This Row],[35 %]]/1000*1000) -> 0 | AH105: ='Data_From Access 1721 A1'!T91 -> 0 | AI105: ='Data_From Access 1721 A1'!U91 -> 0 | AJ105: ='Data_From Access 1721 A1'!V91 -> 0 | AK105: 0 | DC105: =INT(transkasi[[#This Row],[JUMLAH PPH PS.21 SETAHUN]]-transkasi[[#This Row],[Kredit Pajak YTDD Jan-Nov + THR]])/1000*1000 -> 0
A106: ='Data_From Access 1721 A1'!A92 ->  | B106: ='Data_From Access 1721 A1'!D92 -> 0 | C106: ='Data_From Access 1721 A1'!G92 -> 0 | D106: ='Data_From Access 1721 A1'!I92 -> 0 | E106: ='Data_From Access 1721 A1'!B92 -> 0 | F106: ='Data_From Access 1721 A1'!C92 -> 0 | G106: ='Data_From Access 1721 A1'!E92 -> 0 | H106: ='Data_From Access 1721 A1'!H92 -> 0 | I106: ='Data_From Access 1721 A1'!F92 -> 0 | J106: ='Data_From Access 1721 A1'!J92 -> 0 | K106: ='Data_From Access 1721 A1'!K92 -> 0 | L106: =IF(ISBLANK(transkasi[[#This Row],[GAJI POKOK]]),"",0.24%*transkasi[[#This Row],[GAJI POKOK]]) -> 0 | M106: =0.3%*transkasi[[#This Row],[GAJI POKOK]] -> 0 | N106: =SUM(transkasi[[#This Row],[GAJI POKOK]:[Jaminan Kematian/JK (0,3%)]]) -> 0 | O106: ='Data_From Access 1721 A1'!L92 -> 00:00:00 | P106: ='Data_From Access 1721 A1'!M92 -> 00:00:00 | Q106: ='Data_From Access 1721 A1'!N92 -> 0 | R106: =IF(transkasi[[#This Row],[PENGHASILAN BRUTO]]*5%>=500000,500000,transkasi[[#This Row],[PENGHASILAN BRUTO]]*5%) -> 0 | S106: =2%*transkasi[[#This Row],[GAJI POKOK]] -> 0 | T106: =1%*transkasi[[#This Row],[GAJI POKOK]] -> 0 | U106: =SUM(transkasi[[#This Row],[BIAYA JABATAN PERBULAN 5%]:[Jaminan Pensiun (JP) dibayar Karyawan (1%)]]) -> 0 | V106: =transkasi[[#This Row],[PENGHASILAN BRUTO]]-transkasi[[#This Row],[Jumlah Pengurangan]] -> 0 | W106: =transkasi[[#This Row],[GAJI POKOK]] -> 0 | X106: =IFERROR(transkasi[[#This Row],[Penghasilan Netto(Bersih) sebulan]]*transkasi[[#This Row],[Masa Kerja]]+transkasi[[#This Row],[THR Setahun]],0) -> 0 | Y106: =IF(ISBLANK(transkasi[[#This Row],[NO]]),"",VLOOKUP(transkasi[[#This Row],[STATUS PTKP]],tarif_ptkp[],2,FALSE)) ->  | Z106: =IFERROR(transkasi[[#This Row],[Penghasilan NETTO (bersih) setahun]]-transkasi[[#This Row],[PTKP (Penghasilan tidak kena pajak) setahun]],0) -> 0 | AA106: =IF(transkasi[[#This Row],[PKP (Penghasilan kena pajak) setahun]]<=0,0,ROUNDDOWN(transkasi[[#This Row],[PKP (Penghasilan kena pajak) setahun]],-3)) -> 0 | AB106: ='Data_From Access 1721 A1'!O92 -> 0 | AC106: ='Data_From Access 1721 A1'!P92 -> 0 | AD106: ='Data_From Access 1721 A1'!Q92 -> 0 | AE106: ='Data_From Access 1721 A1'!R92 -> 0 | AF106: ='Data_From Access 1721 A1'!S92 -> 0 | AG106: =INT(transkasi[[#This Row],[5 %]]+transkasi[[#This Row],[15 %]]+transkasi[[#This Row],[25 %]]+transkasi[[#This Row],[30 %]]+transkasi[[#This Row],[30 %]]+transkasi[[#This Row],[35 %]]/1000*1000) -> 0 | AH106: ='Data_From Access 1721 A1'!T92 -> 0 | AI106: ='Data_From Access 1721 A1'!U92 -> 0 | AJ106: ='Data_From Access 1721 A1'!V92 -> 0 | AK106: 0 | DC106: =INT(transkasi[[#This Row],[JUMLAH PPH PS.21 SETAHUN]]-transkasi[[#This Row],[Kredit Pajak YTDD Jan-Nov + THR]])/1000*1000 -> 0
A107: ='Data_From Access 1721 A1'!A93 ->  | B107: ='Data_From Access 1721 A1'!D93 -> 0 | C107: ='Data_From Access 1721 A1'!G93 -> 0 | D107: ='Data_From Access 1721 A1'!I93 -> 0 | E107: ='Data_From Access 1721 A1'!B93 -> 0 | F107: ='Data_From Access 1721 A1'!C93 -> 0 | G107: ='Data_From Access 1721 A1'!E93 -> 0 | H107: ='Data_From Access 1721 A1'!H93 -> 0 | I107: ='Data_From Access 1721 A1'!F93 -> 0 | J107: ='Data_From Access 1721 A1'!J93 -> 0 | K107: ='Data_From Access 1721 A1'!K93 -> 0 | L107: =IF(ISBLANK(transkasi[[#This Row],[GAJI POKOK]]),"",0.24%*transkasi[[#This Row],[GAJI POKOK]]) -> 0 | M107: =0.3%*transkasi[[#This Row],[GAJI POKOK]] -> 0 | N107: =SUM(transkasi[[#This Row],[GAJI POKOK]:[Jaminan Kematian/JK (0,3%)]]) -> 0 | O107: ='Data_From Access 1721 A1'!L93 -> 00:00:00 | P107: ='Data_From Access 1721 A1'!M93 -> 00:00:00 | Q107: ='Data_From Access 1721 A1'!N93 -> 0 | R107: =IF(transkasi[[#This Row],[PENGHASILAN BRUTO]]*5%>=500000,500000,transkasi[[#This Row],[PENGHASILAN BRUTO]]*5%) -> 0 | S107: =2%*transkasi[[#This Row],[GAJI POKOK]] -> 0 | T107: =1%*transkasi[[#This Row],[GAJI POKOK]] -> 0 | U107: =SUM(transkasi[[#This Row],[BIAYA JABATAN PERBULAN 5%]:[Jaminan Pensiun (JP) dibayar Karyawan (1%)]]) -> 0 | V107: =transkasi[[#This Row],[PENGHASILAN BRUTO]]-transkasi[[#This Row],[Jumlah Pengurangan]] -> 0 | W107: =transkasi[[#This Row],[GAJI POKOK]] -> 0 | X107: =IFERROR(transkasi[[#This Row],[Penghasilan Netto(Bersih) sebulan]]*transkasi[[#This Row],[Masa Kerja]]+transkasi[[#This Row],[THR Setahun]],0) -> 0 | Y107: =IF(ISBLANK(transkasi[[#This Row],[NO]]),"",VLOOKUP(transkasi[[#This Row],[STATUS PTKP]],tarif_ptkp[],2,FALSE)) ->  | Z107: =IFERROR(transkasi[[#This Row],[Penghasilan NETTO (bersih) setahun]]-transkasi[[#This Row],[PTKP (Penghasilan tidak kena pajak) setahun]],0) -> 0 | AA107: =IF(transkasi[[#This Row],[PKP (Penghasilan kena pajak) setahun]]<=0,0,ROUNDDOWN(transkasi[[#This Row],[PKP (Penghasilan kena pajak) setahun]],-3)) -> 0 | AB107: ='Data_From Access 1721 A1'!O93 -> 0 | AC107: ='Data_From Access 1721 A1'!P93 -> 0 | AD107: ='Data_From Access 1721 A1'!Q93 -> 0 | AE107: ='Data_From Access 1721 A1'!R93 -> 0 | AF107: ='Data_From Access 1721 A1'!S93 -> 0 | AG107: =INT(transkasi[[#This Row],[5 %]]+transkasi[[#This Row],[15 %]]+transkasi[[#This Row],[25 %]]+transkasi[[#This Row],[30 %]]+transkasi[[#This Row],[30 %]]+transkasi[[#This Row],[35 %]]/1000*1000) -> 0 | AH107: ='Data_From Access 1721 A1'!T93 -> 0 | AI107: ='Data_From Access 1721 A1'!U93 -> 0 | AJ107: ='Data_From Access 1721 A1'!V93 -> 0 | AK107: 0 | DC107: =INT(transkasi[[#This Row],[JUMLAH PPH PS.21 SETAHUN]]-transkasi[[#This Row],[Kredit Pajak YTDD Jan-Nov + THR]])/1000*1000 -> 0
A108: ='Data_From Access 1721 A1'!A94 ->  | B108: ='Data_From Access 1721 A1'!D94 -> 0 | C108: ='Data_From Access 1721 A1'!G94 -> 0 | D108: ='Data_From Access 1721 A1'!I94 -> 0 | E108: ='Data_From Access 1721 A1'!B94 -> 0 | F108: ='Data_From Access 1721 A1'!C94 -> 0 | G108: ='Data_From Access 1721 A1'!E94 -> 0 | H108: ='Data_From Access 1721 A1'!H94 -> 0 | I108: ='Data_From Access 1721 A1'!F94 -> 0 | J108: ='Data_From Access 1721 A1'!J94 -> 0 | K108: ='Data_From Access 1721 A1'!K94 -> 0 | L108: =IF(ISBLANK(transkasi[[#This Row],[GAJI POKOK]]),"",0.24%*transkasi[[#This Row],[GAJI POKOK]]) -> 0 | M108: =0.3%*transkasi[[#This Row],[GAJI POKOK]] -> 0 | N108: =SUM(transkasi[[#This Row],[GAJI POKOK]:[Jaminan Kematian/JK (0,3%)]]) -> 0 | O108: ='Data_From Access 1721 A1'!L94 -> 00:00:00 | P108: ='Data_From Access 1721 A1'!M94 -> 00:00:00 | Q108: ='Data_From Access 1721 A1'!N94 -> 0 | R108: =IF(transkasi[[#This Row],[PENGHASILAN BRUTO]]*5%>=500000,500000,transkasi[[#This Row],[PENGHASILAN BRUTO]]*5%) -> 0 | S108: =2%*transkasi[[#This Row],[GAJI POKOK]] -> 0 | T108: =1%*transkasi[[#This Row],[GAJI POKOK]] -> 0 | U108: =SUM(transkasi[[#This Row],[BIAYA JABATAN PERBULAN 5%]:[Jaminan Pensiun (JP) dibayar Karyawan (1%)]]) -> 0 | V108: =transkasi[[#This Row],[PENGHASILAN BRUTO]]-transkasi[[#This Row],[Jumlah Pengurangan]] -> 0 | W108: =transkasi[[#This Row],[GAJI POKOK]] -> 0 | X108: =IFERROR(transkasi[[#This Row],[Penghasilan Netto(Bersih) sebulan]]*transkasi[[#This Row],[Masa Kerja]]+transkasi[[#This Row],[THR Setahun]],0) -> 0 | Y108: =IF(ISBLANK(transkasi[[#This Row],[NO]]),"",VLOOKUP(transkasi[[#This Row],[STATUS PTKP]],tarif_ptkp[],2,FALSE)) ->  | Z108: =IFERROR(transkasi[[#This Row],[Penghasilan NETTO (bersih) setahun]]-transkasi[[#This Row],[PTKP (Penghasilan tidak kena pajak) setahun]],0) -> 0 | AA108: =IF(transkasi[[#This Row],[PKP (Penghasilan kena pajak) setahun]]<=0,0,ROUNDDOWN(transkasi[[#This Row],[PKP (Penghasilan kena pajak) setahun]],-3)) -> 0 | AB108: ='Data_From Access 1721 A1'!O94 -> 0 | AC108: ='Data_From Access 1721 A1'!P94 -> 0 | AD108: ='Data_From Access 1721 A1'!Q94 -> 0 | AE108: ='Data_From Access 1721 A1'!R94 -> 0 | AF108: ='Data_From Access 1721 A1'!S94 -> 0 | AG108: =INT(transkasi[[#This Row],[5 %]]+transkasi[[#This Row],[15 %]]+transkasi[[#This Row],[25 %]]+transkasi[[#This Row],[30 %]]+transkasi[[#This Row],[30 %]]+transkasi[[#This Row],[35 %]]/1000*1000) -> 0 | AH108: ='Data_From Access 1721 A1'!T94 -> 0 | AI108: ='Data_From Access 1721 A1'!U94 -> 0 | AJ108: ='Data_From Access 1721 A1'!V94 -> 0 | AK108: 0 | DC108: =INT(transkasi[[#This Row],[JUMLAH PPH PS.21 SETAHUN]]-transkasi[[#This Row],[Kredit Pajak YTDD Jan-Nov + THR]])/1000*1000 -> 0
A109: ='Data_From Access 1721 A1'!A95 ->  | B109: ='Data_From Access 1721 A1'!D95 -> 0 | C109: ='Data_From Access 1721 A1'!G95 -> 0 | D109: ='Data_From Access 1721 A1'!I95 -> 0 | E109: ='Data_From Access 1721 A1'!B95 -> 0 | F109: ='Data_From Access 1721 A1'!C95 -> 0 | G109: ='Data_From Access 1721 A1'!E95 -> 0 | H109: ='Data_From Access 1721 A1'!H95 -> 0 | I109: ='Data_From Access 1721 A1'!F95 -> 0 | J109: ='Data_From Access 1721 A1'!J95 -> 0 | K109: ='Data_From Access 1721 A1'!K95 -> 0 | L109: =IF(ISBLANK(transkasi[[#This Row],[GAJI POKOK]]),"",0.24%*transkasi[[#This Row],[GAJI POKOK]]) -> 0 | M109: =0.3%*transkasi[[#This Row],[GAJI POKOK]] -> 0 | N109: =SUM(transkasi[[#This Row],[GAJI POKOK]:[Jaminan Kematian/JK (0,3%)]]) -> 0 | O109: ='Data_From Access 1721 A1'!L95 -> 00:00:00 | P109: ='Data_From Access 1721 A1'!M95 -> 00:00:00 | Q109: ='Data_From Access 1721 A1'!N95 -> 0 | R109: =IF(transkasi[[#This Row],[PENGHASILAN BRUTO]]*5%>=500000,500000,transkasi[[#This Row],[PENGHASILAN BRUTO]]*5%) -> 0 | S109: =2%*transkasi[[#This Row],[GAJI POKOK]] -> 0 | T109: =1%*transkasi[[#This Row],[GAJI POKOK]] -> 0 | U109: =SUM(transkasi[[#This Row],[BIAYA JABATAN PERBULAN 5%]:[Jaminan Pensiun (JP) dibayar Karyawan (1%)]]) -> 0 | V109: =transkasi[[#This Row],[PENGHASILAN BRUTO]]-transkasi[[#This Row],[Jumlah Pengurangan]] -> 0 | W109: =transkasi[[#This Row],[GAJI POKOK]] -> 0 | X109: =IFERROR(transkasi[[#This Row],[Penghasilan Netto(Bersih) sebulan]]*transkasi[[#This Row],[Masa Kerja]]+transkasi[[#This Row],[THR Setahun]],0) -> 0 | Y109: =IF(ISBLANK(transkasi[[#This Row],[NO]]),"",VLOOKUP(transkasi[[#This Row],[STATUS PTKP]],tarif_ptkp[],2,FALSE)) ->  | Z109: =IFERROR(transkasi[[#This Row],[Penghasilan NETTO (bersih) setahun]]-transkasi[[#This Row],[PTKP (Penghasilan tidak kena pajak) setahun]],0) -> 0 | AA109: =IF(transkasi[[#This Row],[PKP (Penghasilan kena pajak) setahun]]<=0,0,ROUNDDOWN(transkasi[[#This Row],[PKP (Penghasilan kena pajak) setahun]],-3)) -> 0 | AB109: ='Data_From Access 1721 A1'!O95 -> 0 | AC109: ='Data_From Access 1721 A1'!P95 -> 0 | AD109: ='Data_From Access 1721 A1'!Q95 -> 0 | AE109: ='Data_From Access 1721 A1'!R95 -> 0 | AF109: ='Data_From Access 1721 A1'!S95 -> 0 | AG109: =INT(transkasi[[#This Row],[5 %]]+transkasi[[#This Row],[15 %]]+transkasi[[#This Row],[25 %]]+transkasi[[#This Row],[30 %]]+transkasi[[#This Row],[30 %]]+transkasi[[#This Row],[35 %]]/1000*1000) -> 0 | AH109: ='Data_From Access 1721 A1'!T95 -> 0 | AI109: ='Data_From Access 1721 A1'!U95 -> 0 | AJ109: ='Data_From Access 1721 A1'!V95 -> 0 | AK109: 0 | DC109: =INT(transkasi[[#This Row],[JUMLAH PPH PS.21 SETAHUN]]-transkasi[[#This Row],[Kredit Pajak YTDD Jan-Nov + THR]])/1000*1000 -> 0
A110: ='Data_From Access 1721 A1'!A96 ->  | B110: ='Data_From Access 1721 A1'!D96 -> 0 | C110: ='Data_From Access 1721 A1'!G96 -> 0 | D110: ='Data_From Access 1721 A1'!I96 -> 0 | E110: ='Data_From Access 1721 A1'!B96 -> 0 | F110: ='Data_From Access 1721 A1'!C96 -> 0 | G110: ='Data_From Access 1721 A1'!E96 -> 0 | H110: ='Data_From Access 1721 A1'!H96 -> 0 | I110: ='Data_From Access 1721 A1'!F96 -> 0 | J110: ='Data_From Access 1721 A1'!J96 -> 0 | K110: ='Data_From Access 1721 A1'!K96 -> 0 | L110: =IF(ISBLANK(transkasi[[#This Row],[GAJI POKOK]]),"",0.24%*transkasi[[#This Row],[GAJI POKOK]]) -> 0 | M110: =0.3%*transkasi[[#This Row],[GAJI POKOK]] -> 0 | N110: =SUM(transkasi[[#This Row],[GAJI POKOK]:[Jaminan Kematian/JK (0,3%)]]) -> 0 | O110: ='Data_From Access 1721 A1'!L96 -> 00:00:00 | P110: ='Data_From Access 1721 A1'!M96 -> 00:00:00 | Q110: ='Data_From Access 1721 A1'!N96 -> 0 | R110: =IF(transkasi[[#This Row],[PENGHASILAN BRUTO]]*5%>=500000,500000,transkasi[[#This Row],[PENGHASILAN BRUTO]]*5%) -> 0 | S110: =2%*transkasi[[#This Row],[GAJI POKOK]] -> 0 | T110: =1%*transkasi[[#This Row],[GAJI POKOK]] -> 0 | U110: =SUM(transkasi[[#This Row],[BIAYA JABATAN PERBULAN 5%]:[Jaminan Pensiun (JP) dibayar Karyawan (1%)]]) -> 0 | V110: =transkasi[[#This Row],[PENGHASILAN BRUTO]]-transkasi[[#This Row],[Jumlah Pengurangan]] -> 0 | W110: =transkasi[[#This Row],[GAJI POKOK]] -> 0 | X110: =IFERROR(transkasi[[#This Row],[Penghasilan Netto(Bersih) sebulan]]*transkasi[[#This Row],[Masa Kerja]]+transkasi[[#This Row],[THR Setahun]],0) -> 0 | Y110: =IF(ISBLANK(transkasi[[#This Row],[NO]]),"",VLOOKUP(transkasi[[#This Row],[STATUS PTKP]],tarif_ptkp[],2,FALSE)) ->  | Z110: =IFERROR(transkasi[[#This Row],[Penghasilan NETTO (bersih) setahun]]-transkasi[[#This Row],[PTKP (Penghasilan tidak kena pajak) setahun]],0) -> 0 | AA110: =IF(transkasi[[#This Row],[PKP (Penghasilan kena pajak) setahun]]<=0,0,ROUNDDOWN(transkasi[[#This Row],[PKP (Penghasilan kena pajak) setahun]],-3)) -> 0 | AB110: ='Data_From Access 1721 A1'!O96 -> 0 | AC110: ='Data_From Access 1721 A1'!P96 -> 0 | AD110: ='Data_From Access 1721 A1'!Q96 -> 0 | AE110: ='Data_From Access 1721 A1'!R96 -> 0 | AF110: ='Data_From Access 1721 A1'!S96 -> 0 | AG110: =INT(transkasi[[#This Row],[5 %]]+transkasi[[#This Row],[15 %]]+transkasi[[#This Row],[25 %]]+transkasi[[#This Row],[30 %]]+transkasi[[#This Row],[30 %]]+transkasi[[#This Row],[35 %]]/1000*1000) -> 0 | AH110: ='Data_From Access 1721 A1'!T96 -> 0 | AI110: ='Data_From Access 1721 A1'!U96 -> 0 | AJ110: ='Data_From Access 1721 A1'!V96 -> 0 | AK110: 0 | DC110: =INT(transkasi[[#This Row],[JUMLAH PPH PS.21 SETAHUN]]-transkasi[[#This Row],[Kredit Pajak YTDD Jan-Nov + THR]])/1000*1000 -> 0
A111: ='Data_From Access 1721 A1'!A97 ->  | B111: ='Data_From Access 1721 A1'!D97 -> 0 | C111: ='Data_From Access 1721 A1'!G97 -> 0 | D111: ='Data_From Access 1721 A1'!I97 -> 0 | E111: ='Data_From Access 1721 A1'!B97 -> 0 | F111: ='Data_From Access 1721 A1'!C97 -> 0 | G111: ='Data_From Access 1721 A1'!E97 -> 0 | H111: ='Data_From Access 1721 A1'!H97 -> 0 | I111: ='Data_From Access 1721 A1'!F97 -> 0 | J111: ='Data_From Access 1721 A1'!J97 -> 0 | K111: ='Data_From Access 1721 A1'!K97 -> 0 | L111: =IF(ISBLANK(transkasi[[#This Row],[GAJI POKOK]]),"",0.24%*transkasi[[#This Row],[GAJI POKOK]]) -> 0 | M111: =0.3%*transkasi[[#This Row],[GAJI POKOK]] -> 0 | N111: =SUM(transkasi[[#This Row],[GAJI POKOK]:[Jaminan Kematian/JK (0,3%)]]) -> 0 | O111: ='Data_From Access 1721 A1'!L97 -> 00:00:00 | P111: ='Data_From Access 1721 A1'!M97 -> 00:00:00 | Q111: ='Data_From Access 1721 A1'!N97 -> 0 | R111: =IF(transkasi[[#This Row],[PENGHASILAN BRUTO]]*5%>=500000,500000,transkasi[[#This Row],[PENGHASILAN BRUTO]]*5%) -> 0 | S111: =2%*transkasi[[#This Row],[GAJI POKOK]] -> 0 | T111: =1%*transkasi[[#This Row],[GAJI POKOK]] -> 0 | U111: =SUM(transkasi[[#This Row],[BIAYA JABATAN PERBULAN 5%]:[Jaminan Pensiun (JP) dibayar Karyawan (1%)]]) -> 0 | V111: =transkasi[[#This Row],[PENGHASILAN BRUTO]]-transkasi[[#This Row],[Jumlah Pengurangan]] -> 0 | W111: =transkasi[[#This Row],[GAJI POKOK]] -> 0 | X111: =IFERROR(transkasi[[#This Row],[Penghasilan Netto(Bersih) sebulan]]*transkasi[[#This Row],[Masa Kerja]]+transkasi[[#This Row],[THR Setahun]],0) -> 0 | Y111: =IF(ISBLANK(transkasi[[#This Row],[NO]]),"",VLOOKUP(transkasi[[#This Row],[STATUS PTKP]],tarif_ptkp[],2,FALSE)) ->  | Z111: =IFERROR(transkasi[[#This Row],[Penghasilan NETTO (bersih) setahun]]-transkasi[[#This Row],[PTKP (Penghasilan tidak kena pajak) setahun]],0) -> 0 | AA111: =IF(transkasi[[#This Row],[PKP (Penghasilan kena pajak) setahun]]<=0,0,ROUNDDOWN(transkasi[[#This Row],[PKP (Penghasilan kena pajak) setahun]],-3)) -> 0 | AB111: ='Data_From Access 1721 A1'!O97 -> 0 | AC111: ='Data_From Access 1721 A1'!P97 -> 0 | AD111: ='Data_From Access 1721 A1'!Q97 -> 0 | AE111: ='Data_From Access 1721 A1'!R97 -> 0 | AF111: ='Data_From Access 1721 A1'!S97 -> 0 | AG111: =INT(transkasi[[#This Row],[5 %]]+transkasi[[#This Row],[15 %]]+transkasi[[#This Row],[25 %]]+transkasi[[#This Row],[30 %]]+transkasi[[#This Row],[30 %]]+transkasi[[#This Row],[35 %]]/1000*1000) -> 0 | AH111: ='Data_From Access 1721 A1'!T97 -> 0 | AI111: ='Data_From Access 1721 A1'!U97 -> 0 | AJ111: ='Data_From Access 1721 A1'!V97 -> 0 | AK111: 0 | DC111: =INT(transkasi[[#This Row],[JUMLAH PPH PS.21 SETAHUN]]-transkasi[[#This Row],[Kredit Pajak YTDD Jan-Nov + THR]])/1000*1000 -> 0
A112: ='Data_From Access 1721 A1'!A98 ->  | B112: ='Data_From Access 1721 A1'!D98 -> 0 | C112: ='Data_From Access 1721 A1'!G98 -> 0 | D112: ='Data_From Access 1721 A1'!I98 -> 0 | E112: ='Data_From Access 1721 A1'!B98 -> 0 | F112: ='Data_From Access 1721 A1'!C98 -> 0 | G112: ='Data_From Access 1721 A1'!E98 -> 0 | H112: ='Data_From Access 1721 A1'!H98 -> 0 | I112: ='Data_From Access 1721 A1'!F98 -> 0 | J112: ='Data_From Access 1721 A1'!J98 -> 0 | K112: ='Data_From Access 1721 A1'!K98 -> 0 | L112: =IF(ISBLANK(transkasi[[#This Row],[GAJI POKOK]]),"",0.24%*transkasi[[#This Row],[GAJI POKOK]]) -> 0 | M112: =0.3%*transkasi[[#This Row],[GAJI POKOK]] -> 0 | N112: =SUM(transkasi[[#This Row],[GAJI POKOK]:[Jaminan Kematian/JK (0,3%)]]) -> 0 | O112: ='Data_From Access 1721 A1'!L98 -> 00:00:00 | P112: ='Data_From Access 1721 A1'!M98 -> 00:00:00 | Q112: ='Data_From Access 1721 A1'!N98 -> 0 | R112: =IF(transkasi[[#This Row],[PENGHASILAN BRUTO]]*5%>=500000,500000,transkasi[[#This Row],[PENGHASILAN BRUTO]]*5%) -> 0 | S112: =2%*transkasi[[#This Row],[GAJI POKOK]] -> 0 | T112: =1%*transkasi[[#This Row],[GAJI POKOK]] -> 0 | U112: =SUM(transkasi[[#This Row],[BIAYA JABATAN PERBULAN 5%]:[Jaminan Pensiun (JP) dibayar Karyawan (1%)]]) -> 0 | V112: =transkasi[[#This Row],[PENGHASILAN BRUTO]]-transkasi[[#This Row],[Jumlah Pengurangan]] -> 0 | W112: =transkasi[[#This Row],[GAJI POKOK]] -> 0 | X112: =IFERROR(transkasi[[#This Row],[Penghasilan Netto(Bersih) sebulan]]*transkasi[[#This Row],[Masa Kerja]]+transkasi[[#This Row],[THR Setahun]],0) -> 0 | Y112: =IF(ISBLANK(transkasi[[#This Row],[NO]]),"",VLOOKUP(transkasi[[#This Row],[STATUS PTKP]],tarif_ptkp[],2,FALSE)) ->  | Z112: =IFERROR(transkasi[[#This Row],[Penghasilan NETTO (bersih) setahun]]-transkasi[[#This Row],[PTKP (Penghasilan tidak kena pajak) setahun]],0) -> 0 | AA112: =IF(transkasi[[#This Row],[PKP (Penghasilan kena pajak) setahun]]<=0,0,ROUNDDOWN(transkasi[[#This Row],[PKP (Penghasilan kena pajak) setahun]],-3)) -> 0 | AB112: ='Data_From Access 1721 A1'!O98 -> 0 | AC112: ='Data_From Access 1721 A1'!P98 -> 0 | AD112: ='Data_From Access 1721 A1'!Q98 -> 0 | AE112: ='Data_From Access 1721 A1'!R98 -> 0 | AF112: ='Data_From Access 1721 A1'!S98 -> 0 | AG112: =INT(transkasi[[#This Row],[5 %]]+transkasi[[#This Row],[15 %]]+transkasi[[#This Row],[25 %]]+transkasi[[#This Row],[30 %]]+transkasi[[#This Row],[30 %]]+transkasi[[#This Row],[35 %]]/1000*1000) -> 0 | AH112: ='Data_From Access 1721 A1'!T98 -> 0 | AI112: ='Data_From Access 1721 A1'!U98 -> 0 | AJ112: ='Data_From Access 1721 A1'!V98 -> 0 | AK112: 0 | DC112: =INT(transkasi[[#This Row],[JUMLAH PPH PS.21 SETAHUN]]-transkasi[[#This Row],[Kredit Pajak YTDD Jan-Nov + THR]])/1000*1000 -> 0
